Workbook

Sheet Instructions

Sheet Reporting
A6: Project | B6: ='JMF Input'!B3 -> 0
A7: Lot | B7: ='Plant Acceptance'!F5 -> 0
G10: Y | H10: Optimum AC and Verification Samples data | O10: SMM codes updated
G11: Y | H11: Optimum AC charts | O11: 2023-03-31
G12: Y | H12: Combined Gradation
G13: N | H13: 0.45 Curve
G14: N | H14: Ignition Oven Correction Factors and Verification Gradations
G15: N | H15: LWT Design
G16: N | H16: Lottman Design
G18: N | H18: JMF Input
G19: Y | H19: JMF
G20: N | H20: JMF Check
G22: N | H22: Validation Input
G23: Y | H23: Validation Report
G24: Y | H24: Validation Plant Report
G25: Y | H25: LWT Validation
G26: N | H26: Lottman Validation
G28: Y | H28: Plant Report
G29: N | H29: Plant Acceptance
G30: N | H30: Plant QC
G31: N | H31: Plant Verification
G33: Y | H33: Roadway Core Data and Pay

Sheet Material Setup
A1: This page is used to select commonly used materials by the asphalt producer, the dropdown fields throughout LaPave will be populated with the options selected here and the default parameters entered for each option
C3: * | D3: = expired material
A5: Asphalt Prodr
A7: Anti-Strips | B7: Producer/Supplier | C7: =COUNTA(D8:D11) -> 0 | D7: Material | E7: Custom Name/Identifier | F7: Anti-Strip %
A8: 1 | C8: =IF(AC8<NOW(),"*","") ->  | Y8: ADAP | Z8: ="MAT!"&ADDRESS(VLOOKUP(B8,INDIRECT("PS!"&ADDRESS(VLOOKUP(Y8,PS!$I$2:$M$32,2,FALSE),3)&":"&ADDRESS(VLOOKUP(Y8,PS!$I$2:$M$32,2,FALSE)+VLOOKUP(Y8,PS!$I$2:$M$32,3,FALSE)-1,7)),4,FALSE),4)&":"&ADDRESS(VLOOKUP(B8,INDIRECT("PS!"&ADDRESS(VLOOKUP(Y8,PS!$I$2:$M$32,2,FALSE),3)&":"&ADDRESS(VLOOKUP(Y8,PS!$I$2:$M$32,2,FALSE)+VLOOKUP(Y8,PS!$I$2:$M$32,3,FALSE)-1,7)),4,FALSE)+VLOOKUP(B8,INDIRECT("PS!"&ADDRESS(VLOOKUP(Y8,PS!$I$2:$M$32,2,FALSE),3)&":"&ADDRESS(VLOOKUP(Y8,PS!$I$2:$M$32,2,FALSE)+VLOOKUP(Y8,PS!$I$2:$M$32,3,FALSE)-1,7)),5,FALSE)-1,4) ->  | AA8: =IFERROR(VLOOKUP(D8,MAT!$D$2:$K$711,7,FALSE),"") ->  | AB8: =IFERROR(VLOOKUP(D8,MAT!$D$2:$K$711,8,FALSE),"") ->  | AC8: =IFERROR(DATE(LEFT(AB8,4),MID(AB8,5,2),RIGHT(AB8,2)),"") ->  | AD8: =IFERROR(VLOOKUP(B8,PS!$C$2:$D$10000,2,FALSE),"") ->  | AE8: =IF(LEN(D8)>10,LEFT(D8,10)&"-"&E8,"") -> 
A9: 2 | C9: =IF(AC9<NOW(),"*","") ->  | Y9: ADAP | Z9: ="MAT!"&ADDRESS(VLOOKUP(B9,INDIRECT("PS!"&ADDRESS(VLOOKUP(Y9,PS!$I$2:$M$32,2,FALSE),3)&":"&ADDRESS(VLOOKUP(Y9,PS!$I$2:$M$32,2,FALSE)+VLOOKUP(Y9,PS!$I$2:$M$32,3,FALSE)-1,7)),4,FALSE),4)&":"&ADDRESS(VLOOKUP(B9,INDIRECT("PS!"&ADDRESS(VLOOKUP(Y9,PS!$I$2:$M$32,2,FALSE),3)&":"&ADDRESS(VLOOKUP(Y9,PS!$I$2:$M$32,2,FALSE)+VLOOKUP(Y9,PS!$I$2:$M$32,3,FALSE)-1,7)),4,FALSE)+VLOOKUP(B9,INDIRECT("PS!"&ADDRESS(VLOOKUP(Y9,PS!$I$2:$M$32,2,FALSE),3)&":"&ADDRESS(VLOOKUP(Y9,PS!$I$2:$M$32,2,FALSE)+VLOOKUP(Y9,PS!$I$2:$M$32,3,FALSE)-1,7)),5,FALSE)-1,4) ->  | AA9: =IFERROR(VLOOKUP(D9,MAT!$D$2:$K$711,7,FALSE),"") ->  | AB9: =IFERROR(VLOOKUP(D9,MAT!$D$2:$K$711,8,FALSE),"") ->  | AC9: =IFERROR(DATE(LEFT(AB9,4),MID(AB9,5,2),RIGHT(AB9,2)),"") ->  | AD9: =IFERROR(VLOOKUP(B9,PS!$C$2:$D$10000,2,FALSE),"") ->  | AE9: =IF(LEN(D9)>10,LEFT(D9,10)&"-"&E9,"") -> 
A10: 3 | Y10: ADAP | Z10: ="MAT!"&ADDRESS(VLOOKUP(B10,INDIRECT("PS!"&ADDRESS(VLOOKUP(Y10,PS!$I$2:$M$32,2,FALSE),3)&":"&ADDRESS(VLOOKUP(Y10,PS!$I$2:$M$32,2,FALSE)+VLOOKUP(Y10,PS!$I$2:$M$32,3,FALSE)-1,7)),4,FALSE),4)&":"&ADDRESS(VLOOKUP(B10,INDIRECT("PS!"&ADDRESS(VLOOKUP(Y10,PS!$I$2:$M$32,2,FALSE),3)&":"&ADDRESS(VLOOKUP(Y10,PS!$I$2:$M$32,2,FALSE)+VLOOKUP(Y10,PS!$I$2:$M$32,3,FALSE)-1,7)),4,FALSE)+VLOOKUP(B10,INDIRECT("PS!"&ADDRESS(VLOOKUP(Y10,PS!$I$2:$M$32,2,FALSE),3)&":"&ADDRESS(VLOOKUP(Y10,PS!$I$2:$M$32,2,FALSE)+VLOOKUP(Y10,PS!$I$2:$M$32,3,FALSE)-1,7)),5,FALSE)-1,4) ->  | AA10: =IFERROR(VLOOKUP(D10,MAT!$D$2:$K$711,7,FALSE),"") ->  | AB10: =IFERROR(VLOOKUP(D10,MAT!$D$2:$K$711,8,FALSE),"") ->  | AD10: =IFERROR(VLOOKUP(B10,PS!$C$2:$D$10000,2,FALSE),"") -> 
A11: 4 | Y11: ADAP | Z11: ="MAT!"&ADDRESS(VLOOKUP(B11,INDIRECT("PS!"&ADDRESS(VLOOKUP(Y11,PS!$I$2:$M$32,2,FALSE),3)&":"&ADDRESS(VLOOKUP(Y11,PS!$I$2:$M$32,2,FALSE)+VLOOKUP(Y11,PS!$I$2:$M$32,3,FALSE)-1,7)),4,FALSE),4)&":"&ADDRESS(VLOOKUP(B11,INDIRECT("PS!"&ADDRESS(VLOOKUP(Y11,PS!$I$2:$M$32,2,FALSE),3)&":"&ADDRESS(VLOOKUP(Y11,PS!$I$2:$M$32,2,FALSE)+VLOOKUP(Y11,PS!$I$2:$M$32,3,FALSE)-1,7)),4,FALSE)+VLOOKUP(B11,INDIRECT("PS!"&ADDRESS(VLOOKUP(Y11,PS!$I$2:$M$32,2,FALSE),3)&":"&ADDRESS(VLOOKUP(Y11,PS!$I$2:$M$32,2,FALSE)+VLOOKUP(Y11,PS!$I$2:$M$32,3,FALSE)-1,7)),5,FALSE)-1,4) ->  | AA11: =IFERROR(VLOOKUP(D11,MAT!$D$2:$K$711,7,FALSE),"") ->  | AB11: =IFERROR(VLOOKUP(D11,MAT!$D$2:$K$711,8,FALSE),"") ->  | AD11: =IFERROR(VLOOKUP(B11,PS!$C$2:$D$10000,2,FALSE),"") -> 
A13: Warm Mix Ad | B13: Producer/Supplier | C13: =COUNTA(D14:D17) -> 0 | D13: Material | E13: Custom Name/Identifier | F13: Method | G13: Rate
A14: 1 | C14: =IF(AC14<NOW(),"*","") ->  | Y14: ADAP | Z14: ="MAT!"&ADDRESS(VLOOKUP(B14,INDIRECT("PS!"&ADDRESS(VLOOKUP(Y14,PS!$I$2:$M$32,2,FALSE),3)&":"&ADDRESS(VLOOKUP(Y14,PS!$I$2:$M$32,2,FALSE)+VLOOKUP(Y14,PS!$I$2:$M$32,3,FALSE)-1,7)),4,FALSE),4)&":"&ADDRESS(VLOOKUP(B14,INDIRECT("PS!"&ADDRESS(VLOOKUP(Y14,PS!$I$2:$M$32,2,FALSE),3)&":"&ADDRESS(VLOOKUP(Y14,PS!$I$2:$M$32,2,FALSE)+VLOOKUP(Y14,PS!$I$2:$M$32,3,FALSE)-1,7)),4,FALSE)+VLOOKUP(B14,INDIRECT("PS!"&ADDRESS(VLOOKUP(Y14,PS!$I$2:$M$32,2,FALSE),3)&":"&ADDRESS(VLOOKUP(Y14,PS!$I$2:$M$32,2,FALSE)+VLOOKUP(Y14,PS!$I$2:$M$32,3,FALSE)-1,7)),5,FALSE)-1,4) ->  | AA14: =IFERROR(VLOOKUP(D14,MAT!$D$2:$K$711,7,FALSE),"") ->  | AB14: =IFERROR(VLOOKUP(D14,MAT!$D$2:$K$711,8,FALSE),"") ->  | AC14: =IFERROR(DATE(LEFT(AB14,4),MID(AB14,5,2),RIGHT(AB14,2)),"") ->  | AD14: =IFERROR(VLOOKUP(B14,PS!$C$2:$D$10000,2,FALSE),"") ->  | AE14: =IF(LEN(D14)>10,LEFT(D14,10)&"-"&E14,"") -> 
A15: 2 | Y15: ADAP | Z15: ="MAT!"&ADDRESS(VLOOKUP(B15,INDIRECT("PS!"&ADDRESS(VLOOKUP(Y15,PS!$I$2:$M$32,2,FALSE),3)&":"&ADDRESS(VLOOKUP(Y15,PS!$I$2:$M$32,2,FALSE)+VLOOKUP(Y15,PS!$I$2:$M$32,3,FALSE)-1,7)),4,FALSE),4)&":"&ADDRESS(VLOOKUP(B15,INDIRECT("PS!"&ADDRESS(VLOOKUP(Y15,PS!$I$2:$M$32,2,FALSE),3)&":"&ADDRESS(VLOOKUP(Y15,PS!$I$2:$M$32,2,FALSE)+VLOOKUP(Y15,PS!$I$2:$M$32,3,FALSE)-1,7)),4,FALSE)+VLOOKUP(B15,INDIRECT("PS!"&ADDRESS(VLOOKUP(Y15,PS!$I$2:$M$32,2,FALSE),3)&":"&ADDRESS(VLOOKUP(Y15,PS!$I$2:$M$32,2,FALSE)+VLOOKUP(Y15,PS!$I$2:$M$32,3,FALSE)-1,7)),5,FALSE)-1,4) ->  | AA15: =IFERROR(VLOOKUP(D15,MAT!$D$2:$K$711,7,FALSE),"") ->  | AB15: =IFERROR(VLOOKUP(D15,MAT!$D$2:$K$711,8,FALSE),"") ->  | AD15: =IFERROR(VLOOKUP(B15,PS!$C$2:$D$10000,2,FALSE),"") -> 
A16: 3 | Y16: ADAP | Z16: ="MAT!"&ADDRESS(VLOOKUP(B16,INDIRECT("PS!"&ADDRESS(VLOOKUP(Y16,PS!$I$2:$M$32,2,FALSE),3)&":"&ADDRESS(VLOOKUP(Y16,PS!$I$2:$M$32,2,FALSE)+VLOOKUP(Y16,PS!$I$2:$M$32,3,FALSE)-1,7)),4,FALSE),4)&":"&ADDRESS(VLOOKUP(B16,INDIRECT("PS!"&ADDRESS(VLOOKUP(Y16,PS!$I$2:$M$32,2,FALSE),3)&":"&ADDRESS(VLOOKUP(Y16,PS!$I$2:$M$32,2,FALSE)+VLOOKUP(Y16,PS!$I$2:$M$32,3,FALSE)-1,7)),4,FALSE)+VLOOKUP(B16,INDIRECT("PS!"&ADDRESS(VLOOKUP(Y16,PS!$I$2:$M$32,2,FALSE),3)&":"&ADDRESS(VLOOKUP(Y16,PS!$I$2:$M$32,2,FALSE)+VLOOKUP(Y16,PS!$I$2:$M$32,3,FALSE)-1,7)),5,FALSE)-1,4) ->  | AA16: =IFERROR(VLOOKUP(D16,MAT!$D$2:$K$711,7,FALSE),"") ->  | AB16: =IFERROR(VLOOKUP(D16,MAT!$D$2:$K$711,8,FALSE),"") ->  | AD16: =IFERROR(VLOOKUP(B16,PS!$C$2:$D$10000,2,FALSE),"") -> 
A17: 4 | Y17: ADAP | Z17: ="MAT!"&ADDRESS(VLOOKUP(B17,INDIRECT("PS!"&ADDRESS(VLOOKUP(Y17,PS!$I$2:$M$32,2,FALSE),3)&":"&ADDRESS(VLOOKUP(Y17,PS!$I$2:$M$32,2,FALSE)+VLOOKUP(Y17,PS!$I$2:$M$32,3,FALSE)-1,7)),4,FALSE),4)&":"&ADDRESS(VLOOKUP(B17,INDIRECT("PS!"&ADDRESS(VLOOKUP(Y17,PS!$I$2:$M$32,2,FALSE),3)&":"&ADDRESS(VLOOKUP(Y17,PS!$I$2:$M$32,2,FALSE)+VLOOKUP(Y17,PS!$I$2:$M$32,3,FALSE)-1,7)),4,FALSE)+VLOOKUP(B17,INDIRECT("PS!"&ADDRESS(VLOOKUP(Y17,PS!$I$2:$M$32,2,FALSE),3)&":"&ADDRESS(VLOOKUP(Y17,PS!$I$2:$M$32,2,FALSE)+VLOOKUP(Y17,PS!$I$2:$M$32,3,FALSE)-1,7)),5,FALSE)-1,4) ->  | AA17: =IFERROR(VLOOKUP(D17,MAT!$D$2:$K$711,7,FALSE),"") ->  | AB17: =IFERROR(VLOOKUP(D17,MAT!$D$2:$K$711,8,FALSE),"") ->  | AD17: =IFERROR(VLOOKUP(B17,PS!$C$2:$D$10000,2,FALSE),"") -> 
A19: Fibers/Rubber | B19: Producer/Supplier | C19: =COUNTA(D20:D23) -> 0 | D19: Material | E19: Custom Name/Identifier | F19: Fiber Type | G19: Rate %
A20: 1 | C20: =IF(AC20<NOW(),"*","") ->  | Y20: ADAP | Z20: ="MAT!"&ADDRESS(VLOOKUP(B20,INDIRECT("PS!"&ADDRESS(VLOOKUP(Y20,PS!$I$2:$M$32,2,FALSE),3)&":"&ADDRESS(VLOOKUP(Y20,PS!$I$2:$M$32,2,FALSE)+VLOOKUP(Y20,PS!$I$2:$M$32,3,FALSE)-1,7)),4,FALSE),4)&":"&ADDRESS(VLOOKUP(B20,INDIRECT("PS!"&ADDRESS(VLOOKUP(Y20,PS!$I$2:$M$32,2,FALSE),3)&":"&ADDRESS(VLOOKUP(Y20,PS!$I$2:$M$32,2,FALSE)+VLOOKUP(Y20,PS!$I$2:$M$32,3,FALSE)-1,7)),4,FALSE)+VLOOKUP(B20,INDIRECT("PS!"&ADDRESS(VLOOKUP(Y20,PS!$I$2:$M$32,2,FALSE),3)&":"&ADDRESS(VLOOKUP(Y20,PS!$I$2:$M$32,2,FALSE)+VLOOKUP(Y20,PS!$I$2:$M$32,3,FALSE)-1,7)),5,FALSE)-1,4) ->  | AA20: =IFERROR(VLOOKUP(D20,MAT!$D$2:$K$711,7,FALSE),"") ->  | AB20: =IFERROR(VLOOKUP(D20,MAT!$D$2:$K$711,8,FALSE),"") ->  | AC20: =IFERROR(DATE(LEFT(AB20,4),MID(AB20,5,2),RIGHT(AB20,2)),"") ->  | AD20: =IFERROR(VLOOKUP(B20,PS!$C$2:$D$10000,2,FALSE),"") ->  | AE20: =IF(LEN(D20)>10,LEFT(D20,10)&"-"&E20,"") -> 
A21: 2 | Y21: ADAP | Z21: ="MAT!"&ADDRESS(VLOOKUP(B21,INDIRECT("PS!"&ADDRESS(VLOOKUP(Y21,PS!$I$2:$M$32,2,FALSE),3)&":"&ADDRESS(VLOOKUP(Y21,PS!$I$2:$M$32,2,FALSE)+VLOOKUP(Y21,PS!$I$2:$M$32,3,FALSE)-1,7)),4,FALSE),4)&":"&ADDRESS(VLOOKUP(B21,INDIRECT("PS!"&ADDRESS(VLOOKUP(Y21,PS!$I$2:$M$32,2,FALSE),3)&":"&ADDRESS(VLOOKUP(Y21,PS!$I$2:$M$32,2,FALSE)+VLOOKUP(Y21,PS!$I$2:$M$32,3,FALSE)-1,7)),4,FALSE)+VLOOKUP(B21,INDIRECT("PS!"&ADDRESS(VLOOKUP(Y21,PS!$I$2:$M$32,2,FALSE),3)&":"&ADDRESS(VLOOKUP(Y21,PS!$I$2:$M$32,2,FALSE)+VLOOKUP(Y21,PS!$I$2:$M$32,3,FALSE)-1,7)),5,FALSE)-1,4) ->  | AA21: =IFERROR(VLOOKUP(D21,MAT!$D$2:$K$711,7,FALSE),"") ->  | AB21: =IFERROR(VLOOKUP(D21,MAT!$D$2:$K$711,8,FALSE),"") ->  | AD21: =IFERROR(VLOOKUP(B21,PS!$C$2:$D$10000,2,FALSE),"") -> 
A22: 3 | Y22: ADAP | Z22: ="MAT!"&ADDRESS(VLOOKUP(B22,INDIRECT("PS!"&ADDRESS(VLOOKUP(Y22,PS!$I$2:$M$32,2,FALSE),3)&":"&ADDRESS(VLOOKUP(Y22,PS!$I$2:$M$32,2,FALSE)+VLOOKUP(Y22,PS!$I$2:$M$32,3,FALSE)-1,7)),4,FALSE),4)&":"&ADDRESS(VLOOKUP(B22,INDIRECT("PS!"&ADDRESS(VLOOKUP(Y22,PS!$I$2:$M$32,2,FALSE),3)&":"&ADDRESS(VLOOKUP(Y22,PS!$I$2:$M$32,2,FALSE)+VLOOKUP(Y22,PS!$I$2:$M$32,3,FALSE)-1,7)),4,FALSE)+VLOOKUP(B22,INDIRECT("PS!"&ADDRESS(VLOOKUP(Y22,PS!$I$2:$M$32,2,FALSE),3)&":"&ADDRESS(VLOOKUP(Y22,PS!$I$2:$M$32,2,FALSE)+VLOOKUP(Y22,PS!$I$2:$M$32,3,FALSE)-1,7)),5,FALSE)-1,4) ->  | AA22: =IFERROR(VLOOKUP(D22,MAT!$D$2:$K$711,7,FALSE),"") ->  | AB22: =IFERROR(VLOOKUP(D22,MAT!$D$2:$K$711,8,FALSE),"") ->  | AD22: =IFERROR(VLOOKUP(B22,PS!$C$2:$D$10000,2,FALSE),"") -> 
A23: 4 | Y23: ADAP | Z23: ="MAT!"&ADDRESS(VLOOKUP(B23,INDIRECT("PS!"&ADDRESS(VLOOKUP(Y23,PS!$I$2:$M$32,2,FALSE),3)&":"&ADDRESS(VLOOKUP(Y23,PS!$I$2:$M$32,2,FALSE)+VLOOKUP(Y23,PS!$I$2:$M$32,3,FALSE)-1,7)),4,FALSE),4)&":"&ADDRESS(VLOOKUP(B23,INDIRECT("PS!"&ADDRESS(VLOOKUP(Y23,PS!$I$2:$M$32,2,FALSE),3)&":"&ADDRESS(VLOOKUP(Y23,PS!$I$2:$M$32,2,FALSE)+VLOOKUP(Y23,PS!$I$2:$M$32,3,FALSE)-1,7)),4,FALSE)+VLOOKUP(B23,INDIRECT("PS!"&ADDRESS(VLOOKUP(Y23,PS!$I$2:$M$32,2,FALSE),3)&":"&ADDRESS(VLOOKUP(Y23,PS!$I$2:$M$32,2,FALSE)+VLOOKUP(Y23,PS!$I$2:$M$32,3,FALSE)-1,7)),5,FALSE)-1,4) ->  | AA23: =IFERROR(VLOOKUP(D23,MAT!$D$2:$K$711,7,FALSE),"") ->  | AB23: =IFERROR(VLOOKUP(D23,MAT!$D$2:$K$711,8,FALSE),"") ->  | AD23: =IFERROR(VLOOKUP(B23,PS!$C$2:$D$10000,2,FALSE),"") -> 
A25: Asphalt Bind | B25: Producer/Supplier | C25: =COUNTA(D26:D33) -> 0 | D25: Material | E25: Custom Name/Identifier | F25: Grade
A26: 1 | C26: =IF(AC26<NOW(),"*","") ->  | F26: =IF(IFERROR(FIND("64-22",D26),0),"64-22",IF(IFERROR(FIND("58-28",D26),0),"58-28",IF(IFERROR(FIND("70-22m",D26),0),"70-22m",IF(IFERROR(FIND("70-22",D26),0),"70-22",IF(IFERROR(FIND("67-22",D26),0),"67-22",IF(IFERROR(FIND("76-22m",D26),0),"76-22m",IF(IFERROR(FIND("76-22",D26),0),"76-22",IF(IFERROR(FIND("82-22RM",D26),0),"82-22RM",IF(IFERROR(FIND("82-22rm",D26),0),"82-22rm",IF(IFERROR(FIND("82-22",D26),0),"82-22","")))))))))) ->  | Y26: BIND | Z26: ="MAT!"&ADDRESS(VLOOKUP(B26,INDIRECT("PS!"&ADDRESS(VLOOKUP(Y26,PS!$I$2:$M$32,2,FALSE),3)&":"&ADDRESS(VLOOKUP(Y26,PS!$I$2:$M$32,2,FALSE)+VLOOKUP(Y26,PS!$I$2:$M$32,3,FALSE)-1,7)),4,FALSE),4)&":"&ADDRESS(VLOOKUP(B26,INDIRECT("PS!"&ADDRESS(VLOOKUP(Y26,PS!$I$2:$M$32,2,FALSE),3)&":"&ADDRESS(VLOOKUP(Y26,PS!$I$2:$M$32,2,FALSE)+VLOOKUP(Y26,PS!$I$2:$M$32,3,FALSE)-1,7)),4,FALSE)+VLOOKUP(B26,INDIRECT("PS!"&ADDRESS(VLOOKUP(Y26,PS!$I$2:$M$32,2,FALSE),3)&":"&ADDRESS(VLOOKUP(Y26,PS!$I$2:$M$32,2,FALSE)+VLOOKUP(Y26,PS!$I$2:$M$32,3,FALSE)-1,7)),5,FALSE)-1,4) ->  | AA26: =IFERROR(VLOOKUP(D26,MAT!$D$2:$K$711,7,FALSE),"") ->  | AB26: =IFERROR(VLOOKUP(D26,MAT!$D$2:$K$711,8,FALSE),"") ->  | AC26: =IFERROR(DATE(LEFT(AB26,4),MID(AB26,5,2),RIGHT(AB26,2)),"") ->  | AD26: =IFERROR(VLOOKUP(B26,PS!$C$2:$D$10000,2,FALSE),"") ->  | AE26: =IF(LEN(D26)>10,LEFT(D26,10)&"-"&E26,"") -> 
A27: 2 | F27: =IF(IFERROR(FIND("64-22",D27),0),"64-22",IF(IFERROR(FIND("58-28",D27),0),"58-28",IF(IFERROR(FIND("70-22m",D27),0),"70-22m",IF(IFERROR(FIND("70-22",D27),0),"70-22",IF(IFERROR(FIND("67-22",D27),0),"67-22",IF(IFERROR(FIND("76-22m",D27),0),"76-22m",IF(IFERROR(FIND("76-22",D27),0),"76-22",IF(IFERROR(FIND("82-22RM",D27),0),"82-22RM",IF(IFERROR(FIND("82-22rm",D27),0),"82-22rm",IF(IFERROR(FIND("82-22",D27),0),"82-22","")))))))))) ->  | Y27: BIND | Z27: ="MAT!"&ADDRESS(VLOOKUP(B27,INDIRECT("PS!"&ADDRESS(VLOOKUP(Y27,PS!$I$2:$M$32,2,FALSE),3)&":"&ADDRESS(VLOOKUP(Y27,PS!$I$2:$M$32,2,FALSE)+VLOOKUP(Y27,PS!$I$2:$M$32,3,FALSE)-1,7)),4,FALSE),4)&":"&ADDRESS(VLOOKUP(B27,INDIRECT("PS!"&ADDRESS(VLOOKUP(Y27,PS!$I$2:$M$32,2,FALSE),3)&":"&ADDRESS(VLOOKUP(Y27,PS!$I$2:$M$32,2,FALSE)+VLOOKUP(Y27,PS!$I$2:$M$32,3,FALSE)-1,7)),4,FALSE)+VLOOKUP(B27,INDIRECT("PS!"&ADDRESS(VLOOKUP(Y27,PS!$I$2:$M$32,2,FALSE),3)&":"&ADDRESS(VLOOKUP(Y27,PS!$I$2:$M$32,2,FALSE)+VLOOKUP(Y27,PS!$I$2:$M$32,3,FALSE)-1,7)),5,FALSE)-1,4) ->  | AA27: =IFERROR(VLOOKUP(D27,MAT!$D$2:$K$711,7,FALSE),"") ->  | AB27: =IFERROR(VLOOKUP(D27,MAT!$D$2:$K$711,8,FALSE),"") ->  | AD27: =IFERROR(VLOOKUP(B27,PS!$C$2:$D$10000,2,FALSE),"") -> 
A28: 3 | Y28: BIND | Z28: ="MAT!"&ADDRESS(VLOOKUP(B28,INDIRECT("PS!"&ADDRESS(VLOOKUP(Y28,PS!$I$2:$M$32,2,FALSE),3)&":"&ADDRESS(VLOOKUP(Y28,PS!$I$2:$M$32,2,FALSE)+VLOOKUP(Y28,PS!$I$2:$M$32,3,FALSE)-1,7)),4,FALSE),4)&":"&ADDRESS(VLOOKUP(B28,INDIRECT("PS!"&ADDRESS(VLOOKUP(Y28,PS!$I$2:$M$32,2,FALSE),3)&":"&ADDRESS(VLOOKUP(Y28,PS!$I$2:$M$32,2,FALSE)+VLOOKUP(Y28,PS!$I$2:$M$32,3,FALSE)-1,7)),4,FALSE)+VLOOKUP(B28,INDIRECT("PS!"&ADDRESS(VLOOKUP(Y28,PS!$I$2:$M$32,2,FALSE),3)&":"&ADDRESS(VLOOKUP(Y28,PS!$I$2:$M$32,2,FALSE)+VLOOKUP(Y28,PS!$I$2:$M$32,3,FALSE)-1,7)),5,FALSE)-1,4) ->  | AA28: =IFERROR(VLOOKUP(D28,MAT!$D$2:$K$711,7,FALSE),"") ->  | AB28: =IFERROR(VLOOKUP(D28,MAT!$D$2:$K$711,8,FALSE),"") ->  | AD28: =IFERROR(VLOOKUP(B28,PS!$C$2:$D$10000,2,FALSE),"") -> 
A29: 4 | Y29: BIND | Z29: ="MAT!"&ADDRESS(VLOOKUP(B29,INDIRECT("PS!"&ADDRESS(VLOOKUP(Y29,PS!$I$2:$M$32,2,FALSE),3)&":"&ADDRESS(VLOOKUP(Y29,PS!$I$2:$M$32,2,FALSE)+VLOOKUP(Y29,PS!$I$2:$M$32,3,FALSE)-1,7)),4,FALSE),4)&":"&ADDRESS(VLOOKUP(B29,INDIRECT("PS!"&ADDRESS(VLOOKUP(Y29,PS!$I$2:$M$32,2,FALSE),3)&":"&ADDRESS(VLOOKUP(Y29,PS!$I$2:$M$32,2,FALSE)+VLOOKUP(Y29,PS!$I$2:$M$32,3,FALSE)-1,7)),4,FALSE)+VLOOKUP(B29,INDIRECT("PS!"&ADDRESS(VLOOKUP(Y29,PS!$I$2:$M$32,2,FALSE),3)&":"&ADDRESS(VLOOKUP(Y29,PS!$I$2:$M$32,2,FALSE)+VLOOKUP(Y29,PS!$I$2:$M$32,3,FALSE)-1,7)),5,FALSE)-1,4) ->  | AA29: =IFERROR(VLOOKUP(D29,MAT!$D$2:$K$711,7,FALSE),"") ->  | AB29: =IFERROR(VLOOKUP(D29,MAT!$D$2:$K$711,8,FALSE),"") ->  | AD29: =IFERROR(VLOOKUP(B29,PS!$C$2:$D$10000,2,FALSE),"") -> 
A30: 5 | Y30: BIND | Z30: ="MAT!"&ADDRESS(VLOOKUP(B30,INDIRECT("PS!"&ADDRESS(VLOOKUP(Y30,PS!$I$2:$M$32,2,FALSE),3)&":"&ADDRESS(VLOOKUP(Y30,PS!$I$2:$M$32,2,FALSE)+VLOOKUP(Y30,PS!$I$2:$M$32,3,FALSE)-1,7)),4,FALSE),4)&":"&ADDRESS(VLOOKUP(B30,INDIRECT("PS!"&ADDRESS(VLOOKUP(Y30,PS!$I$2:$M$32,2,FALSE),3)&":"&ADDRESS(VLOOKUP(Y30,PS!$I$2:$M$32,2,FALSE)+VLOOKUP(Y30,PS!$I$2:$M$32,3,FALSE)-1,7)),4,FALSE)+VLOOKUP(B30,INDIRECT("PS!"&ADDRESS(VLOOKUP(Y30,PS!$I$2:$M$32,2,FALSE),3)&":"&ADDRESS(VLOOKUP(Y30,PS!$I$2:$M$32,2,FALSE)+VLOOKUP(Y30,PS!$I$2:$M$32,3,FALSE)-1,7)),5,FALSE)-1,4) ->  | AA30: =IFERROR(VLOOKUP(D30,MAT!$D$2:$K$711,7,FALSE),"") ->  | AB30: =IFERROR(VLOOKUP(D30,MAT!$D$2:$K$711,8,FALSE),"") ->  | AD30: =IFERROR(VLOOKUP(B30,PS!$C$2:$D$10000,2,FALSE),"") -> 
A31: 6 | Y31: BIND | Z31: ="MAT!"&ADDRESS(VLOOKUP(B31,INDIRECT("PS!"&ADDRESS(VLOOKUP(Y31,PS!$I$2:$M$32,2,FALSE),3)&":"&ADDRESS(VLOOKUP(Y31,PS!$I$2:$M$32,2,FALSE)+VLOOKUP(Y31,PS!$I$2:$M$32,3,FALSE)-1,7)),4,FALSE),4)&":"&ADDRESS(VLOOKUP(B31,INDIRECT("PS!"&ADDRESS(VLOOKUP(Y31,PS!$I$2:$M$32,2,FALSE),3)&":"&ADDRESS(VLOOKUP(Y31,PS!$I$2:$M$32,2,FALSE)+VLOOKUP(Y31,PS!$I$2:$M$32,3,FALSE)-1,7)),4,FALSE)+VLOOKUP(B31,INDIRECT("PS!"&ADDRESS(VLOOKUP(Y31,PS!$I$2:$M$32,2,FALSE),3)&":"&ADDRESS(VLOOKUP(Y31,PS!$I$2:$M$32,2,FALSE)+VLOOKUP(Y31,PS!$I$2:$M$32,3,FALSE)-1,7)),5,FALSE)-1,4) ->  | AA31: =IFERROR(VLOOKUP(D31,MAT!$D$2:$K$711,7,FALSE),"") ->  | AB31: =IFERROR(VLOOKUP(D31,MAT!$D$2:$K$711,8,FALSE),"") ->  | AD31: =IFERROR(VLOOKUP(B31,PS!$C$2:$D$10000,2,FALSE),"") -> 
A32: 7 | Y32: BIND | Z32: ="MAT!"&ADDRESS(VLOOKUP(B32,INDIRECT("PS!"&ADDRESS(VLOOKUP(Y32,PS!$I$2:$M$32,2,FALSE),3)&":"&ADDRESS(VLOOKUP(Y32,PS!$I$2:$M$32,2,FALSE)+VLOOKUP(Y32,PS!$I$2:$M$32,3,FALSE)-1,7)),4,FALSE),4)&":"&ADDRESS(VLOOKUP(B32,INDIRECT("PS!"&ADDRESS(VLOOKUP(Y32,PS!$I$2:$M$32,2,FALSE),3)&":"&ADDRESS(VLOOKUP(Y32,PS!$I$2:$M$32,2,FALSE)+VLOOKUP(Y32,PS!$I$2:$M$32,3,FALSE)-1,7)),4,FALSE)+VLOOKUP(B32,INDIRECT("PS!"&ADDRESS(VLOOKUP(Y32,PS!$I$2:$M$32,2,FALSE),3)&":"&ADDRESS(VLOOKUP(Y32,PS!$I$2:$M$32,2,FALSE)+VLOOKUP(Y32,PS!$I$2:$M$32,3,FALSE)-1,7)),5,FALSE)-1,4) ->  | AA32: =IFERROR(VLOOKUP(D32,MAT!$D$2:$K$711,7,FALSE),"") ->  | AB32: =IFERROR(VLOOKUP(D32,MAT!$D$2:$K$711,8,FALSE),"") ->  | AD32: =IFERROR(VLOOKUP(B32,PS!$C$2:$D$10000,2,FALSE),"") -> 
A33: 8 | Y33: BIND | Z33: ="MAT!"&ADDRESS(VLOOKUP(B33,INDIRECT("PS!"&ADDRESS(VLOOKUP(Y33,PS!$I$2:$M$32,2,FALSE),3)&":"&ADDRESS(VLOOKUP(Y33,PS!$I$2:$M$32,2,FALSE)+VLOOKUP(Y33,PS!$I$2:$M$32,3,FALSE)-1,7)),4,FALSE),4)&":"&ADDRESS(VLOOKUP(B33,INDIRECT("PS!"&ADDRESS(VLOOKUP(Y33,PS!$I$2:$M$32,2,FALSE),3)&":"&ADDRESS(VLOOKUP(Y33,PS!$I$2:$M$32,2,FALSE)+VLOOKUP(Y33,PS!$I$2:$M$32,3,FALSE)-1,7)),4,FALSE)+VLOOKUP(B33,INDIRECT("PS!"&ADDRESS(VLOOKUP(Y33,PS!$I$2:$M$32,2,FALSE),3)&":"&ADDRESS(VLOOKUP(Y33,PS!$I$2:$M$32,2,FALSE)+VLOOKUP(Y33,PS!$I$2:$M$32,3,FALSE)-1,7)),5,FALSE)-1,4) ->  | AA33: =IFERROR(VLOOKUP(D33,MAT!$D$2:$K$711,7,FALSE),"") ->  | AB33: =IFERROR(VLOOKUP(D33,MAT!$D$2:$K$711,8,FALSE),"") ->  | AD33: =IFERROR(VLOOKUP(B33,PS!$C$2:$D$10000,2,FALSE),"") -> 
F34: Bulk | H34: FAA | I34: Sand Eq. | J34: Flat & Elong | K34: CAA | L34: Micro Deval | M34: Friction | N34: % Passing | O34: % Passing | P34: % Passing | Q34: % Passing | R34: % Passing | S34: % Passing | T34: % Passing | U34: % Passing | V34: % Passing | W34: % Passing | X34: % Passing
A35: Coarse Agg | B35: Producer/Supplier | C35: =COUNTA(D36:D50) -> 0 | D35: Material | E35: Custom Name/Identifier | F35: Gravity | G35: Absorption | H35: Method A | I35: - 4.75 mm | J35: 5:1 | L35: % loss | M35: Rating | N35: 1" | O35: 3/4" | P35: 1/2" | Q35: 3/8" | R35: No 4 | S35: No 8 | T35: No 16 | U35: No 30 | V35: No 50 | W35: No 100 | X35: No 200
A36: 1 | C36: =IF(AC36<NOW(),"*","") ->  | Y36: AGGR | Z36: ="MAT!"&ADDRESS(VLOOKUP(B36,INDIRECT("PS!"&ADDRESS(VLOOKUP(Y36,PS!$I$2:$M$32,2,FALSE),3)&":"&ADDRESS(VLOOKUP(Y36,PS!$I$2:$M$32,2,FALSE)+VLOOKUP(Y36,PS!$I$2:$M$32,3,FALSE)-1,7)),4,FALSE),4)&":"&ADDRESS(VLOOKUP(B36,INDIRECT("PS!"&ADDRESS(VLOOKUP(Y36,PS!$I$2:$M$32,2,FALSE),3)&":"&ADDRESS(VLOOKUP(Y36,PS!$I$2:$M$32,2,FALSE)+VLOOKUP(Y36,PS!$I$2:$M$32,3,FALSE)-1,7)),4,FALSE)+VLOOKUP(B36,INDIRECT("PS!"&ADDRESS(VLOOKUP(Y36,PS!$I$2:$M$32,2,FALSE),3)&":"&ADDRESS(VLOOKUP(Y36,PS!$I$2:$M$32,2,FALSE)+VLOOKUP(Y36,PS!$I$2:$M$32,3,FALSE)-1,7)),5,FALSE)-1,4) ->  | AA36: =IFERROR(VLOOKUP(D36,MAT!$D$2:$K$711,7,FALSE),"") ->  | AB36: =IFERROR(VLOOKUP(D36,MAT!$D$2:$K$711,8,FALSE),"") ->  | AC36: =IFERROR(DATE(LEFT(AB36,4),MID(AB36,5,2),RIGHT(AB36,2)),"") ->  | AD36: =IFERROR(VLOOKUP(B36,PS!$C$2:$D$10000,2,FALSE),"") ->  | AE36: =IF(LEN(D36)>10,LEFT(D36,10)&"-"&E36,"") -> 
A37: 2 | Y37: AGGR | Z37: ="MAT!"&ADDRESS(VLOOKUP(B37,INDIRECT("PS!"&ADDRESS(VLOOKUP(Y37,PS!$I$2:$M$32,2,FALSE),3)&":"&ADDRESS(VLOOKUP(Y37,PS!$I$2:$M$32,2,FALSE)+VLOOKUP(Y37,PS!$I$2:$M$32,3,FALSE)-1,7)),4,FALSE),4)&":"&ADDRESS(VLOOKUP(B37,INDIRECT("PS!"&ADDRESS(VLOOKUP(Y37,PS!$I$2:$M$32,2,FALSE),3)&":"&ADDRESS(VLOOKUP(Y37,PS!$I$2:$M$32,2,FALSE)+VLOOKUP(Y37,PS!$I$2:$M$32,3,FALSE)-1,7)),4,FALSE)+VLOOKUP(B37,INDIRECT("PS!"&ADDRESS(VLOOKUP(Y37,PS!$I$2:$M$32,2,FALSE),3)&":"&ADDRESS(VLOOKUP(Y37,PS!$I$2:$M$32,2,FALSE)+VLOOKUP(Y37,PS!$I$2:$M$32,3,FALSE)-1,7)),5,FALSE)-1,4) ->  | AA37: =IFERROR(VLOOKUP(D37,MAT!$D$2:$K$711,7,FALSE),"") ->  | AB37: =IFERROR(VLOOKUP(D37,MAT!$D$2:$K$711,8,FALSE),"") ->  | AD37: =IFERROR(VLOOKUP(B37,PS!$C$2:$D$10000,2,FALSE),"") -> 
A38: 3 | Y38: AGGR | Z38: ="MAT!"&ADDRESS(VLOOKUP(B38,INDIRECT("PS!"&ADDRESS(VLOOKUP(Y38,PS!$I$2:$M$32,2,FALSE),3)&":"&ADDRESS(VLOOKUP(Y38,PS!$I$2:$M$32,2,FALSE)+VLOOKUP(Y38,PS!$I$2:$M$32,3,FALSE)-1,7)),4,FALSE),4)&":"&ADDRESS(VLOOKUP(B38,INDIRECT("PS!"&ADDRESS(VLOOKUP(Y38,PS!$I$2:$M$32,2,FALSE),3)&":"&ADDRESS(VLOOKUP(Y38,PS!$I$2:$M$32,2,FALSE)+VLOOKUP(Y38,PS!$I$2:$M$32,3,FALSE)-1,7)),4,FALSE)+VLOOKUP(B38,INDIRECT("PS!"&ADDRESS(VLOOKUP(Y38,PS!$I$2:$M$32,2,FALSE),3)&":"&ADDRESS(VLOOKUP(Y38,PS!$I$2:$M$32,2,FALSE)+VLOOKUP(Y38,PS!$I$2:$M$32,3,FALSE)-1,7)),5,FALSE)-1,4) ->  | AA38: =IFERROR(VLOOKUP(D38,MAT!$D$2:$K$711,7,FALSE),"") ->  | AB38: =IFERROR(VLOOKUP(D38,MAT!$D$2:$K$711,8,FALSE),"") ->  | AD38: =IFERROR(VLOOKUP(B38,PS!$C$2:$D$10000,2,FALSE),"") -> 
A39: 4 | Y39: AGGR | Z39: ="MAT!"&ADDRESS(VLOOKUP(B39,INDIRECT("PS!"&ADDRESS(VLOOKUP(Y39,PS!$I$2:$M$32,2,FALSE),3)&":"&ADDRESS(VLOOKUP(Y39,PS!$I$2:$M$32,2,FALSE)+VLOOKUP(Y39,PS!$I$2:$M$32,3,FALSE)-1,7)),4,FALSE),4)&":"&ADDRESS(VLOOKUP(B39,INDIRECT("PS!"&ADDRESS(VLOOKUP(Y39,PS!$I$2:$M$32,2,FALSE),3)&":"&ADDRESS(VLOOKUP(Y39,PS!$I$2:$M$32,2,FALSE)+VLOOKUP(Y39,PS!$I$2:$M$32,3,FALSE)-1,7)),4,FALSE)+VLOOKUP(B39,INDIRECT("PS!"&ADDRESS(VLOOKUP(Y39,PS!$I$2:$M$32,2,FALSE),3)&":"&ADDRESS(VLOOKUP(Y39,PS!$I$2:$M$32,2,FALSE)+VLOOKUP(Y39,PS!$I$2:$M$32,3,FALSE)-1,7)),5,FALSE)-1,4) ->  | AA39: =IFERROR(VLOOKUP(D39,MAT!$D$2:$K$711,7,FALSE),"") ->  | AB39: =IFERROR(VLOOKUP(D39,MAT!$D$2:$K$711,8,FALSE),"") ->  | AD39: =IFERROR(VLOOKUP(B39,PS!$C$2:$D$10000,2,FALSE),"") -> 
A40: 5 | Y40: AGGR | Z40: ="MAT!"&ADDRESS(VLOOKUP(B40,INDIRECT("PS!"&ADDRESS(VLOOKUP(Y40,PS!$I$2:$M$32,2,FALSE),3)&":"&ADDRESS(VLOOKUP(Y40,PS!$I$2:$M$32,2,FALSE)+VLOOKUP(Y40,PS!$I$2:$M$32,3,FALSE)-1,7)),4,FALSE),4)&":"&ADDRESS(VLOOKUP(B40,INDIRECT("PS!"&ADDRESS(VLOOKUP(Y40,PS!$I$2:$M$32,2,FALSE),3)&":"&ADDRESS(VLOOKUP(Y40,PS!$I$2:$M$32,2,FALSE)+VLOOKUP(Y40,PS!$I$2:$M$32,3,FALSE)-1,7)),4,FALSE)+VLOOKUP(B40,INDIRECT("PS!"&ADDRESS(VLOOKUP(Y40,PS!$I$2:$M$32,2,FALSE),3)&":"&ADDRESS(VLOOKUP(Y40,PS!$I$2:$M$32,2,FALSE)+VLOOKUP(Y40,PS!$I$2:$M$32,3,FALSE)-1,7)),5,FALSE)-1,4) ->  | AA40: =IFERROR(VLOOKUP(D40,MAT!$D$2:$K$711,7,FALSE),"") ->  | AB40: =IFERROR(VLOOKUP(D40,MAT!$D$2:$K$711,8,FALSE),"") ->  | AD40: =IFERROR(VLOOKUP(B40,PS!$C$2:$D$10000,2,FALSE),"") -> 
A41: 6 | Y41: AGGR | Z41: ="MAT!"&ADDRESS(VLOOKUP(B41,INDIRECT("PS!"&ADDRESS(VLOOKUP(Y41,PS!$I$2:$M$32,2,FALSE),3)&":"&ADDRESS(VLOOKUP(Y41,PS!$I$2:$M$32,2,FALSE)+VLOOKUP(Y41,PS!$I$2:$M$32,3,FALSE)-1,7)),4,FALSE),4)&":"&ADDRESS(VLOOKUP(B41,INDIRECT("PS!"&ADDRESS(VLOOKUP(Y41,PS!$I$2:$M$32,2,FALSE),3)&":"&ADDRESS(VLOOKUP(Y41,PS!$I$2:$M$32,2,FALSE)+VLOOKUP(Y41,PS!$I$2:$M$32,3,FALSE)-1,7)),4,FALSE)+VLOOKUP(B41,INDIRECT("PS!"&ADDRESS(VLOOKUP(Y41,PS!$I$2:$M$32,2,FALSE),3)&":"&ADDRESS(VLOOKUP(Y41,PS!$I$2:$M$32,2,FALSE)+VLOOKUP(Y41,PS!$I$2:$M$32,3,FALSE)-1,7)),5,FALSE)-1,4) ->  | AA41: =IFERROR(VLOOKUP(D41,MAT!$D$2:$K$711,7,FALSE),"") ->  | AB41: =IFERROR(VLOOKUP(D41,MAT!$D$2:$K$711,8,FALSE),"") ->  | AD41: =IFERROR(VLOOKUP(B41,PS!$C$2:$D$10000,2,FALSE),"") -> 
A42: 7 | Y42: AGGR | Z42: ="MAT!"&ADDRESS(VLOOKUP(B42,INDIRECT("PS!"&ADDRESS(VLOOKUP(Y42,PS!$I$2:$M$32,2,FALSE),3)&":"&ADDRESS(VLOOKUP(Y42,PS!$I$2:$M$32,2,FALSE)+VLOOKUP(Y42,PS!$I$2:$M$32,3,FALSE)-1,7)),4,FALSE),4)&":"&ADDRESS(VLOOKUP(B42,INDIRECT("PS!"&ADDRESS(VLOOKUP(Y42,PS!$I$2:$M$32,2,FALSE),3)&":"&ADDRESS(VLOOKUP(Y42,PS!$I$2:$M$32,2,FALSE)+VLOOKUP(Y42,PS!$I$2:$M$32,3,FALSE)-1,7)),4,FALSE)+VLOOKUP(B42,INDIRECT("PS!"&ADDRESS(VLOOKUP(Y42,PS!$I$2:$M$32,2,FALSE),3)&":"&ADDRESS(VLOOKUP(Y42,PS!$I$2:$M$32,2,FALSE)+VLOOKUP(Y42,PS!$I$2:$M$32,3,FALSE)-1,7)),5,FALSE)-1,4) ->  | AA42: =IFERROR(VLOOKUP(D42,MAT!$D$2:$K$711,7,FALSE),"") ->  | AB42: =IFERROR(VLOOKUP(D42,MAT!$D$2:$K$711,8,FALSE),"") ->  | AD42: =IFERROR(VLOOKUP(B42,PS!$C$2:$D$10000,2,FALSE),"") -> 
A43: 8 | Y43: AGGR | Z43: ="MAT!"&ADDRESS(VLOOKUP(B43,INDIRECT("PS!"&ADDRESS(VLOOKUP(Y43,PS!$I$2:$M$32,2,FALSE),3)&":"&ADDRESS(VLOOKUP(Y43,PS!$I$2:$M$32,2,FALSE)+VLOOKUP(Y43,PS!$I$2:$M$32,3,FALSE)-1,7)),4,FALSE),4)&":"&ADDRESS(VLOOKUP(B43,INDIRECT("PS!"&ADDRESS(VLOOKUP(Y43,PS!$I$2:$M$32,2,FALSE),3)&":"&ADDRESS(VLOOKUP(Y43,PS!$I$2:$M$32,2,FALSE)+VLOOKUP(Y43,PS!$I$2:$M$32,3,FALSE)-1,7)),4,FALSE)+VLOOKUP(B43,INDIRECT("PS!"&ADDRESS(VLOOKUP(Y43,PS!$I$2:$M$32,2,FALSE),3)&":"&ADDRESS(VLOOKUP(Y43,PS!$I$2:$M$32,2,FALSE)+VLOOKUP(Y43,PS!$I$2:$M$32,3,FALSE)-1,7)),5,FALSE)-1,4) ->  | AA43: =IFERROR(VLOOKUP(D43,MAT!$D$2:$K$711,7,FALSE),"") ->  | AB43: =IFERROR(VLOOKUP(D43,MAT!$D$2:$K$711,8,FALSE),"") ->  | AD43: =IFERROR(VLOOKUP(B43,PS!$C$2:$D$10000,2,FALSE),"") -> 
A44: 9 | Y44: AGGR | Z44: ="MAT!"&ADDRESS(VLOOKUP(B44,INDIRECT("PS!"&ADDRESS(VLOOKUP(Y44,PS!$I$2:$M$32,2,FALSE),3)&":"&ADDRESS(VLOOKUP(Y44,PS!$I$2:$M$32,2,FALSE)+VLOOKUP(Y44,PS!$I$2:$M$32,3,FALSE)-1,7)),4,FALSE),4)&":"&ADDRESS(VLOOKUP(B44,INDIRECT("PS!"&ADDRESS(VLOOKUP(Y44,PS!$I$2:$M$32,2,FALSE),3)&":"&ADDRESS(VLOOKUP(Y44,PS!$I$2:$M$32,2,FALSE)+VLOOKUP(Y44,PS!$I$2:$M$32,3,FALSE)-1,7)),4,FALSE)+VLOOKUP(B44,INDIRECT("PS!"&ADDRESS(VLOOKUP(Y44,PS!$I$2:$M$32,2,FALSE),3)&":"&ADDRESS(VLOOKUP(Y44,PS!$I$2:$M$32,2,FALSE)+VLOOKUP(Y44,PS!$I$2:$M$32,3,FALSE)-1,7)),5,FALSE)-1,4) ->  | AA44: =IFERROR(VLOOKUP(D44,MAT!$D$2:$K$711,7,FALSE),"") ->  | AB44: =IFERROR(VLOOKUP(D44,MAT!$D$2:$K$711,8,FALSE),"") ->  | AD44: =IFERROR(VLOOKUP(B44,PS!$C$2:$D$10000,2,FALSE),"") -> 
A45: 10 | Y45: AGGR | Z45: ="MAT!"&ADDRESS(VLOOKUP(B45,INDIRECT("PS!"&ADDRESS(VLOOKUP(Y45,PS!$I$2:$M$32,2,FALSE),3)&":"&ADDRESS(VLOOKUP(Y45,PS!$I$2:$M$32,2,FALSE)+VLOOKUP(Y45,PS!$I$2:$M$32,3,FALSE)-1,7)),4,FALSE),4)&":"&ADDRESS(VLOOKUP(B45,INDIRECT("PS!"&ADDRESS(VLOOKUP(Y45,PS!$I$2:$M$32,2,FALSE),3)&":"&ADDRESS(VLOOKUP(Y45,PS!$I$2:$M$32,2,FALSE)+VLOOKUP(Y45,PS!$I$2:$M$32,3,FALSE)-1,7)),4,FALSE)+VLOOKUP(B45,INDIRECT("PS!"&ADDRESS(VLOOKUP(Y45,PS!$I$2:$M$32,2,FALSE),3)&":"&ADDRESS(VLOOKUP(Y45,PS!$I$2:$M$32,2,FALSE)+VLOOKUP(Y45,PS!$I$2:$M$32,3,FALSE)-1,7)),5,FALSE)-1,4) ->  | AA45: =IFERROR(VLOOKUP(D45,MAT!$D$2:$K$711,7,FALSE),"") ->  | AB45: =IFERROR(VLOOKUP(D45,MAT!$D$2:$K$711,8,FALSE),"") ->  | AD45: =IFERROR(VLOOKUP(B45,PS!$C$2:$D$10000,2,FALSE),"") -> 
A46: 11 | Y46: AGGR | Z46: ="MAT!"&ADDRESS(VLOOKUP(B46,INDIRECT("PS!"&ADDRESS(VLOOKUP(Y46,PS!$I$2:$M$32,2,FALSE),3)&":"&ADDRESS(VLOOKUP(Y46,PS!$I$2:$M$32,2,FALSE)+VLOOKUP(Y46,PS!$I$2:$M$32,3,FALSE)-1,7)),4,FALSE),4)&":"&ADDRESS(VLOOKUP(B46,INDIRECT("PS!"&ADDRESS(VLOOKUP(Y46,PS!$I$2:$M$32,2,FALSE),3)&":"&ADDRESS(VLOOKUP(Y46,PS!$I$2:$M$32,2,FALSE)+VLOOKUP(Y46,PS!$I$2:$M$32,3,FALSE)-1,7)),4,FALSE)+VLOOKUP(B46,INDIRECT("PS!"&ADDRESS(VLOOKUP(Y46,PS!$I$2:$M$32,2,FALSE),3)&":"&ADDRESS(VLOOKUP(Y46,PS!$I$2:$M$32,2,FALSE)+VLOOKUP(Y46,PS!$I$2:$M$32,3,FALSE)-1,7)),5,FALSE)-1,4) ->  | AA46: =IFERROR(VLOOKUP(D46,MAT!$D$2:$K$711,7,FALSE),"") ->  | AB46: =IFERROR(VLOOKUP(D46,MAT!$D$2:$K$711,8,FALSE),"") ->  | AD46: =IFERROR(VLOOKUP(B46,PS!$C$2:$D$10000,2,FALSE),"") -> 
A47: 12 | Y47: AGGR | Z47: ="MAT!"&ADDRESS(VLOOKUP(B47,INDIRECT("PS!"&ADDRESS(VLOOKUP(Y47,PS!$I$2:$M$32,2,FALSE),3)&":"&ADDRESS(VLOOKUP(Y47,PS!$I$2:$M$32,2,FALSE)+VLOOKUP(Y47,PS!$I$2:$M$32,3,FALSE)-1,7)),4,FALSE),4)&":"&ADDRESS(VLOOKUP(B47,INDIRECT("PS!"&ADDRESS(VLOOKUP(Y47,PS!$I$2:$M$32,2,FALSE),3)&":"&ADDRESS(VLOOKUP(Y47,PS!$I$2:$M$32,2,FALSE)+VLOOKUP(Y47,PS!$I$2:$M$32,3,FALSE)-1,7)),4,FALSE)+VLOOKUP(B47,INDIRECT("PS!"&ADDRESS(VLOOKUP(Y47,PS!$I$2:$M$32,2,FALSE),3)&":"&ADDRESS(VLOOKUP(Y47,PS!$I$2:$M$32,2,FALSE)+VLOOKUP(Y47,PS!$I$2:$M$32,3,FALSE)-1,7)),5,FALSE)-1,4) ->  | AA47: =IFERROR(VLOOKUP(D47,MAT!$D$2:$K$711,7,FALSE),"") ->  | AB47: =IFERROR(VLOOKUP(D47,MAT!$D$2:$K$711,8,FALSE),"") ->  | AD47: =IFERROR(VLOOKUP(B47,PS!$C$2:$D$10000,2,FALSE),"") -> 
A48: 13 | Y48: AGGR | Z48: ="MAT!"&ADDRESS(VLOOKUP(B48,INDIRECT("PS!"&ADDRESS(VLOOKUP(Y48,PS!$I$2:$M$32,2,FALSE),3)&":"&ADDRESS(VLOOKUP(Y48,PS!$I$2:$M$32,2,FALSE)+VLOOKUP(Y48,PS!$I$2:$M$32,3,FALSE)-1,7)),4,FALSE),4)&":"&ADDRESS(VLOOKUP(B48,INDIRECT("PS!"&ADDRESS(VLOOKUP(Y48,PS!$I$2:$M$32,2,FALSE),3)&":"&ADDRESS(VLOOKUP(Y48,PS!$I$2:$M$32,2,FALSE)+VLOOKUP(Y48,PS!$I$2:$M$32,3,FALSE)-1,7)),4,FALSE)+VLOOKUP(B48,INDIRECT("PS!"&ADDRESS(VLOOKUP(Y48,PS!$I$2:$M$32,2,FALSE),3)&":"&ADDRESS(VLOOKUP(Y48,PS!$I$2:$M$32,2,FALSE)+VLOOKUP(Y48,PS!$I$2:$M$32,3,FALSE)-1,7)),5,FALSE)-1,4) ->  | AA48: =IFERROR(VLOOKUP(D48,MAT!$D$2:$K$711,7,FALSE),"") ->  | AB48: =IFERROR(VLOOKUP(D48,MAT!$D$2:$K$711,8,FALSE),"") ->  | AD48: =IFERROR(VLOOKUP(B48,PS!$C$2:$D$10000,2,FALSE),"") -> 
A49: 14 | Y49: AGGR | Z49: ="MAT!"&ADDRESS(VLOOKUP(B49,INDIRECT("PS!"&ADDRESS(VLOOKUP(Y49,PS!$I$2:$M$32,2,FALSE),3)&":"&ADDRESS(VLOOKUP(Y49,PS!$I$2:$M$32,2,FALSE)+VLOOKUP(Y49,PS!$I$2:$M$32,3,FALSE)-1,7)),4,FALSE),4)&":"&ADDRESS(VLOOKUP(B49,INDIRECT("PS!"&ADDRESS(VLOOKUP(Y49,PS!$I$2:$M$32,2,FALSE),3)&":"&ADDRESS(VLOOKUP(Y49,PS!$I$2:$M$32,2,FALSE)+VLOOKUP(Y49,PS!$I$2:$M$32,3,FALSE)-1,7)),4,FALSE)+VLOOKUP(B49,INDIRECT("PS!"&ADDRESS(VLOOKUP(Y49,PS!$I$2:$M$32,2,FALSE),3)&":"&ADDRESS(VLOOKUP(Y49,PS!$I$2:$M$32,2,FALSE)+VLOOKUP(Y49,PS!$I$2:$M$32,3,FALSE)-1,7)),5,FALSE)-1,4) ->  | AA49: =IFERROR(VLOOKUP(D49,MAT!$D$2:$K$711,7,FALSE),"") ->  | AB49: =IFERROR(VLOOKUP(D49,MAT!$D$2:$K$711,8,FALSE),"") ->  | AD49: =IFERROR(VLOOKUP(B49,PS!$C$2:$D$10000,2,FALSE),"") -> 
A50: 15 | Y50: AGGR | Z50: ="MAT!"&ADDRESS(VLOOKUP(B50,INDIRECT("PS!"&ADDRESS(VLOOKUP(Y50,PS!$I$2:$M$32,2,FALSE),3)&":"&ADDRESS(VLOOKUP(Y50,PS!$I$2:$M$32,2,FALSE)+VLOOKUP(Y50,PS!$I$2:$M$32,3,FALSE)-1,7)),4,FALSE),4)&":"&ADDRESS(VLOOKUP(B50,INDIRECT("PS!"&ADDRESS(VLOOKUP(Y50,PS!$I$2:$M$32,2,FALSE),3)&":"&ADDRESS(VLOOKUP(Y50,PS!$I$2:$M$32,2,FALSE)+VLOOKUP(Y50,PS!$I$2:$M$32,3,FALSE)-1,7)),4,FALSE)+VLOOKUP(B50,INDIRECT("PS!"&ADDRESS(VLOOKUP(Y50,PS!$I$2:$M$32,2,FALSE),3)&":"&ADDRESS(VLOOKUP(Y50,PS!$I$2:$M$32,2,FALSE)+VLOOKUP(Y50,PS!$I$2:$M$32,3,FALSE)-1,7)),5,FALSE)-1,4) ->  | AA50: =IFERROR(VLOOKUP(D50,MAT!$D$2:$K$711,7,FALSE),"") ->  | AB50: =IFERROR(VLOOKUP(D50,MAT!$D$2:$K$711,8,FALSE),"") ->  | AD50: =IFERROR(VLOOKUP(B50,PS!$C$2:$D$10000,2,FALSE),"") -> 
F51: Bulk | H51: FAA | I51: Sand Eq. | J51: Flat & Elong | K51: CAA | L51: Micro Deval | M51: Friction | N51: % Passing | O51: % Passing | P51: % Passing | Q51: % Passing | R51: % Passing | S51: % Passing | T51: % Passing | U51: % Passing | V51: % Passing | W51: % Passing | X51: % Passing
A52: Fine Agg | B52: Producer/Supplier | C52: =COUNTA(D53:D67) -> 0 | D52: Material | E52: Custom Name/Identifier | F52: Gravity | G52: Absorption | H52: Method A | I52: - 4.75 mm | J52: 5:1 | L52: % loss | M52: Rating | N52: 1" | O52: 3/4" | P52: 1/2" | Q52: 3/8" | R52: No 4 | S52: No 8 | T52: No 16 | U52: No 30 | V52: No 50 | W52: No 100 | X52: No 200
A53: 1 | C53: =IF(AC53<NOW(),"*","") ->  | Y53: AGGR | Z53: ="MAT!"&ADDRESS(VLOOKUP(B53,INDIRECT("PS!"&ADDRESS(VLOOKUP(Y53,PS!$I$2:$M$32,2,FALSE),3)&":"&ADDRESS(VLOOKUP(Y53,PS!$I$2:$M$32,2,FALSE)+VLOOKUP(Y53,PS!$I$2:$M$32,3,FALSE)-1,7)),4,FALSE),4)&":"&ADDRESS(VLOOKUP(B53,INDIRECT("PS!"&ADDRESS(VLOOKUP(Y53,PS!$I$2:$M$32,2,FALSE),3)&":"&ADDRESS(VLOOKUP(Y53,PS!$I$2:$M$32,2,FALSE)+VLOOKUP(Y53,PS!$I$2:$M$32,3,FALSE)-1,7)),4,FALSE)+VLOOKUP(B53,INDIRECT("PS!"&ADDRESS(VLOOKUP(Y53,PS!$I$2:$M$32,2,FALSE),3)&":"&ADDRESS(VLOOKUP(Y53,PS!$I$2:$M$32,2,FALSE)+VLOOKUP(Y53,PS!$I$2:$M$32,3,FALSE)-1,7)),5,FALSE)-1,4) ->  | AA53: =IFERROR(VLOOKUP(D53,MAT!$D$2:$K$711,7,FALSE),"") ->  | AB53: =IFERROR(VLOOKUP(D53,MAT!$D$2:$K$711,8,FALSE),"") ->  | AC53: =IFERROR(DATE(LEFT(AB53,4),MID(AB53,5,2),RIGHT(AB53,2)),"") ->  | AD53: =IFERROR(VLOOKUP(B53,PS!$C$2:$D$10000,2,FALSE),"") ->  | AE53: =IF(LEN(D53)>10,LEFT(D53,10)&"-"&E53,"") -> 
A54: 2 | Y54: AGGR | Z54: ="MAT!"&ADDRESS(VLOOKUP(B54,INDIRECT("PS!"&ADDRESS(VLOOKUP(Y54,PS!$I$2:$M$32,2,FALSE),3)&":"&ADDRESS(VLOOKUP(Y54,PS!$I$2:$M$32,2,FALSE)+VLOOKUP(Y54,PS!$I$2:$M$32,3,FALSE)-1,7)),4,FALSE),4)&":"&ADDRESS(VLOOKUP(B54,INDIRECT("PS!"&ADDRESS(VLOOKUP(Y54,PS!$I$2:$M$32,2,FALSE),3)&":"&ADDRESS(VLOOKUP(Y54,PS!$I$2:$M$32,2,FALSE)+VLOOKUP(Y54,PS!$I$2:$M$32,3,FALSE)-1,7)),4,FALSE)+VLOOKUP(B54,INDIRECT("PS!"&ADDRESS(VLOOKUP(Y54,PS!$I$2:$M$32,2,FALSE),3)&":"&ADDRESS(VLOOKUP(Y54,PS!$I$2:$M$32,2,FALSE)+VLOOKUP(Y54,PS!$I$2:$M$32,3,FALSE)-1,7)),5,FALSE)-1,4) ->  | AA54: =IFERROR(VLOOKUP(D54,MAT!$D$2:$K$711,7,FALSE),"") ->  | AB54: =IFERROR(VLOOKUP(D54,MAT!$D$2:$K$711,8,FALSE),"") ->  | AD54: =IFERROR(VLOOKUP(B54,PS!$C$2:$D$10000,2,FALSE),"") -> 
A55: 3 | Y55: AGGR | Z55: ="MAT!"&ADDRESS(VLOOKUP(B55,INDIRECT("PS!"&ADDRESS(VLOOKUP(Y55,PS!$I$2:$M$32,2,FALSE),3)&":"&ADDRESS(VLOOKUP(Y55,PS!$I$2:$M$32,2,FALSE)+VLOOKUP(Y55,PS!$I$2:$M$32,3,FALSE)-1,7)),4,FALSE),4)&":"&ADDRESS(VLOOKUP(B55,INDIRECT("PS!"&ADDRESS(VLOOKUP(Y55,PS!$I$2:$M$32,2,FALSE),3)&":"&ADDRESS(VLOOKUP(Y55,PS!$I$2:$M$32,2,FALSE)+VLOOKUP(Y55,PS!$I$2:$M$32,3,FALSE)-1,7)),4,FALSE)+VLOOKUP(B55,INDIRECT("PS!"&ADDRESS(VLOOKUP(Y55,PS!$I$2:$M$32,2,FALSE),3)&":"&ADDRESS(VLOOKUP(Y55,PS!$I$2:$M$32,2,FALSE)+VLOOKUP(Y55,PS!$I$2:$M$32,3,FALSE)-1,7)),5,FALSE)-1,4) ->  | AA55: =IFERROR(VLOOKUP(D55,MAT!$D$2:$K$711,7,FALSE),"") ->  | AB55: =IFERROR(VLOOKUP(D55,MAT!$D$2:$K$711,8,FALSE),"") ->  | AD55: =IFERROR(VLOOKUP(B55,PS!$C$2:$D$10000,2,FALSE),"") -> 
A56: 4 | Y56: AGGR | Z56: ="MAT!"&ADDRESS(VLOOKUP(B56,INDIRECT("PS!"&ADDRESS(VLOOKUP(Y56,PS!$I$2:$M$32,2,FALSE),3)&":"&ADDRESS(VLOOKUP(Y56,PS!$I$2:$M$32,2,FALSE)+VLOOKUP(Y56,PS!$I$2:$M$32,3,FALSE)-1,7)),4,FALSE),4)&":"&ADDRESS(VLOOKUP(B56,INDIRECT("PS!"&ADDRESS(VLOOKUP(Y56,PS!$I$2:$M$32,2,FALSE),3)&":"&ADDRESS(VLOOKUP(Y56,PS!$I$2:$M$32,2,FALSE)+VLOOKUP(Y56,PS!$I$2:$M$32,3,FALSE)-1,7)),4,FALSE)+VLOOKUP(B56,INDIRECT("PS!"&ADDRESS(VLOOKUP(Y56,PS!$I$2:$M$32,2,FALSE),3)&":"&ADDRESS(VLOOKUP(Y56,PS!$I$2:$M$32,2,FALSE)+VLOOKUP(Y56,PS!$I$2:$M$32,3,FALSE)-1,7)),5,FALSE)-1,4) ->  | AA56: =IFERROR(VLOOKUP(D56,MAT!$D$2:$K$711,7,FALSE),"") ->  | AB56: =IFERROR(VLOOKUP(D56,MAT!$D$2:$K$711,8,FALSE),"") ->  | AD56: =IFERROR(VLOOKUP(B56,PS!$C$2:$D$10000,2,FALSE),"") -> 
A57: 5 | Y57: AGGR | Z57: ="MAT!"&ADDRESS(VLOOKUP(B57,INDIRECT("PS!"&ADDRESS(VLOOKUP(Y57,PS!$I$2:$M$32,2,FALSE),3)&":"&ADDRESS(VLOOKUP(Y57,PS!$I$2:$M$32,2,FALSE)+VLOOKUP(Y57,PS!$I$2:$M$32,3,FALSE)-1,7)),4,FALSE),4)&":"&ADDRESS(VLOOKUP(B57,INDIRECT("PS!"&ADDRESS(VLOOKUP(Y57,PS!$I$2:$M$32,2,FALSE),3)&":"&ADDRESS(VLOOKUP(Y57,PS!$I$2:$M$32,2,FALSE)+VLOOKUP(Y57,PS!$I$2:$M$32,3,FALSE)-1,7)),4,FALSE)+VLOOKUP(B57,INDIRECT("PS!"&ADDRESS(VLOOKUP(Y57,PS!$I$2:$M$32,2,FALSE),3)&":"&ADDRESS(VLOOKUP(Y57,PS!$I$2:$M$32,2,FALSE)+VLOOKUP(Y57,PS!$I$2:$M$32,3,FALSE)-1,7)),5,FALSE)-1,4) ->  | AA57: =IFERROR(VLOOKUP(D57,MAT!$D$2:$K$711,7,FALSE),"") ->  | AB57: =IFERROR(VLOOKUP(D57,MAT!$D$2:$K$711,8,FALSE),"") ->  | AD57: =IFERROR(VLOOKUP(B57,PS!$C$2:$D$10000,2,FALSE),"") -> 
A58: 6 | Y58: AGGR | Z58: ="MAT!"&ADDRESS(VLOOKUP(B58,INDIRECT("PS!"&ADDRESS(VLOOKUP(Y58,PS!$I$2:$M$32,2,FALSE),3)&":"&ADDRESS(VLOOKUP(Y58,PS!$I$2:$M$32,2,FALSE)+VLOOKUP(Y58,PS!$I$2:$M$32,3,FALSE)-1,7)),4,FALSE),4)&":"&ADDRESS(VLOOKUP(B58,INDIRECT("PS!"&ADDRESS(VLOOKUP(Y58,PS!$I$2:$M$32,2,FALSE),3)&":"&ADDRESS(VLOOKUP(Y58,PS!$I$2:$M$32,2,FALSE)+VLOOKUP(Y58,PS!$I$2:$M$32,3,FALSE)-1,7)),4,FALSE)+VLOOKUP(B58,INDIRECT("PS!"&ADDRESS(VLOOKUP(Y58,PS!$I$2:$M$32,2,FALSE),3)&":"&ADDRESS(VLOOKUP(Y58,PS!$I$2:$M$32,2,FALSE)+VLOOKUP(Y58,PS!$I$2:$M$32,3,FALSE)-1,7)),5,FALSE)-1,4) ->  | AA58: =IFERROR(VLOOKUP(D58,MAT!$D$2:$K$711,7,FALSE),"") ->  | AB58: =IFERROR(VLOOKUP(D58,MAT!$D$2:$K$711,8,FALSE),"") ->  | AD58: =IFERROR(VLOOKUP(B58,PS!$C$2:$D$10000,2,FALSE),"") -> 
A59: 7 | Y59: AGGR | Z59: ="MAT!"&ADDRESS(VLOOKUP(B59,INDIRECT("PS!"&ADDRESS(VLOOKUP(Y59,PS!$I$2:$M$32,2,FALSE),3)&":"&ADDRESS(VLOOKUP(Y59,PS!$I$2:$M$32,2,FALSE)+VLOOKUP(Y59,PS!$I$2:$M$32,3,FALSE)-1,7)),4,FALSE),4)&":"&ADDRESS(VLOOKUP(B59,INDIRECT("PS!"&ADDRESS(VLOOKUP(Y59,PS!$I$2:$M$32,2,FALSE),3)&":"&ADDRESS(VLOOKUP(Y59,PS!$I$2:$M$32,2,FALSE)+VLOOKUP(Y59,PS!$I$2:$M$32,3,FALSE)-1,7)),4,FALSE)+VLOOKUP(B59,INDIRECT("PS!"&ADDRESS(VLOOKUP(Y59,PS!$I$2:$M$32,2,FALSE),3)&":"&ADDRESS(VLOOKUP(Y59,PS!$I$2:$M$32,2,FALSE)+VLOOKUP(Y59,PS!$I$2:$M$32,3,FALSE)-1,7)),5,FALSE)-1,4) ->  | AA59: =IFERROR(VLOOKUP(D59,MAT!$D$2:$K$711,7,FALSE),"") ->  | AB59: =IFERROR(VLOOKUP(D59,MAT!$D$2:$K$711,8,FALSE),"") ->  | AD59: =IFERROR(VLOOKUP(B59,PS!$C$2:$D$10000,2,FALSE),"") -> 
A60: 8 | Y60: AGGR | Z60: ="MAT!"&ADDRESS(VLOOKUP(B60,INDIRECT("PS!"&ADDRESS(VLOOKUP(Y60,PS!$I$2:$M$32,2,FALSE),3)&":"&ADDRESS(VLOOKUP(Y60,PS!$I$2:$M$32,2,FALSE)+VLOOKUP(Y60,PS!$I$2:$M$32,3,FALSE)-1,7)),4,FALSE),4)&":"&ADDRESS(VLOOKUP(B60,INDIRECT("PS!"&ADDRESS(VLOOKUP(Y60,PS!$I$2:$M$32,2,FALSE),3)&":"&ADDRESS(VLOOKUP(Y60,PS!$I$2:$M$32,2,FALSE)+VLOOKUP(Y60,PS!$I$2:$M$32,3,FALSE)-1,7)),4,FALSE)+VLOOKUP(B60,INDIRECT("PS!"&ADDRESS(VLOOKUP(Y60,PS!$I$2:$M$32,2,FALSE),3)&":"&ADDRESS(VLOOKUP(Y60,PS!$I$2:$M$32,2,FALSE)+VLOOKUP(Y60,PS!$I$2:$M$32,3,FALSE)-1,7)),5,FALSE)-1,4) ->  | AA60: =IFERROR(VLOOKUP(D60,MAT!$D$2:$K$711,7,FALSE),"") ->  | AB60: =IFERROR(VLOOKUP(D60,MAT!$D$2:$K$711,8,FALSE),"") ->  | AD60: =IFERROR(VLOOKUP(B60,PS!$C$2:$D$10000,2,FALSE),"") -> 
A61: 9 | Y61: AGGR | Z61: ="MAT!"&ADDRESS(VLOOKUP(B61,INDIRECT("PS!"&ADDRESS(VLOOKUP(Y61,PS!$I$2:$M$32,2,FALSE),3)&":"&ADDRESS(VLOOKUP(Y61,PS!$I$2:$M$32,2,FALSE)+VLOOKUP(Y61,PS!$I$2:$M$32,3,FALSE)-1,7)),4,FALSE),4)&":"&ADDRESS(VLOOKUP(B61,INDIRECT("PS!"&ADDRESS(VLOOKUP(Y61,PS!$I$2:$M$32,2,FALSE),3)&":"&ADDRESS(VLOOKUP(Y61,PS!$I$2:$M$32,2,FALSE)+VLOOKUP(Y61,PS!$I$2:$M$32,3,FALSE)-1,7)),4,FALSE)+VLOOKUP(B61,INDIRECT("PS!"&ADDRESS(VLOOKUP(Y61,PS!$I$2:$M$32,2,FALSE),3)&":"&ADDRESS(VLOOKUP(Y61,PS!$I$2:$M$32,2,FALSE)+VLOOKUP(Y61,PS!$I$2:$M$32,3,FALSE)-1,7)),5,FALSE)-1,4) ->  | AA61: =IFERROR(VLOOKUP(D61,MAT!$D$2:$K$711,7,FALSE),"") ->  | AB61: =IFERROR(VLOOKUP(D61,MAT!$D$2:$K$711,8,FALSE),"") ->  | AD61: =IFERROR(VLOOKUP(B61,PS!$C$2:$D$10000,2,FALSE),"") -> 
A62: 10 | Y62: AGGR | Z62: ="MAT!"&ADDRESS(VLOOKUP(B62,INDIRECT("PS!"&ADDRESS(VLOOKUP(Y62,PS!$I$2:$M$32,2,FALSE),3)&":"&ADDRESS(VLOOKUP(Y62,PS!$I$2:$M$32,2,FALSE)+VLOOKUP(Y62,PS!$I$2:$M$32,3,FALSE)-1,7)),4,FALSE),4)&":"&ADDRESS(VLOOKUP(B62,INDIRECT("PS!"&ADDRESS(VLOOKUP(Y62,PS!$I$2:$M$32,2,FALSE),3)&":"&ADDRESS(VLOOKUP(Y62,PS!$I$2:$M$32,2,FALSE)+VLOOKUP(Y62,PS!$I$2:$M$32,3,FALSE)-1,7)),4,FALSE)+VLOOKUP(B62,INDIRECT("PS!"&ADDRESS(VLOOKUP(Y62,PS!$I$2:$M$32,2,FALSE),3)&":"&ADDRESS(VLOOKUP(Y62,PS!$I$2:$M$32,2,FALSE)+VLOOKUP(Y62,PS!$I$2:$M$32,3,FALSE)-1,7)),5,FALSE)-1,4) ->  | AA62: =IFERROR(VLOOKUP(D62,MAT!$D$2:$K$711,7,FALSE),"") ->  | AB62: =IFERROR(VLOOKUP(D62,MAT!$D$2:$K$711,8,FALSE),"") ->  | AD62: =IFERROR(VLOOKUP(B62,PS!$C$2:$D$10000,2,FALSE),"") -> 
A63: 11 | Y63: AGGR | Z63: ="MAT!"&ADDRESS(VLOOKUP(B63,INDIRECT("PS!"&ADDRESS(VLOOKUP(Y63,PS!$I$2:$M$32,2,FALSE),3)&":"&ADDRESS(VLOOKUP(Y63,PS!$I$2:$M$32,2,FALSE)+VLOOKUP(Y63,PS!$I$2:$M$32,3,FALSE)-1,7)),4,FALSE),4)&":"&ADDRESS(VLOOKUP(B63,INDIRECT("PS!"&ADDRESS(VLOOKUP(Y63,PS!$I$2:$M$32,2,FALSE),3)&":"&ADDRESS(VLOOKUP(Y63,PS!$I$2:$M$32,2,FALSE)+VLOOKUP(Y63,PS!$I$2:$M$32,3,FALSE)-1,7)),4,FALSE)+VLOOKUP(B63,INDIRECT("PS!"&ADDRESS(VLOOKUP(Y63,PS!$I$2:$M$32,2,FALSE),3)&":"&ADDRESS(VLOOKUP(Y63,PS!$I$2:$M$32,2,FALSE)+VLOOKUP(Y63,PS!$I$2:$M$32,3,FALSE)-1,7)),5,FALSE)-1,4) ->  | AA63: =IFERROR(VLOOKUP(D63,MAT!$D$2:$K$711,7,FALSE),"") ->  | AB63: =IFERROR(VLOOKUP(D63,MAT!$D$2:$K$711,8,FALSE),"") ->  | AD63: =IFERROR(VLOOKUP(B63,PS!$C$2:$D$10000,2,FALSE),"") -> 
A64: 12 | Y64: AGGR | Z64: ="MAT!"&ADDRESS(VLOOKUP(B64,INDIRECT("PS!"&ADDRESS(VLOOKUP(Y64,PS!$I$2:$M$32,2,FALSE),3)&":"&ADDRESS(VLOOKUP(Y64,PS!$I$2:$M$32,2,FALSE)+VLOOKUP(Y64,PS!$I$2:$M$32,3,FALSE)-1,7)),4,FALSE),4)&":"&ADDRESS(VLOOKUP(B64,INDIRECT("PS!"&ADDRESS(VLOOKUP(Y64,PS!$I$2:$M$32,2,FALSE),3)&":"&ADDRESS(VLOOKUP(Y64,PS!$I$2:$M$32,2,FALSE)+VLOOKUP(Y64,PS!$I$2:$M$32,3,FALSE)-1,7)),4,FALSE)+VLOOKUP(B64,INDIRECT("PS!"&ADDRESS(VLOOKUP(Y64,PS!$I$2:$M$32,2,FALSE),3)&":"&ADDRESS(VLOOKUP(Y64,PS!$I$2:$M$32,2,FALSE)+VLOOKUP(Y64,PS!$I$2:$M$32,3,FALSE)-1,7)),5,FALSE)-1,4) ->  | AA64: =IFERROR(VLOOKUP(D64,MAT!$D$2:$K$711,7,FALSE),"") ->  | AB64: =IFERROR(VLOOKUP(D64,MAT!$D$2:$K$711,8,FALSE),"") ->  | AD64: =IFERROR(VLOOKUP(B64,PS!$C$2:$D$10000,2,FALSE),"") -> 
A65: 13 | Y65: AGGR | Z65: ="MAT!"&ADDRESS(VLOOKUP(B65,INDIRECT("PS!"&ADDRESS(VLOOKUP(Y65,PS!$I$2:$M$32,2,FALSE),3)&":"&ADDRESS(VLOOKUP(Y65,PS!$I$2:$M$32,2,FALSE)+VLOOKUP(Y65,PS!$I$2:$M$32,3,FALSE)-1,7)),4,FALSE),4)&":"&ADDRESS(VLOOKUP(B65,INDIRECT("PS!"&ADDRESS(VLOOKUP(Y65,PS!$I$2:$M$32,2,FALSE),3)&":"&ADDRESS(VLOOKUP(Y65,PS!$I$2:$M$32,2,FALSE)+VLOOKUP(Y65,PS!$I$2:$M$32,3,FALSE)-1,7)),4,FALSE)+VLOOKUP(B65,INDIRECT("PS!"&ADDRESS(VLOOKUP(Y65,PS!$I$2:$M$32,2,FALSE),3)&":"&ADDRESS(VLOOKUP(Y65,PS!$I$2:$M$32,2,FALSE)+VLOOKUP(Y65,PS!$I$2:$M$32,3,FALSE)-1,7)),5,FALSE)-1,4) ->  | AA65: =IFERROR(VLOOKUP(D65,MAT!$D$2:$K$711,7,FALSE),"") ->  | AB65: =IFERROR(VLOOKUP(D65,MAT!$D$2:$K$711,8,FALSE),"") ->  | AD65: =IFERROR(VLOOKUP(B65,PS!$C$2:$D$10000,2,FALSE),"") -> 
A66: 14 | Y66: AGGR | Z66: ="MAT!"&ADDRESS(VLOOKUP(B66,INDIRECT("PS!"&ADDRESS(VLOOKUP(Y66,PS!$I$2:$M$32,2,FALSE),3)&":"&ADDRESS(VLOOKUP(Y66,PS!$I$2:$M$32,2,FALSE)+VLOOKUP(Y66,PS!$I$2:$M$32,3,FALSE)-1,7)),4,FALSE),4)&":"&ADDRESS(VLOOKUP(B66,INDIRECT("PS!"&ADDRESS(VLOOKUP(Y66,PS!$I$2:$M$32,2,FALSE),3)&":"&ADDRESS(VLOOKUP(Y66,PS!$I$2:$M$32,2,FALSE)+VLOOKUP(Y66,PS!$I$2:$M$32,3,FALSE)-1,7)),4,FALSE)+VLOOKUP(B66,INDIRECT("PS!"&ADDRESS(VLOOKUP(Y66,PS!$I$2:$M$32,2,FALSE),3)&":"&ADDRESS(VLOOKUP(Y66,PS!$I$2:$M$32,2,FALSE)+VLOOKUP(Y66,PS!$I$2:$M$32,3,FALSE)-1,7)),5,FALSE)-1,4) ->  | AA66: =IFERROR(VLOOKUP(D66,MAT!$D$2:$K$711,7,FALSE),"") ->  | AB66: =IFERROR(VLOOKUP(D66,MAT!$D$2:$K$711,8,FALSE),"") ->  | AD66: =IFERROR(VLOOKUP(B66,PS!$C$2:$D$10000,2,FALSE),"") -> 
A67: 15 | Y67: AGGR | Z67: ="MAT!"&ADDRESS(VLOOKUP(B67,INDIRECT("PS!"&ADDRESS(VLOOKUP(Y67,PS!$I$2:$M$32,2,FALSE),3)&":"&ADDRESS(VLOOKUP(Y67,PS!$I$2:$M$32,2,FALSE)+VLOOKUP(Y67,PS!$I$2:$M$32,3,FALSE)-1,7)),4,FALSE),4)&":"&ADDRESS(VLOOKUP(B67,INDIRECT("PS!"&ADDRESS(VLOOKUP(Y67,PS!$I$2:$M$32,2,FALSE),3)&":"&ADDRESS(VLOOKUP(Y67,PS!$I$2:$M$32,2,FALSE)+VLOOKUP(Y67,PS!$I$2:$M$32,3,FALSE)-1,7)),4,FALSE)+VLOOKUP(B67,INDIRECT("PS!"&ADDRESS(VLOOKUP(Y67,PS!$I$2:$M$32,2,FALSE),3)&":"&ADDRESS(VLOOKUP(Y67,PS!$I$2:$M$32,2,FALSE)+VLOOKUP(Y67,PS!$I$2:$M$32,3,FALSE)-1,7)),5,FALSE)-1,4) ->  | AA67: =IFERROR(VLOOKUP(D67,MAT!$D$2:$K$711,7,FALSE),"") ->  | AB67: =IFERROR(VLOOKUP(D67,MAT!$D$2:$K$711,8,FALSE),"") ->  | AD67: =IFERROR(VLOOKUP(B67,PS!$C$2:$D$10000,2,FALSE),"") -> 
F68: Bulk | H68: FAA | I68: Sand Eq. | J68: Flat & Elong | K68: CAA | L68: Micro Deval | M68: Friction | N68: % Passing | O68: % Passing | P68: % Passing | Q68: % Passing | R68: % Passing | S68: % Passing | T68: % Passing | U68: % Passing | V68: % Passing | W68: % Passing | X68: % Passing
A69: RAP | B69: Producer/Supplier | C69: =COUNTA(D70:D73) -> 0 | D69: Material | E69: Custom Name/Identifier | F69: Gravity | G69: Absorption | H69: Method A | I69: - 4.75 mm | J69: 5:1 | L69: % loss | M69: Rating | N69: 1" | O69: 3/4" | P69: 1/2" | Q69: 3/8" | R69: No 4 | S69: No 8 | T69: No 16 | U69: No 30 | V69: No 50 | W69: No 100 | X69: No 200
A70: 1 | C70: =IF(AC70<NOW(),"*","") ->  | Y70: AGGR | Z70: ="MAT!"&ADDRESS(VLOOKUP(B70,INDIRECT("PS!"&ADDRESS(VLOOKUP(Y70,PS!$I$2:$M$32,2,FALSE),3)&":"&ADDRESS(VLOOKUP(Y70,PS!$I$2:$M$32,2,FALSE)+VLOOKUP(Y70,PS!$I$2:$M$32,3,FALSE)-1,7)),4,FALSE),4)&":"&ADDRESS(VLOOKUP(B70,INDIRECT("PS!"&ADDRESS(VLOOKUP(Y70,PS!$I$2:$M$32,2,FALSE),3)&":"&ADDRESS(VLOOKUP(Y70,PS!$I$2:$M$32,2,FALSE)+VLOOKUP(Y70,PS!$I$2:$M$32,3,FALSE)-1,7)),4,FALSE)+VLOOKUP(B70,INDIRECT("PS!"&ADDRESS(VLOOKUP(Y70,PS!$I$2:$M$32,2,FALSE),3)&":"&ADDRESS(VLOOKUP(Y70,PS!$I$2:$M$32,2,FALSE)+VLOOKUP(Y70,PS!$I$2:$M$32,3,FALSE)-1,7)),5,FALSE)-1,4) ->  | AA70: =IFERROR(VLOOKUP(D70,MAT!$D$2:$K$711,7,FALSE),"") ->  | AB70: =IFERROR(VLOOKUP(D70,MAT!$D$2:$K$711,8,FALSE),"") ->  | AC70: =IFERROR(DATE(LEFT(AB70,4),MID(AB70,5,2),RIGHT(AB70,2)),"") ->  | AD70: =IFERROR(VLOOKUP(B70,PS!$C$2:$D$10000,2,FALSE),"") ->  | AE70: =IF(LEN(D70)>10,LEFT(D70,10)&"-"&E70,"") -> 
A71: 2 | Y71: AGGR | Z71: ="MAT!"&ADDRESS(VLOOKUP(B71,INDIRECT("PS!"&ADDRESS(VLOOKUP(Y71,PS!$I$2:$M$32,2,FALSE),3)&":"&ADDRESS(VLOOKUP(Y71,PS!$I$2:$M$32,2,FALSE)+VLOOKUP(Y71,PS!$I$2:$M$32,3,FALSE)-1,7)),4,FALSE),4)&":"&ADDRESS(VLOOKUP(B71,INDIRECT("PS!"&ADDRESS(VLOOKUP(Y71,PS!$I$2:$M$32,2,FALSE),3)&":"&ADDRESS(VLOOKUP(Y71,PS!$I$2:$M$32,2,FALSE)+VLOOKUP(Y71,PS!$I$2:$M$32,3,FALSE)-1,7)),4,FALSE)+VLOOKUP(B71,INDIRECT("PS!"&ADDRESS(VLOOKUP(Y71,PS!$I$2:$M$32,2,FALSE),3)&":"&ADDRESS(VLOOKUP(Y71,PS!$I$2:$M$32,2,FALSE)+VLOOKUP(Y71,PS!$I$2:$M$32,3,FALSE)-1,7)),5,FALSE)-1,4) ->  | AA71: =IFERROR(VLOOKUP(D71,MAT!$D$2:$K$711,7,FALSE),"") ->  | AB71: =IFERROR(VLOOKUP(D71,MAT!$D$2:$K$711,8,FALSE),"") ->  | AD71: =IFERROR(VLOOKUP(B71,PS!$C$2:$D$10000,2,FALSE),"") -> 
A72: 3 | Y72: AGGR | Z72: ="MAT!"&ADDRESS(VLOOKUP(B72,INDIRECT("PS!"&ADDRESS(VLOOKUP(Y72,PS!$I$2:$M$32,2,FALSE),3)&":"&ADDRESS(VLOOKUP(Y72,PS!$I$2:$M$32,2,FALSE)+VLOOKUP(Y72,PS!$I$2:$M$32,3,FALSE)-1,7)),4,FALSE),4)&":"&ADDRESS(VLOOKUP(B72,INDIRECT("PS!"&ADDRESS(VLOOKUP(Y72,PS!$I$2:$M$32,2,FALSE),3)&":"&ADDRESS(VLOOKUP(Y72,PS!$I$2:$M$32,2,FALSE)+VLOOKUP(Y72,PS!$I$2:$M$32,3,FALSE)-1,7)),4,FALSE)+VLOOKUP(B72,INDIRECT("PS!"&ADDRESS(VLOOKUP(Y72,PS!$I$2:$M$32,2,FALSE),3)&":"&ADDRESS(VLOOKUP(Y72,PS!$I$2:$M$32,2,FALSE)+VLOOKUP(Y72,PS!$I$2:$M$32,3,FALSE)-1,7)),5,FALSE)-1,4) ->  | AA72: =IFERROR(VLOOKUP(D72,MAT!$D$2:$K$711,7,FALSE),"") ->  | AB72: =IFERROR(VLOOKUP(D72,MAT!$D$2:$K$711,8,FALSE),"") ->  | AD72: =IFERROR(VLOOKUP(B72,PS!$C$2:$D$10000,2,FALSE),"") -> 
A73: 4 | Y73: AGGR | Z73: ="MAT!"&ADDRESS(VLOOKUP(B73,INDIRECT("PS!"&ADDRESS(VLOOKUP(Y73,PS!$I$2:$M$32,2,FALSE),3)&":"&ADDRESS(VLOOKUP(Y73,PS!$I$2:$M$32,2,FALSE)+VLOOKUP(Y73,PS!$I$2:$M$32,3,FALSE)-1,7)),4,FALSE),4)&":"&ADDRESS(VLOOKUP(B73,INDIRECT("PS!"&ADDRESS(VLOOKUP(Y73,PS!$I$2:$M$32,2,FALSE),3)&":"&ADDRESS(VLOOKUP(Y73,PS!$I$2:$M$32,2,FALSE)+VLOOKUP(Y73,PS!$I$2:$M$32,3,FALSE)-1,7)),4,FALSE)+VLOOKUP(B73,INDIRECT("PS!"&ADDRESS(VLOOKUP(Y73,PS!$I$2:$M$32,2,FALSE),3)&":"&ADDRESS(VLOOKUP(Y73,PS!$I$2:$M$32,2,FALSE)+VLOOKUP(Y73,PS!$I$2:$M$32,3,FALSE)-1,7)),5,FALSE)-1,4) ->  | AA73: =IFERROR(VLOOKUP(D73,MAT!$D$2:$K$711,7,FALSE),"") ->  | AB73: =IFERROR(VLOOKUP(D73,MAT!$D$2:$K$711,8,FALSE),"") ->  | AD73: =IFERROR(VLOOKUP(B73,PS!$C$2:$D$10000,2,FALSE),"") -> 

Sheet Optimum AC Test Results
A1: LADOTD Superpave Mix Design
A3: Mix Type:
A4: Contractor Mix # :
A5: Optimum AC Points and Curves
I7: Design Rice
A8: Design Point # | C8: 1 | D8: 2 | E8: 3 | F8: 4 | I8: Asphalt Content for Rice
A9: % AC (Total) | I9: Rice Gravities | K9: A | L9: B
A10: Gsb (Total Aggregate) | C10: ='JMF CHECK'!$H$21 -> 0 | I10: Mix | N10: Design Voids | P10: 3.5
A11: Gse (Total Aggregate) | C11: =IF(M13>0,(100-L8)/(100/M13-L8/C12),0) -> 0 | I11: Pyc&Water
A12: Specific Gravity AC | C12: 1.03 | I12: Pyc,Water&Mix | M12: Avg Gmm
A13: Calculated Rice Gravity | C13: =IF(AND(C9>0,C11>0),ROUND(100/(((100-C9)/$C$11)+(C9/$C$12)),setup!M8)," ") ->  | D13: =IF(AND(C11>0,D9>0),ROUND(100/(((100-D9)/$C$11)+(D9/$C$12)),setup!M8)," ") ->  | E13: =IF(AND(C11>0,E9>0),ROUND(100/(((100-E9)/$C$11)+(E9/$C$12)),setup!M8)," ") ->  | F13: =IF(AND(C11>0,F9>0),ROUND(100/(((100-F9)/$C$11)+(F9/$C$12)),setup!M8)," ") ->  | I13: Gmm | K13: =IF(K12>0,ROUND(K10/(K10+K11-K12),setup!M39),0) -> 0 | L13: =IF(L12>0,ROUND(L10/(L10+L11-L12),setup!M39),0) -> 0 | M13: =AVERAGE(K13:L13) -> 0
B15: Design Point # 1 - % AC = | E15: =IF(C9>0,C9,"") ->  | F15: Design Point # 2 - % AC = | I15: =IF(D9>0,D9,"") ->  | J15: Design Point # 3 - % AC = | M15: =IF(E9>0,E9,"") ->  | N15: Design Point # 4 - % AC = | Q15: =IF(F9>0,F9,"") -> 
A16: Sample # | B16: 1 | C16: 2 | D16: 3 | E16: AVG | F16: 1 | G16: 2 | H16: 3 | I16: AVG | J16: 1 | K16: 2 | L16: 3 | M16: AVG | N16: 1 | O16: 2 | P16: 3 | Q16: AVG
A17: Height @ N-int (mm)
A18: Height @ N-des (mm)
A19: Wt. in Air | R19: Design AV | S19: x (ac) | T19: y (av)
A20: Wt. Water | R20: =P10 -> 3.5 | S20: =C9 -> 0 | T20: =IF(AND(C9>0,E30<>""),E30,0) -> 0
A21: Wt. SSD | S21: =D9 -> 0 | T21: =IF(AND(D9>0,I30<>""),I30,0) -> 0
A22: Sp. Gravity | B22: =IF(C9>0,IF(B20>0,ROUND(B19/(B21-B20),setup!$M$8),""),"") ->  | C22: =IF(C9>0,IF(C20>0,ROUND(C19/(C21-C20),setup!$M$8),""),"") ->  | D22: =IF(C9>0,IF(D20>0,ROUND(D19/(D21-D20),setup!$M$8),""),"") ->  | E22: =IF(C9>0,IF(B20>0,ROUND(AVERAGE(B22:D22),setup!$M$8),""),"") ->  | F22: =IF(D9>0,IF(F20>0,ROUND(F19/(F21-F20),setup!$M$8),""),"") ->  | G22: =IF(D9>0,IF(G20>0,ROUND(G19/(G21-G20),setup!$M$8),""),"") ->  | H22: =IF(D9>0,IF(H20>0,ROUND(H19/(H21-H20),setup!$M$8),""),"") ->  | I22: =IF(D9>0,IF(F20>0,ROUND(AVERAGE(F22:H22),setup!$M$8),""),"") ->  | J22: =IF(E9>0,IF(J20>0,ROUND(J19/(J21-J20),setup!$M$8),""),"") ->  | K22: =IF(E9>0,IF(K20>0,ROUND(K19/(K21-K20),setup!$M$8),""),"") ->  | L22: =IF(E9>0,IF(L20>0,ROUND(L19/(L21-L20),setup!$M$8),""),"") ->  | M22: =IF(E9>0,IF(J20>0,ROUND(AVERAGE(J22:L22),setup!$M$8),""),"") ->  | N22: =IF(F9,IF(N20>0,ROUND(N19/(N21-N20),setup!$M$8),""),"") ->  | O22: =IF(F9,IF(O20>0,ROUND(O19/(O21-O20),setup!$M$8),""),"") ->  | P22: =IF(F9,IF(P20>0,ROUND(P19/(P21-P20),setup!$M$8),""),"") ->  | Q22: =IF(F9>0,IF(N20>0,ROUND(AVERAGE(N22:P22),setup!$M$8),""),"") ->  | S22: =E9 -> 0 | T22: =IF(AND(E9>0,M30<>""),M30,0) -> 0
A23: Gmb (Est. @ N-int) | B23: =IF(C9>0,IF(B19>0,ROUND(B19/(3.14159*(15*(15/4)*(B17/10))),setup!$M$9),""),"") ->  | C23: =IF(C9>0,IF(C19>0,ROUND(C19/(3.14159*(15*(15/4)*(C17/10))),setup!$M$9),""),"") ->  | D23: =IF(C9>0,IF(D19>0,ROUND(D19/(3.14159*(15*(15/4)*(D17/10))),setup!$M$9),""),"") ->  | F23: =IF(D9>0,IF(F19>0,ROUND(F19/(3.14159*(15*(15/4)*(F17/10))),setup!$M$9),""),"") ->  | G23: =IF(D9>0,IF(G19>0,ROUND(G19/(3.14159*(15*(15/4)*(G17/10))),setup!$M$9),""),"") ->  | H23: =IF(D9>0,IF(H19>0,ROUND(H19/(3.14159*(15*(15/4)*(H17/10))),setup!$M$9),""),"") ->  | J23: =IF(E9>0,IF(J19>0,ROUND(J19/(3.14159*(15*(15/4)*(J17/10))),setup!$M$9),""),"") ->  | K23: =IF(E9>0,IF(K19>0,ROUND(K19/(3.14159*(15*(15/4)*(K17/10))),setup!$M$9),""),"") ->  | L23: =IF(E9>0,IF(L19>0,ROUND(L19/(3.14159*(15*(15/4)*(L17/10))),setup!$M$9),""),"") ->  | N23: =IF(F9>0,IF(N19>0,ROUND(N19/(3.14159*(15*(15/4)*(N17/10))),setup!$M$9),""),"") ->  | O23: =IF(F9>0,IF(O19>0,ROUND(O19/(3.14159*(15*(15/4)*(O17/10))),setup!$M$9),""),"") ->  | P23: =IF(F9>0,IF(P19>0,ROUND(P19/(3.14159*(15*(15/4)*(P17/10))),setup!$M$9),""),"") ->  | S23: =F9 -> 0 | T23: =IF(AND(F9>0,Q30<>""),Q30,0) -> 0
A24: Gmb (Corr. @ N-Int) | B24: =IF(C9>0,IF(AND(B19>0,B18>0),ROUND(B23*(B22/(B19/(3.14159*(15*(15/4)*(B18/10))))),setup!$M$9),""),"") ->  | C24: =IF(C9>0,IF(AND(C18>0,C19>0),ROUND(C23*(C22/(C19/(3.14159*(15*(15/4)*(C18/10))))),setup!$M$9),""),"") ->  | D24: =IF(C9>0,IF(AND(D18>0,D19>0),ROUND(D23*(D22/(D19/(3.14159*(15*(15/4)*(D18/10))))),setup!$M$9),""),"") ->  | F24: =IF(D9>0,IF(AND(F18>0,F19>0),ROUND(F23*(F22/(F19/(3.14159*(15*(15/4)*(F18/10))))),setup!$M$9),""),"") ->  | G24: =IF(D9>0,IF(AND(G18>0,G19>0),ROUND(G23*(G22/(G19/(3.14159*(15*(15/4)*(G18/10))))),setup!$M$9),""),"") ->  | H24: =IF(D9>0,IF(AND(H18>0,H19>0),ROUND(H23*(H22/(H19/(3.14159*(15*(15/4)*(H18/10))))),setup!$M$9),""),"") ->  | J24: =IF(E9>0,IF(AND(J18>0,J19>0),ROUND(J23*(J22/(J19/(3.14159*(15*(15/4)*(J18/10))))),setup!$M$9),""),"") ->  | K24: =IF(E9>0,IF(AND(K18>0,K19>0),ROUND(K23*(K22/(K19/(3.14159*(15*(15/4)*(K18/10))))),setup!$M$9),""),"") ->  | L24: =IF(E9>0,IF(AND(L18>0,L19>0),ROUND(L23*(L22/(L19/(3.14159*(15*(15/4)*(L18/10))))),setup!$M$9),""),"") ->  | N24: =IF(F9>0,IF(AND(N18>0,N19>0),ROUND(N23*(N22/(N19/(3.14159*(15*(15/4)*(N18/10))))),setup!$M$9),""),"") ->  | O24: =IF(F9>0,IF(AND(O18>0,O19>0),ROUND(O23*(O22/(O19/(3.14159*(15*(15/4)*(O18/10))))),setup!$M$9),""),"") ->  | P24: =IF(F9>0,IF(AND(P18>0,P19>0),ROUND(P23*(P22/(P19/(3.14159*(15*(15/4)*(P18/10))))),setup!$M$9),""),"") ->  | R24: 0 | S24: =R20+1 -> 4.5
A25: %Gmm @ N-int | B25: =IF(AND(C9>0,C11>0),IF(AND(B24<>"",B19>0),ROUND(B24/$C$13*100,setup!$M$10),""),"") ->  | C25: =IF(AND(C9>0,C11>0),IF(C19>0,ROUND(C24/$C$13*100,setup!$M$10),""),"") ->  | D25: =IF(AND(C9>0,C11>0),IF(D19>0,ROUND(D24/$C$13*100,setup!$M$10),""),"") ->  | E25: =IF(AND(C9>0,C11>0),IF(AND(B25<>"",B17>0),ROUND(AVERAGE(B25:D25),setup!$M$10),""),"") ->  | F25: =IF(AND(D9>0,C11>0),IF(F19>0,ROUND(F24/$D$13*100,setup!$M$10),""),"") ->  | G25: =IF(AND(D9>0,C11>0),IF(G19>0,ROUND(G24/$D$13*100,setup!$M$10),""),"") ->  | H25: =IF(AND(D9>0,C11>0),IF(H19>0,ROUND(H24/$D$13*100,setup!$M$10),""),"") ->  | I25: =IF(AND(D9>0,C11>0),IF(AND(F25<>"",F17>0),ROUND(AVERAGE(F25:H25),setup!$M$10),""),"") ->  | J25: =IF(AND(E9>0, C11>0),IF(J19>0,ROUND(J24/$E$13*100,setup!$M$10),""),"") ->  | K25: =IF(AND(E9>0, C11>0),IF(K19>0,ROUND(K24/$E$13*100,setup!$M$10),""),"") ->  | L25: =IF(AND(E9>0, C11>0),IF(L19>0,ROUND(L24/$E$13*100,setup!$M$10),""),"") ->  | M25: =IF(AND(E9>0, C11>0),IF(AND(J25<>"",J17>0),ROUND(AVERAGE(J25:L25),setup!$M$10),""),"") ->  | N25: =IF(AND(F9>0,C11>0),IF(N19>0,ROUND(N24/$F$13*100,setup!$M$10),""),"") ->  | O25: =IF(AND(F9>0,C11>0),IF(O19>0,ROUND(O24/$F$13*100,setup!$M$10),""),"") ->  | P25: =IF(AND(F9>0,C11>0),IF(P19>0,ROUND(P24/$F$13*100,setup!$M$10),""),"") ->  | Q25: =IF(AND(F9>0,C11>0),IF(AND(N25<>"",N17>0),ROUND(AVERAGE(N25:P25),setup!$M$10),""),"") ->  | R25: x^2 | S25: x | T25: b
A26: Gmb (Est. @ N-des) | B26: =IF(C9>0,IF(B19>0,ROUND(B19/(3.14159*(15*(15/4)*(B18/10))),setup!$M$9),""),"") ->  | C26: =IF(C9>0,IF(C19>0,ROUND(C19/(3.14159*(15*(15/4)*(C18/10))),setup!$M$9),""),"") ->  | D26: =IF(C9>0,IF(D19>0,ROUND(D19/(3.14159*(15*(15/4)*(D18/10))),setup!$M$9),""),"") ->  | F26: =IF(D9>0,IF(F19>0,ROUND(F19/(3.14159*(15*(15/4)*(F18/10))),setup!$M$9),""),"") ->  | G26: =IF(D9>0,IF(G19>0,ROUND(G19/(3.14159*(15*(15/4)*(G18/10))),setup!$M$9),""),"") ->  | H26: =IF(D9>0,IF(H19>0,ROUND(H19/(3.14159*(15*(15/4)*(H18/10))),setup!$M$9),""),"") ->  | J26: =IF(E9>0,IF(J19>0,ROUND(J19/(3.14159*(15*(15/4)*(J18/10))),setup!$M$9),""),"") ->  | K26: =IF(E9>0,IF(K19>0,ROUND(K19/(3.14159*(15*(15/4)*(K18/10))),setup!$M$9),""),"") ->  | L26: =IF(E9>0,IF(L19>0,ROUND(L19/(3.14159*(15*(15/4)*(L18/10))),setup!$M$9),""),"") ->  | N26: =IF(F9>0,IF(N19>0,ROUND(N19/(3.14159*(15*(15/4)*(N18/10))),setup!$M$9),""),"") ->  | O26: =IF(F9>0,IF(O19>0,ROUND(O19/(3.14159*(15*(15/4)*(O18/10))),setup!$M$9),""),"") ->  | P26: =IF(F9>0,IF(P19>0,ROUND(P19/(3.14159*(15*(15/4)*(P18/10))),setup!$M$9),""),"") ->  | R26: =IF(AND(S20>0,T20>0),IF(AND(S21>0,T21>0), IF(AND(S22>0,T22>0), IF(AND(S23>0,T23>0), LINEST(T20:T23,S20:S23^{1,2},TRUE,FALSE),LINEST(T20:T22,S20:S22^{1,2},TRUE,FALSE)),0),0),0) -> 0 | S26: 0 | T26: 0
A27: Gmb (Corr. @ N-des) | B27: =IF(C9>0,IF(B19>0,ROUND(B26*(B22/(B19/(3.14159*(15*(15/4)*(B18/10))))),setup!$M$9),""),"") ->  | C27: =IF(C9>0,IF(C19>0,ROUND(C26*(C22/(C19/(3.14159*(15*(15/4)*(C18/10))))),setup!$M$9),""),"") ->  | D27: =IF(C9>0,IF(D19>0,ROUND(D26*(D22/(D19/(3.14159*(15*(15/4)*(D18/10))))),setup!$M$9),""),"") ->  | F27: =IF(D9>0,IF(F19>0,ROUND(F26*(F22/(F19/(3.14159*(15*(15/4)*(F18/10))))),setup!$M$9),""),"") ->  | G27: =IF(D9>0,IF(G19>0,ROUND(G26*(G22/(G19/(3.14159*(15*(15/4)*(G18/10))))),setup!$M$9),""),"") ->  | H27: =IF(D9>0,IF(H19>0,ROUND(H26*(H22/(H19/(3.14159*(15*(15/4)*(H18/10))))),setup!$M$9),""),"") ->  | J27: =IF(E9>0,IF(J19>0,ROUND(J26*(J22/(J19/(3.14159*(15*(15/4)*(J18/10))))),setup!$M$9),""),"") ->  | K27: =IF(E9>0,IF(K19>0,ROUND(K26*(K22/(K19/(3.14159*(15*(15/4)*(K18/10))))),setup!$M$9),""),"") ->  | L27: =IF(E9>0,IF(L19>0,ROUND(L26*(L22/(L19/(3.14159*(15*(15/4)*(L18/10))))),setup!$M$9),""),"") ->  | N27: =IF(F9>0,IF(N19>0,ROUND(N26*(N22/(N19/(3.14159*(15*(15/4)*(N18/10))))),setup!$M$9),""),"") ->  | O27: =IF(F9>0,IF(O19>0,ROUND(O26*(O22/(O19/(3.14159*(15*(15/4)*(O18/10))))),setup!$M$9),""),"") ->  | P27: =IF(F9>0,IF(P19>0,ROUND(P26*(P22/(P19/(3.14159*(15*(15/4)*(P18/10))))),setup!$M$9),""),"") ->  | R27: op ac = | S27: =IF(R26<>0,ROUND(IF(AND(((-S26-SQRT(S26*S26-4*R26*(T26-R20)))/(2*R26))>0, ((-S26-SQRT(S26*S26-4*R26*(T26-R20)))/(2*R26))<10), ((-S26-SQRT(S26*S26-4*R26*(T26-R20)))/(2*R26)),(-S26+SQRT(S26*S26-4*R26*(T26-R20)))/(2*R26)),3),0) -> 0
A28: % Gmm @ N-des | B28: =IF(AND(C9>0,C11>0),IF(B19>0,ROUND(B27/$C$13*100,setup!$M$10),""),"") ->  | C28: =IF(AND(C9>0,C11>0),IF(C19>0,ROUND(C27/$C$13*100,setup!$M$10),""),"") ->  | D28: =IF(AND(C9>0,C11>0),IF(D19>0,ROUND(D27/$C$13*100,setup!$M$10),""),"") ->  | E28: =IF(AND(C9>0,C11>0),IF(AND(B28<>"",B17>0),ROUND(AVERAGE(B28:D28),setup!$M$10),""),"") ->  | F28: =IF(AND(D9>0,C11>0),IF(F19>0,ROUND(F27/$D$13*100,setup!$M$10),""),"") ->  | G28: =IF(AND(D9>0,C11>0),IF(G19>0,ROUND(G27/$D$13*100,setup!$M$10),""),"") ->  | H28: =IF(AND(D9>0,C11>0),IF(H19>0,ROUND(H27/$D$13*100,setup!$M$10),""),"") ->  | I28: =IF(AND(D9>0,C11>0),IF(AND(F28<>"",F17>0),ROUND(AVERAGE(F28:H28),setup!$M$10),""),"") ->  | J28: =IF(AND(E9>0, C11>0),IF(J19>0,ROUND(J27/$E$13*100,setup!$M$10),""),"") ->  | K28: =IF(AND(E9>0, C11>0),IF(K19>0,ROUND(K27/$E$13*100,setup!$M$10),""),"") ->  | L28: =IF(AND(E9>0, C11>0),IF(L19>0,ROUND(L27/$E$13*100,setup!$M$10),""),"") ->  | M28: =IF(AND(E9>0, C11>0),IF(AND(J28<>"",J17>0),ROUND(AVERAGE(J28:L28),setup!$M$10),""),"") ->  | N28: =IF(AND(F9>0,C11>0),IF(N19>0,ROUND(N27/$F$13*100,setup!$M$10),""),"") ->  | O28: =IF(AND(F9>0,C11>0),IF(O19>0,ROUND(O27/$F$13*100,setup!$M$10),""),"") ->  | P28: =IF(AND(F9>0,C11>0),IF(P19>0,ROUND(P27/$F$13*100,setup!$M$10),""),"") ->  | Q28: =IF(AND(F9>0,C11>0),IF(AND(N28<>"",N17>0),ROUND(AVERAGE(N28:P28),setup!$M$10),""),"") -> 
A29: % VMA @ N-des | B29: =IF(AND(C9>0,C11>0),IF(B19>0,ROUND(100-(B28*$C$13*((100-$C$9)/100)/$C$10),setup!$M$11),""),"") ->  | C29: =IF(AND(C9>0,C11>0),IF(C19>0,ROUND(100-(C28*$C$13*((100-$C$9)/100)/$C$10),setup!$M$11),""),"") ->  | D29: =IF(AND(C9>0,C11>0),IF(D19>0,ROUND(100-(D28*$C$13*((100-$C$9)/100)/$C$10),setup!$M$11),""),"") ->  | E29: =IF(AND(C9>0,C11>0),IF(AND(B29<>"",B17>0),ROUND(AVERAGE(B29:D29),setup!$M$11),""),"") ->  | F29: =IF(AND(D9>0,C11>0),IF(F19>0,ROUND(100-(F28*$D$13*((100-$D$9)/100)/$C$10),setup!$M$11),""),"") ->  | G29: =IF(AND(D9>0,C11>0),IF(G19>0,ROUND(100-(G28*$D$13*((100-$D$9)/100)/$C$10),setup!$M$11),""),"") ->  | H29: =IF(AND(D9>0,C11>0),IF(H19>0,ROUND(100-(H28*$D$13*((100-$D$9)/100)/$C$10),setup!$M$11),""),"") ->  | I29: =IF(AND(D9>0,C11>0),IF(AND(F29<>"",F17>0),ROUND(AVERAGE(F29:H29),setup!$M$11),""),"") ->  | J29: =IF(AND(E9>0, C11>0),IF(J19>0,ROUND(100-(J28*$E$13*((100-$E$9)/100)/$C$10),setup!$M$11),""),"") ->  | K29: =IF(AND(E9>0, C11>0),IF(K19>0,ROUND(100-(K28*$E$13*((100-$E$9)/100)/$C$10),setup!$M$11),""),"") ->  | L29: =IF(AND(E9>0, C11>0),IF(L19>0,ROUND(100-(L28*$E$13*((100-$E$9)/100)/$C$10),setup!$M$11),""),"") ->  | M29: =IF(AND(E9>0, C11>0),IF(AND(J29<>"",J17>0),ROUND(AVERAGE(J29:L29),setup!$M$11),""),"") ->  | N29: =IF(AND(F9>0,C11>0),IF(N19>0,ROUND(100-(N28*$F$13*((100-$F$9)/100)/$C$10),setup!$M$11),""),"") ->  | O29: =IF(AND(F9>0,C11>0),IF(O19>0,ROUND(100-(O28*$F$13*((100-$F$9)/100)/$C$10),setup!$M$11),""),"") ->  | P29: =IF(AND(F9>0,C11>0),IF(P19>0,ROUND(100-(P28*$F$13*((100-$F$9)/100)/$C$10),setup!$M$11),""),"") ->  | Q29: =IF(AND(F9>0,C11>0),IF(AND(N29<>"",N17>0),ROUND(AVERAGE(N29:P29),setup!$M$11),""),"") -> 
A30: % Voids @ N-des | B30: =IF(AND(C9>0,C11>0),IF(B19>0,ROUND((100-B28),setup!$M$12),""),"") ->  | C30: =IF(AND(C9>0,C11>0),IF(C19>0,ROUND((100-C28),setup!$M$12),""),"") ->  | D30: =IF(AND(C9>0,C11>0),IF(D19>0,ROUND((100-D28),setup!$M$12),""),"") ->  | E30: =IF(AND(C9>0,C11>0),IF(AND(B30<>"",B17>0),ROUND(AVERAGE(B30:D30),setup!$M$12),""),"") ->  | F30: =IF(AND(D9>0,C11>0),IF(F19>0,ROUND((100-F28),setup!$M$12),""),"") ->  | G30: =IF(AND(D9>0,C11>0),IF(G19>0,ROUND((100-G28),setup!$M$12),""),"") ->  | H30: =IF(AND(D9>0,C11>0),IF(H19>0,ROUND((100-H28),setup!$M$12),""),"") ->  | I30: =IF(AND(D9>0,C11>0),IF(AND(F30<>"",F17>0),ROUND(AVERAGE(F30:H30),setup!$M$12),""),"") ->  | J30: =IF(AND(E9>0, C11>0),IF(J19>0,ROUND((100-J28),setup!$M$12),""),"") ->  | K30: =IF(AND(E9>0, C11>0),IF(K19>0,ROUND((100-K28),setup!$M$12),""),"") ->  | L30: =IF(AND(E9>0, C11>0),IF(L19>0,ROUND((100-L28),setup!$M$12),""),"") ->  | M30: =IF(AND(E9>0, C11>0),IF(AND(J30<>"",J17>0),ROUND(AVERAGE(J30:L30),setup!$M$12),""),"") ->  | N30: =IF(AND(F9>0,C11>0),IF(N19>0,ROUND((100-N28),setup!$M$12),""),"") ->  | O30: =IF(AND(F9>0,C11>0),IF(O19>0,ROUND((100-O28),setup!$M$12),""),"") ->  | P30: =IF(AND(F9>0,C11>0),IF(P19>0,ROUND((100-P28),setup!$M$12),""),"") ->  | Q30: =IF(AND(F9>0,C11>0),IF(AND(N30<>"",N17>0),ROUND(AVERAGE(N30:P30),setup!$M$12),""),"") -> 
A31: % VFA @ N-des | B31: =IF(AND(C9>0,C11>0),IF(B19>0,ROUND(100*((B29-(100-B28))/B29),setup!$M$13),""),"") ->  | C31: =IF(AND(C9>0,C11>0),IF(C19>0,ROUND(100*((C29-(100-C28))/C29),setup!$M$13),""),"") ->  | D31: =IF(AND(C9>0,C11>0),IF(D19>0,ROUND(100*((D29-(100-D28))/D29),setup!$M$13),""),"") ->  | E31: =IF(AND(C9>0,C11>0),IF(AND(B31<>"",B17>0),ROUND(AVERAGE(B31:D31),setup!$M$13),""),"") ->  | F31: =IF(AND(D9>0,C11>0),IF(F19>0,ROUND(100*((F29-(100-F28))/F29),setup!$M$13),""),"") ->  | G31: =IF(AND(D9>0,C11>0),IF(G19>0,ROUND(100*((G29-(100-G28))/G29),setup!$M$13),""),"") ->  | H31: =IF(AND(D9>0,C11>0),IF(H19>0,ROUND(100*((H29-(100-H28))/H29),setup!$M$13),""),"") ->  | I31: =IF(AND(D9>0,C11>0),IF(AND(F31<>"",F17>0),ROUND(AVERAGE(F31:H31),setup!$M$13),""),"") ->  | J31: =IF(AND(E9>0, C11>0),IF(J19>0,ROUND(100*((J29-(100-J28))/J29),setup!$M$13),""),"") ->  | K31: =IF(AND(E9>0, C11>0),IF(K19>0,ROUND(100*((K29-(100-K28))/K29),setup!$M$13),""),"") ->  | L31: =IF(AND(E9>0, C11>0),IF(L19>0,ROUND(100*((L29-(100-L28))/L29),setup!$M$13),""),"") ->  | M31: =IF(AND(E9>0, C11>0),IF(AND(J31<>"",J17>0),ROUND(AVERAGE(J31:L31),setup!$M$13),""),"") ->  | N31: =IF(AND(F9>0,C11>0),IF(N19>0,ROUND(100*((N29-(100-N28))/N29),setup!$M$13),""),"") ->  | O31: =IF(AND(F9>0,C11>0),IF(O19>0,ROUND(100*((O29-(100-O28))/O29),setup!$M$13),""),"") ->  | P31: =IF(AND(F9>0,C11>0),IF(P19>0,ROUND(100*((P29-(100-P28))/P29),setup!$M$13),""),"") ->  | Q31: =IF(AND(F9>0,C11>0),IF(AND(N31<>"",N17>0),ROUND(AVERAGE(N31:P31),setup!$M$13),""),"") -> 
A32: Mix Verification Samples
A34: Design Point # | C34: Verification | E34: Rec Opt AC from Chart
A35: % AC (Optimum) | E35: =IF(S27>0,ROUND(S27,setup!M26),"") -> 
A36: Gsb (Total Aggregate) | C36: =ROUND(C10,setup!$M$9) -> 0 | E36: Calc Rice at Opt AC | G36: =IF(AND(C35>0,C11>0),ROUND(100/(((100-C35)/$C$11)+(C35/$C$12)),setup!M39),"") ->  | K36: Design Data
A37: Gse (Total Aggregate) | C37: =IF(O59>0,(100-C35)/(100/O59-C35/C12),0) -> 0
A38: Specific Grvity - AC | C38: =ROUND(C12,setup!$M$9) -> 1.03 | K38: Design Point # | N38: 1 | O38: 2 | P38: 3 | Q38: 4
A39: *Verification Rice | C39: =O59 -> 0 | F39: Specimens Compacted to N-Max | K39: % AC (Total) | N39: =IF(C9>0,'Optimum AC Test Results'!C9," ") ->  | O39: =IF(D9>0,'Optimum AC Test Results'!D9," ") ->  | P39: =IF(E9>0,'Optimum AC Test Results'!E9," ") ->  | Q39: =IF(F9>0,'Optimum AC Test Results'!F9," ") -> 
K40: Gsb (Total Aggregate) | N40: =C36 -> 0
B41: Verification Point - % AC = | E41: =C35 -> 0 | F41: Verification Point - % AC = | I41: ='Optimum AC Test Results'!$C$35 -> 0 | K41: Gse (Total Aggregate) | N41: =C37 -> 0
A42: Sample # | B42: 1 | C42: 2 | D42: 3 | E42: AVG | F42: 1 | G42: 2 | H42: 3 | I42: AVG | K42: Specific Grvity - AC | N42: =C38 -> 1.03
A43: Height @ N-int (mm) | K43: Calculated Rice Gravity | N43: =IF(C13>0,'Optimum AC Test Results'!C13," ") ->  | O43: =IF(D13>0,'Optimum AC Test Results'!D13," ") ->  | P43: =IF(E13>0,'Optimum AC Test Results'!E13," ") ->  | Q43: =IF(F13>0,'Optimum AC Test Results'!F13," ") -> 
A44: Height @ N-des (mm)
A45: Height @ N-max (mm) | K45: Average Test Values
A46: Wt. in Air | K46: Sp. Gravity | N46: =IF(E22>0,'Optimum AC Test Results'!$E$22," ") ->  | O46: =IF(I22>0,'Optimum AC Test Results'!$I$22," ") ->  | P46: =IF(M22>0,'Optimum AC Test Results'!$M$22," ") ->  | Q46: =IF(N22>0,'Optimum AC Test Results'!$Q$22," ") -> 
A47: Wt. Water | K47: %Gmm @ N-int | N47: =IF(E25>0,$E$25," ") ->  | O47: =IF(I25>0,$I$25," ") ->  | P47: =IF(M25>0,$M$25," ") ->  | Q47: =IF(Q25>0,$Q$25," ") -> 
A48: Wt. SSD | K48: % Gmm @ N-des | N48: =IF(E28>0,E28," ") ->  | O48: =IF(I28>0,I28," ") ->  | P48: =IF(M28>0,M28," ") ->  | Q48: =IF(Q28>0,Q28," ") -> 
A49: Sp. Gravity (Gmb,ND) | B49: =IF(AND(C35>0,C39>0),IF(B46>0,ROUND(B46/(B48-B47),setup!$M$8),""),"") ->  | C49: =IF(AND(C35>0,C39>0),IF(C46>0,ROUND(C46/(C48-C47),setup!$M$8),""),"") ->  | D49: =IF(AND(C35>0,C39>0),IF(D46>0,ROUND(D46/(D48-D47),setup!$M$8),""),"") ->  | E49: =IF(AND(C35>0,C39>0,B49<>""),ROUND(AVERAGE(B49:D49),setup!$M$8),"") ->  | F49: =IF(AND(C35>0,C39>0),IF(F46>0,ROUND(F46/(F48-F47),setup!$M$8),""),"") ->  | G49: =IF(AND(C35>0,C39>0),IF(G46>0,ROUND(G46/(G48-G47),setup!$M$8),""),"") ->  | H49: =IF(AND(C35>0,C39>0),IF(H46>0,ROUND(H46/(H48-H47),setup!$M$8),""),"") ->  | I49: =IF(AND(C35>0,C39>0,F49<>""),ROUND(AVERAGE(F49:H49),setup!$M$8),"") ->  | K49: % VMA @ N-des | N49: =IF(E29>0,E29," ") ->  | O49: =IF(I29>0,I29," ") ->  | P49: =IF(M29>0,M29," ") ->  | Q49: =IF(Q29>0,Q29," ") -> 
A50: Gmb (Est. @ N-int) | B50: =IF(AND(C35>0,C39>0),IF(B46>0,ROUND(B46/(3.14159*(15*(15/4)*(B43/10))),setup!$M$9),""),"") ->  | C50: =IF(AND(C35>0,C39>0),IF(C46>0,ROUND(C46/(3.14159*(15*(15/4)*(C43/10))),setup!$M$9),""),"") ->  | D50: =IF(AND(C35>0,C39>0),IF(D46>0,ROUND(D46/(3.14159*(15*(15/4)*(D43/10))),setup!$M$9),""),"") ->  | F50: =IF(AND(C35>0,C39>0),IF(F46>0,ROUND(F46/(3.14159*(15*(15/4)*(F43/10))),setup!$M$9),""),"") ->  | G50: =IF(AND(C35>0,C39>0),IF(G46>0,ROUND(G46/(3.14159*(15*(15/4)*(G43/10))),setup!$M$9),""),"") ->  | H50: =IF(AND(C35>0,C39>0),IF(H46>0,ROUND(H46/(3.14159*(15*(15/4)*(H43/10))),setup!$M$9),""),"") ->  | K50: % Voids @ N-des | N50: =IF(E30>0,E30," ") ->  | O50: =IF(I30>0,I30," ") ->  | P50: =IF(M30>0,M30," ") ->  | Q50: =IF(Q30>0,Q30," ") -> 
A51: Gmb (Corr. @ N-Int) | B51: =IF(AND(C35>0,C39>0),IF(B46>0,ROUND(B50*(B49/(B46/(3.14159*(15*(15/4)*(B44/10))))),setup!$M$9),""),"") ->  | C51: =IF(AND(C35>0,C39>0),IF(C46>0,ROUND(C50*(C49/(C46/(3.14159*(15*(15/4)*(C44/10))))),setup!$M$9),""),"") ->  | D51: =IF(AND(C35>0,C39>0),IF(D46>0,ROUND(D50*(D49/(D46/(3.14159*(15*(15/4)*(D44/10))))),setup!$M$9),""),"") ->  | F51: =IF(AND(C35>0,C39>0),IF(F46>0,ROUND(F50*(F49/(F46/(3.14159*(15*(15/4)*(F45/10))))),setup!$M$9),""),"") ->  | G51: =IF(AND(C35>0,C39>0),IF(G46>0,ROUND(G50*(G49/(G46/(3.14159*(15*(15/4)*(G45/10))))),setup!$M$9),""),"") ->  | H51: =IF(AND(C35>0,C39>0),IF(H46>0,ROUND(H50*(H49/(H46/(3.14159*(15*(15/4)*(H45/10))))),setup!$M$9),""),"") ->  | K51: % VFA @ N-des | N51: =IF(E31>0,E31," ") ->  | O51: =IF(I31>0,I31," ") ->  | P51: =IF(M31>0,M31," ") ->  | Q51: =IF(Q31>0,Q31," ") -> 
A52: %Gmm @ N-int | B52: =IF(AND(C35>0,C39>0),IF(B46>0,ROUND(B51/$C$39*100,setup!$M$10),""),"") ->  | C52: =IF(AND(C35>0,C39>0),IF(C46>0,ROUND(C51/$C$39*100,setup!$M$10),""),"") ->  | D52: =IF(AND(C35>0,C39>0),IF(D46>0,ROUND(D51/$C$39*100,setup!$M$10),""),"") ->  | E52: =IF(AND(C35>0,C39>0,B52<>""),ROUND(AVERAGE(B52:D52),setup!$M$10),"") ->  | F52: =IF(AND(C35>0,C39>0),IF(F46>0,ROUND(F51/$C$39*100,setup!$M$10),""),"") ->  | G52: =IF(AND(C35>0,C39>0),IF(G46>0,ROUND(G51/$C$39*100,setup!$M$10),""),"") ->  | H52: =IF(AND(C35>0,C39>0),IF(H46>0,ROUND(H51/$C$39*100,setup!$M$10),""),"") ->  | I52: =IF(AND(C35>0,C39>0,F52<>""),ROUND(AVERAGE(F52:H52),setup!$M$10),"") -> 
A53: Gmb (Est. @ N-Des) | B53: =IF(AND(C35>0,C39>0),IF(B46>0,ROUND(B46/(3.14159*(15*(15/4)*(B44/10))),setup!$M$9),""),"") ->  | C53: =IF(AND(C35>0,C39>0),IF(C46>0,ROUND(C46/(3.14159*(15*(15/4)*(C44/10))),setup!$M$9),""),"") ->  | D53: =IF(AND(C35>0,C39>0),IF(D46>0,ROUND(D46/(3.14159*(15*(15/4)*(D44/10))),setup!$M$9),""),"") ->  | K53: *Verification Rice
A54: Gmb (Corr. @ N-Des) | B54: =IF(AND(C35>0,C39>0),IF(B46>0,ROUND(B53*(B49/(B46/(3.14159*(15*(15/4)*(B44/10))))),setup!$M$9),""),"") ->  | C54: =IF(AND(C35>0,C39>0),IF(C46>0,ROUND(C53*(C49/(C46/(3.14159*(15*(15/4)*(C44/10))))),setup!$M$9),""),"") ->  | D54: =IF(AND(C35>0,C39>0),IF(D46>0,ROUND(D53*(D49/(D46/(3.14159*(15*(15/4)*(D44/10))))),setup!$M$9),""),"") ->  | K54: Asphalt Content for Rice | N54: =C35 -> 0
A55: % Gmm @ N-des | B55: =IF(AND(C35>0,C39>0),IF(B46>0,ROUND(B54/$C$39*100,setup!$M$10),""),"") ->  | C55: =IF(AND(C35>0,C39>0),IF(C46>0,ROUND(C54/$C$39*100,setup!$M$10),""),"") ->  | D55: =IF(AND(C35>0,C39>0),IF(D46>0,ROUND(D54/$C$39*100,setup!$M$10),""),"") ->  | E55: =IF(AND(C35>0,C39>0,B55<>""),ROUND(AVERAGE(B55:D55),setup!$M$10),"") ->  | K55: Rice Gravities | M55: A | N55: B
A56: Gmb (Est. @ N-Max) | F56: =IF(AND(C35>0,C39>0),IF(F46>0,ROUND(F46/(3.14159*(15*(15/4)*(F45/10))),setup!$M$9),""),"") ->  | G56: =IF(AND(C35>0,C39>0),IF(G46>0,ROUND(G46/(3.14159*(15*(15/4)*(G45/10))),setup!$M$9),""),"") ->  | H56: =IF(AND(C35>0,C39>0),IF(H46>0,ROUND(H46/(3.14159*(15*(15/4)*(H45/10))),setup!$M$9),""),"") ->  | K56: Mix
A57: Gmb (Corr. @ N-max) | F57: =IF(AND(C35>0,C39>0),IF(F46>0,ROUND(F56*(F49/(F46/(3.14159*(15*(15/4)*(F45/10))))),setup!$M$9),""),"") ->  | G57: =IF(AND(C35>0,C39>0),IF(G46>0,ROUND(G56*(G49/(G46/(3.14159*(15*(15/4)*(G45/10))))),setup!$M$9),""),"") ->  | H57: =IF(AND(C35>0,C39>0),IF(H46>0,ROUND(H56*(H49/(H46/(3.14159*(15*(15/4)*(H45/10))))),setup!$M$9),""),"") ->  | K57: Pyc&Water
A58: % Gmm @ N-Max | F58: =IF(AND(C35>0,C39>0),IF(F46>0,ROUND(F57/$C$39*100,setup!$M$10),""),"") ->  | G58: =IF(AND(C35>0,C39>0),IF(G46>0,ROUND(G57/$C$39*100,setup!$M$10),""),"") ->  | H58: =IF(AND(C35>0,C39>0),IF(H46>0,ROUND(H57/$C$39*100,setup!$M$10),""),"") ->  | I58: =IF(AND(C35>0,C39>0,F58<>""),ROUND(AVERAGE(F58:H58),setup!$M$10),"") ->  | K58: Pyc,Water&Mix | O58: Avg Gmm
A59: % VMA @ N-des | B59: =IF(AND(C35>0,C39>0),IF(B46>0,ROUND(100-(B55*$C$39*((100-$C$35)/100)/$C$10),setup!$M$11),""),"") ->  | C59: =IF(AND(C35>0,C39>0),IF(C46>0,ROUND(100-(C55*$C$39*((100-$C$35)/100)/$C$10),setup!$M$11),""),"") ->  | D59: =IF(AND(C35>0,C39>0),IF(D46>0,ROUND(100-(D55*$C$39*((100-$C$35)/100)/$C$10),setup!$M$11),""),"") ->  | E59: =IF(AND(C35>0,C39>0,B59<>""),ROUND(AVERAGE(B59:D59),setup!$M$11),"") ->  | F59: =IF(AND(C35>0,C39>0),IF(F46>0,ROUND(100-(F58*$C$39*((100-$C$35)/100)/$C$10),setup!$M$11),""),"") ->  | G59: =IF(AND(C35>0,C39>0),IF(G46>0,ROUND(100-(G58*$C$39*((100-$C$35)/100)/$C$10),setup!$M$11),""),"") ->  | H59: =IF(AND(C35>0,C39>0),IF(H46>0,ROUND(100-(H58*$C$39*((100-$C$35)/100)/$C$10),setup!$M$11),""),"") ->  | K59: Gmm | M59: =IF(M58>0,ROUND(M56/(M56+M57-M58),setup!M39),0) -> 0 | N59: =IF(N58>0,ROUND(N56/(N56+N57-N58),setup!M39),0) -> 0 | O59: =AVERAGE(M59:N59) -> 0
A60: % Voids @ N-des | B60: =IF(AND(C35>0,C39>0),IF(B46>0,ROUND((100-B55),setup!$M$12),""),"") ->  | C60: =IF(AND(C35>0,C39>0),IF(C46>0,ROUND((100-C55),setup!$M$12),""),"") ->  | D60: =IF(AND(C35>0,C39>0),IF(D46>0,ROUND((100-D55),setup!$M$12),""),"") ->  | E60: =IF(AND(C35>0,C39>0,B60<>""),ROUND(AVERAGE(B60:D60),setup!$M$12),"") ->  | F60: =IF(AND(C35>0,C39>0),IF(F46>0,ROUND((100-F58),setup!$M$12),""),"") ->  | G60: =IF(AND(C35>0,C39>0),IF(G46>0,ROUND((100-G58),setup!$M$12),""),"") ->  | H60: =IF(AND(C35>0,C39>0),IF(H46>0,ROUND((100-H58),setup!$M$12),""),"") -> 
A61: % VFA @ N-des | B61: =IF(AND(C35>0,C39>0),IF(B46>0,ROUND(100*((B59-(100-B55))/B59),setup!$M$13),""),"") ->  | C61: =IF(AND(C35>0,C39>0),IF(C46>0,ROUND(100*((C59-(100-C55))/C59),setup!$M$13),""),"") ->  | D61: =IF(AND(C35>0,C39>0),IF(D46>0,ROUND(100*((D59-(100-D55))/D59),setup!$M$13),""),"") ->  | E61: =IF(AND(C35>0,C39>0,B61<>""),ROUND(AVERAGE(B61:D61),setup!$M$13),"") ->  | F61: =IF(AND(C35>0,C39>0),IF(F46>0,ROUND(100*((F59-(100-F58))/F59),setup!$M$13),""),"") ->  | G61: =IF(AND(C35>0,C39>0),IF(G46>0,ROUND(100*((G59-(100-G58))/G59),setup!$M$13),""),"") ->  | H61: =IF(AND(C35>0,C39>0),IF(H46>0,ROUND(100*((H59-(100-H58))/H59),setup!$M$13),""),"") -> 
A63: *This Rice must be performed on the Lab Verification Sample and separate from the "Design" Rice.
A65: =setup!S2 -> LaPave 502 v18.05.02 | P65: =TODAY() -> 2023-03-31
A71: Drain Down (AASHTO T 305)
A72: Wt. of Mix Before
A73: Wt. of Mix After
A74: Wt. of Plate | V74: =setup!S2 -> LaPave 502 v18.05.02 | AE74: =TODAY() -> 2023-03-31
A75: Wt. of Plate+Mix After
A76: Wt. of Drained Mix | B76: =IF(B75>0, B75-B74, IF(B73>0, B72-B73, "")) ->  | C76: =IF(C75>0, C75-C74, IF(C73>0, C72-C73, "")) ->  | D76: Avg % Draindown
A77: % Draindown | B77: =IF(B76<>"", ROUND(B76/B72*100,1), "") ->  | C77: =IF(C76<>"", ROUND(C76/C72*100,1), "") ->  | D77: =IF(B77<>"", AVERAGE(B77:C77), "") -> 
A79: Correction Factor For Volumetric Specimens
A80: Average Wt of Mix, ND of Verification Points | D80: =IF(SUM(B46:D46)>0, ROUND(AVERAGE(B46:D46),1), "") -> 
A81: Average Height @ ND of Verification Points | D81: =IF(SUM(B44:D44)>0, ROUND(AVERAGE(B44:D44),1), "") -> 
A82: Gmb, ND Est of Verification Point | D82: =IF(D81<>"", ROUND(D80/(((3.1416*150*150*D81)/4)*0.001),setup!M9), "") -> 
A83: Average Gmb, ND of Verification Point | D83: =E49 -> 
A84: Correction Factor From Verification Point | D84: =IF(D82<>"", ROUND(D83/D82,4), "") -> 
A87: =setup!S2 -> LaPave 502 v18.05.02 | G87: =TODAY() -> 2023-03-31

Sheet Comp. Grad. and FAA Input
A2: Contractor | B2: ='JMF Input'!$B$6 -> 0 | E2: Plant Code | F2: ='Material Setup'!B5 -> 0 | P2: Contractor | R2: ='JMF Input'!$B$6 -> 0 | U2: Plant Code | W2: ='JMF Input'!$I$3 -> 0
A3: Mix Type | B3: ='JMF Input'!$E$5 -> Base Course | E3: Contr. Mix # | F3: ='JMF Input'!$B$7 -> 0 | P3: Mix Type | R3: ='JMF Input'!$E$5 -> Base Course | U3: Contr. Mix # | W3: ='JMF Input'!$B$7 -> 0
A4: JMF No | B4: ='JMF Input'!$F$3 -> 0 | P4: JMF No | R4: ='JMF Input'!$F$3 -> 0
A7: Aggregates | B7: =IF('JMF Input'!B20>0, 'JMF Input'!B20, "") ->  | C7: =IF('JMF Input'!B19>0, 'JMF Input'!B19, "") ->  | D7: =IF('JMF Input'!B18>0, 'JMF Input'!B18, "") ->  | E7: =IF('JMF Input'!B17>0, 'JMF Input'!B17, "") ->  | F7: =IF('JMF Input'!B16>0, 'JMF Input'!B16, "") ->  | G7: =IF('JMF Input'!B15>0, 'JMF Input'!B15, "") ->  | H7: =IF('JMF Input'!B14>0, 'JMF Input'!B14, "") ->  | I7: =IF('JMF Input'!B13>0, 'JMF Input'!B13, "") ->  | J7: =IF('JMF Input'!B12>0, 'JMF Input'!B12, "") ->  | K7: =IF('JMF Input'!B11>0, 'JMF Input'!B11, "") ->  | L7: Composite | N7: NMS
A8: Aggregate % | B8: ='JMF Input'!E20 -> 0 | C8: ='JMF Input'!E19 -> 0 | D8: ='JMF Input'!E18 -> 0 | E8: ='JMF Input'!E17 -> 0 | F8: ='JMF Input'!E16 -> 0 | G8: ='JMF Input'!E15 -> 0 | H8: ='JMF Input'!E14 -> 0 | I8: ='JMF Input'!E13 -> 0 | J8: ='JMF Input'!E12 -> 0 | K8: ='JMF Input'!E11 -> 0 | L8: =ROUND(SUM(B8:K8),1) -> 0 | N8: ='JMF Input'!I5 -> 1 in. | O8: =IF('JMF Input'!F4="SMA", "SMA", "") ->  | Q8: 0
A9: Sieve | N9: Min | O9: Max | Q9: =IF(N8="1 in.",278.459125958404,IF(N8="0.75 in.",231.767138770695,IF(N8="0.5 in.",204.667250410769,278.459125958404))) -> 278.459126
A10: 1" | B10: 100 | C10: 100 | D10: 100 | J10: 100 | K10: 85 | L10: =ROUND(((0.01*B$8)*B10)+((0.01*C$8)*C10)+((0.01*D$8)*D10)+((0.01*E$8)*E10)+((0.01*F$8)*F10)+((0.01*G$8)*G10)+((0.01*H$8)*H10)+((0.01*I$8)*I10)+((0.01*J$8)*J10)+((0.01*K$8)*K10),setup!$M$14) -> 0 | M10: =IF(AND(N10>0, ROUND(L10,0)<N10), "Min", IF(AND(O10>0, ROUND(L10,0)>O10),"Max","")) -> Min | N10: =IF(N8="1 in.",90,IF(N8="0.75 in.",100,-1)) -> 90 | O10: =IF(N8="1 in.",100,IF(N8="1.5 in.",89,-1)) -> 100
A11: 3/4" | L11: =ROUND(((0.01*B$8)*B11)+((0.01*C$8)*C11)+((0.01*D$8)*D11)+((0.01*E$8)*E11)+((0.01*F$8)*F11)+((0.01*G$8)*G11)+((0.01*H$8)*H11)+((0.01*I$8)*I11)+((0.01*J$8)*J11)+((0.01*K$8)*K11),setup!$M$14) -> 0 | M11: =IF(AND(N11>0, ROUND(L11,0)<N11), "Min", IF(AND(O11>0, ROUND(L11,0)>O11),"Max","")) ->  | N11: =IF(O8="SMA", 100, IF(N8="0.75 in.",90,IF(N8="0.5 in.",100,-1))) -> -1 | O11: =IF(N8="1 in.",89,IF(N8="0.75 in.",100,-1)) -> 89
A12: 1/2" | L12: =ROUND(((0.01*B$8)*B12)+((0.01*C$8)*C12)+((0.01*D$8)*D12)+((0.01*E$8)*E12)+((0.01*F$8)*F12)+((0.01*G$8)*G12)+((0.01*H$8)*H12)+((0.01*I$8)*I12)+((0.01*J$8)*J12)+((0.01*K$8)*K12),setup!$M$14) -> 0 | N12: =IF(O8="SMA", 90, IF(N8="0.5 in.",90,-1)) -> -1 | O12: =IF(O8="SMA", 100,IF(N8="0.75 in.",89,IF(N8="0.5 in.",100,-1))) -> -1
A13: 3/8" | L13: =ROUND(((0.01*B$8)*B13)+((0.01*C$8)*C13)+((0.01*D$8)*D13)+((0.01*E$8)*E13)+((0.01*F$8)*F13)+((0.01*G$8)*G13)+((0.01*H$8)*H13)+((0.01*I$8)*I13)+((0.01*J$8)*J13)+((0.01*K$8)*K13),setup!$M$14) -> 0 | O13: =IF(O8="SMA", 75,IF(N8="0.5 in.",89,-1)) -> -1
A14: No 4 | L14: =ROUND(((0.01*B$8)*B14)+((0.01*C$8)*C14)+((0.01*D$8)*D14)+((0.01*E$8)*E14)+((0.01*F$8)*F14)+((0.01*G$8)*G14)+((0.01*H$8)*H14)+((0.01*I$8)*I14)+((0.01*J$8)*J14)+((0.01*K$8)*K14),setup!$M$14) -> 0 | N14: =IF(O8="SMA", 24,-1) -> -1 | O14: =IF(O8="SMA", 34,-1) -> -1
A15: No 8 | L15: =ROUND(((0.01*B$8)*B15)+((0.01*C$8)*C15)+((0.01*D$8)*D15)+((0.01*E$8)*E15)+((0.01*F$8)*F15)+((0.01*G$8)*G15)+((0.01*H$8)*H15)+((0.01*I$8)*I15)+((0.01*J$8)*J15)+((0.01*K$8)*K15),setup!$M$14) -> 0 | M15: Min | N15: =IF(O8="SMA", 16,IF(N8="1 in.",23,IF(N8="0.75 in.",26,IF(N8="0.5 in.",29,IF(N8="1.5 in.", 19,-1))))) -> 23 | O15: =IF(O8="SMA", 28,IF(N8="1 in.",45,IF(N8="0.75 in.",49,IF(N8="0.5 in.",58,IF(N8="1.5 in.", 41,-1))))) -> 45
A16: No 16 | L16: =ROUND(((0.01*B$8)*B16)+((0.01*C$8)*C16)+((0.01*D$8)*D16)+((0.01*E$8)*E16)+((0.01*F$8)*F16)+((0.01*G$8)*G16)+((0.01*H$8)*H16)+((0.01*I$8)*I16)+((0.01*J$8)*J16)+((0.01*K$8)*K16),setup!$M$14) -> 0
A17: No 30 | L17: =ROUND(((0.01*B$8)*B17)+((0.01*C$8)*C17)+((0.01*D$8)*D17)+((0.01*E$8)*E17)+((0.01*F$8)*F17)+((0.01*G$8)*G17)+((0.01*H$8)*H17)+((0.01*I$8)*I17)+((0.01*J$8)*J17)+((0.01*K$8)*K17),setup!$M$14) -> 0 | N17: =IF(O8="SMA", 12,-1) -> -1 | O17: =IF(O8="SMA", 25,-1) -> -1
A18: No 50 | L18: =ROUND(((0.01*B$8)*B18)+((0.01*C$8)*C18)+((0.01*D$8)*D18)+((0.01*E$8)*E18)+((0.01*F$8)*F18)+((0.01*G$8)*G18)+((0.01*H$8)*H18)+((0.01*I$8)*I18)+((0.01*J$8)*J18)+((0.01*K$8)*K18),setup!$M$14) -> 0 | N18: =IF(O8="SMA", 11,-1) -> -1 | O18: =IF(O8="SMA", 22,-1) -> -1
A19: No 100 | L19: =ROUND(((0.01*B$8)*B19)+((0.01*C$8)*C19)+((0.01*D$8)*D19)+((0.01*E$8)*E19)+((0.01*F$8)*F19)+((0.01*G$8)*G19)+((0.01*H$8)*H19)+((0.01*I$8)*I19)+((0.01*J$8)*J19)+((0.01*K$8)*K19),setup!$M$14) -> 0
A20: No 200 | L20: =ROUND(((0.01*B$8)*B20)+((0.01*C$8)*C20)+((0.01*D$8)*D20)+((0.01*E$8)*E20)+((0.01*F$8)*F20)+((0.01*G$8)*G20)+((0.01*H$8)*H20)+((0.01*I$8)*I20)+((0.01*J$8)*J20)+((0.01*K$8)*K20),setup!$M$15) -> 0 | M20: =IF(AND(N20>0, L20<N20), "Min", IF(AND(O20>0, L20>O20),"Max","")) -> Min | N20: =IF(O8="SMA", 7, IF(N8="1 in.",2,IF(N8="0.75 in.",3,IF(N8="0.5 in.",4,IF(N8="1.5 in.", 1,-1))))) -> 2 | O20: =IF(O8="SMA", 13,IF(N8="1 in.",7,IF(N8="0.75 in.",8,IF(N8="0.5 in.",10,IF(N8="1.5 in.", 6,-1))))) -> 7
L21: =IF(M10<>"",A10&" "&M10,"")&IF(M11<>"",A11&" "&M11,"")&IF(M12<>"",A12&" "&M12,"")&IF(M13<>"",A13&" "&M13,"")&IF(M14<>"",A14&" "&M14,"")&IF(M15<>"",A15&" "&M15,"")&IF(M16<>"",A16&" "&M16,"")&IF(M17<>"",A17&" "&M17,"")&IF(M18<>"",A18&" "&M18,"")&IF(M19<>"",A19&" "&M19,"")&IF(M20<>"",A20&" "&M20,"") -> 1" Min No 8 Min No 200 Min
F23: Aggregate with FAA - Bin %
A24: Percent | B24: =IF(B26>0,B8,"") ->  | C24: =IF(C26>0,C8,"") ->  | J24: =IF(J26>0,J8,"") ->  | K24: =IF(K26>0,K8,"") ->  | L24: Composite FAA | N24: =ROUND(SUM(B24:I24),setup!M15) -> 0
A26: FAA | B26: ='JMF Input'!H20 -> 0 | C26: ='JMF Input'!H19 -> 0 | D26: ='JMF Input'!H18 -> 0 | E26: ='JMF Input'!H17 -> 0 | F26: ='JMF Input'!H16 -> 0 | G26: ='JMF Input'!H15 -> 0 | H26: ='JMF Input'!H14 -> 0 | I26: ='JMF Input'!H13 -> 0 | J26: ='JMF Input'!H12 -> 0 | K26: ='JMF Input'!H11 -> 0 | L26: =IF(SUM(B26:K26)>0,ROUND(AC52,setup!M15),"") -> 
A30: =setup!S2 -> LaPave 502 v18.05.02 | K30: =TODAY() -> 2023-03-31
P33: =setup!S2 -> LaPave 502 v18.05.02 | AF33: =TODAY() -> 2023-03-31
R37: P1 | S37: =IF(B24<>"",B24,0) -> 0 | T37: =IF(C24<>"",C24,0) -> 0 | U37: 0 | V37: 0 | W37: 0 | X37: 0 | Y37: 0 | Z37: 0 | AA37: =IF(J24<>"",J24,0) -> 0 | AB37: =IF(K24<>"",K24,0) -> 0
R38: %P | S38: =B15-B19 -> 0 | T38: 0 | U38: 0 | V38: 0 | W38: 0 | X38: 0 | Y38: 0 | Z38: 0 | AA38: 0 | AB38: 0
R39: AP1 | S39: =B26 -> 0 | T39: 0 | U39: 0 | V39: 0 | W39: 0 | X39: 0 | Y39: 0 | Z39: 0 | AA39: =J26 -> 0 | AB39: =K26 -> 0
R40: P2 | S40: =IF(B24<>"",B24,0) -> 0 | T40: =IF(C24<>"",C24,0) -> 0 | U40: 0 | V40: 0 | W40: 0 | X40: 0 | Y40: 0 | Z40: 0 | AA40: =IF(J24<>"",J24,0) -> 0 | AB40: =IF(K24<>"",K24,0) -> 0
R41: AP2 | S41: =B26 -> 0 | T41: 0 | U41: 0 | V41: 0 | W41: 0 | X41: 0 | Y41: 0 | Z41: 0 | AA41: =J26 -> 0 | AB41: =K26 -> 0
R44: P1 | S44: =S37 -> 0 | T44: 0 | U44: 0 | V44: 0 | W44: 0 | X44: 0 | Y44: 0 | Z44: 0 | AA44: =AA37 -> 0 | AB44: =AB37 -> 0
R45: %P | S45: 0 | T45: 0 | U45: 0 | V45: 0 | W45: 0 | X45: 0 | Y45: 0 | Z45: 0 | AA45: =AA38 -> 0 | AB45: =AB38 -> 0
R46: P2 | S46: =S40 -> 0 | T46: 0 | U46: 0 | V46: 0 | W46: 0 | X46: 0 | Y46: 0 | Z46: 0 | AA46: =AA40 -> 0 | AB46: =AB40 -> 0
S49: =S37*S38*S39 -> 0 | T49: =T37*T38*T39 -> 0 | U49: =U37*U38*U39 -> 0 | V49: 0 | W49: 0 | X49: 0 | Y49: =Y37*Y38*Y39 -> 0 | Z49: 0 | AA49: =AA37*AA38*AA39 -> 0 | AB49: =AB37*AB38*AB39 -> 0 | AC49: =SUM(S49:AB49) -> 0
S50: =S37*S38 -> 0 | T50: 0 | U50: 0 | V50: 0 | W50: 0 | X50: 0 | Y50: 0 | Z50: 0 | AA50: =AA37*AA38 -> 0 | AB50: =AB37*AB38 -> 0
S51: =IF(S39,S50,0) -> 0 | T51: 0 | U51: 0 | V51: 0 | W51: 0 | X51: 0 | Y51: 0 | Z51: 0 | AA51: =IF(AA39,AA50,0) -> 0 | AB51: =IF(AB39,AB50,0) -> 0 | AC51: =SUM(S51:AB51) -> 0
AC52: =AC49/AC51 -> 
C67: No Oven Temp Corr.
A70: IGNITION OVEN - TR 323-02 (Ignition Oven Correction Factors and Verification Gradations | L70: IGNITION OVEN - TR 323-02 (Ignition Oven Correction Factors and Verification Gradations
A71: Each JMF must have an Ignition Oven Correction Factor for AC in accordance with TR 323-02. A total of two (2) burns must be performed and the results averaged for the determination of the correction factor. If the difference between the two samples is greater than 0.015%, then a 3rd and 4th burn must be performed as well. Then the High and low values are discarded, and remaining two values are averaged for the correct correction factor.
A72: Test 1 - Burn | D72: GRADATION OF THE AGGREGATE
A73: =IF($C$67="No Oven Temp Corr.","Tr. Baskets", "Wt of Mix") -> Tr. Baskets | B73: 2904 | D73: SIEVE | E73: WT. | F73: PERCENT | G73: Per.Coar | H73: Per.Pass | M73: Test # 1 | N73: Test # 2 | O73: Test # 3 | P73: Test # 4 | Q73: Average | R73: Composite
A74: =IF($C$67="No Oven Temp Corr.","Baskets+Mix w/AC", "Wt. Loss") -> Baskets+Mix w/AC | B74: 4920.3 | D74: 1" | E74: 63.6 | F74: =IF($E$87>0,((E74/E$87)*100)," ") -> 3.291244049 | G74: =IF($E$87>0,(SUM(F74:F74))," ") -> 3.291244049 | H74: =IF($E$87>0,(100-G74)," ") -> 96.70875595 | L74: 1" | M74: =H74 -> 96.70875595 | N74: =H92 -> 96.33041931 | O74: =H111 ->  | P74: =H129 ->  | Q74: =IF(SUM(M74:P74)>0, AVERAGE(M74:P74), 0) -> 96.51958763 | R74: =L10 -> 0 | S74: =IF(AND(N10>0, ROUND(Q74,0)<N10), "Min", IF(AND(O10>0, ROUND(Q74,0)>O10),"Max","")) -> 
A75: =IF($C$67="No Oven Temp Corr.","Baskets minus AC", "Temp. Corr.") -> Baskets minus AC | B75: 4837 | D75: 3/4" | E75: 214.3 | F75: =IF($E$87>0,((E75/E$87)*100)," ") -> 11.08983647 | G75: =IF($E$87>0,(SUM(F74:F75))," ") -> 14.38108052 | H75: =IF($E$87>0,(100-G75)," ") -> 85.61891948 | L75: 3/4" | M75: 85.61891948 | N75: 84.57833848 | Q75: =IF(SUM(M75:P75)>0, AVERAGE(M75:P75), 0) -> 85.09862898 | R75: 0 | S75: =IF(AND(N11>0, ROUND(Q75,0)<N11), "Min", IF(AND(O11>0, ROUND(Q75,0)>O11),"Max","")) -> 
A76: =IF($C$67="No Oven Temp Corr.","% LOSS", "% LOSS-Tmp. Cor.") -> % LOSS | B76: =IF(B74>0,IF($C$67="No Oven Temp Corr.", ((B74-B75)/(B74-B73))*100, B74/B73*100-B75)," ") -> 4.131329663 | D76: 1/2" | E76: 313.8 | F76: 16.23887394 | G76: =IF($E$87>0,(SUM(F74:F76))," ") -> 30.61995446 | H76: 69.38004554 | L76: 1/2" | M76: 69.38004554 | N76: 69.44982463 | Q76: 69.41493509 | R76: 0
A77: Virgin AC - Added | B77: =IF(B74>0,'JMF Input'!G23," ") -> 0 | D77: 3/8" | E77: 134.5 | F77: 6.960256676 | G77: =IF($E$87>0,(SUM(F74:F77))," ") -> 37.58021114 | H77: 62.41978886 | L77: 3/8" | M77: 62.41978886 | N77: 61.56101136 | Q77: 61.99040011 | R77: 0
A78: RAP(AC) - From JMF | B78: =IF(B74>0,'JMF Input'!G26," ") -> 0 | D78: NO. 4 | E78: 215.8 | F78: 11.16746015 | G78: =IF($E$87>0,(SUM(F74:F78))," ") -> 48.74767129 | H78: 51.25232871 | L78: NO. 4 | M78: 51.25232871 | N78: 50.63079098 | Q78: 50.94155984 | R78: 0
A79: Target AC | B79: =IF(B74>0,(B77+B78)," ") -> 0 | D79: NO. 8 | E79: 232.9 | F79: 12.05237011 | G79: =IF($E$87>0,(SUM(F74:F79))," ") -> 60.8000414 | H79: 39.1999586 | L79: NO. 8 | M79: 39.1999586 | N79: 39.21897084 | Q79: 39.20946472 | R79: 0
A80: Corr. Factor | B80: =IF(B74>0,(B76-B79),"") -> 4.131329663 | D80: NO.16 | E80: 144.7 | F80: 7.488097702 | G80: =IF($E$87>0,(SUM(F74:F80))," ") -> 68.2881391 | H80: 31.7118609 | L80: NO.16 | M80: 31.7118609 | N80: 33.12045228 | Q80: 32.41615659 | R80: 0
A81: Int.DryWt | B81: 1933 | D81: NO.30 | E81: 143.4 | F81: 7.420823846 | G81: =IF($E$87>0,(SUM(F74:F81))," ") -> 75.70896295 | H81: 24.29103705 | L81: NO.30 | M81: 24.29103705 | N81: 25.14264775 | Q81: 24.7168424 | R81: 0
A82: AfterWash | B82: 1848.1 | D82: NO.50 | E82: 240.8 | F82: 12.46118816 | G82: =IF($E$87>0,(SUM(F74:F82))," ") -> 88.17015111 | H82: 11.82984889 | L82: NO.50 | M82: 11.82984889 | N82: 12.22321101 | Q82: 12.02652995 | R82: 0
A83: Decant. | B83: =IF(B74>0,(B81-B82)," ") -> 84.9 | D83: NO.100 | E83: 94.9 | F83: 4.910991513 | G83: =IF($E$87>0,(SUM(F74:F83))," ") -> 93.08114262 | H83: 6.918857379 | L83: NO.100 | M83: 6.918857379 | N83: 8.092969691 | Q83: 7.505913535 | R83: 0
A84: Sieve Tot | B84: =IF(B74>0,(E87)," ") -> 1932.4 | D84: NO.200 | E84: 37.7 | F84: 1.950941834 | G84: =IF($E$87>0,(SUM(F74:F84))," ") -> 95.03208445 | H84: 4.967915545 | L84: NO.200 | M84: 4.967915545 | N84: 5.062032142 | Q84: 5.014973843 | R84: 0 | S84: =IF(AND(N20>0, ROUND(Q84,1)<N20), "Min", IF(AND(O20>0, ROUND(Q84,1)>O20),"Max","")) -> 
A85: % Diff. | B85: =IF(B74>0,(((B81-B84)/B81)*100)," ") -> 0.03103983445 | D85: PAN | E85: 11.1 | F85: 0.5744152349 | L85: % Crushed | M85: =H88 -> 100 | N85: =H106 -> 100 | O85: =H125 ->  | P85: =H143 ->  | Q85: =IF(SUM(M85:P85)>0, ROUND(AVERAGE(M85:P85),0), 0) -> 100 | T85: =IF(S74<>"",A10&" "&S74,"")&IF(S75<>"",A11&" "&S75,"")&IF(S76<>"",A12&" "&S76,"")&IF(S77<>"",A13&" "&S77,"")&IF(S78<>"",A14&" "&S78,"")&IF(S79<>"",A15&" "&S79,"")&IF(S80<>"",A16&" "&S80,"")&IF(S81<>"",A17&" "&S81,"")&IF(S82<>"",A18&" "&S82,"")&IF(S83<>"",A19&" "&S83,"")&IF(S84<>"",A20&" "&S84,"") -> 
D86: DECANT | E86: =B83 -> 84.9 | G86: WT.CRUSH | H86: 942 | L86: % AC Correction | M86: =$B$80 -> 4.131329663 | N86: =$B$98 -> 4.143882005 | O86: =$B$117 ->  | P86: =$B$135 ->  | Q86: =IF(SUM(M86:P86)>0, AVERAGE(M86:P86), 0) -> 4.137605834
D87: ACC.TOTAL | E87: =SUM(E74:E86) -> 1932.4 | G87: WT. +#4 | H87: =IF(H86>0,(SUM(E74:E78))," ") -> 942 | L87: Difference | N87: =IF(OR(M86=" ", N86=" "), 0, (M86-N86)) -> -0.01255234147
F88: PERCENT CRUSHED | H88: =IF(H86>0,ROUND((H86/H87)*100,0)," ") -> 100
L89: Max Value | M89: =MIN(M86:P86) -> 4.131329663 | O89: Min Value | P89: =MAX(M86:P86) -> 4.143882005
A90: Test 2 - Burn | D90: GRADATION OF THE AGGREGATE
A91: =IF($C$67="No Oven Temp Corr.","Tr. Baskets", "Wt of Mix") -> Tr. Baskets | B91: 2904 | D91: SIEVE | E91: WT. | F91: PERCENT | G91: Per.Coar | H91: Per.Pass | L91: A | M91: If Difference less than 0.15 | Q91: Correction Factor = | S91: =IF(AND(M86<>"", N86<>"", SUM(Q74:Q86)>0), IF(N87<0.15,(AVERAGE(M86:N86)),""), "") -> 4.137605834
A92: =IF($C$67="No Oven Temp Corr.","Baskets+Mix w/AC", "Wt. Loss") -> Baskets+Mix w/AC | B92: 4897.3 | D92: 1" | E92: 70.1 | F92: =IF($E$105>0,((E92/E$105)*100)," ") -> 3.669580694 | G92: =IF($E$105>0,(SUM(F$92:F92))," ") -> 3.669580694 | H92: =IF($E$105>0,(100-G92)," ") -> 96.33041931 | L92: B | M92: If Difference greater than 0.15 | Q92: Correction Factor = | S92: =IF(N87>0.15,((SUM(M86:P86)-(P89+M89))/2)," ") -> 
A93: =IF($C$67="No Oven Temp Corr.","Baskets minus AC", "Temp. Corr.") -> Baskets minus AC | B93: 4814.7 | D93: 3/4" | E93: 224.5 | F93: =IF($E$105>0,((E93/E$105)*100)," ") -> 11.75208083 | G93: =IF($E$105>0,(SUM(F$92:F93))," ") -> 15.42166152 | H93: =IF($E$105>0,(100-G93)," ") -> 84.57833848
A94: =IF($C$67="No Oven Temp Corr.","% LOSS", "% LOSS-Tmp. Cor.") -> % LOSS | B94: =IF(B92>0,IF($C$67="No Oven Temp Corr.", ((B92-B93)/(B92-B91))*100, B92/B91*100-B93)," ") -> 4.143882005 | D94: 1/2" | E94: 289 | F94: 15.12851385 | G94: =IF($E$105>0,(SUM(F$92:F94))," ") -> 30.55017537 | H94: 69.44982463 | M94: Factor to be used on JMF Input | S94: =MAX(S91:S92) -> 4.137605834
A95: Virgin AC - Added | B95: =IF(B92>0,'JMF Input'!G23," ") -> 0 | D95: 3/8" | E95: 150.7 | F95: 7.888813275 | G95: =IF($E$105>0,(SUM(F$92:F95))," ") -> 38.43898864 | H95: 61.56101136
A96: RAP(AC) - From JMF | B96: =IF(B92>0,'JMF Input'!G26," ") -> 0 | D96: NO. 4 | E96: 208.8 | F96: 10.93022038 | G96: =IF($E$105>0,(SUM(F$92:F96))," ") -> 49.36920902 | H96: 50.63079098 | L96: =setup!S2 -> LaPave 502 v18.05.02 | R96: =TODAY() -> 2023-03-31
A97: Total AC | B97: =IF(B92>0,(B95+B96),"") -> 0 | D97: NO. 8 | E97: 218 | F97: 11.41182013 | G97: =IF($E$105>0,(SUM(F$92:F97))," ") -> 60.78102916 | H97: 39.21897084
A98: Corr. Factor | B98: =IF(B92>0,(B94-B97)," ") -> 4.143882005 | D98: NO.16 | E98: 116.5 | F98: 6.098518557 | G98: =IF($E$105>0,(SUM(F$92:F98))," ") -> 66.87954772 | H98: 33.12045228
A99: Int.DryWt | B99: 1910.7 | D99: NO.30 | E99: 152.4 | F99: 7.977804533 | G99: =IF($E$105>0,(SUM(F$92:F99))," ") -> 74.85735225 | H99: 25.14264775
A100: AfterWash | B100: 1822.9 | D100: NO.50 | E100: 246.8 | F100: 12.91943674 | G100: =IF($E$105>0,(SUM(F$92:F100))," ") -> 87.77678899 | H100: 12.22321101
A101: Decant. | B101: =IF(B92>0,(B99-B100)," ") -> 87.8 | D101: NO.100 | E101: 78.9 | F101: 4.130241323 | G101: =IF($E$105>0,(SUM(F$92:F101))," ") -> 91.90703031 | H101: 8.092969691
A102: Sieve Tot | B102: =IF(B92>0,(E105)," ") -> 1910.3 | D102: NO.200 | E102: 57.9 | F102: 3.030937549 | G102: =IF($E$105>0,(SUM(F$92:F102))," ") -> 94.93796786 | H102: 5.062032142
A103: % Diff. | B103: =IF(B92>0,(((B99-B102)/B99)*100)," ") -> 0.02093473596 | D103: PAN | E103: 8.9
D104: DECANT | E104: =B101 -> 87.8 | G104: WT.CRUSH | H104: 943.1
D105: ACC.TOTAL | E105: =SUM(E92:E104) -> 1910.3 | G105: WT. +#4 | H105: =IF(H104>0,(SUM(E92:E96))," ") -> 943.1
F106: PERCENT CRUSHED | H106: =IF(H104>0,ROUND((H104/H105)*100,0)," ") -> 100
A108: Tests Nos 3 and 4 only used if average from first 2 tests shows difference greater than 0.015
A109: Test 3 - Burn | D109: GRADATION OF THE AGGREGATE
A110: =IF($C$67="No Oven Temp Corr.","Tr. Baskets", "Wt of Mix") -> Tr. Baskets | D110: SIEVE | E110: WT. | F110: PERCENT | G110: Per.Coar | H110: Per.Pass
A111: =IF($C$67="No Oven Temp Corr.","Baskets+Mix w/AC", "Wt. Loss") -> Baskets+Mix w/AC | D111: 1" | F111: =IF($E$124>0,((E111/E$124)*100)," ") ->  | G111: =IF($E$124>0,(SUM(F$111:F111))," ") ->  | H111: =IF($E$124>0,(100-G111)," ") -> 
A112: =IF($C$67="No Oven Temp Corr.","Baskets minus AC", "Temp. Corr.") -> Baskets minus AC | D112: 3/4" | F112: =IF($E$124>0,((E112/E$124)*100)," ") ->  | G112: =IF($E$124>0,(SUM(F$111:F112))," ") ->  | H112: =IF($E$124>0,(100-G112)," ") -> 
A113: =IF($C$67="No Oven Temp Corr.","% LOSS", "% LOSS-Tmp. Cor.") -> % LOSS | B113: =IF(B111>0,IF($C$67="No Oven Temp Corr.", ((B111-B112)/(B111-B110))*100, B111/B110*100-B112)," ") ->  | D113: 1/2" | G113: =IF($E$124>0,(SUM(F$111:F113))," ") -> 
A114: Virgin AC - Added | B114: =IF(B111>0,'JMF Input'!G23," ") ->  | D114: 3/8" | G114: =IF($E$124>0,(SUM(F$111:F114))," ") -> 
A115: RAP(AC) - From JMF | B115: =IF(B111>0,'JMF Input'!G26," ") ->  | D115: NO. 4 | G115: =IF($E$124>0,(SUM(F$111:F115))," ") -> 
A116: Total AC | B116: =IF(B111>0,(B114+B115),"") ->  | D116: NO. 8 | G116: =IF($E$124>0,(SUM(F$111:F116))," ") -> 
A117: Corr. Factor | B117: =IF(B111>0,(B113-B116)," ") ->  | D117: NO.16 | G117: =IF($E$124>0,(SUM(F$111:F117))," ") -> 
A118: Int.DryWt | D118: NO.30 | G118: =IF($E$124>0,(SUM(F$111:F118))," ") -> 
A119: AfterWash | D119: NO.50 | G119: =IF($E$124>0,(SUM(F$111:F119))," ") -> 
A120: Decant. | B120: =IF(B111>0,(B118-B119)," ") ->  | D120: NO.100 | G120: =IF($E$124>0,(SUM(F$111:F120))," ") -> 
A121: Sieve Tot | B121: =IF(B111>0,(E124)," ") ->  | D121: NO.200 | G121: =IF($E$124>0,(SUM(F$111:F121))," ") -> 
A122: % Diff. | B122: =IF(B111>0,(((B118-B121)/B118)*100)," ") ->  | D122: PAN
D123: DECANT | E123: =B120 ->  | G123: WT.CRUSH
D124: ACC.TOTAL | E124: =SUM(E111:E123) -> 0 | G124: WT. +#4 | H124: =IF(H123>0,(SUM(E111:E115))," ") -> 
F125: PERCENT CRUSHED | H125: =IF(H123>0,ROUND((H123/H124)*100,0)," ") -> 
A127: Test 4 - Burn | D127: GRADATION OF THE AGGREGATE
A128: =IF($C$67="No Oven Temp Corr.","Tr. Baskets", "Wt of Mix") -> Tr. Baskets | D128: SIEVE | E128: WT. | F128: PERCENT | G128: Per.Coar | H128: Per.Pass
A129: =IF($C$67="No Oven Temp Corr.","Baskets+Mix w/AC", "Wt. Loss") -> Baskets+Mix w/AC | D129: 1" | F129: =IF($E$142>0,((E129/E$142)*100)," ") ->  | G129: =IF($E$142>0,(SUM(F$129:F129))," ") ->  | H129: =IF($E$142>0,(100-G129)," ") -> 
A130: =IF($C$67="No Oven Temp Corr.","Baskets minus AC", "Temp. Corr.") -> Baskets minus AC | D130: 3/4" | F130: =IF($E$142>0,((E130/E$142)*100)," ") ->  | G130: =IF($E$142>0,(SUM(F$129:F130))," ") ->  | H130: =IF($E$142>0,(100-G130)," ") -> 
A131: =IF($C$67="No Oven Temp Corr.","% LOSS", "% LOSS-Tmp. Cor.") -> % LOSS | B131: =IF(B129>0,IF($C$67="No Oven Temp Corr.", ((B129-B130)/(B129-B128))*100, B129/B128*100-B130)," ") ->  | D131: 1/2" | G131: =IF($E$142>0,(SUM(F$129:F131))," ") -> 
A132: Virgin AC - Added | B132: =IF(B129>0,'JMF Input'!G23," ") ->  | D132: 3/8" | G132: =IF($E$142>0,(SUM(F$129:F132))," ") -> 
A133: RAP(AC) - From JMF | B133: =IF(B129>0,'JMF Input'!G26," ") ->  | D133: NO. 4 | G133: =IF($E$142>0,(SUM(F$129:F133))," ") -> 
A134: Total AC | B134: =IF(B129>0,(B132+B133),"") ->  | D134: NO. 8 | G134: =IF($E$142>0,(SUM(F$129:F134))," ") -> 
A135: Corr. Factor | B135: =IF(B129>0,(B131-B134)," ") ->  | D135: NO.16 | G135: =IF($E$142>0,(SUM(F$129:F135))," ") -> 
A136: Int.DryWt | D136: NO.30 | G136: =IF($E$142>0,(SUM(F$129:F136))," ") -> 
A137: AfterWash | D137: NO.50 | G137: =IF($E$142>0,(SUM(F$129:F137))," ") -> 
A138: Decant. | B138: =IF(B129>0,(B136-B137)," ") ->  | D138: NO.100 | G138: =IF($E$142>0,(SUM(F$129:F138))," ") -> 
A139: Sieve Tot | B139: =IF(B129>0,(E142)," ") ->  | D139: NO.200 | G139: =IF($E$142>0,(SUM(F$129:F139))," ") -> 
A140: % Diff. | B140: =IF(B129>0,(((B136-B139)/B136)*100)," ") ->  | D140: PAN
D141: DECANT | E141: =B138 ->  | G141: WT.CRUSH
D142: ACC.TOTAL | E142: =SUM(E129:E141) -> 0 | G142: WT. +#4 | H142: =IF(H141>0,(SUM(E129:E133))," ") -> 
F143: PERCENT CRUSHED | H143: =IF(H141>0,ROUND((H141/H142)*100,0)," ") -> 
A145: =setup!S2 -> LaPave 502 v18.05.02 | G145: =TODAY() -> 2023-03-31

Sheet Moisture Susceptibility Design
A1: LOADED WHEEL TEST (LWT) -- AASHTO T 324 | K1: LOADED WHEEL TEST (LWT) -- AASHTO T 324
B2: Design Test | L2: Validation Test
E3: Date Sampled | K3: Project | L3: ='Validation Input'!B2 -> 0 | O3: Date Sampled
A4: Mix Type | B4: ='JMF Input'!E5 -> Base Course | K4: Mix Type | L4: ='JMF Input'!E5 -> Base Course
A5: Contractor Mix Number | B5: ='JMF Input'!$B$7 -> 0 | E5: JMF Seq. No. | G5: ='JMF Input'!$F$3 -> 0 | K5: Contractor Mix Number | L5: ='JMF Input'!$B$7 -> 0 | O5: JMF Seq. No. | Q5: ='JMF Input'!$F$3 -> 0
A6: Plant / Plant Code | B6: ='JMF Input'!$B$6 -> 0 | D6: ='JMF Input'!$I$3 -> 0 | F6: Max. Sp. Grav. | G6: =JMF!D35 -> 0 | K6: Plant / Plant Code | L6: ='JMF Input'!$B$6 -> 0 | N6: ='JMF Input'!$I$3 -> 0 | P6: Max. Sp. Grav. | Q6: =JMF!H35 -> 
B9: 1 | C9: 2 | D9: 3 | E9: 4 | G9: Left | L9: 1 | M9: 2 | N9: 3 | O9: 4 | Q9: Left
A10: A Weight in air (dry) | F10: Bricks: | H10: 1 & 2 | K10: A Weight in air (dry) | P10: Bricks: | R10: 1 & 2
A11: B Weight in water | F11: Avg. Voids: | H11: =IF(H10="1 & 2", ROUND(AVERAGE(B16,C16),setup!M12), IF(H10="1 & 3", ROUND(AVERAGE(B16,D16),setup!M12),IF(H10="1 & 4", ROUND(AVERAGE(B16,E16),setup!M12),IF(H10="2 & 3", ROUND(AVERAGE(C16,D16),setup!M12),IF(H10="2 & 4", ROUND(AVERAGE(C16,E16),setup!M12),IF(H10="3 & 4", ROUND(AVERAGE(D16,E16),setup!M12),"")))))) ->  | K11: B Weight in water | P11: Avg. Voids: | R11: =IF(R10="1 & 2", ROUND(AVERAGE(L16,M16),setup!M12), IF(R10="1 & 3", ROUND(AVERAGE(L16,N16),setup!M12),IF(R10="1 & 4", ROUND(AVERAGE(L16,O16),setup!M12),IF(R10="2 & 3", ROUND(AVERAGE(M16,N16),setup!M12),IF(R10="2 & 4", ROUND(AVERAGE(M16,O16),setup!M12),IF(R10="3 & 4", ROUND(AVERAGE(N16,O16),setup!M12),"")))))) -> 
A12: C Weight in air (SSD) | K12: C Weight in air (SSD)
A13: v Volume (C-B) | B13: =IF(B10>0,B12-B11,"") ->  | K13: v Volume (C-B) | L13: =IF(L10>0,L12-L11,"") -> 
A14: D Bulk Sp. Gr. (A/v) | B14: =IF(B10>0,ROUND(B10/B13,setup!M9),"") ->  | C14: =IF(C10>0,ROUND(C10/C13,setup!M9),"") ->  | D14: =IF(D10>0,ROUND(D10/D13,setup!M9),"") ->  | E14: =IF(E10>0,ROUND(E10/E13,setup!M9),"") ->  | G14: Right | K14: D Bulk Sp. Gr. (A/v) | L14: =IF(L10>0,ROUND(L10/L13,setup!M9),"") ->  | M14: =IF(M10>0,ROUND(M10/M13,setup!M9),"") ->  | N14: =IF(N10>0,ROUND(N10/N13,setup!M9),"") ->  | O14: =IF(O10>0,ROUND(O10/O13,setup!M9),"") ->  | Q14: Right
A15: F % Max. Theo. Gr. (D/E x100) | B15: =IF(B10>0,ROUND((B14/$G$6)*100,setup!M10),"") ->  | C15: =IF(C10>0,ROUND((C14/$G$6)*100,setup!M10),"") ->  | D15: =IF(D10>0,ROUND((D14/$G$6)*100,setup!M10),"") ->  | E15: =IF(E10>0,ROUND((E14/$G$6)*100,setup!M10),"") ->  | F15: Bricks: | H15: =IF(H10="1 & 2", "3 & 4", IF(H10="1 & 3", "2 & 4",IF(H10="1 & 4", "2 & 3",IF(H10="2 & 3", "1 & 4",IF(H10="2 & 4", "1 & 3",IF(H10="3 & 4", "1 & 2","")))))) -> 3 & 4 | K15: F % Max. Theo. Gr. (D/E x100) | L15: =IF(L10>0,ROUND((L14/$Q$6)*100,setup!M10),"") ->  | M15: =IF(M10>0,ROUND((M14/$Q$6)*100,setup!M10),"") ->  | N15: =IF(N10>0,ROUND((N14/$Q$6)*100,setup!M10),"") ->  | O15: =IF(O10>0,ROUND((O14/$Q$6)*100,setup!M10),"") ->  | P15: Bricks: | R15: =IF(R10="1 & 2", "3 & 4", IF(R10="1 & 3", "2 & 4",IF(R10="1 & 4", "2 & 3",IF(R10="2 & 3", "1 & 4",IF(R10="2 & 4", "1 & 3",IF(R10="3 & 4", "1 & 2","")))))) -> 3 & 4
A16: H % Air Voids (100-F) | B16: =IF(B10>0,ROUND(100-B15,setup!M12),"") ->  | C16: =IF(C10>0,ROUND(100-C15,setup!M12),"") ->  | D16: =IF(D10>0,ROUND(100-D15,setup!M12),"") ->  | E16: =IF(E10>0,ROUND(100-E15,setup!M12),"") ->  | F16: Avg. Voids: | H16: =IF(H15="1 & 2", ROUND(AVERAGE(B16,C16),setup!M12), IF(H15="1 & 3", ROUND(AVERAGE(B16,D16),setup!M12),IF(H15="1 & 4", ROUND(AVERAGE(B16,E16),setup!M12),IF(H15="2 & 3", ROUND(AVERAGE(C16,D16),setup!M12),IF(H15="2 & 4", ROUND(AVERAGE(C16,E16),setup!M12),IF(H15="3 & 4", ROUND(AVERAGE(D16,E16),setup!M12),"")))))) ->  | K16: H % Air Voids (100-F) | L16: =IF(L10>0,ROUND(100-L15,setup!M12),"") ->  | M16: =IF(M10>0,ROUND(100-M15,setup!M12),"") ->  | N16: =IF(N10>0,ROUND(100-N15,setup!M12),"") ->  | O16: =IF(O10>0,ROUND(100-O15,setup!M12),"") ->  | P16: Avg. Voids: | R16: =IF(R15="1 & 2", ROUND(AVERAGE(L16,M16),setup!M12), IF(R15="1 & 3", ROUND(AVERAGE(L16,N16),setup!M12),IF(R15="1 & 4", ROUND(AVERAGE(L16,O16),setup!M12),IF(R15="2 & 3", ROUND(AVERAGE(M16,N16),setup!M12),IF(R15="2 & 4", ROUND(AVERAGE(M16,O16),setup!M12),IF(R15="3 & 4", ROUND(AVERAGE(N16,O16),setup!M12),"")))))) -> 
A18: Temp(°C): | B18: 50 | D18: Pass | E18: Left | G18: Pass | H18: Right | K18: Temp(°C): | N18: Pass | O18: Left | Q18: Pass | R18: Right
A19: Avg Rut (mm): | B19: =IF(B20=7500, ROUND(AVERAGE(E20,H20),setup!M21), IF(B20 = 10000, ROUND(AVERAGE(E21,H21),setup!M21),IF(B20 = 20000, ROUND(AVERAGE(E23,H23),setup!M21),""))) ->  | D19: 5000 | G19: 5000 | K19: Avg Rut (mm): | L19: =IF(L20=7500, ROUND(AVERAGE(O20,R20),setup!M21), IF(L20 = 10000, ROUND(AVERAGE(O21,R21),setup!M21),IF(L20 = 20000, ROUND(AVERAGE(O23,R23),setup!M21),""))) ->  | N19: 5000 | Q19: 5000
A20: At Pass: | B20: 20000 | D20: 7500 | G20: 7500 | K20: At Pass: | N20: 7500 | Q20: 7500
A21: Results(Pass/Fail): | D21: 10000 | G21: 10000 | K21: Results(Pass/Fail): | N21: 10000 | Q21: 10000
D22: 15000 | G22: 15000 | N22: 15000 | Q22: 15000
A23: Date Tested: | D23: 20000 | G23: 20000 | K23: Date Tested: | N23: 20000 | Q23: 20000
A25: Remarks: | K25: Remarks:
A27: Tested by: | K27: Tested by:
A29: Checked by: | K29: Checked by:
A32: =setup!S2 -> LaPave 502 v18.05.02 | H32: =TODAY() -> 2023-03-31 | K32: =setup!S2 -> LaPave 502 v18.05.02 | R32: =TODAY() -> 2023-03-31
A36: TENSILE STRENGTH RATIO (TSR) -- AASHTO T 283/ DOTD TR 322 | K36: TENSILE STRENGTH RATIO (TSR) -- AASHTO T 283/ DOTD TR 322
B37: Design Test | L37: Validation Test
E38: Date Sampled | O38: Date Sampled
A39: Mix Type | B39: ='JMF Input'!E5 -> Base Course | K39: Mix Type | L39: ='JMF Input'!E5 -> Base Course
A40: Contractor Mix Number | B40: ='JMF Input'!$B$7 -> 0 | E40: JMF Seq. No. | G40: ='JMF Input'!$F$3 -> 0 | K40: Contractor Mix Number | L40: ='JMF Input'!$B$7 -> 0 | O40: JMF Seq. No. | Q40: ='JMF Input'!$F$3 -> 0
A41: Plant / Plant Code | B41: ='JMF Input'!$B$6 -> 0 | D41: ='JMF Input'!$I$3 -> 0 | F41: Max. Sp. Grav. | G41: =G6 -> 0 | K41: Plant / Plant Code | L41: ='JMF Input'!$B$6 -> 0 | N41: ='JMF Input'!$I$3 -> 0 | P41: Max. Sp. Grav. | Q41: =Q6 -> 
B43: 1 | C43: 2 | D43: 3 | E43: 4 | F43: 5 | G43: 6 | H43: 7 | I43: 8 | L43: 1 | M43: 2 | N43: 3 | O43: 4 | P43: 5 | Q43: 6 | R43: 7 | S43: 8
B44: Control Set | F44: Moisture Conditioned Set | L44: Control Set | P44: Moisture Conditioned Set
A45: A Weight in air (dry) | K45: A Weight in air (dry)
A46: B Weight in water | K46: B Weight in water
A47: C Weight in air (SSD) | K47: C Weight in air (SSD)
A48: v Volume (C-B) | B48: =IF(B45>0,B47-B46,"") ->  | K48: v Volume (C-B) | L48: =IF(L45>0,L47-L46,"") -> 
A49: D Bulk Sp. Gr. (A/v) | B49: =IF(B45>0,ROUND(B45/B48,setup!M9),"") ->  | C49: =IF(C45>0,ROUND(C45/C48,setup!M9),"") ->  | D49: =IF(D45>0,ROUND(D45/D48,setup!M9),"") ->  | E49: =IF(E45>0,ROUND(E45/E48,setup!M9),"") ->  | F49: =IF(F45>0,ROUND(F45/F48,setup!M9),"") ->  | G49: =IF(G45>0,ROUND(G45/G48,setup!M9),"") ->  | H49: =IF(H45>0,ROUND(H45/H48,setup!M9),"") ->  | I49: =IF(I45>0,ROUND(I45/I48,setup!M9),"") ->  | K49: D Bulk Sp. Gr. (A/v) | L49: =IF(L45>0,ROUND(L45/L48,setup!M9),"") ->  | M49: =IF(M45>0,ROUND(M45/M48,setup!M9),"") ->  | N49: =IF(N45>0,ROUND(N45/N48,setup!M9),"") ->  | O49: =IF(O45>0,ROUND(O45/O48,setup!M9),"") ->  | P49: =IF(P45>0,ROUND(P45/P48,setup!M9),"") ->  | Q49: =IF(Q45>0,ROUND(Q45/Q48,setup!M9),"") ->  | R49: =IF(R45>0,ROUND(R45/R48,setup!M9),"") ->  | S49: =IF(S45>0,ROUND(S45/S48,setup!M9),"") -> 
A50: F % Max. Theo. Gr. (D/E x100) | B50: =IF(B45>0,ROUND((B49/$G$41)*100,setup!M10),"") ->  | C50: =IF(C45>0,ROUND((C49/$G$41)*100,setup!M10),"") ->  | D50: =IF(D45>0,ROUND((D49/$G$41)*100,setup!M10),"") ->  | E50: =IF(E45>0,ROUND((E49/$G$41)*100,setup!M10),"") ->  | F50: =IF(F45>0,ROUND((F49/$G$41)*100,setup!M10),"") ->  | G50: =IF(G45>0,ROUND((G49/$G$41)*100,setup!M10),"") ->  | H50: =IF(H45>0,ROUND((H49/$G$41)*100,setup!M10),"") ->  | I50: =IF(I45>0,ROUND((I49/$G$41)*100,setup!M10),"") ->  | K50: F % Max. Theo. Gr. (D/E x100) | L50: =IF(L45>0,ROUND((L49/$Q$41)*100,setup!$M$10),"") ->  | M50: =IF(M45>0,ROUND((M49/$Q$41)*100,setup!$M$10),"") ->  | N50: =IF(N45>0,ROUND((N49/$Q$41)*100,setup!$M$10),"") ->  | O50: =IF(O45>0,ROUND((O49/$Q$41)*100,setup!$M$10),"") ->  | P50: =IF(P45>0,ROUND((P49/$Q$41)*100,setup!$M$10),"") ->  | Q50: =IF(Q45>0,ROUND((Q49/$Q$41)*100,setup!$M$10),"") ->  | R50: =IF(R45>0,ROUND((R49/$Q$41)*100,setup!$M$10),"") ->  | S50: =IF(S45>0,ROUND((S49/$Q$41)*100,setup!$M$10),"") -> 
A51: H % Air Voids (100-F) | B51: =IF(B45>0,ROUND(100-B50,setup!M12),"") ->  | C51: =IF(C45>0,ROUND(100-C50,setup!M12),"") ->  | D51: =IF(D45>0,ROUND(100-D50,setup!M12),"") ->  | E51: =IF(E45>0,ROUND(100-E50,setup!M12),"") ->  | F51: =IF(F45>0,ROUND(100-F50,setup!M12),"") ->  | G51: =IF(G45>0,ROUND(100-G50,setup!M12),"") ->  | H51: =IF(H45>0,ROUND(100-H50,setup!M12),"") ->  | I51: =IF(I45>0,ROUND(100-I50,setup!M12),"") ->  | K51: H % Air Voids (100-F) | L51: =IF(L45>0,ROUND(100-L50,setup!M12),"") ->  | M51: =IF(M45>0,ROUND(100-M50,setup!$M$12),"") ->  | N51: =IF(N45>0,ROUND(100-N50,setup!$M$12),"") ->  | O51: =IF(O45>0,ROUND(100-O50,setup!$M$12),"") ->  | P51: =IF(P45>0,ROUND(100-P50,setup!$M$12),"") ->  | Q51: =IF(Q45>0,ROUND(100-Q50,setup!$M$12),"") ->  | R51: =IF(R45>0,ROUND(100-R50,setup!$M$12),"") ->  | S51: =IF(S45>0,ROUND(100-S50,setup!$M$12),"") -> 
A53: Avg. Voids (Control) | B53: =IF(B45>0,ROUND(AVERAGE(B51:E51),setup!M12),"") ->  | C53: Avg. Voids (Cond) | E53: =IF(F45>0,ROUND(AVERAGE(F51:I51),setup!M12),"") ->  | H53: Weight | K53: Avg. Voids (Control) | L53: =IF(L45>0,ROUND(AVERAGE(L51:O51),setup!M12),"") ->  | M53: Avg. Voids (Cond) | O53: =IF(P45>0,ROUND(AVERAGE(P51:S51),setup!$M$12),"") ->  | R53: Weight
H54: # Blows | R54: # Blows
A55: AFTER VACUUM CONDITIONING | K55: AFTER VACUUM CONDITIONING
B56: 1 | C56: 2 | D56: 3 | E56: 4 | F56: 5 | G56: 6 | H56: 7 | I56: 8 | L56: 1 | M56: 2 | N56: 3 | O56: 4 | P56: 5 | Q56: 6 | R56: 7 | S56: 8
A57: G Weight in air (SSD) | K57: G Weight in air (SSD)
A58: I Weight in Water | K58: I Weight in Water
A59: V Volume (G-I) | B59: =IF(B57>0,B57-B58,"") ->  | F59: =IF(F57>0,F57-F58,"") ->  | G59: =IF(G57>0,G57-G58,"") ->  | I59: =IF(I57>0,I57-I58,"") ->  | K59: V Volume (G-I) | L59: =IF(L57>0,L57-L58,"") -> 
A60: W Vol. Abs. Water,cc (G-A) | B60: =IF(B57>0,ROUND(B57-B45,setup!$M$16),"") ->  | C60: =IF(C57>0,ROUND(C57-C45,setup!$M$16),"") ->  | D60: =IF(D57>0,ROUND(D57-D45,setup!$M$16),"") ->  | E60: =IF(E57>0,ROUND(E57-E45,setup!$M$16),"") ->  | F60: =IF(F57>0,ROUND(F57-F45,setup!$M$16),"") ->  | G60: =IF(G57>0,ROUND(G57-G45,setup!M16),"") ->  | H60: =IF(H57>0,ROUND(H57-H45,setup!M16),"") ->  | I60: =IF(I57>0,ROUND(I57-I45,setup!M16),"") ->  | K60: W Vol. Abs. Water,cc (G-A) | L60: =IF(L57>0,ROUND(L57-L45,setup!$M$16),"") ->  | M60: =IF(M57>0,ROUND(M57-M45,setup!$M$16),"") ->  | N60: =IF(N57>0,ROUND(N57-N45,setup!$M$16),"") ->  | O60: =IF(O57>0,ROUND(O57-O45,setup!$M$16),"") ->  | P60: =IF(P57>0,ROUND(P57-P45,setup!$M$16),"") ->  | Q60: =IF(Q57>0,ROUND(Q57-Q45,setup!$M$16),"") ->  | R60: =IF(R57>0,ROUND(R57-R45,setup!$M$16),"") ->  | S60: =IF(S57>0,ROUND(S57-S45,setup!$M$16),"") -> 
A61: Vv Vol. Air Voids (Hv/100) | B61: =IF(B57>0,ROUND((B51*B48)/100,setup!$M$12),"") ->  | C61: =IF(C57>0,ROUND((C51*C48)/100,setup!$M$12),"") ->  | D61: =IF(D57>0,ROUND((D51*D48)/100,setup!$M$12),"") ->  | E61: =IF(E57>0,ROUND((E51*E48)/100,setup!$M$12),"") ->  | F61: =IF(F57>0,ROUND((F51*F48)/100,setup!$M$12),"") ->  | G61: =IF(G57>0,ROUND((G51*G48)/100,setup!M12),"") ->  | H61: =IF(H57>0,ROUND((H51*H48)/100,setup!M12),"") ->  | I61: =IF(I57>0,ROUND((I51*I48)/100,setup!M12),"") ->  | K61: Vv Vol. Air Voids (Hv/100) | L61: =IF(L57>0,ROUND((L51*L48)/100,setup!$M$12),"") ->  | M61: =IF(M57>0,ROUND((M51*M48)/100,setup!$M$12),"") ->  | N61: =IF(N57>0,ROUND((N51*N48)/100,setup!$M$12),"") ->  | O61: =IF(O57>0,ROUND((O51*O48)/100,setup!$M$12),"") ->  | P61: =IF(P57>0,ROUND((P51*P48)/100,setup!$M$12),"") ->  | Q61: =IF(Q57>0,ROUND((Q51*Q48)/100,setup!$M$12),"") ->  | R61: =IF(R57>0,ROUND((R51*R48)/100,setup!$M$12),"") ->  | S61: =IF(S57>0,ROUND((S51*S48)/100,setup!$M$12),"") -> 
A62: N % Sat (100W/Vv) | B62: =IF(B57>0,ROUND((B60/B61)*100,setup!$M$17),"") ->  | C62: =IF(C57>0,ROUND((C60/C61)*100,setup!$M$17),"") ->  | D62: =IF(D57>0,ROUND((D60/D61)*100,setup!$M$17),"") ->  | E62: =IF(E57>0,ROUND((E60/E61)*100,setup!$M$17),"") ->  | F62: =IF(F57>0,ROUND((F60/F61)*100,setup!$M$17),"") ->  | G62: =IF(G57>0,ROUND((G60/G61)*100,setup!M17),"") ->  | H62: =IF(H57>0,ROUND((H60/H61)*100,setup!M17),"") ->  | I62: =IF(I57>0,ROUND((I60/I61)*100,setup!M17),"") ->  | K62: N % Sat (100W/Vv) | L62: =IF(L57>0,ROUND((L60/L61)*100,setup!$M$17),"") ->  | M62: =IF(M57>0,ROUND((M60/M61)*100,setup!$M$17),"") ->  | N62: =IF(N57>0,ROUND((N60/N61)*100,setup!$M$17),"") ->  | O62: =IF(O57>0,ROUND((O60/O61)*100,setup!$M$17),"") ->  | P62: =IF(P57>0,ROUND((P60/P61)*100,setup!$M$17),"") ->  | Q62: =IF(Q57>0,ROUND((Q60/Q61)*100,setup!$M$17),"") ->  | R62: =IF(R57>0,ROUND((R60/R61)*100,setup!$M$17),"") ->  | S62: =IF(S57>0,ROUND((S60/S61)*100,setup!$M$17),"") -> 
A64: INDIRECT TENSILE TESTING | K64: INDIRECT TENSILE TESTING
B65: 1 | C65: 2 | D65: 3 | E65: 4 | F65: 5 | G65: 6 | H65: 7 | I65: 8 | L65: 1 | M65: 2 | N65: 3 | O65: 4 | P65: 5 | Q65: 6 | R65: 7 | S65: 8
A66: D1 | K66: D1
A67: Specimen D2 | K67: Speciman D2
A68: Diameter D | B68: =IF(B66>0,ROUND(AVERAGE(B66:B67),setup!M18),"") ->  | C68: =IF(C66>0,ROUND(AVERAGE(C66:C67),setup!M18),"") ->  | D68: =IF(D66>0,ROUND(AVERAGE(D66:D67),setup!M18),"") ->  | E68: =IF(E66>0,ROUND(AVERAGE(E66:E67),setup!M18),"") ->  | F68: =IF(F66>0,ROUND(AVERAGE(F66:F67),setup!$M$18),"") ->  | G68: =IF(G66>0,ROUND(AVERAGE(G66:G67),setup!$M$18),"") ->  | H68: =IF(H66>0,ROUND(AVERAGE(H66:H67),setup!$M$18),"") ->  | I68: =IF(I66>0,ROUND(AVERAGE(I66:I67),setup!M18),"") ->  | K68: Diameter D | L68: =IF(L66>0,ROUND(AVERAGE(L66:L67),setup!M18),"") ->  | M68: =IF(M66>0,ROUND(AVERAGE(M66:M67),setup!$M$18),"") ->  | N68: =IF(N66>0,ROUND(AVERAGE(N66:N67),setup!M18),"") ->  | O68: =IF(O66>0,ROUND(AVERAGE(O66:O67),setup!$M$18),"") ->  | P68: =IF(P66>0,ROUND(AVERAGE(P66:P67),setup!$M$18),"") ->  | Q68: =IF(Q66>0,ROUND(AVERAGE(Q66:Q67),setup!$M$18),"") ->  | R68: =IF(R66>0,ROUND(AVERAGE(R66:R67),setup!$M$18),"") ->  | S68: =IF(S66>0,ROUND(AVERAGE(S66:S67),setup!$M$18),"") -> 
A69: T1 | K69: T1
A70: Specimen T2 | K70: Speciman T2
A71: Thickness T3 | K71: Thickness T3
A72: T | B72: =IF(B69>0,ROUND(AVERAGE(B69:B71),setup!M18),"") ->  | C72: =IF(C69>0,ROUND(AVERAGE(C69:C71),setup!M18),"") ->  | D72: =IF(D69>0,ROUND(AVERAGE(D69:D71),setup!M18),"") ->  | E72: =IF(E69>0,ROUND(AVERAGE(E69:E71),setup!M18),"") ->  | F72: =IF(F69>0,ROUND(AVERAGE(F69:F71),setup!M18),"") ->  | G72: =IF(G69>0,ROUND(AVERAGE(G69:G71),setup!M18),"") ->  | H72: =IF(H69>0,ROUND(AVERAGE(H69:H71),setup!M18),"") ->  | I72: =IF(I69>0,ROUND(AVERAGE(I69:I71),setup!M18),"") ->  | K72: T | L72: =IF(L69>0,ROUND(AVERAGE(L69:L71),setup!$M$18),"") ->  | M72: =IF(M69>0,ROUND(AVERAGE(M69:M71),setup!$M$18),"") ->  | N72: =IF(N69>0,ROUND(AVERAGE(N69:N71),setup!$M$18),"") ->  | O72: =IF(O69>0,ROUND(AVERAGE(O69:O71),setup!$M$18),"") ->  | P72: =IF(P69>0,ROUND(AVERAGE(P69:P71),setup!$M$18),"") ->  | Q72: =IF(Q69>0,ROUND(AVERAGE(Q69:Q71),setup!$M$18),"") ->  | R72: =IF(R69>0,ROUND(AVERAGE(R69:R71),setup!$M$18),"") ->  | S72: =IF(S69>0,ROUND(AVERAGE(S69:S71),setup!$M$18),"") -> 
A73: Dial Reading | K73: Dial Reading
A74: P Maximum Load | K74: P Maximum Load
A75: S Strength (2P/pi*TD) | B75: =IF(B74>0,ROUND((2*B74)/(PI()*B72*B68),setup!M19),"") ->  | C75: =IF(C74>0,ROUND((2*C74)/(PI()*C72*C68),setup!M19),"") ->  | D75: =IF(D74>0,ROUND((2*D74)/(PI()*D72*D68),setup!M19),"") ->  | E75: =IF(E74>0,ROUND((2*E74)/(PI()*E72*E68),setup!M19),"") ->  | F75: =IF(F74>0,ROUND((2*F74)/(PI()*F72*F68),setup!M19),"") ->  | G75: =IF(G74>0,ROUND((2*G74)/(PI()*G72*G68),setup!M19),"") ->  | H75: =IF(H74>0,ROUND((2*H74)/(PI()*H72*H68),setup!M19),"") ->  | I75: =IF(I74>0,ROUND((2*I74)/(PI()*I72*I68),setup!M19),"") ->  | K75: S Strength (2P/pi*TD) | L75: =IF(L74>0,ROUND((2*L74)/(PI()*L72*L68),setup!M19),"") ->  | M75: =IF(M74>0,ROUND((2*M74)/(PI()*M72*M68),setup!$M$19),"") ->  | N75: =IF(N74>0,ROUND((2*N74)/(PI()*N72*N68),setup!$M$19),"") ->  | O75: =IF(O74>0,ROUND((2*O74)/(PI()*O72*O68),setup!$M$19),"") ->  | P75: =IF(P74>0,ROUND((2*P74)/(PI()*P72*P68),setup!$M$19),"") ->  | Q75: =IF(Q74>0,ROUND((2*Q74)/(PI()*Q72*Q68),setup!$M$19),"") ->  | R75: =IF(R74>0,ROUND((2*R74)/(PI()*R72*R68),setup!$M$19),"") ->  | S75: =IF(S74>0,ROUND((2*S74)/(PI()*S72*S68),setup!$M$19),"") -> 
A77: Avg. Strength (Ctrl.) | B77: =IF(B75<>"",ROUND(AVERAGE(B75:E75),setup!$M$19),"") ->  | D77: Date Tested | K77: Avg. Strength (Ctrl.) | L77: =IF(L75<>"",ROUND(AVERAGE(L75:O75),setup!$M$19),"") ->  | N77: Date Tested
A78: Avg. Strength (Cond.) | B78: =IF(F75<>"",ROUND(AVERAGE(F75:I75),setup!$M$19),"") ->  | D78: Samp. Set I.D. | K78: Avg. Strength (Cond.) | L78: =IF(P75<>"",ROUND(AVERAGE(P75:S75),setup!$M$19),"") ->  | N78: Samp. Set I.D.
A79: TSR | B79: =IF(B77<>"",ROUND((B78/B77)*100,setup!$M$20),"") ->  | D79: Warm Mix Asphalt(Y/N) | F79: ='JMF Input'!K23 -> No | K79: TSR | L79: =IF(L77<>"",ROUND((L78/L77)*100,setup!$M$20),"") ->  | N79: Warm Mix Asphalt(Y/N) | P79: ='JMF Input'!K23 -> No
A82: Tested by: | K82: Tested by:
A84: Checked by: | K84: Checked by:
A87: =setup!S2 -> LaPave 502 v18.05.02 | H87: =TODAY() -> 2023-03-31 | K87: =setup!S2 -> LaPave 502 v18.05.02 | R87: =TODAY() -> 2023-03-31

Sheet JMF Input
E1: SUPERPAVE ASPHALTIC CONCRETE MIXTURES
A3: Project No. | C3: Mix Code | D3: 26-English | E3: JMF No | G3: =IF(SUM(AB3:AB14)=0, "NMS, Level, Mix Type not valid","") ->  | J3: Traffic (ADT) | M3: ESAL | Q3: mix code | R3: design level | T3: mix type | W3: mix use | Y3: 0.5 in. | Z3: A | AA3: Incidental Paving | AB3: =IF(AND($I$5=Y3, LEFT($F$4,1)=Z3, $E$5=AA3), 1, 0) -> 0
A4: Project Name | E4: Design Level | F4: 1 | G4: Plant Type | H4: 3-dryer drum | J4: Prod. Rate | M4: Adj.Fac | N4: =IF(JMF!H35<>"", IF(JMF!H35<=2.339, 2.4/JMF!D35, IF(JMF!H35<=2.36, 1.02, IF(JMF!H35<=2.399, 1.01, IF(JMF!H35<=2.54, 1, IF(JMF!H35<=2.57, 0.99, IF(JMF!H35<=2.59, 0.98, 2.54/JMF!H35)))))), IF(JMF!D35<>"", IF(JMF!D35<=2.339, 2.4/JMF!D35, IF(JMF!D35<=2.36, 1.02, IF(JMF!D35<=2.399, 1.01, IF(JMF!D35<=2.54, 1, IF(JMF!D35<=2.57, 0.99, IF(JMF!D35<=2.59, 0.98, 2.54/JMF!D35)))))), "")) ->  | Q4: 26-English | R4: 1 | T4: Incidental Paving | W4: ML - Wearing | Y4: 0.5 in. | Z4: 1 | AA4: Wearing Course | AB4: =IF(AND($I$5=Y4, LEFT($F$4,1)=Z4, $E$5=AA4), 1, 0) -> 0
A5: Project Eng. | D5: Mix Type | E5: Base Course | H5: Nom Agg Size | I5: 1 in. | J5: Mix Temp | M5: Date | Q5: 64-Metric | R5: 1F | T5: Wearing Course | W5: ML - Binder | Y5: 0.5 in. | Z5: 2 | AA5: Wearing Course | AB5: 0
A6: Contractor | D6: Use | E6: Min - Patching | H6: Specs | I6: 2016 | J6: AC Corr Factor | K6: ='Comp. Grad. and FAA Input'!$S$94 -> 4.137605834 | M6: =IF(OR('Moisture Susceptibility Design'!B19<>"",'Moisture Susceptibility Design'!L19<>""),"Design LWT Rut",IF(OR('Moisture Susceptibility Design'!B79<>"",'Moisture Susceptibility Design'!L79<>""),"Design TSR%","LWT/TSR")) ->  | N6: =IF(OR('Moisture Susceptibility Design'!B19<>"",'Moisture Susceptibility Design'!L19<>""),TEXT('Moisture Susceptibility Design'!B19,"0.00"),IF(OR('Moisture Susceptibility Design'!B79<>"",'Moisture Susceptibility Design'!L79<>""),TEXT('Moisture Susceptibility Design'!B79,"0"),"")) ->  | R6: 2 | T6: Binder Course | W6: ML - Base | Y6: 0.75 in. | Z6: 2 | AA6: Wearing Course | AB6: 0
A7: Contr. Mix # | C7: SMM P/S | D7: ='Material Setup'!B5 -> 0 | I7: SMM ID | M7: =IF(OR('Moisture Susceptibility Design'!B19<>"",'Moisture Susceptibility Design'!L19<>""),"No. Passes",IF(OR('Moisture Susceptibility Design'!B79<>"",'Moisture Susceptibility Design'!L79<>""),"Control (psi)","")) ->  | N7: =IF(OR('Moisture Susceptibility Design'!B19<>"",'Moisture Susceptibility Design'!L19<>""),'Moisture Susceptibility Design'!B20,IF(OR('Moisture Susceptibility Design'!B79<>"",'Moisture Susceptibility Design'!L79<>""),'Moisture Susceptibility Design'!B77,"")) ->  | R7: 2F | T7: Base Course | V7: 0 | W7: ML - Ramp >300ft | Y7: 0.75 in. | Z7: 1 | AA7: Binder Course | AB7: 0
R8: A | T8: ATB | W8: ML - Interstate acc/dec | Y8: 0.75 in. | Z8: 2 | AA8: Binder Course | AB8: 0
A9: P/S | B9: Aggregate | E9: % | F9: Bulk | H9: FAA | I9: Sand Eq. | J9: Flat & Elong | K9: CAA | L9: Friction | M9: %Ret | N9: %Ret | O9: Aggr. | R9: SMA | T9: SMA | W9: ML - Center turn lane | Y9: 1 in. | Z9: 1 | AA9: Binder Course | AB9: 0
A10: Code | B10: Type | F10: Gravity | G10: Absorption | H10: Method A | I10: - 4.75 mm | J10: %5:1 | L10: Rating | M10: No.8 | N10: No.4 | O10: Class | Q10: Sorts Agg for JMF | T10: AC | W10: ML - Airport center lane | Y10: 1 in. | Z10: 2 | AA10: Binder Course | AB10: 0
M11: =IF(O11>0, 100-'Comp. Grad. and FAA Input'!K15, "") ->  | N11: =IF(O11>0, 100-'Comp. Grad. and FAA Input'!K14, "") ->  | Q11: =IF(E11<0,0,IF(O11="Coarse", 100+ROW(), IF(O11="Rap", 1000+ROW(), IF(O11="Fine", 10000+ROW(), IF(O11="Other",100000+ROW(), 1000000+ROW()))))) -> 1000011 | R11: =SMALL($Q$11:$Q$20,1) -> 1000011 | T11: PG58-28 | W11: Min - Shoulder > 7ft | Y11: 1 in. | Z11: 1 | AA11: Base Course | AB11: 1
M12: =IF(O12>0, 100-'Comp. Grad. and FAA Input'!J15, "") ->  | N12: =IF(O12>0, 100-'Comp. Grad. and FAA Input'!J14, "") ->  | Q12: =IF(E12<0,0,IF(O12="Coarse", 100+ROW(), IF(O12="Rap", 1000+ROW(), IF(O12="Fine", 10000+ROW(), IF(O12="Other",100000+ROW(), 1000000+ROW()))))) -> 1000012 | R12: =SMALL($Q$11:$Q$20,2) -> 1000012 | T12: PG64-22 | W12: Min - Shoulder | Y12: 1 in. | Z12: 1 | AA12: ATB | AB12: 0
M13: =IF(O13>0, 100-'Comp. Grad. and FAA Input'!I15, "") ->  | N13: =IF(O13>0, 100-'Comp. Grad. and FAA Input'!I14, "") ->  | Q13: =IF(E13<0,0,IF(O13="Coarse", 100+ROW(), IF(O13="Rap", 1000+ROW(), IF(O13="Fine", 10000+ROW(), IF(O13="Other",100000+ROW(), 1000000+ROW()))))) -> 1000013 | R13: =SMALL($Q$11:$Q$20,3) -> 1000013 | T13: PG70-22M | W13: Min - Patching | Y13: 1.5 in. | Z13: 1 | AA13: Base Course | AB13: 0
M14: =IF(O14>0, 100-'Comp. Grad. and FAA Input'!H15, "") ->  | N14: =IF(O14>0, 100-'Comp. Grad. and FAA Input'!H14, "") ->  | Q14: 1000014 | R14: =SMALL($Q$11:$Q$20,4) -> 1000014 | T14: PG76-22M | W14: Min - Leveling | Z14: S | AA14: Wearing Course | AB14: =IF(AND(LEFT($F$4,1)=Z14, $E$5=AA14), 1, 0) -> 0
M15: =IF(O15>0, 100-'Comp. Grad. and FAA Input'!G15, "") ->  | N15: =IF(O15>0, 100-'Comp. Grad. and FAA Input'!G14, "") ->  | Q15: 1000015 | R15: =SMALL($Q$11:$Q$20,5) -> 1000015 | T15: PG82-22M | W15: Min - Widening
M16: =IF(O16>0, 100-'Comp. Grad. and FAA Input'!F15, "") ->  | N16: =IF(O16>0, 100-'Comp. Grad. and FAA Input'!F14, "") ->  | Q16: 1000016 | R16: =SMALL($Q$11:$Q$20,6) -> 1000016 | W16: Min - Ramp < 300ft
M17: =IF(O17>0, 100-'Comp. Grad. and FAA Input'!E15, "") ->  | N17: =IF(O17>0, 100-'Comp. Grad. and FAA Input'!E14, "") ->  | Q17: 1000017 | R17: =SMALL($Q$11:$Q$20,7) -> 1000017 | T17: plant type | V17: nom size | W17: Min - Crossover
M18: =IF(O18>0, 100-'Comp. Grad. and FAA Input'!D15, "") ->  | N18: =IF(O18>0, 100-'Comp. Grad. and FAA Input'!D14, "") ->  | Q18: 1000018 | R18: =SMALL($Q$11:$Q$20,8) -> 1000018 | T18: 1-batch screenless | V18: 0.5 in. | W18: Min - Turnout
M19: =IF(O19>0, 100-'Comp. Grad. and FAA Input'!H15, "") ->  | N19: =IF(O19>0, 100-'Comp. Grad. and FAA Input'!C14, "") ->  | Q19: 1000019 | R19: =SMALL($Q$11:$Q$20,9) -> 1000019 | T19: 2-batch hot bin | V19: 0.75 in. | W19: Min - Miscellaneous
M20: =IF(O20>0, 100-'Comp. Grad. and FAA Input'!B15, "") ->  | N20: =IF(O20>0, 100-'Comp. Grad. and FAA Input'!B14, "") ->  | Q20: 1000020 | R20: =SMALL($Q$11:$Q$20,10) -> 1000020 | T20: 3-dryer drum | V20: 1 in.
E21: =SUM(E11:E20) -> 0 | H21: =IF('JMF CHECK'!J21<Y27,"FAA check","") ->  | I21: =IF('JMF CHECK'!K21<Y26,"SE check","") ->  | J21: =IF('JMF CHECK'!L21>'JMF Input'!Y24,"F&E check","") ->  | K21: =IF('JMF CHECK'!M21<Y25,"CAA check","") ->  | L21: =IF(E6="ML - Wearing",IF(K3<2500, IF(OR(U33+V33>50,W33=0), "","I/II >= 50"), IF(W33>0,"NO IV in WEAR",IF(K3>7000,IF(OR(U33>=50,U33+V33>=75),"","I>50 or I/II>75"),""))),"") ->  | T21: 4-continuous | V21: 1.5 in.
B22: Source Code | C22: Material | G22: % | H22: Sp. Gravity | J22: Warm Mix Asphalt | N22: Gyr. Rev | Q22: FAA | R22: SE | S22: F&E | T22: CAA | U22: FR I | V22: FR II | W22: FR IV | Z22: Nat Sand
A23: Asphalt | G23: =J37-G26 -> 0 | H23: 1.03 | I23: =IF(G23<setup!B42,"MIN Binder","") ->  | J23: Warm Mix | K23: No | M23: Nini | N23: =IF($F$4="OGFC",setup!AG10, IF($F$4="T.L.",setup!AF10, IF($F$4="SMA",setup!AE10,IF($I$5=$V$18,IF($E$5=$T$4,IF(LEFT($F$4,1)="A",setup!T10,""),IF($E$5=$T$5,IF(LEFT($F$4,1)="1",setup!U10,IF(LEFT($F$4,1)="2",setup!V10,"")))),IF($I$5=$V$19,IF($E$5=$T$5,IF(LEFT($F$4,1)="2",setup!W10,""),IF($E$5=$T$6,IF(LEFT($F$4,1)="1",setup!X10,IF(LEFT($F$4,1)="2",setup!Y10,"")),"")),IF($I$5=$V$20, IF($E$5=$T$6, IF(LEFT($F$4,1)="1",setup!Z10,IF(LEFT($F$4,1)="2", setup!AA10, "")), IF($E$5=$T$7, IF(LEFT($F$4,1)="1",setup!AB10,""), IF($E$5=$T$8, IF(LEFT($F$4,1)="1",setup!AC10,""),""))),IF($I$5=$V$21, IF($E$5=$T$7, IF(LEFT($F$4, 1) = "1", setup!AD10, ""), ""), ""))))))) -> 7 | P23: =IF(AND(O11="Coarse",N11>10),"C",IF(AND(O11="Fine",IFERROR((100-N11),0)>10),"F","")) ->  | Q23: =IF(P23="F", IF(H11>=$Y$27,0,1),0) -> 0 | R23: =IF(P23="F", IF(I11>=$Y$26,0,1),0) -> 0 | S23: =IF($Y$24="--",0,IF(P23="C", IF(J11<=$Y$24,0,1),0)) -> 0 | T23: =IF($Y$25="--",0,IF(P23="C", IF(K11>=$Y$25,0,1),0)) -> 0 | U23: =IF(L11="I",E11,0) -> 0 | V23: =IF(L11="II",E11,0) -> 0 | W23: =IF(L11="IV",E11,0) -> 0 | Z23: =IF(LEFT(B11,10)="1003M01825",E11,0) -> 0
A24: Alt. Asphalt | J24: Method | K24: None | M24: Ndes | N24: =IF($F$4="OGFC",setup!AG11, IF($F$4="T.L.",setup!AF11, IF($F$4="SMA",setup!AE11,IF($I$5=$V$18,IF($E$5=$T$4,IF(LEFT($F$4,1)="A",setup!T11,""),IF($E$5=$T$5,IF(LEFT($F$4,1)="1",setup!U11,IF(LEFT($F$4,1)="2",setup!V11,"")))),IF($I$5=$V$19,IF($E$5=$T$5,IF(LEFT($F$4,1)="2",setup!W11,""),IF($E$5=$T$6,IF(LEFT($F$4,1)="1",setup!X11,IF(LEFT($F$4,1)="2",setup!Y11,"")),"")),IF($I$5=$V$20, IF($E$5=$T$6, IF(LEFT($F$4,1)="1",setup!Z11,IF(LEFT($F$4,1)="2", setup!AA11, "")), IF($E$5=$T$7, IF(LEFT($F$4,1)="1",setup!AB11,""), IF($E$5=$T$8, IF(LEFT($F$4,1)="1",setup!AC11,""),""))),IF($I$5=$V$21, IF($E$5=$T$7, IF(LEFT($F$4, 1) = "1", setup!AD11, ""), ""), ""))))))) -> 55 | P24: =IF(AND(O12="Coarse",N12>10),"C",IF(AND(O12="Fine",IFERROR((100-N12),0)>10),"F","")) ->  | Q24: =IF(P24="F", IF(H12>=$Y$27,0,1),0) -> 0 | R24: =IF(P24="F", IF(I12>=$Y$26,0,1),0) -> 0 | S24: =IF($Y$24="--",0,IF(P24="C", IF(J12<=$Y$24,0,1),0)) -> 0 | T24: =IF($Y$25="--",0,IF(P24="C", IF(K12>=$Y$25,0,1),0)) -> 0 | U24: =IF(L12="I",E12,0) -> 0 | V24: =IF(L12="II",E12,0) -> 0 | W24: =IF(L12="IV",E12,0) -> 0 | X24: F&E | Y24: =setup!B38 -> 10 | Z24: =IF(LEFT(B12,10)="1003M01825",E12,0) -> 0
A25: Alt. Asphalt | J25: Rate | M25: Nmax | N25: =IF($F$4="OGFC",setup!AG12, IF($F$4="T.L.",setup!AF12, IF($F$4="SMA",setup!AE12,IF($I$5=$V$18,IF($E$5=$T$4,IF(LEFT($F$4,1)="A",setup!T12,""),IF($E$5=$T$5,IF(LEFT($F$4,1)="1",setup!U12,IF(LEFT($F$4,1)="2",setup!V12,"")))),IF($I$5=$V$19,IF($E$5=$T$5,IF(LEFT($F$4,1)="2",setup!W12,""),IF($E$5=$T$6,IF(LEFT($F$4,1)="1",setup!X12,IF(LEFT($F$4,1)="2",setup!Y12,"")),"")),IF($I$5=$V$20, IF($E$5=$T$6, IF(LEFT($F$4,1)="1",setup!Z12,IF(LEFT($F$4,1)="2", setup!AA12, "")), IF($E$5=$T$7, IF(LEFT($F$4,1)="1",setup!AB12,""), IF($E$5=$T$8, IF(LEFT($F$4,1)="1",setup!AC12,""),""))),IF($I$5=$V$21, IF($E$5=$T$7, IF(LEFT($F$4, 1) = "1", setup!AD12, ""), ""), ""))))))) -> 90 | Q25: 0 | R25: 0 | S25: 0 | T25: 0 | U25: 0 | V25: 0 | W25: 0 | X25: CAA | Y25: =setup!B37 -> 75 | Z25: 0
A26: Asphalt Content from RAP | G26: =SUM(M41:N41) -> 0 | H26: =1.03 -> 1.03 | J26: If Chemical - | Q26: 0 | R26: 0 | S26: 0 | T26: 0 | U26: 0 | V26: 0 | W26: 0 | X26: SE | Y26: =setup!B39 -> 40 | Z26: 0
A27: Anti-strip | J27: Brand Name: | Q27: =IF(P27="F", IF(H15>=$Y$27,0,1),0) -> 0 | R27: 0 | S27: 0 | T27: 0 | U27: 0 | V27: 0 | W27: 0 | X27: FAA | Y27: =setup!B40 -> 40 | Z27: 0
Q28: 0 | R28: 0 | S28: 0 | T28: 0 | U28: 0 | V28: 0 | W28: 0 | X28: FR | Y28: I,II | Z28: 0
B29: Cold Feed | C29: Avg Oven Extract | E29: Validated Results | J29: Draindown Control | Q29: =IF(P29="F", IF(H17>=$Y$27,0,1),0) -> 0 | R29: 0 | S29: 0 | T29: 0 | U29: 0 | V29: 0 | W29: 0 | X29: Rap | Y29: =IF(E6="ML - Airport center lane",0,setup!C41+IF(F4="SMA",0,5)) -> 35 | Z29: 0
A30: Sieve | B30: % Passing | C30: % Passing | E30: % Passing | F30: Tolerance | J30: Type | K30: None | Q30: 0 | R30: 0 | S30: 0 | T30: 0 | U30: 0 | V30: 0 | W30: 0 | X30: SCB | Y30: =setup!B43 -> 0.5 | Z30: 0
A31: 1.5" 37.5 | B31: 100 | C31: 100 | E31: =JMF!H44 ->  | F31: =JMF!N44 & " " & JMF!P44 & " " & JMF!Q44 -> -- | J31: Rate | Q31: 0 | R31: 0 | S31: 0 | T31: 0 | U31: 0 | V31: 0 | W31: 0 | Z31: 0
A32: 1" 25 | B32: =ROUND('Comp. Grad. and FAA Input'!L10,setup!$M$42) -> 0 | C32: =ROUND('Comp. Grad. and FAA Input'!Q74,setup!$M$42) -> 96.5 | E32: =JMF!H45 ->  | F32: =JMF!N45 & " " & JMF!P45 & " " & JMF!Q45 -> -- | J32: If Chemical - | Q32: 0 | R32: 0 | S32: 0 | T32: 0 | U32: 0 | V32: 0 | W32: 0 | Z32: 0
A33: 3/4" 19 | B33: =ROUND('Comp. Grad. and FAA Input'!L11,setup!$M$42) -> 0 | C33: =ROUND('Comp. Grad. and FAA Input'!Q75,setup!$M$42) -> 85.1 | E33: =JMF!H46 ->  | F33: =JMF!N46 & " " & JMF!P46 & " " & JMF!Q46 -> -- | J33: Brand Name: | U33: =SUM(U23:U32) -> 0 | V33: =SUM(V23:V32) -> 0 | W33: =SUM(W23:W32) -> 0 | Z33: =SUM(Z23:Z32) -> 0
A34: 1/2" 12.5 | B34: =ROUND('Comp. Grad. and FAA Input'!L12,setup!$M$42) -> 0 | C34: =ROUND('Comp. Grad. and FAA Input'!Q76,setup!$M$42) -> 69.4 | E34: =JMF!H47 ->  | F34: =JMF!N47 & " " & JMF!P47 & " " & JMF!Q47 -> --
A35: 3/8" 9.5 | B35: =ROUND('Comp. Grad. and FAA Input'!L13,setup!$M$42) -> 0 | C35: =ROUND('Comp. Grad. and FAA Input'!Q77,setup!$M$42) -> 62 | E35: =JMF!H48 ->  | F35: =JMF!N48 & " " & JMF!P48 & " " & JMF!Q48 -> -- | I35: %Nat Sand | J35: =Z33 -> 0 | K35: =IF(setup!C36<>"NA", IF(J35>setup!C36, "MAX Nat Sand", ""),"") -> 
A36: #4 4.75 | B36: =ROUND('Comp. Grad. and FAA Input'!L14,setup!$M$42) -> 0 | C36: =ROUND('Comp. Grad. and FAA Input'!Q78,setup!$M$42) -> 50.9 | E36: =JMF!H49 ->  | F36: =JMF!N49 & " " & JMF!P49 & " " & JMF!Q49 -> -- | I36: PSG | J36: =$H$23 -> 1.03 | M36: Rap 1 | N36: Rap 2 | Q36: correct rap agg% | S36: n
A37: #8 2.36 | B37: =ROUND('Comp. Grad. and FAA Input'!L15,setup!$M$42) -> 0 | C37: =ROUND('Comp. Grad. and FAA Input'!Q79,setup!$M$42) -> 39.2 | E37: =JMF!H50 ->  | F37: =JMF!N50 & " " & JMF!P50 & " " & JMF!Q50 -> -- | I37: %Design AC | J37: ='Optimum AC Test Results'!C35 -> 0 | L37: Type
A38: #16 1.18 | B38: =ROUND('Comp. Grad. and FAA Input'!L16,setup!$M$42) -> 0 | C38: =ROUND('Comp. Grad. and FAA Input'!Q80,setup!$M$42) -> 32.4 | E38: =JMF!H51 ->  | F38: =JMF!N51 & " " & JMF!P51 & " " & JMF!Q51 -> -- | I38: %Crushed | K38: =IF(J38<Y25,"%Crush MIN","") -> %Crush MIN | L38: % MixRapTotal | O38: =IF(SUM(M38:N38)>(Y29),"MAX RAP","") -> 
A39: #30 0.6 | B39: =ROUND('Comp. Grad. and FAA Input'!L17,setup!$M$42) -> 0 | C39: =ROUND('Comp. Grad. and FAA Input'!Q81,setup!$M$42) -> 24.7 | E39: =JMF!H52 ->  | F39: =JMF!N52 & " " & JMF!P52 & " " & JMF!Q52 -> -- | I39: Gsbavg | J39: =IF(SUM(F11:F20)>0,ROUND(100/(IF('JMF Input'!F11>0,ROUND('JMF Input'!E11/'JMF Input'!F11,5),0)+IF('JMF Input'!F12>0,ROUND('JMF Input'!E12/'JMF Input'!F12,5),0)+IF('JMF Input'!F13>0,ROUND('JMF Input'!E13/'JMF Input'!F13,5),0)+IF('JMF Input'!F14>0,ROUND('JMF Input'!E14/'JMF Input'!F14,5),0)+IF('JMF Input'!F15>0,ROUND('JMF Input'!E15/'JMF Input'!F15,5),0)+IF('JMF Input'!F16>0,ROUND('JMF Input'!E16/'JMF Input'!F16,5),0)+IF('JMF Input'!F17>0,ROUND('JMF Input'!E17/'JMF Input'!F17,5),0)+IF('JMF Input'!F18>0,ROUND('JMF Input'!E18/'JMF Input'!F18,5),0)+IF('JMF Input'!F19>0,ROUND('JMF Input'!E19/'JMF Input'!F19,5),0)+IF('JMF Input'!F20>0,ROUND('JMF Input'!E20/'JMF Input'!F20,5),0)),setup!M24),0) -> 0 | L39: % AC in RAP
A40: #50 0.3 | B40: =ROUND('Comp. Grad. and FAA Input'!L18,setup!$M$42) -> 0 | C40: =ROUND('Comp. Grad. and FAA Input'!Q82,setup!$M$42) -> 12 | E40: =JMF!H53 ->  | F40: =JMF!N53 & " " & JMF!P53 & " " & JMF!Q53 -> -- | I40: Comp Temp | L40: % MixRap Agg | M40: =IF(M35>0, ROUND(M38-M41,1), "") ->  | N40: =IF(N35>0, N38-N41, "") -> 
A41: #100 0.15 | B41: =ROUND('Comp. Grad. and FAA Input'!L19,setup!$M$42) -> 0 | C41: =ROUND('Comp. Grad. and FAA Input'!Q83,setup!$M$42) -> 7.5 | E41: =JMF!H54 ->  | F41: =JMF!N54 & " " & JMF!P54 & " " & JMF!Q54 -> -- | I41: SCB Jc | K41: =IF(J41<Y30,"SCB Min","") -> SCB Min | L41: % MixRap AC | M41: =IF(M35>0, ROUND(M39*M38/100,1), "") ->  | N41: =IF(N35>0, ROUND(N39*N38/100,1), "") -> 
A42: #200 0.075 | B42: =ROUND('Comp. Grad. and FAA Input'!L20,setup!$M$43) -> 0 | C42: =ROUND('Comp. Grad. and FAA Input'!Q84,setup!$M$43) -> 5 | E42: =JMF!H55 ->  | F42: =JMF!N55 & " " & JMF!P55 & " " & JMF!Q55 -> -- | I42: =IF(F4="SMA","Flat and Elong 3:1","") ->  | K42: =IF(AND(F4="SMA",J42>25),"F&E 3:1","") -> 
A44: Extracted %AC | C44: =J37 -> 0 | E44: =JMF!H56 ->  | F44: =JMF!N56 & " " & JMF!P56 & " " & JMF!Q56 -> --
A46: Remarks:
A47: =setup!S2 -> LaPave 502 v18.05.02 | L47: =TODAY() -> 2023-03-31

Sheet JMF
A1: Louisiana Department of Transportation and Development
A2: JMF SUPERPAVE ASPHALTIC CONCRETE MIXTURES
C3: Metric/English | H3: =IF('JMF Input'!D3="64-Metric","M","E") -> E | J3: Plant Code | L3: ='JMF Input'!D7 -> 0 | V3: SMM ID | Y3: ='JMF Input'!J7 -> 0
A4: Project No. | D4: ='JMF Input'!B3 -> 0 | U4: 26
B5: Specs | C5: ='JMF Input'!I6 -> 2016 | G5: Plant Type | H5: ='JMF Input'!H4:I4 -> 3-dryer drum | M5: Mix Type | N5: ='JMF Input'!E5 -> Base Course | R5: Mix Use | S5: ='JMF Input'!E6 -> Min - Patching | AA5: Des.Level | AB5: ='JMF Input'!F4 -> 1
A6: ESAL | B6: ='JMF Input'!N3 -> 0 | H6: Prod.Rate | I6: ='JMF Input'!K4 -> 0 | M6: Mix Temp | N6: ='JMF CHECK'!M5 -> 0 | AA6: Seq No | AB6: ='JMF Input'!F3 -> 0
A7: Adj. Factor | D7: ='JMF Input'!N4 ->  | J7: ADT/lane | K7: ='JMF Input'!K3 -> 0 | O7: Nom.Agg.Size | P7: ='JMF Input'!I5 -> 1 in. | S7: AC Corr Factor | U7: AC Corr Factor | W7: ='JMF Input'!K6 -> 4.137605834
A8: Project Name | D8: ='JMF Input'!B4 -> 0 | K8: Project Cont. | M8: ='JMF Input'!B6 -> 0 | S8: Project Engr | U8: Project Engr. | V8: ='JMF Input'!B5 -> 0
K9: Mix Type | M9: ='JMF CHECK'!E5 -> Base Course | S9: Mix Use | V9: ='JMF CHECK'!E6 -> Min - Patching
A10: Aggregate
A11: Material | D11: Source Code | G11: Aggr. Type | N11: Aggr. % | P11: Bulk Sp Gr, Gsb | R11: Abs. | S11: FAA | T11: Sand Eq | W11: Flat& Elong | Z11: CAA | AB11: Fr. | AC11: %Ret #8
AB12: Rate
A13: =IF(INDIRECT("'JMF Input'!O"&RIGHT('JMF Input'!R11,2))=0, "", IF(INDIRECT("'JMF Input'!O"&RIGHT('JMF Input'!R11,2))="Coarse", "Cr. Aggr", IF(INDIRECT("'JMF Input'!O"&RIGHT('JMF Input'!R11,2))="Fine", "Fine Aggr",IF(INDIRECT("'JMF Input'!O"&RIGHT('JMF Input'!R11,2))="Rap", "RAP Aggr", "Other")))) ->  | D13: =INDIRECT("'JMF Input'!A"&RIGHT('JMF Input'!R11,2)) -> 0 | G13: =INDIRECT("'JMF Input'!B"&RIGHT('JMF Input'!R11,2)) -> 0 | N13: =IF(ISNUMBER(INDIRECT("'JMF Input'!E"&RIGHT('JMF Input'!R11,2))),INDIRECT("'JMF Input'!E"&RIGHT('JMF Input'!R11,2)),"") ->  | P13: =IF(ISNUMBER(INDIRECT("'JMF Input'!F"&RIGHT('JMF Input'!R11,2))),INDIRECT("'JMF Input'!F"&RIGHT('JMF Input'!R11,2)),"") ->  | R13: =IF(ISNUMBER(INDIRECT("'JMF Input'!G"&RIGHT('JMF Input'!R11,2))),INDIRECT("'JMF Input'!G"&RIGHT('JMF Input'!R11,2)),"") ->  | S13: =IF(ISNUMBER(INDIRECT("'JMF Input'!H"&RIGHT('JMF Input'!R11,2))),INDIRECT("'JMF Input'!H"&RIGHT('JMF Input'!R11,2)),"") ->  | T13: =IF(ISNUMBER(INDIRECT("'JMF Input'!I"&RIGHT('JMF Input'!R11,2))),INDIRECT("'JMF Input'!I"&RIGHT('JMF Input'!R11,2)),"") ->  | W13: =IF(ISNUMBER(INDIRECT("'JMF Input'!J"&RIGHT('JMF Input'!R11,2))),INDIRECT("'JMF Input'!J"&RIGHT('JMF Input'!R11,2)),"") ->  | Z13: =IF(ISNUMBER(INDIRECT("'JMF Input'!K"&RIGHT('JMF Input'!R11,2))),INDIRECT("'JMF Input'!K"&RIGHT('JMF Input'!R11,2)),"") ->  | AB13: =IF(INDIRECT("'JMF Input'!L"&RIGHT('JMF Input'!R11,2))<>"",INDIRECT("'JMF Input'!L"&RIGHT('JMF Input'!R11,2)),"") ->  | AC13: =IF(ISNUMBER(INDIRECT("'JMF Input'!M"&RIGHT('JMF Input'!R11,2))),INDIRECT("'JMF Input'!M"&RIGHT('JMF Input'!R11,2)),"") -> 
A14: =IF(INDIRECT("'JMF Input'!O"&RIGHT('JMF Input'!R12,2))=0, "", IF(INDIRECT("'JMF Input'!O"&RIGHT('JMF Input'!R12,2))="Coarse", "Cr. Aggr", IF(INDIRECT("'JMF Input'!O"&RIGHT('JMF Input'!R12,2))="Fine", "Fine Aggr",IF(INDIRECT("'JMF Input'!O"&RIGHT('JMF Input'!R12,2))="Rap", "RAP Aggr", "Other")))) ->  | D14: =INDIRECT("'JMF Input'!A"&RIGHT('JMF Input'!R12,2)) -> 0 | G14: =INDIRECT("'JMF Input'!B"&RIGHT('JMF Input'!R12,2)) -> 0 | N14: =IF(ISNUMBER(INDIRECT("'JMF Input'!E"&RIGHT('JMF Input'!R12,2))),INDIRECT("'JMF Input'!E"&RIGHT('JMF Input'!R12,2)),"") ->  | P14: =IF(ISNUMBER(INDIRECT("'JMF Input'!F"&RIGHT('JMF Input'!R12,2))),INDIRECT("'JMF Input'!F"&RIGHT('JMF Input'!R12,2)),"") ->  | R14: =IF(ISNUMBER(INDIRECT("'JMF Input'!G"&RIGHT('JMF Input'!R12,2))),INDIRECT("'JMF Input'!G"&RIGHT('JMF Input'!R12,2)),"") ->  | S14: =IF(ISNUMBER(INDIRECT("'JMF Input'!H"&RIGHT('JMF Input'!R12,2))),INDIRECT("'JMF Input'!H"&RIGHT('JMF Input'!R12,2)),"") ->  | T14: =IF(ISNUMBER(INDIRECT("'JMF Input'!I"&RIGHT('JMF Input'!R12,2))),INDIRECT("'JMF Input'!I"&RIGHT('JMF Input'!R12,2)),"") ->  | W14: =IF(ISNUMBER(INDIRECT("'JMF Input'!J"&RIGHT('JMF Input'!R12,2))),INDIRECT("'JMF Input'!J"&RIGHT('JMF Input'!R12,2)),"") ->  | Z14: =IF(ISNUMBER(INDIRECT("'JMF Input'!K"&RIGHT('JMF Input'!R12,2))),INDIRECT("'JMF Input'!K"&RIGHT('JMF Input'!R12,2)),"") ->  | AB14: =IF(INDIRECT("'JMF Input'!L"&RIGHT('JMF Input'!R12,2))<>"",INDIRECT("'JMF Input'!L"&RIGHT('JMF Input'!R12,2)),"") ->  | AC14: =IF(ISNUMBER(INDIRECT("'JMF Input'!M"&RIGHT('JMF Input'!R12,2))),INDIRECT("'JMF Input'!M"&RIGHT('JMF Input'!R12,2)),"") -> 
A15: =IF(INDIRECT("'JMF Input'!O"&RIGHT('JMF Input'!R13,2))=0, "", IF(INDIRECT("'JMF Input'!O"&RIGHT('JMF Input'!R13,2))="Coarse", "Cr. Aggr", IF(INDIRECT("'JMF Input'!O"&RIGHT('JMF Input'!R13,2))="Fine", "Fine Aggr",IF(INDIRECT("'JMF Input'!O"&RIGHT('JMF Input'!R13,2))="Rap", "RAP Aggr", "Other")))) ->  | D15: =INDIRECT("'JMF Input'!A"&RIGHT('JMF Input'!R13,2)) -> 0 | G15: =INDIRECT("'JMF Input'!B"&RIGHT('JMF Input'!R13,2)) -> 0 | N15: =IF(ISNUMBER(INDIRECT("'JMF Input'!E"&RIGHT('JMF Input'!R13,2))),INDIRECT("'JMF Input'!E"&RIGHT('JMF Input'!R13,2)),"") ->  | P15: =IF(ISNUMBER(INDIRECT("'JMF Input'!F"&RIGHT('JMF Input'!R13,2))),INDIRECT("'JMF Input'!F"&RIGHT('JMF Input'!R13,2)),"") ->  | R15: =IF(ISNUMBER(INDIRECT("'JMF Input'!G"&RIGHT('JMF Input'!R13,2))),INDIRECT("'JMF Input'!G"&RIGHT('JMF Input'!R13,2)),"") ->  | S15: =IF(ISNUMBER(INDIRECT("'JMF Input'!H"&RIGHT('JMF Input'!R13,2))),INDIRECT("'JMF Input'!H"&RIGHT('JMF Input'!R13,2)),"") ->  | T15: =IF(ISNUMBER(INDIRECT("'JMF Input'!I"&RIGHT('JMF Input'!R13,2))),INDIRECT("'JMF Input'!I"&RIGHT('JMF Input'!R13,2)),"") ->  | W15: =IF(ISNUMBER(INDIRECT("'JMF Input'!J"&RIGHT('JMF Input'!R13,2))),INDIRECT("'JMF Input'!J"&RIGHT('JMF Input'!R13,2)),"") ->  | Z15: =IF(ISNUMBER(INDIRECT("'JMF Input'!K"&RIGHT('JMF Input'!R13,2))),INDIRECT("'JMF Input'!K"&RIGHT('JMF Input'!R13,2)),"") ->  | AB15: =IF(INDIRECT("'JMF Input'!L"&RIGHT('JMF Input'!R13,2))<>"",INDIRECT("'JMF Input'!L"&RIGHT('JMF Input'!R13,2)),"") ->  | AC15: =IF(ISNUMBER(INDIRECT("'JMF Input'!M"&RIGHT('JMF Input'!R13,2))),INDIRECT("'JMF Input'!M"&RIGHT('JMF Input'!R13,2)),"") -> 
A16: =IF(INDIRECT("'JMF Input'!O"&RIGHT('JMF Input'!R14,2))=0, "", IF(INDIRECT("'JMF Input'!O"&RIGHT('JMF Input'!R14,2))="Coarse", "Cr. Aggr", IF(INDIRECT("'JMF Input'!O"&RIGHT('JMF Input'!R14,2))="Fine", "Fine Aggr",IF(INDIRECT("'JMF Input'!O"&RIGHT('JMF Input'!R14,2))="Rap", "RAP Aggr", "Other")))) ->  | D16: =INDIRECT("'JMF Input'!A"&RIGHT('JMF Input'!R14,2)) -> 0 | G16: =INDIRECT("'JMF Input'!B"&RIGHT('JMF Input'!R14,2)) -> 0 | N16: =IF(ISNUMBER(INDIRECT("'JMF Input'!E"&RIGHT('JMF Input'!R14,2))),INDIRECT("'JMF Input'!E"&RIGHT('JMF Input'!R14,2)),"") ->  | P16: =IF(ISNUMBER(INDIRECT("'JMF Input'!F"&RIGHT('JMF Input'!R14,2))),INDIRECT("'JMF Input'!F"&RIGHT('JMF Input'!R14,2)),"") ->  | R16: =IF(ISNUMBER(INDIRECT("'JMF Input'!G"&RIGHT('JMF Input'!R14,2))),INDIRECT("'JMF Input'!G"&RIGHT('JMF Input'!R14,2)),"") ->  | S16: =IF(ISNUMBER(INDIRECT("'JMF Input'!H"&RIGHT('JMF Input'!R14,2))),INDIRECT("'JMF Input'!H"&RIGHT('JMF Input'!R14,2)),"") ->  | T16: =IF(ISNUMBER(INDIRECT("'JMF Input'!I"&RIGHT('JMF Input'!R14,2))),INDIRECT("'JMF Input'!I"&RIGHT('JMF Input'!R14,2)),"") ->  | W16: =IF(ISNUMBER(INDIRECT("'JMF Input'!J"&RIGHT('JMF Input'!R14,2))),INDIRECT("'JMF Input'!J"&RIGHT('JMF Input'!R14,2)),"") ->  | Z16: =IF(ISNUMBER(INDIRECT("'JMF Input'!K"&RIGHT('JMF Input'!R14,2))),INDIRECT("'JMF Input'!K"&RIGHT('JMF Input'!R14,2)),"") ->  | AB16: =IF(INDIRECT("'JMF Input'!L"&RIGHT('JMF Input'!R14,2))<>"",INDIRECT("'JMF Input'!L"&RIGHT('JMF Input'!R14,2)),"") ->  | AC16: =IF(ISNUMBER(INDIRECT("'JMF Input'!M"&RIGHT('JMF Input'!R14,2))),INDIRECT("'JMF Input'!M"&RIGHT('JMF Input'!R14,2)),"") -> 
A17: =IF(INDIRECT("'JMF Input'!O"&RIGHT('JMF Input'!R15,2))=0, "", IF(INDIRECT("'JMF Input'!O"&RIGHT('JMF Input'!R15,2))="Coarse", "Cr. Aggr", IF(INDIRECT("'JMF Input'!O"&RIGHT('JMF Input'!R15,2))="Fine", "Fine Aggr",IF(INDIRECT("'JMF Input'!O"&RIGHT('JMF Input'!R15,2))="Rap", "RAP Aggr", "Other")))) ->  | D17: =INDIRECT("'JMF Input'!A"&RIGHT('JMF Input'!R15,2)) -> 0 | G17: =INDIRECT("'JMF Input'!B"&RIGHT('JMF Input'!R15,2)) -> 0 | N17: =IF(ISNUMBER(INDIRECT("'JMF Input'!E"&RIGHT('JMF Input'!R15,2))),INDIRECT("'JMF Input'!E"&RIGHT('JMF Input'!R15,2)),"") ->  | P17: =IF(ISNUMBER(INDIRECT("'JMF Input'!F"&RIGHT('JMF Input'!R15,2))),INDIRECT("'JMF Input'!F"&RIGHT('JMF Input'!R15,2)),"") ->  | R17: =IF(ISNUMBER(INDIRECT("'JMF Input'!G"&RIGHT('JMF Input'!R15,2))),INDIRECT("'JMF Input'!G"&RIGHT('JMF Input'!R15,2)),"") ->  | S17: =IF(ISNUMBER(INDIRECT("'JMF Input'!H"&RIGHT('JMF Input'!R15,2))),INDIRECT("'JMF Input'!H"&RIGHT('JMF Input'!R15,2)),"") ->  | T17: =IF(ISNUMBER(INDIRECT("'JMF Input'!I"&RIGHT('JMF Input'!R15,2))),INDIRECT("'JMF Input'!I"&RIGHT('JMF Input'!R15,2)),"") ->  | W17: =IF(ISNUMBER(INDIRECT("'JMF Input'!J"&RIGHT('JMF Input'!R15,2))),INDIRECT("'JMF Input'!J"&RIGHT('JMF Input'!R15,2)),"") ->  | Z17: =IF(ISNUMBER(INDIRECT("'JMF Input'!K"&RIGHT('JMF Input'!R15,2))),INDIRECT("'JMF Input'!K"&RIGHT('JMF Input'!R15,2)),"") ->  | AB17: =IF(INDIRECT("'JMF Input'!L"&RIGHT('JMF Input'!R15,2))<>"",INDIRECT("'JMF Input'!L"&RIGHT('JMF Input'!R15,2)),"") ->  | AC17: =IF(ISNUMBER(INDIRECT("'JMF Input'!M"&RIGHT('JMF Input'!R15,2))),INDIRECT("'JMF Input'!M"&RIGHT('JMF Input'!R15,2)),"") -> 
A18: =IF(INDIRECT("'JMF Input'!O"&RIGHT('JMF Input'!R16,2))=0, "", IF(INDIRECT("'JMF Input'!O"&RIGHT('JMF Input'!R16,2))="Coarse", "Cr. Aggr", IF(INDIRECT("'JMF Input'!O"&RIGHT('JMF Input'!R16,2))="Fine", "Fine Aggr",IF(INDIRECT("'JMF Input'!O"&RIGHT('JMF Input'!R16,2))="Rap", "RAP Aggr", "Other")))) ->  | D18: =INDIRECT("'JMF Input'!A"&RIGHT('JMF Input'!R16,2)) -> 0 | G18: =INDIRECT("'JMF Input'!B"&RIGHT('JMF Input'!R16,2)) -> 0 | N18: =IF(ISNUMBER(INDIRECT("'JMF Input'!E"&RIGHT('JMF Input'!R16,2))),INDIRECT("'JMF Input'!E"&RIGHT('JMF Input'!R16,2)),"") ->  | P18: =IF(ISNUMBER(INDIRECT("'JMF Input'!F"&RIGHT('JMF Input'!R16,2))),INDIRECT("'JMF Input'!F"&RIGHT('JMF Input'!R16,2)),"") ->  | R18: =IF(ISNUMBER(INDIRECT("'JMF Input'!G"&RIGHT('JMF Input'!R16,2))),INDIRECT("'JMF Input'!G"&RIGHT('JMF Input'!R16,2)),"") ->  | S18: =IF(ISNUMBER(INDIRECT("'JMF Input'!H"&RIGHT('JMF Input'!R16,2))),INDIRECT("'JMF Input'!H"&RIGHT('JMF Input'!R16,2)),"") ->  | T18: =IF(ISNUMBER(INDIRECT("'JMF Input'!I"&RIGHT('JMF Input'!R16,2))),INDIRECT("'JMF Input'!I"&RIGHT('JMF Input'!R16,2)),"") ->  | W18: =IF(ISNUMBER(INDIRECT("'JMF Input'!J"&RIGHT('JMF Input'!R16,2))),INDIRECT("'JMF Input'!J"&RIGHT('JMF Input'!R16,2)),"") ->  | Z18: =IF(ISNUMBER(INDIRECT("'JMF Input'!K"&RIGHT('JMF Input'!R16,2))),INDIRECT("'JMF Input'!K"&RIGHT('JMF Input'!R16,2)),"") ->  | AB18: =IF(INDIRECT("'JMF Input'!L"&RIGHT('JMF Input'!R16,2))<>"",INDIRECT("'JMF Input'!L"&RIGHT('JMF Input'!R16,2)),"") ->  | AC18: =IF(ISNUMBER(INDIRECT("'JMF Input'!M"&RIGHT('JMF Input'!R16,2))),INDIRECT("'JMF Input'!M"&RIGHT('JMF Input'!R16,2)),"") -> 
A19: =IF(INDIRECT("'JMF Input'!O"&RIGHT('JMF Input'!R17,2))=0, "", IF(INDIRECT("'JMF Input'!O"&RIGHT('JMF Input'!R17,2))="Coarse", "Cr. Aggr", IF(INDIRECT("'JMF Input'!O"&RIGHT('JMF Input'!R17,2))="Fine", "Fine Aggr",IF(INDIRECT("'JMF Input'!O"&RIGHT('JMF Input'!R17,2))="Rap", "RAP Aggr", "Other")))) ->  | D19: =INDIRECT("'JMF Input'!A"&RIGHT('JMF Input'!R17,2)) -> 0 | G19: =INDIRECT("'JMF Input'!B"&RIGHT('JMF Input'!R17,2)) -> 0 | N19: =IF(ISNUMBER(INDIRECT("'JMF Input'!E"&RIGHT('JMF Input'!R17,2))),INDIRECT("'JMF Input'!E"&RIGHT('JMF Input'!R17,2)),"") ->  | P19: =IF(ISNUMBER(INDIRECT("'JMF Input'!F"&RIGHT('JMF Input'!R17,2))),INDIRECT("'JMF Input'!F"&RIGHT('JMF Input'!R17,2)),"") ->  | R19: =IF(ISNUMBER(INDIRECT("'JMF Input'!G"&RIGHT('JMF Input'!R17,2))),INDIRECT("'JMF Input'!G"&RIGHT('JMF Input'!R17,2)),"") ->  | S19: =IF(ISNUMBER(INDIRECT("'JMF Input'!H"&RIGHT('JMF Input'!R17,2))),INDIRECT("'JMF Input'!H"&RIGHT('JMF Input'!R17,2)),"") ->  | T19: =IF(ISNUMBER(INDIRECT("'JMF Input'!I"&RIGHT('JMF Input'!R17,2))),INDIRECT("'JMF Input'!I"&RIGHT('JMF Input'!R17,2)),"") ->  | W19: =IF(ISNUMBER(INDIRECT("'JMF Input'!J"&RIGHT('JMF Input'!R17,2))),INDIRECT("'JMF Input'!J"&RIGHT('JMF Input'!R17,2)),"") ->  | Z19: =IF(ISNUMBER(INDIRECT("'JMF Input'!K"&RIGHT('JMF Input'!R17,2))),INDIRECT("'JMF Input'!K"&RIGHT('JMF Input'!R17,2)),"") ->  | AB19: =IF(INDIRECT("'JMF Input'!L"&RIGHT('JMF Input'!R17,2))<>"",INDIRECT("'JMF Input'!L"&RIGHT('JMF Input'!R17,2)),"") ->  | AC19: =IF(ISNUMBER(INDIRECT("'JMF Input'!M"&RIGHT('JMF Input'!R17,2))),INDIRECT("'JMF Input'!M"&RIGHT('JMF Input'!R17,2)),"") -> 
A20: =IF(INDIRECT("'JMF Input'!O"&RIGHT('JMF Input'!R18,2))=0, "", IF(INDIRECT("'JMF Input'!O"&RIGHT('JMF Input'!R18,2))="Coarse", "Cr. Aggr", IF(INDIRECT("'JMF Input'!O"&RIGHT('JMF Input'!R18,2))="Fine", "Fine Aggr",IF(INDIRECT("'JMF Input'!O"&RIGHT('JMF Input'!R18,2))="Rap", "RAP Aggr", "Other")))) ->  | D20: =INDIRECT("'JMF Input'!A"&RIGHT('JMF Input'!R18,2)) -> 0 | G20: =INDIRECT("'JMF Input'!B"&RIGHT('JMF Input'!R18,2)) -> 0 | N20: =IF(ISNUMBER(INDIRECT("'JMF Input'!E"&RIGHT('JMF Input'!R18,2))),INDIRECT("'JMF Input'!E"&RIGHT('JMF Input'!R18,2)),"") ->  | P20: =IF(ISNUMBER(INDIRECT("'JMF Input'!F"&RIGHT('JMF Input'!R18,2))),INDIRECT("'JMF Input'!F"&RIGHT('JMF Input'!R18,2)),"") ->  | R20: =IF(ISNUMBER(INDIRECT("'JMF Input'!G"&RIGHT('JMF Input'!R18,2))),INDIRECT("'JMF Input'!G"&RIGHT('JMF Input'!R18,2)),"") ->  | S20: =IF(ISNUMBER(INDIRECT("'JMF Input'!H"&RIGHT('JMF Input'!R18,2))),INDIRECT("'JMF Input'!H"&RIGHT('JMF Input'!R18,2)),"") ->  | T20: =IF(ISNUMBER(INDIRECT("'JMF Input'!I"&RIGHT('JMF Input'!R18,2))),INDIRECT("'JMF Input'!I"&RIGHT('JMF Input'!R18,2)),"") ->  | W20: =IF(ISNUMBER(INDIRECT("'JMF Input'!J"&RIGHT('JMF Input'!R18,2))),INDIRECT("'JMF Input'!J"&RIGHT('JMF Input'!R18,2)),"") ->  | Z20: =IF(ISNUMBER(INDIRECT("'JMF Input'!K"&RIGHT('JMF Input'!R18,2))),INDIRECT("'JMF Input'!K"&RIGHT('JMF Input'!R18,2)),"") ->  | AB20: =IF(INDIRECT("'JMF Input'!L"&RIGHT('JMF Input'!R18,2))<>"",INDIRECT("'JMF Input'!L"&RIGHT('JMF Input'!R18,2)),"") ->  | AC20: =IF(ISNUMBER(INDIRECT("'JMF Input'!M"&RIGHT('JMF Input'!R18,2))),INDIRECT("'JMF Input'!M"&RIGHT('JMF Input'!R18,2)),"") -> 
A21: =IF(INDIRECT("'JMF Input'!O"&RIGHT('JMF Input'!R19,2))=0, "", IF(INDIRECT("'JMF Input'!O"&RIGHT('JMF Input'!R19,2))="Coarse", "Cr. Aggr", IF(INDIRECT("'JMF Input'!O"&RIGHT('JMF Input'!R19,2))="Fine", "Fine Aggr",IF(INDIRECT("'JMF Input'!O"&RIGHT('JMF Input'!R19,2))="Rap", "RAP Aggr", "Other")))) ->  | D21: =INDIRECT("'JMF Input'!A"&RIGHT('JMF Input'!R19,2)) -> 0 | G21: =INDIRECT("'JMF Input'!B"&RIGHT('JMF Input'!R19,2)) -> 0 | N21: =IF(ISNUMBER(INDIRECT("'JMF Input'!E"&RIGHT('JMF Input'!R19,2))),INDIRECT("'JMF Input'!E"&RIGHT('JMF Input'!R19,2)),"") ->  | P21: =IF(ISNUMBER(INDIRECT("'JMF Input'!F"&RIGHT('JMF Input'!R19,2))),INDIRECT("'JMF Input'!F"&RIGHT('JMF Input'!R19,2)),"") ->  | R21: =IF(ISNUMBER(INDIRECT("'JMF Input'!G"&RIGHT('JMF Input'!R19,2))),INDIRECT("'JMF Input'!G"&RIGHT('JMF Input'!R19,2)),"") ->  | S21: =IF(ISNUMBER(INDIRECT("'JMF Input'!H"&RIGHT('JMF Input'!R19,2))),INDIRECT("'JMF Input'!H"&RIGHT('JMF Input'!R19,2)),"") ->  | T21: =IF(ISNUMBER(INDIRECT("'JMF Input'!I"&RIGHT('JMF Input'!R19,2))),INDIRECT("'JMF Input'!I"&RIGHT('JMF Input'!R19,2)),"") ->  | W21: =IF(ISNUMBER(INDIRECT("'JMF Input'!J"&RIGHT('JMF Input'!R19,2))),INDIRECT("'JMF Input'!J"&RIGHT('JMF Input'!R19,2)),"") ->  | Z21: =IF(ISNUMBER(INDIRECT("'JMF Input'!K"&RIGHT('JMF Input'!R19,2))),INDIRECT("'JMF Input'!K"&RIGHT('JMF Input'!R19,2)),"") ->  | AB21: =IF(INDIRECT("'JMF Input'!L"&RIGHT('JMF Input'!R19,2))<>"",INDIRECT("'JMF Input'!L"&RIGHT('JMF Input'!R19,2)),"") ->  | AC21: =IF(ISNUMBER(INDIRECT("'JMF Input'!M"&RIGHT('JMF Input'!R19,2))),INDIRECT("'JMF Input'!M"&RIGHT('JMF Input'!R19,2)),"") -> 
A22: =IF(INDIRECT("'JMF Input'!O"&RIGHT('JMF Input'!R20,2))=0, "", IF(INDIRECT("'JMF Input'!O"&RIGHT('JMF Input'!R20,2))="Coarse", "Cr. Aggr", IF(INDIRECT("'JMF Input'!O"&RIGHT('JMF Input'!R20,2))="Fine", "Fine Aggr",IF(INDIRECT("'JMF Input'!O"&RIGHT('JMF Input'!R20,2))="Rap", "RAP Aggr", "Other")))) ->  | D22: =INDIRECT("'JMF Input'!A"&RIGHT('JMF Input'!R20,2)) -> 0 | G22: =INDIRECT("'JMF Input'!B"&RIGHT('JMF Input'!R20,2)) -> 0 | N22: =IF(ISNUMBER(INDIRECT("'JMF Input'!E"&RIGHT('JMF Input'!R20,2))),INDIRECT("'JMF Input'!E"&RIGHT('JMF Input'!R20,2)),"") ->  | P22: =IF(ISNUMBER(INDIRECT("'JMF Input'!F"&RIGHT('JMF Input'!R20,2))),INDIRECT("'JMF Input'!F"&RIGHT('JMF Input'!R20,2)),"") ->  | R22: =IF(ISNUMBER(INDIRECT("'JMF Input'!G"&RIGHT('JMF Input'!R20,2))),INDIRECT("'JMF Input'!G"&RIGHT('JMF Input'!R20,2)),"") ->  | S22: =IF(ISNUMBER(INDIRECT("'JMF Input'!H"&RIGHT('JMF Input'!R20,2))),INDIRECT("'JMF Input'!H"&RIGHT('JMF Input'!R20,2)),"") ->  | T22: =IF(ISNUMBER(INDIRECT("'JMF Input'!I"&RIGHT('JMF Input'!R20,2))),INDIRECT("'JMF Input'!I"&RIGHT('JMF Input'!R20,2)),"") ->  | W22: =IF(ISNUMBER(INDIRECT("'JMF Input'!J"&RIGHT('JMF Input'!R20,2))),INDIRECT("'JMF Input'!J"&RIGHT('JMF Input'!R20,2)),"") ->  | Z22: =IF(ISNUMBER(INDIRECT("'JMF Input'!K"&RIGHT('JMF Input'!R20,2))),INDIRECT("'JMF Input'!K"&RIGHT('JMF Input'!R20,2)),"") ->  | AB22: =IF(INDIRECT("'JMF Input'!L"&RIGHT('JMF Input'!R20,2))<>"",INDIRECT("'JMF Input'!L"&RIGHT('JMF Input'!R20,2)),"") ->  | AC22: =IF(ISNUMBER(INDIRECT("'JMF Input'!M"&RIGHT('JMF Input'!R20,2))),INDIRECT("'JMF Input'!M"&RIGHT('JMF Input'!R20,2)),"") -> 
A23: Composite | O23: GSB | P23: ='JMF Input'!J39 -> 0 | R23: ='JMF CHECK'!I21 -> 0 | S23: ='JMF CHECK'!J21 ->  | T23: ='JMF CHECK'!K21 ->  | W23: ='JMF CHECK'!L21 -> 0 | Z23: ='JMF CHECK'!M21 -> 
A25: Asphalt Cement and Additives | R25: =IF(OR('Moisture Susceptibility Design'!B19<>"",'Moisture Susceptibility Design'!L19<>""),"Loaded Wheel Test",IF(OR('Moisture Susceptibility Design'!B79<>"",'Moisture Susceptibility Design'!L79<>""),"Tensile Strength Ratio","LWT/TSR")) -> 
A26: Material | E26: Source | I26: Material | P26: % of Mix
E27: Code | I27: Name | S27: Design: | U27: Control PSI(Mpa) | V27: =IF(OR('Moisture Susceptibility Design'!B19<>"",'Moisture Susceptibility Design'!L19<>""),"No. Passes",IF(OR('Moisture Susceptibility Design'!B79<>"",'Moisture Susceptibility Design'!L79<>""),"Control (psi)","")) ->  | AB27: =IF(OR('Moisture Susceptibility Design'!B19<>"",'Moisture Susceptibility Design'!L19<>""),'Moisture Susceptibility Design'!B20,IF(OR('Moisture Susceptibility Design'!B79<>"",'Moisture Susceptibility Design'!L79<>""),'Moisture Susceptibility Design'!B77,"")) -> 
A28: Asphalt Cement | E28: ='JMF Input'!B23 -> 0 | I28: ='JMF Input'!C23 -> 0 | P28: ='JMF Input'!G23 -> 0 | X28: =IF(OR('Moisture Susceptibility Design'!B19<>"",'Moisture Susceptibility Design'!L19<>""),"Rut",IF(OR('Moisture Susceptibility Design'!B79<>"",'Moisture Susceptibility Design'!L79<>""),"TSR","")) ->  | AB28: =IF(OR('Moisture Susceptibility Design'!B19<>"",'Moisture Susceptibility Design'!L19<>""),TEXT('Moisture Susceptibility Design'!B19,"0.00"),IF(OR('Moisture Susceptibility Design'!B79<>"",'Moisture Susceptibility Design'!L79<>""),TEXT('Moisture Susceptibility Design'!B79,"0"),"")) -> 
A29: Alternate Asphalt | E29: =IF('JMF Input'!B24<>"",'JMF Input'!B24,"") ->  | I29: =IF('JMF Input'!C24<>"",'JMF Input'!C24,"") -> 
A30: Alternate Asphalt | E30: =IF('JMF Input'!B25<>"",'JMF Input'!B25,"") ->  | I30: =IF('JMF Input'!C25<>"",'JMF Input'!C25,"") ->  | S30: Validation: | U30: Control PSI(Mpa) | V30: =IF(OR('Moisture Susceptibility Design'!B19<>"",'Moisture Susceptibility Design'!L19<>""),"No. Passes",IF(OR('Moisture Susceptibility Design'!B79<>"",'Moisture Susceptibility Design'!L79<>""),"Control (psi)","")) ->  | AB30: =IF(OR('Moisture Susceptibility Design'!B19<>"",'Moisture Susceptibility Design'!L19<>""),'Moisture Susceptibility Design'!L20,IF(OR('Moisture Susceptibility Design'!B79<>"",'Moisture Susceptibility Design'!L79<>""),'Moisture Susceptibility Design'!L77,"")) -> 
A31: Rap Asphalt | P31: ='JMF Input'!G26 -> 0 | X31: =IF(OR('Moisture Susceptibility Design'!B19<>"",'Moisture Susceptibility Design'!L19<>""),"Rut",IF(OR('Moisture Susceptibility Design'!B79<>"",'Moisture Susceptibility Design'!L79<>""),"TSR","")) ->  | AB31: =IF(OR('Moisture Susceptibility Design'!B19<>"",'Moisture Susceptibility Design'!L19<>""),TEXT('Moisture Susceptibility Design'!L19,"0.00"),IF(OR('Moisture Susceptibility Design'!B79<>"",'Moisture Susceptibility Design'!L79<>""),TEXT('Moisture Susceptibility Design'!L79,"0"),"")) -> 
A32: Anti Strip | E32: ='JMF Input'!B27 -> 0 | I32: ='JMF Input'!C27 -> 0 | P32: ='JMF Input'!G27 -> 0 | S32: SCB Jc: | T32: ='JMF Input'!J41 -> 0
A33: DESIGN DATA | H33: VALIDATION DATA | N33: JMF Limits
A34: Parameter | D34: Submittal | H34: Average | K34: Std. Dev | M34: PWL | N34: (per valid.avg)
A35: Gmm | D35: ='JMF CHECK'!B32 -> 0 | H35: =Validation!H7 ->  | K35: =Validation!I7 ->  | M35: =Validation!N7 -> -- | N35: =IF(H35<>"", H35-setup!D8, "") ->  | P35: -- | Q35: =IF(H35<>"", H35+setup!D8, "") ->  | R35: Submitted for Contractor By:
A36: %Gmm,Nini | D36: ='JMF CHECK'!B33 ->  | H36: =Validation!H9 ->  | K36: =Validation!I9 ->  | M36: =Validation!N9 -> -- | Q36: =setup!C9 -> 91 | R36: Date Submitted | Z36: ='JMF Input'!$N$5 -> 00:00:00
A37: %Gmm,Nmax | D37: ='JMF CHECK'!B34 ->  | H37: =Validation!H15 ->  | K37: =Validation!I15 ->  | M37: =Validation!N10 -> -- | P37: -- | Q37: =setup!C11 -> 98
A38: VMA | D38: ='JMF CHECK'!B36 ->  | E38: 12.3 | H38: =Validation!H12 ->  | K38: =Validation!I12 ->  | M38: =Validation!N12 -> -- | N38: =setup!B13 -> 11.5 | P38: --
A39: VFA | D39: ='JMF CHECK'!B37 ->  | E39: 13.3 | H39: =Validation!H13 ->  | K39: =Validation!I13 ->  | M39: =Validation!N13 -> -- | N39: =setup!B14 -> 69 | P39: -- | Q39: =setup!C14 -> 80 | AJ39: =IF(AH39="", "", IF(AK39, "√", "X")) ->  | AK39: 0
A40: % Voids | D40: ='JMF CHECK'!B38 -> 3.5 | E40: 14.3 | H40: =Validation!H11 ->  | K40: =Validation!I11 ->  | M40: =Validation!N11 -> -- | N40: =setup!B15 -> 2.5 | P40: -- | Q40: =setup!C15 -> 4.5 | R40: Technician
A41: % Design AC | D41: ='JMF CHECK'!B39 -> 0
A42: Comp Temp | D42: ='JMF CHECK'!B41 -> 0 | H42: =Validation!H39 ->  | K42: =Validation!I39 ->  | M42: =Validation!N39 -> -- | N42: =IF(H42<>"", H42-setup!D17, "") ->  | P42: -- | Q42: =IF(H42<>"", H42+setup!D17, "") ->  | S42: Proposal Approved | U42: Proposal Approved: | AA42: Y=Yes
A43: % DF Crushed | D43: ='JMF CHECK'!B42 -> 0 | H43: =Validation!H38 ->  | K43: =Validation!I38 ->  | N43: =setup!B37 -> 75 | P43: -- | AA43: N=No
A44: 1 1/2 (37.5mm) | D44: ='JMF CHECK'!E35 -> 100 | H44: =IF(Validation!H20<>"", ROUND(Validation!H20, 0), "") ->  | K44: =Validation!I20 ->  | M44: =Validation!N20 -> -- | N44: =IF(H44<>"", H44-setup!D19, "") ->  | P44: -- | Q44: =IF(H44<>"", IF(H44+setup!D19>100, 100, H44+setup!D19), "") ->  | T44: By:
A45: 1 in (25mm) | D45: ='JMF CHECK'!E36 -> 96.5 | H45: =IF(Validation!H21<>"", ROUND(Validation!H21, 0), "") ->  | K45: =Validation!I21 ->  | M45: =Validation!N21 -> -- | N45: =IF(H45<>"", H45-setup!D20, "") ->  | P45: -- | Q45: =IF(H45<>"", IF(H45+setup!D20>100, 100, H45+setup!D20), "") ->  | S45: Date
A46: 3/4 (19mm) | D46: ='JMF CHECK'!E37 -> 85.1 | H46: =IF(Validation!H22<>"", ROUND(Validation!H22, 0), "") ->  | K46: =Validation!I22 ->  | M46: =Validation!N22 -> -- | N46: =IF(H46<>"", H46-setup!D21, "") ->  | P46: -- | Q46: =IF(H46<>"", IF(H46+setup!D21>100, 100, H46+setup!D21), "") ->  | AG46: A | AH46: 1 | AI46: 2 | AJ46: 3
A47: 1/2in (12.5mm) | D47: ='JMF CHECK'!E38 -> 69.4 | H47: =IF(Validation!H23<>"", ROUND(Validation!H23, 0), "") ->  | K47: =Validation!I23 ->  | M47: =Validation!N23 -> -- | N47: =IF(H47<>"", H47-setup!D22, "") ->  | P47: -- | Q47: =IF(H47<>"", IF(H47+setup!D22>100, 100, H47+setup!D22), "") ->  | AG47: 55 | AH47: 75 | AI47: 95 | AJ47: 98
A48: 3/8in (9.5mm) | D48: ='JMF CHECK'!E39 -> 62 | H48: =IF(Validation!H24<>"", ROUND(Validation!H24, 0), "") ->  | K48: =Validation!I24 ->  | M48: =Validation!N24 -> -- | N48: =IF(H48<>"", H48-setup!D23, "") ->  | P48: -- | Q48: =IF(H48<>"", IF(H48+setup!D23>100, 100, H48+setup!D23), "") ->  | R48: Signature
A49: No. 4 (4.75mm) | D49: ='JMF CHECK'!E40 -> 50.9 | H49: =IF(Validation!H25<>"", ROUND(Validation!H25, 0), "") ->  | K49: =Validation!I25 ->  | M49: =Validation!N25 -> -- | N49: =IF(H49<>"", H49-setup!D24, "") ->  | P49: -- | Q49: =IF(H49<>"", IF(H49+setup!D24>100, 100, H49+setup!D24), "") -> 
A50: No. 8(2.38mm) | D50: ='JMF CHECK'!E41 -> 39.2 | H50: =IF(Validation!H26<>"", ROUND(Validation!H26, 0), "") ->  | K50: =Validation!I26 ->  | M50: =Validation!N26 -> -- | N50: =IF(H50<>"", H50-setup!D25, "") ->  | P50: -- | Q50: =IF(H50<>"", IF(H50+setup!D25>100, 100, H50+setup!D25), "") ->  | S50: Validation Approved | Z50: Y=Yes
A51: No.16(1.18mm) | D51: ='JMF CHECK'!E42 -> 32.4 | H51: =IF(Validation!H27<>"", ROUND(Validation!H27, 0), "") ->  | K51: =Validation!I27 ->  | M51: =Validation!N27 -> -- | N51: =IF(H51<>"", H51-setup!D26, "") ->  | P51: -- | Q51: =IF(H51<>"", IF(H51+setup!D26>100, 100, H51+setup!D26), "") ->  | U51: Validation Approved | Z51: N=No
A52: No.30(600um) | D52: ='JMF CHECK'!E43 -> 24.7 | H52: =IF(Validation!H28<>"", ROUND(Validation!H28, 0), "") ->  | K52: =Validation!I28 ->  | M52: =Validation!N28 -> -- | N52: =IF(H52<>"", H52-setup!D27, "") ->  | P52: -- | Q52: =IF(H52<>"", IF(H52+setup!D27>100, 100, H52+setup!D27), "") ->  | T52: By: | U52: By:
A53: No.50(300um) | D53: ='JMF CHECK'!E44 -> 12 | H53: =IF(Validation!H29<>"", ROUND(Validation!H29, 0), "") ->  | K53: =Validation!I29 ->  | M53: =Validation!N29 -> -- | N53: =IF(H53<>"", H53-setup!D28, "") ->  | P53: -- | Q53: =IF(H53<>"", IF(H53+setup!D28>100, 100, H53+setup!D28), "") ->  | S53: Date | U53: Date
A54: No100(150um) | D54: ='JMF CHECK'!E45 -> 7.5 | H54: =IF(Validation!H30<>"", ROUND(Validation!H30, 0), "") ->  | K54: =Validation!I30 ->  | M54: =Validation!N30 -> -- | N54: =IF(H54<>"", H54-setup!D29, "") ->  | P54: -- | Q54: =IF(H54<>"", IF(H54+setup!D29>100, 100, H54+setup!D29), "") -> 
A55: No. 200(75um) | D55: ='JMF CHECK'!E46 -> 5 | H55: =IF(Validation!H31<>"", ROUND(Validation!H31, 1), "") ->  | K55: =Validation!I31 ->  | M55: =Validation!N31 -> -- | N55: =IF(H55<>"", H55-setup!D30, "") ->  | P55: -- | Q55: =IF(H55<>"", IF(H55+setup!D30>100, 100, H55+setup!D30), "") ->  | R55: Number of Validation Attempts
A56: % AC Extracted | D56: ='JMF CHECK'!E47 -> 0 | H56: =IF(Validation!H32<>"", ROUND(Validation!H32, 1), "") ->  | K56: =Validation!I32 ->  | M56: =Validation!N32 -> -- | N56: =IF(H56<>"", H56-setup!D31, "") ->  | P56: -- | Q56: =IF(H56<>"", H56+setup!D31, "") ->  | U56: 1 TSR | AC56: (y/n)
A57: Dust/Pbeff | D57: ='JMF CHECK'!B43 ->  | H57: =Validation!H33 ->  | K57: =Validation!I33 ->  | M57: =Validation!N33 -> -- | N57: =setup!B32 -> 0.6 | P57: -- | Q57: =setup!C32 -> 1.6 | S57: =IF(OR('Moisture Susceptibility Design'!B19<>"",'Moisture Susceptibility Design'!L19<>""),"LWT",IF(OR('Moisture Susceptibility Design'!B79<>"",'Moisture Susceptibility Design'!L79<>""),"TSR","")) ->  | T57: =IF(OR('Moisture Susceptibility Design'!B19<>"",'Moisture Susceptibility Design'!L19<>""),"=",IF(OR('Moisture Susceptibility Design'!B79<>"",'Moisture Susceptibility Design'!L79<>""),"≥","")) ->  | U57: 3 Avg. within Jmf specs. Limits | V57: =IF(OR('Moisture Susceptibility Design'!B19<>"",'Moisture Susceptibility Design'!L19<>""),"PASS",IF(OR('Moisture Susceptibility Design'!B79<>"",'Moisture Susceptibility Design'!L79<>""),"80","")) ->  | X57: . . . . . . . . . . . . . .
A58: Gse | D58: ='JMF CHECK'!B44 -> 0 | H58: =Validation!H34 ->  | K58: =Validation!I34 ->  | S58: Each PWL Parameter | Z58: > | AA58: 71 | AB58: . . . .
A59: Pba | D59: ='JMF CHECK'!B45 ->  | H59: =Validation!H35 ->  | K59: =Validation!I35 ->  | N59: > 0.0 | S59: Avg. within JMF spec. limits | AB59: . . . .
A60: Pbe | D60: ='JMF CHECK'!B46 ->  | H60: =Validation!H36 ->  | K60: =Validation!I36 -> 
A62: Remarks: | R62: Approved By
U63: Date First Used:
S64: Date First Used
A66: =setup!S2 -> LaPave 502 v18.05.02 | AA66: =TODAY() -> 2023-03-31

Sheet JMF CHECK
G1: JMF SUPERPAVE FORM
A3: Project No. | B3: ='JMF Input'!B3 -> 0 | C3: Mix Code | D3: =IF('JMF Input'!D3="26-English",26,64) -> 26 | E3: JMF No. | F3: ='JMF Input'!F3 -> 0 | H3: SMM ID | I3: ='JMF Input'!J7 -> 0 | L3: Traffic (ADT) | M3: ='JMF Input'!K3 -> 0
A4: Project Name | B4: ='JMF Input'!B4 -> 0 | E4: Design Level | F4: ='JMF Input'!F4 -> 1 | H4: Plant Type | I4: ='JMF Input'!H4 -> 3-dryer drum | L4: Prod. Rate | M4: ='JMF Input'!K4 -> 0
A5: Project Eng. | B5: ='JMF Input'!B5 -> 0 | D5: Mix Type | E5: ='JMF Input'!E5 -> Base Course | I5: Nom Agg Size | J5: ='JMF Input'!I5 -> 1 in. | L5: Mix Temp | M5: ='JMF Input'!K5 -> 0
A6: Submitted | B6: ='JMF Input'!B6 -> 0 | D6: Mix Use | E6: ='JMF Input'!E6 -> Min - Patching | I6: Specs | J6: ='JMF Input'!I6 -> 2016 | L6: Date | M6: ='JMF Input'!N5 -> 00:00:00
A7: Contractor Mix # | B7: ='JMF Input'!B7 -> 0 | D7: SMM P/S | E7: ='JMF Input'!D7 -> 0 | L7: AC Corr Factor | M7: ='JMF Input'!K6 -> 4.137605834
A9: Source | B9: Aggregate | E9: % | F9: Apparent | H9: Bulk | I9: Abs. | J9: FAA | K9: Sand Eq. | L9: Flat & Elong | M9: CAA | N9: FR | O9: %Ret | P9: %Ret
A10: Code | B10: Type | F10: Gravity | H10: Gravity | J10: Method A | K10: - 4.75 mm | L10: %5:1 | O10: No.8 | P10: No.4
A11: =IF('JMF Input'!A11<>"",'JMF Input'!A11,"") ->  | B11: =IF('JMF Input'!B11<>"",'JMF Input'!B11,"") ->  | C11: =IF('JMF Input'!C11<>"",'JMF Input'!C11,"") ->  | D11: =IF('JMF Input'!D11<>"",'JMF Input'!D11,"") ->  | E11: =IF(ISNUMBER('JMF Input'!E11),'JMF Input'!E11, "") ->  | F11: =IFERROR(ROUND((100*H11)/(100-(IF(ISNUMBER(I11),I11,0)*H11)),setup!$M$23),"") ->  | G11: =IF(ISNUMBER('JMF Input'!E11),'JMF Input'!E11, "") ->  | H11: =IF(ISNUMBER('JMF Input'!F11),'JMF Input'!F11, "") ->  | I11: =IF(ISNUMBER('JMF Input'!G11),'JMF Input'!G11, "") ->  | J11: =IF(ISNUMBER('JMF Input'!H11),'JMF Input'!H11, "") ->  | K11: =IF(ISNUMBER('JMF Input'!I11),'JMF Input'!I11, "") ->  | L11: =IF(ISNUMBER('JMF Input'!J11),'JMF Input'!J11, "") ->  | M11: =IF(ISNUMBER('JMF Input'!K11),'JMF Input'!K11, "") ->  | N11: =IF('JMF Input'!L11<>"",'JMF Input'!L11,"") ->  | O11: =IF(ISNUMBER('JMF Input'!M11),'JMF Input'!M11, "") ->  | P11: =IF(ISNUMBER('JMF Input'!N11),'JMF Input'!N11, "") ->  | Q11: =IF('JMF Input'!O11<>"",'JMF Input'!O11,"") -> 
A12: =IF('JMF Input'!A12<>"",'JMF Input'!A12,"") ->  | B12: =IF('JMF Input'!B12<>"",'JMF Input'!B12,"") ->  | C12: =IF('JMF Input'!C12<>"",'JMF Input'!C12,"") ->  | D12: =IF('JMF Input'!D12<>"",'JMF Input'!D12,"") ->  | E12: =IF(ISNUMBER('JMF Input'!E12),'JMF Input'!E12, "") ->  | F12: =IFERROR(ROUND((100*H12)/(100-(IF(ISNUMBER(I12),I12,0)*H12)),setup!$M$23),"") ->  | G12: =IF(ISNUMBER('JMF Input'!E12),'JMF Input'!E12, "") ->  | H12: =IF(ISNUMBER('JMF Input'!F12),'JMF Input'!F12, "") ->  | I12: =IF(ISNUMBER('JMF Input'!G12),'JMF Input'!G12, "") ->  | J12: =IF(ISNUMBER('JMF Input'!H12),'JMF Input'!H12, "") ->  | K12: =IF(ISNUMBER('JMF Input'!I12),'JMF Input'!I12, "") ->  | L12: =IF(ISNUMBER('JMF Input'!J12),'JMF Input'!J12, "") ->  | M12: =IF(ISNUMBER('JMF Input'!K12),'JMF Input'!K12, "") ->  | N12: =IF('JMF Input'!L12<>"",'JMF Input'!L12,"") ->  | O12: =IF(ISNUMBER('JMF Input'!M12),'JMF Input'!M12, "") ->  | P12: =IF(ISNUMBER('JMF Input'!N12),'JMF Input'!N12, "") ->  | Q12: =IF('JMF Input'!O12<>"",'JMF Input'!O12,"") -> 
A13: =IF('JMF Input'!A13<>"",'JMF Input'!A13,"") ->  | B13: =IF('JMF Input'!B13<>"",'JMF Input'!B13,"") ->  | C13: =IF('JMF Input'!C13<>"",'JMF Input'!C13,"") ->  | D13: =IF('JMF Input'!D13<>"",'JMF Input'!D13,"") ->  | E13: =IF(ISNUMBER('JMF Input'!E13),'JMF Input'!E13, "") ->  | F13: =IFERROR(ROUND((100*H13)/(100-(IF(ISNUMBER(I13),I13,0)*H13)),setup!$M$23),"") ->  | G13: =IF(ISNUMBER('JMF Input'!E13),'JMF Input'!E13, "") ->  | H13: =IF(ISNUMBER('JMF Input'!F13),'JMF Input'!F13, "") ->  | I13: =IF(ISNUMBER('JMF Input'!G13),'JMF Input'!G13, "") ->  | J13: =IF(ISNUMBER('JMF Input'!H13),'JMF Input'!H13, "") ->  | K13: =IF(ISNUMBER('JMF Input'!I13),'JMF Input'!I13, "") ->  | L13: =IF(ISNUMBER('JMF Input'!J13),'JMF Input'!J13, "") ->  | M13: =IF(ISNUMBER('JMF Input'!K13),'JMF Input'!K13, "") ->  | N13: =IF('JMF Input'!L13<>"",'JMF Input'!L13,"") ->  | O13: =IF(ISNUMBER('JMF Input'!M13),'JMF Input'!M13, "") ->  | P13: =IF(ISNUMBER('JMF Input'!N13),'JMF Input'!N13, "") ->  | Q13: =IF('JMF Input'!O13<>"",'JMF Input'!O13,"") -> 
A14: =IF('JMF Input'!A14<>"",'JMF Input'!A14,"") ->  | B14: =IF('JMF Input'!B14<>"",'JMF Input'!B14,"") ->  | C14: =IF('JMF Input'!C14<>"",'JMF Input'!C14,"") ->  | D14: =IF('JMF Input'!D14<>"",'JMF Input'!D14,"") ->  | E14: =IF(ISNUMBER('JMF Input'!E14),'JMF Input'!E14, "") ->  | F14: =IFERROR(ROUND((100*H14)/(100-(IF(ISNUMBER(I14),I14,0)*H14)),setup!$M$23),"") ->  | G14: =IF(ISNUMBER('JMF Input'!E14),'JMF Input'!E14, "") ->  | H14: =IF(ISNUMBER('JMF Input'!F14),'JMF Input'!F14, "") ->  | I14: =IF(ISNUMBER('JMF Input'!G14),'JMF Input'!G14, "") ->  | J14: =IF(ISNUMBER('JMF Input'!H14),'JMF Input'!H14, "") ->  | K14: =IF(ISNUMBER('JMF Input'!I14),'JMF Input'!I14, "") ->  | L14: =IF(ISNUMBER('JMF Input'!J14),'JMF Input'!J14, "") ->  | M14: =IF(ISNUMBER('JMF Input'!K14),'JMF Input'!K14, "") ->  | N14: =IF('JMF Input'!L14<>"",'JMF Input'!L14,"") ->  | O14: =IF(ISNUMBER('JMF Input'!M14),'JMF Input'!M14, "") ->  | P14: =IF(ISNUMBER('JMF Input'!N14),'JMF Input'!N14, "") ->  | Q14: =IF('JMF Input'!O14<>"",'JMF Input'!O14,"") -> 
A15: =IF('JMF Input'!A15<>"",'JMF Input'!A15,"") ->  | B15: =IF('JMF Input'!B15<>"",'JMF Input'!B15,"") ->  | C15: =IF('JMF Input'!C15<>"",'JMF Input'!C15,"") ->  | D15: =IF('JMF Input'!D15<>"",'JMF Input'!D15,"") ->  | E15: =IF(ISNUMBER('JMF Input'!E15),'JMF Input'!E15, "") ->  | F15: =IFERROR(ROUND((100*H15)/(100-(IF(ISNUMBER(I15),I15,0)*H15)),setup!$M$23),"") ->  | G15: =IF(ISNUMBER('JMF Input'!E15),'JMF Input'!E15, "") ->  | H15: =IF(ISNUMBER('JMF Input'!F15),'JMF Input'!F15, "") ->  | I15: =IF(ISNUMBER('JMF Input'!G15),'JMF Input'!G15, "") ->  | J15: =IF(ISNUMBER('JMF Input'!H15),'JMF Input'!H15, "") ->  | K15: =IF(ISNUMBER('JMF Input'!I15),'JMF Input'!I15, "") ->  | L15: =IF(ISNUMBER('JMF Input'!J15),'JMF Input'!J15, "") ->  | M15: =IF(ISNUMBER('JMF Input'!K15),'JMF Input'!K15, "") ->  | N15: =IF('JMF Input'!L15<>"",'JMF Input'!L15,"") ->  | O15: =IF(ISNUMBER('JMF Input'!M15),'JMF Input'!M15, "") ->  | P15: =IF(ISNUMBER('JMF Input'!N15),'JMF Input'!N15, "") ->  | Q15: =IF('JMF Input'!O15<>"",'JMF Input'!O15,"") -> 
A16: =IF('JMF Input'!A16<>"",'JMF Input'!A16,"") ->  | B16: =IF('JMF Input'!B16<>"",'JMF Input'!B16,"") ->  | C16: =IF('JMF Input'!C16<>"",'JMF Input'!C16,"") ->  | D16: =IF('JMF Input'!D16<>"",'JMF Input'!D16,"") ->  | E16: =IF(ISNUMBER('JMF Input'!E16),'JMF Input'!E16, "") ->  | F16: =IFERROR(ROUND((100*H16)/(100-(IF(ISNUMBER(I16),I16,0)*H16)),setup!$M$23),"") ->  | G16: =IF(ISNUMBER('JMF Input'!E16),'JMF Input'!E16, "") ->  | H16: =IF(ISNUMBER('JMF Input'!F16),'JMF Input'!F16, "") ->  | I16: =IF(ISNUMBER('JMF Input'!G16),'JMF Input'!G16, "") ->  | J16: =IF(ISNUMBER('JMF Input'!H16),'JMF Input'!H16, "") ->  | K16: =IF(ISNUMBER('JMF Input'!I16),'JMF Input'!I16, "") ->  | L16: =IF(ISNUMBER('JMF Input'!J16),'JMF Input'!J16, "") ->  | M16: =IF(ISNUMBER('JMF Input'!K16),'JMF Input'!K16, "") ->  | N16: =IF('JMF Input'!L16<>"",'JMF Input'!L16,"") ->  | O16: =IF(ISNUMBER('JMF Input'!M16),'JMF Input'!M16, "") ->  | P16: =IF(ISNUMBER('JMF Input'!N16),'JMF Input'!N16, "") ->  | Q16: =IF('JMF Input'!O16<>"",'JMF Input'!O16,"") -> 
A17: =IF('JMF Input'!A17<>"",'JMF Input'!A17,"") ->  | B17: =IF('JMF Input'!B17<>"",'JMF Input'!B17,"") ->  | C17: =IF('JMF Input'!C17<>"",'JMF Input'!C17,"") ->  | D17: =IF('JMF Input'!D17<>"",'JMF Input'!D17,"") ->  | E17: =IF(ISNUMBER('JMF Input'!E17),'JMF Input'!E17, "") ->  | F17: =IFERROR(ROUND((100*H17)/(100-(IF(ISNUMBER(I17),I17,0)*H17)),setup!$M$23),"") ->  | G17: =IF(ISNUMBER('JMF Input'!E17),'JMF Input'!E17, "") ->  | H17: =IF(ISNUMBER('JMF Input'!F17),'JMF Input'!F17, "") ->  | I17: =IF(ISNUMBER('JMF Input'!G17),'JMF Input'!G17, "") ->  | J17: =IF(ISNUMBER('JMF Input'!H17),'JMF Input'!H17, "") ->  | K17: =IF(ISNUMBER('JMF Input'!I17),'JMF Input'!I17, "") ->  | L17: =IF(ISNUMBER('JMF Input'!J17),'JMF Input'!J17, "") ->  | M17: =IF(ISNUMBER('JMF Input'!K17),'JMF Input'!K17, "") ->  | N17: =IF('JMF Input'!L17<>"",'JMF Input'!L17,"") ->  | O17: =IF(ISNUMBER('JMF Input'!M17),'JMF Input'!M17, "") ->  | P17: =IF(ISNUMBER('JMF Input'!N17),'JMF Input'!N17, "") ->  | Q17: =IF('JMF Input'!O17<>"",'JMF Input'!O17,"") -> 
A18: =IF('JMF Input'!A18<>"",'JMF Input'!A18,"") ->  | B18: =IF('JMF Input'!B18<>"",'JMF Input'!B18,"") ->  | C18: =IF('JMF Input'!C18<>"",'JMF Input'!C18,"") ->  | D18: =IF('JMF Input'!D18<>"",'JMF Input'!D18,"") ->  | E18: =IF(ISNUMBER('JMF Input'!E18),'JMF Input'!E18, "") ->  | F18: =IFERROR(ROUND((100*H18)/(100-(IF(ISNUMBER(I18),I18,0)*H18)),setup!$M$23),"") ->  | G18: =IF(ISNUMBER('JMF Input'!E18),'JMF Input'!E18, "") ->  | H18: =IF(ISNUMBER('JMF Input'!F18),'JMF Input'!F18, "") ->  | I18: =IF(ISNUMBER('JMF Input'!G18),'JMF Input'!G18, "") ->  | J18: =IF(ISNUMBER('JMF Input'!H18),'JMF Input'!H18, "") ->  | K18: =IF(ISNUMBER('JMF Input'!I18),'JMF Input'!I18, "") ->  | L18: =IF(ISNUMBER('JMF Input'!J18),'JMF Input'!J18, "") ->  | M18: =IF(ISNUMBER('JMF Input'!K18),'JMF Input'!K18, "") ->  | N18: =IF('JMF Input'!L18<>"",'JMF Input'!L18,"") ->  | O18: =IF(ISNUMBER('JMF Input'!M18),'JMF Input'!M18, "") ->  | P18: =IF(ISNUMBER('JMF Input'!N18),'JMF Input'!N18, "") ->  | Q18: =IF('JMF Input'!O18<>"",'JMF Input'!O18,"") -> 
A19: =IF('JMF Input'!A19<>"",'JMF Input'!A19,"") ->  | B19: =IF('JMF Input'!B19<>"",'JMF Input'!B19,"") ->  | C19: =IF('JMF Input'!C19<>"",'JMF Input'!C19,"") ->  | D19: =IF('JMF Input'!D19<>"",'JMF Input'!D19,"") ->  | E19: =IF(ISNUMBER('JMF Input'!E19),'JMF Input'!E19, "") ->  | F19: =IFERROR(ROUND((100*H19)/(100-(IF(ISNUMBER(I19),I19,0)*H19)),setup!$M$23),"") ->  | G19: =IF(ISNUMBER('JMF Input'!E19),'JMF Input'!E19, "") ->  | H19: =IF(ISNUMBER('JMF Input'!F19),'JMF Input'!F19, "") ->  | I19: =IF(ISNUMBER('JMF Input'!G19),'JMF Input'!G19, "") ->  | J19: =IF(ISNUMBER('JMF Input'!H19),'JMF Input'!H19, "") ->  | K19: =IF(ISNUMBER('JMF Input'!I19),'JMF Input'!I19, "") ->  | L19: =IF(ISNUMBER('JMF Input'!J19),'JMF Input'!J19, "") ->  | M19: =IF(ISNUMBER('JMF Input'!K19),'JMF Input'!K19, "") ->  | N19: =IF('JMF Input'!L19<>"",'JMF Input'!L19,"") ->  | O19: =IF(ISNUMBER('JMF Input'!M19),'JMF Input'!M19, "") ->  | P19: =IF(ISNUMBER('JMF Input'!N19),'JMF Input'!N19, "") ->  | Q19: =IF('JMF Input'!O19<>"",'JMF Input'!O19,"") -> 
A20: =IF('JMF Input'!A20<>"",'JMF Input'!A20,"") ->  | B20: =IF('JMF Input'!B20<>"",'JMF Input'!B20,"") ->  | C20: =IF('JMF Input'!C20<>"",'JMF Input'!C20,"") ->  | D20: =IF('JMF Input'!D20<>"",'JMF Input'!D20,"") ->  | E20: =IF(ISNUMBER('JMF Input'!E20),'JMF Input'!E20, "") ->  | F20: =IFERROR(ROUND((100*H20)/(100-(IF(ISNUMBER(I20),I20,0)*H20)),setup!$M$23),"") ->  | G20: =IF(ISNUMBER('JMF Input'!E20),'JMF Input'!E20, "") ->  | H20: =IF(ISNUMBER('JMF Input'!F20),'JMF Input'!F20, "") ->  | I20: =IF(ISNUMBER('JMF Input'!G20),'JMF Input'!G20, "") ->  | J20: =IF(ISNUMBER('JMF Input'!H20),'JMF Input'!H20, "") ->  | K20: =IF(ISNUMBER('JMF Input'!I20),'JMF Input'!I20, "") ->  | L20: =IF(ISNUMBER('JMF Input'!J20),'JMF Input'!J20, "") ->  | M20: =IF(ISNUMBER('JMF Input'!K20),'JMF Input'!K20, "") ->  | N20: =IF('JMF Input'!L20<>"",'JMF Input'!L20,"") ->  | O20: =IF(ISNUMBER('JMF Input'!M20),'JMF Input'!M20, "") ->  | P20: =IF(ISNUMBER('JMF Input'!N20),'JMF Input'!N20, "") ->  | Q20: =IF('JMF Input'!O20<>"",'JMF Input'!O20,"") -> 
A21: Combined Aggregates Properties | E21: =SUM(E11:E20) -> 0 | F21: =ROUND((100*H21)/(100-(I21*H21)),setup!M24) -> 0 | H21: ='JMF Input'!J39 -> 0 | I21: =IF(SUMIF(I11:I20,">0",E12:E20),ROUND((IFERROR(I11*E11,0)+IFERROR(I12*E12,0)+IFERROR(I13*E13,0)+IFERROR(I14*E14,0)+IFERROR(I15*E15,0)+IFERROR(I16*E16,0)+IFERROR(I17*E17,0)+IFERROR(I18*E18,0)+IFERROR(I19*E19,0)+IFERROR(E20*I20,0))/(SUMIF(I11:I20,">0",E11:E20)),setup!M37),0) -> 0 | J21: =IF('Comp. Grad. and FAA Input'!L26<>"",ROUND('Comp. Grad. and FAA Input'!L26, setup!M33), "") ->  | K21: =IF(SUMIF(K12:K20,">0",E12:E20)>0,ROUND((IFERROR(E11*K11,0)+IFERROR(E12*K12,0)+IFERROR(E13*K13,0)+IFERROR(E14*K14,0)+IFERROR(E15*K15,0)+IFERROR(E16*K16,0)+IFERROR(K17*E17,0)+IFERROR(K18*E18,0)+IFERROR(K19*E19,0)+IFERROR(E20*K20,0))/SUMIF(K11:K20,">0",E11:E20),setup!M34),"") ->  | L21: =IF(SUMIF(L11:L20,">0",E11:E20)>0,ROUND((IFERROR(E11*L11,0)+IFERROR(E12*L12,0)+IFERROR(E13*L13,0)+IFERROR(E14*L14,0)+IFERROR(E15*L15,0)+IFERROR(E16*L16,0)+IFERROR(L17*E17,0)+IFERROR(L18*E18,0)+IFERROR(L19*E19,0)+IFERROR(E20*L20,0))/SUMIF(L11:L20,">0",E11:E20),setup!M35),0) -> 0 | M21: =IF(SUMIF(E11:E20,">0",M11:M20)>0,ROUND(SUM(IFERROR(M11*E11*O11/100,0), IFERROR(M12*E12*O12/100,0), IFERROR(M13*E13*O13/100,0), IFERROR(M14*E14*O14/100,0), IFERROR(M15*E15*O15/100,0), IFERROR(M16*E16*O16/100,0), IFERROR(M17*E17*O17/100,0), IFERROR(M18*E18*O18/100,0), IFERROR(M19*E19*O19/100,0), IFERROR(M20*E20*O20/100,0))/SUM(IFERROR(IF(M11<>"",E11*O11/100,0),0),IFERROR(IF(M12<>"",E12*O12/100,0),0),IFERROR(IF(M13<>"",E13*O13/100,0),0),IFERROR(IF(M14<>"",E14*O14/100,0),0),IFERROR(IF(M15<>"",E15*O15/100,0),0),IFERROR(IF(M16<>"",E16*O16/100,0),0),IFERROR(IF(M17<>"",E17*O17/100,0),0),IFERROR(IF(M18<>"",E18*O18/100,0),0),IFERROR(IF(M19<>"",E19*O19/100,0),0),IFERROR(IF(M20<>"",E20*O20/100,0),0)),setup!M32),"") -> 
B23: Code/Grade | C23: Material | H23: % | I23: Sp. Gravity | K23: Warm Mix Asphalt
A24: ='JMF Input'!A23 -> Asphalt | B24: ='JMF Input'!B23 -> 0 | C24: ='JMF Input'!C23 -> 0 | H24: ='JMF Input'!G23 -> 0 | I24: ='JMF Input'!H23 -> 1.03 | J24: ='JMF Input'!I23 ->  | K24: Warm Mix | L24: ='JMF Input'!K23 -> No | O24: Flag Checklist
A25: ='JMF Input'!A24 -> Alt. Asphalt | B25: =IF('JMF Input'!B24<>"",'JMF Input'!B24,"") ->  | C25: =IF('JMF Input'!C24<>"",'JMF Input'!C24,"") ->  | K25: Method | L25: =IF('JMF Input'!K24=0, "", 'JMF Input'!K24) -> None | N25: =IF(O25<>"","FAA","") ->  | O25: ='JMF Input'!H21 -> 
A26: ='JMF Input'!A25 -> Alt. Asphalt | B26: =IF('JMF Input'!B25<>"",'JMF Input'!B25,"") ->  | C26: =IF('JMF Input'!C25<>"",'JMF Input'!C25,"") ->  | K26: Rate | L26: =IF('JMF Input'!K25=0, "", 'JMF Input'!K25) ->  | N26: =IF(O26<>"","Sand Eq","") ->  | O26: ='JMF Input'!I21 -> 
A27: ='JMF Input'!A26 -> Asphalt Content from RAP | H27: ='JMF Input'!G26 -> 0 | I27: ='JMF Input'!H26 -> 1.03 | K27: If Chemical | L27: =IF('JMF Input'!K26=0, "", 'JMF Input'!K26) ->  | N27: =IF(O27<>"","Flat & Elong","") ->  | O27: ='JMF Input'!J21 -> 
A28: ='JMF Input'!A27 -> Anti-strip | B28: ='JMF Input'!B27 -> 0 | C28: ='JMF Input'!C27 -> 0 | H28: ='JMF Input'!G27 -> 0 | I28: ='JMF Input'!H27 ->  | K28: Brand Name | N28: =IF(O28<>"","CAA","") ->  | O28: ='JMF Input'!K21 -> 
N29: =IF(O29<>"","Friction","") ->  | O29: ='JMF Input'!L21 -> 
A30: Design Submitted by Contractor | K30: Draindown Control | N30: =IF(O30<>"","AC binder","") ->  | O30: ='JMF Input'!I23 -> 
A31: Average Volumetrics | K31: Fibers | L31: ='JMF Input'!K30 -> None | N31: =IF(O31<>"","% Nat Sand","") ->  | O31: ='JMF Input'!K35 ->  | T31: Use Design Voids
A32: Gmm | B32: ='Optimum AC Test Results'!$C$39 -> 0 | N32: =IF(O32<>"","% Crushed","") -> % Crushed | O32: ='JMF Input'!K38 -> %Crush MIN
A33: %Gmm,Nini | B33: ='Optimum AC Test Results'!E52 ->  | D33: ='JMF Input'!B29 -> Cold Feed | E33: ='JMF Input'!C29 -> Avg Oven Extract | H33: ='JMF Input'!E29 -> Validated Results | K33: Rate | L33: =IF('JMF Input'!K31=0,"",'JMF Input'!K31) ->  | N33: =IF(O33<>"","VFA","") ->  | O33: =IF(OR(B37<MAX(0,setup!B14), B37>MIN(setup!C14,100)),MAX(0,setup!B14)&" - " & MIN(setup!C14,100),"") -> 
A34: %Gmm,Nmax | B34: ='Optimum AC Test Results'!I58 ->  | C34: Sieve | D34: ='JMF Input'!B30 -> % Passing | E34: ='JMF Input'!C30 -> % Passing | H34: ='JMF Input'!E30 -> % Passing | I34: ='JMF Input'!F30 -> Tolerance | K34: If Chemical | L34: =IF('JMF Input'!K32=0,"",'JMF Input'!K32) ->  | N34: =IF(O34<>"","% RAP","") ->  | O34: ='JMF Input'!O38 -> 
A35: Gmb@Des,cor | B35: =(100-B38)*B32/100 -> 0 | C35: 1.5" 37.5 | D35: ='JMF Input'!B31 -> 100 | E35: ='JMF Input'!C31 -> 100 | H35: ='JMF Input'!E31 ->  | K35: Brand Name | N35: =IF(O35<>"","Design Gradn","") -> Design Gradn | O35: ='Comp. Grad. and FAA Input'!L21 -> 1" Min No 8 Min No 200 Min
A36: VMA | B36: =ROUND((100-(B35*(100-B39))/H21),setup!M27) ->  | C36: 1" 25 | D36: ='JMF Input'!B32 -> 0 | E36: ='JMF Input'!C32 -> 96.5 | H36: ='JMF Input'!E32 ->  | I36: ='JMF Input'!F32 -> -- | N36: =IF(O36<>"","Verifctn Gradn","") ->  | O36: ='Comp. Grad. and FAA Input'!T85 -> 
A37: VFA | B37: =100*(B36-B38)/B36 ->  | C37: 3/4" 19 | D37: ='JMF Input'!B33 -> 0 | E37: ='JMF Input'!C33 -> 85.1 | H37: ='JMF Input'!E33 ->  | I37: ='JMF Input'!F33 -> -- | L37: Rap 1 | M37: Rap 2 | N37: =IF(O37<>"","SCB","") -> SCB | O37: ='JMF Input'!K41 -> SCB Min
A38: %Voids | B38: =IF(T31="Use Verification Briq Voids", 'Optimum AC Test Results'!E60,'Optimum AC Test Results'!P10) -> 3.5 | C38: 1/2" 12.5 | D38: ='JMF Input'!B34 -> 0 | E38: ='JMF Input'!C34 -> 69.4 | H38: ='JMF Input'!E34 ->  | I38: ='JMF Input'!F34 -> -- | K38: Type | L38: =IF('JMF Input'!M37>0,'JMF Input'!M37,"") ->  | M38: =IF('JMF Input'!N37>0,'JMF Input'!N37,"") ->  | N38: =IF(O38<>"","LWT","") -> LWT | O38: =IF(C51<>"PASS", "LWT Check","") -> LWT Check
A39: %DesignAC | B39: ='Optimum AC Test Results'!C35 -> 0 | C39: 3/8" 9.5 | D39: ='JMF Input'!B35 -> 0 | E39: ='JMF Input'!C35 -> 62 | H39: ='JMF Input'!E35 ->  | I39: ='JMF Input'!F35 -> -- | K39: Percent | L39: =IF('JMF Input'!M38>0,'JMF Input'!M38,"") ->  | M39: =IF('JMF Input'!N38>0,'JMF Input'!N38,"") ->  | N39: =IF(O39<>"","Aggregate","") -> Aggregate | O39: =IF(E21<>100,"Agg Total Not 100%","") -> Agg Total Not 100%
A40: Gsb agg | B40: =H21 -> 0 | C40: #4 4.75 | D40: ='JMF Input'!B36 -> 0 | E40: ='JMF Input'!C36 -> 50.9 | H40: ='JMF Input'!E36 ->  | I40: ='JMF Input'!F36 -> -- | K40: Residual% | L40: =IF('JMF Input'!M39>0,'JMF Input'!M39,"") ->  | M40: =IF('JMF Input'!N39>0,'JMF Input'!N39,"") -> 
A41: Comp Temp | B41: ='JMF Input'!J40 -> 0 | C41: #8 2.36 | D41: ='JMF Input'!B37 -> 0 | E41: ='JMF Input'!C37 -> 39.2 | H41: ='JMF Input'!E37 ->  | I41: ='JMF Input'!F37 -> -- | K41: Agg % | L41: =IF('JMF Input'!M40>0,'JMF Input'!M40,"") ->  | M41: =IF('JMF Input'!N40>0,'JMF Input'!N40,"") -> 
A42: %Crushed | B42: ='JMF Input'!J38 -> 0 | C42: #16 1.18 | D42: ='JMF Input'!B38 -> 0 | E42: ='JMF Input'!C38 -> 32.4 | H42: ='JMF Input'!E38 ->  | I42: ='JMF Input'!F38 -> -- | K42: Rap AC% | L42: =IF('JMF Input'!M41>0,'JMF Input'!M41,"") ->  | M42: =IF('JMF Input'!N41>0,'JMF Input'!N41,"") -> 
A43: dust/Peff | B43: =ROUND(E46/B46,setup!M36) ->  | C43: #30 0.6 | D43: ='JMF Input'!B39 -> 0 | E43: ='JMF Input'!C39 -> 24.7 | H43: ='JMF Input'!E39 ->  | I43: ='JMF Input'!F39 -> --
A44: Gse | B44: ='Optimum AC Test Results'!C37 -> 0 | C44: #50 0.3 | D44: ='JMF Input'!B40 -> 0 | E44: ='JMF Input'!C40 -> 12 | H44: ='JMF Input'!E40 ->  | I44: ='JMF Input'!F40 -> --
A45: Pabsorb | B45: =ROUND((103*(B44-B40))/(B40*B44),setup!M37) ->  | C45: #100 0.15 | D45: ='JMF Input'!B41 -> 0 | E45: ='JMF Input'!C41 -> 7.5 | H45: ='JMF Input'!E41 ->  | I45: ='JMF Input'!F41 -> --
A46: Pbe | B46: =ROUND('JMF Input'!J37-((B45*(100-J37))/100),setup!M26) ->  | C46: #200 0.075 | D46: ='JMF Input'!B42 -> 0 | E46: ='JMF Input'!C42 -> 5 | H46: ='JMF Input'!E42 ->  | I46: ='JMF Input'!F42 -> --
A47: SCB | B47: ='JMF Input'!J41 -> 0 | C47: % Extracted AC | E47: ='JMF Input'!C44 -> 0 | H47: ='JMF Input'!E44 ->  | I47: ='JMF Input'!F44 -> --
O48: Gyr. Rev
A49: AASHTO T324 | I49: AASHTO T283 as modified by PP28 | N49: Nini | O49: ='JMF Input'!N23 -> 7
A50: Average Rut (mm) | C50: ='Moisture Susceptibility Design'!B19 ->  | J50: Control PSI | K50: ='Moisture Susceptibility Design'!B77 ->  | N50: Ndes | O50: ='JMF Input'!N24 -> 55
A51: Results (Pass/Fail) | C51: ='Moisture Susceptibility Design'!B21 -> 0 | J51: Design TSR% | K51: ='Moisture Susceptibility Design'!B79 ->  | N51: Nmax | O51: ='JMF Input'!N25 -> 90
A54: Proposal approved by: | K54: Date:
A56: Validation approved by: | K56: Date:
A58: Submitted for contractor by: | K58: Date:
A60: Remarks: | B60: ='JMF Input'!B46:O46 -> 0
A62: =setup!S2 -> LaPave 502 v18.05.02 | N62: =TODAY() -> 2023-03-31

Sheet Validation Input
A1: VALIDATION
A2: Proj. No. | F2: Design level | H2: ='JMF Input'!F4 -> 1 | I2: Mix Type | L2: Purp.Code | N2: DATE
A3: Proj. Name. | B3: ='JMF Input'!B4:C4 -> 0 | D3: JMF No. | E3: ='JMF Input'!$F$3 -> 0 | F3: Lot No. | I3: Mix Use
A4: Lot Size | D4: Start Date | G4: End Date
A5: No. Sublots | B5: =COUNT(D10:H10) -> 0 | C5: %AC | D5: ='JMF Input'!J37 -> 0 | F5: Gsb | G5: ='JMF CHECK'!H21 -> 0 | I5: Ps | J5: =100-D5 -> 100 | L5: AC Corr Factor | M5: ='JMF Input'!K6 -> 4.137605834
A6: SMM P/S | B6: ='JMF Input'!D7 -> 0 | H6: SMM ID | I6: ='JMF Input'!J7 -> 0
B8: Theoretical Maximum Specific Gravity, Gmm "Rice" Sample 1 | J8: Theoretical Maximum Specific Gravity, Gmm "Rice" Sample 2
D9: A | E9: B | F9: C | G9: D | H9: E | L9: A | M9: B | N9: C | O9: D | P9: E
B10: Wt of Mix | J10: Wt of Mix
B11: Wt of Pyc & H2O | J11: Wt of Pyc & H2O
B12: Wt of Pyc, H2O & Mix | J12: Wt of Pyc, H2O & Mix
A14: SUBLOT#A | G14: SUBLOT #B | M14: SUBLOT #C | U14: Shldr 10' | V14: 1-QC | W14: Shoulder | X14: A | Y14: ML - Wearing | Z14: =IF(OR(J3=Y14,J3=Y15,J3=Y19,J3=Y22,J3=Y23),92,89) -> 89 | AA14: Incidental Paving
A15: Gradation | B15: Wt. Retained | C15: % Passing | D15: Volumetrics | G15: Gradation | H15: Wt. Retained | I15: % Passing | J15: Volumetrics | M15: Gradation | N15: Wt. Retained | O15: % Passing | P15: Volumetrics | U15: Shldr <10' | V15: 2-Verif. | W15: Travel Lane | X15: B | Y15: ML - Binder | AA15: Wearing Course
A16: 2" 50 | C16: =IF($B$31=0," ",ROUND(100-(B16/$B$31)*100,setup!M42)) ->  | D16: Rice 1 | E16: =IF(D11>0,ROUND(D10/(D10+D11-D12),setup!M39),"") ->  | G16: 2" 50 | I16: =IF($H$31=0,"",ROUND(100-(H16/$H$31)*100,setup!M42)) ->  | J16: Rice 1 | K16: =IF(E11>0,ROUND(E10/(E10+E11-E12),setup!M39),"") ->  | M16: 2" 50 | O16: =IF($N$31=0,"",ROUND(100-(N16/$N$31)*100,setup!M42)) ->  | P16: Rice 1 | Q16: =IF(F11>0,ROUND(F10/(F10+F11-F12),setup!M39),"") ->  | U16: =IF(OR(J3="5-Wearing Shoulder",J3="11-Binder Shoulder",J3="12- Base Shoulder",J3="13- Patching Shoulder"),TRUE,FALSE) -> FALSE | V16: 3-Accept. | X16: C | Y16: ML - Base | AA16: Binder Course
A17: 1.5" 37.5 | C17: =IF($B$48=0," ",(IF(B17=0,C16,ROUND(100-(SUM($B$16:B17)/$B$31)*100,setup!M42)))) ->  | D17: Rice 2 | E17: =IF(L11>0,ROUND(L10/(L10+L11-L12),setup!M39),"") ->  | G17: 1.5" 37.5 | I17: =IF($H$31=0,"",(IF(H17=0,I16,ROUND(100-(SUM($H$16:H17)/$H$31)*100,setup!M42)))) ->  | J17: Rice 2 | K17: =IF(M11>0,ROUND(M10/(M10+M11-M12),setup!M39),"") ->  | M17: 1.5" 37.5 | O17: =IF($N$31=0,"",(IF(N17=0,O16,ROUND(100-(SUM($N$16:N17)/$N$31)*100,setup!M42)))) ->  | P17: Rice 2 | Q17: =IF(N11>0,ROUND(N10/(N10+N11-N12),setup!M39),"") ->  | V17: 4-Check | X17: D | Y17: ML - Ramp >300ft | AA17: Base Course
A18: 1" 25 | C18: =IF($B$48=0," ",(IF(B18=0,C17,ROUND(100-(SUM($B$16:B18)/$B$31)*100,setup!M42)))) ->  | G18: 1" 25 | I18: =IF($H$31=0,"",(IF(H18=0,I17,ROUND(100-(SUM($H$16:H18)/$H$31)*100,setup!M42)))) ->  | M18: 1" 25 | O18: =IF($N$31=0,"",(IF(N18=0,O17,ROUND(100-(SUM($N$16:N18)/$N$31)*100,setup!M42)))) ->  | V18: 5-Resample | Y18: ML - Interstate acc/dec | AA18: ATB
A19: 3/4" 19 | C19: =IF($B$48=0," ",(IF(B19=0,C18,ROUND(100-(SUM($B$16:B19)/$B$31)*100,setup!M42)))) ->  | E19: Brick 1 | F19: Brick 2 | G19: 3/4" 19 | I19: =IF($H$31=0,"",(IF(H19=0,I18,ROUND(100-(SUM($H$16:H19)/$H$31)*100,setup!M42)))) ->  | K19: Brick 1 | L19: Brick 2 | M19: 3/4" 19 | O19: =IF($N$31=0,"",(IF(N19=0,O18,ROUND(100-(SUM($N$16:N19)/$N$31)*100,setup!M42)))) ->  | Q19: Brick 1 | R19: Brick 2 | V19: 6-S. Approv. | Y19: ML - Center turn lane
A20: 1/2" 12.5 | C20: =IF($B$48=0," ",(IF(B20=0,C19,ROUND(100-(SUM($B$16:B20)/$B$31)*100,setup!M42)))) ->  | D20: Air | G20: 1/2" 12.5 | I20: =IF($H$31=0,"",(IF(H20=0,I19,ROUND(100-(SUM($H$16:H20)/$H$31)*100,setup!M42)))) ->  | J20: Air | M20: 1/2" 12.5 | O20: =IF($N$31=0,"",(IF(N20=0,O19,ROUND(100-(SUM($N$16:N20)/$N$31)*100,setup!M42)))) ->  | P20: Air | V20: 7-Design | Y20: ML - Airport center lane
A21: 3/8" 9.5 | C21: =IF($B$48=0," ",(IF(B21=0,C20,ROUND(100-(SUM($B$16:B21)/$B$31)*100,setup!M42)))) ->  | D21: Water | G21: 3/8" 9.5 | I21: =IF($H$31=0,"",(IF(H21=0,I20,ROUND(100-(SUM($H$16:H21)/$H$31)*100,setup!M42)))) ->  | J21: Water | M21: 3/8" 9.5 | O21: =IF($N$31=0,"",(IF(N21=0,O20,ROUND(100-(SUM($N$16:N21)/$N$31)*100,setup!M42)))) ->  | P21: Water | V21: 8-IA | Y21: Min - Shoulder > 7ft
A22: #4 4.75 | C22: =IF($B$48=0," ",(IF(B22=0,C21,ROUND(100-(SUM($B$16:B22)/$B$31)*100,setup!M42)))) ->  | D22: SSD | G22: #4 4.75 | I22: =IF($H$31=0,"",(IF(H22=0,I21,ROUND(100-(SUM($H$16:H22)/$H$31)*100,setup!M42)))) ->  | J22: SSD | M22: #4 4.75 | O22: =IF($N$31=0,"",(IF(N22=0,O21,ROUND(100-(SUM($N$16:N22)/$N$31)*100,setup!M42)))) ->  | P22: SSD | V22: 9-Pre.S.App. | Y22: Min - Shoulder
A23: #8 2.36 | C23: =IF($B$48=0," ",(IF(B23=0,C22,ROUND(100-(SUM($B$16:B23)/$B$31)*100,setup!M42)))) ->  | D23: N@int(mm) | G23: #8 2.36 | I23: =IF($H$31=0,"",(IF(H23=0,I22,ROUND(100-(SUM($H$16:H23)/$H$31)*100,setup!M42)))) ->  | J23: N@int(mm) | M23: #8 2.36 | O23: =IF($N$31=0,"",(IF(N23=0,O22,ROUND(100-(SUM($N$16:N23)/$N$31)*100,setup!M42)))) ->  | P23: N@int(mm) | Y23: Min - Patching
A24: #16 1.18 | C24: =IF($B$48=0," ",(IF(B24=0,C23,ROUND(100-(SUM($B$16:B24)/$B$31)*100,setup!M42)))) ->  | D24: N@des(mm) | G24: #16 1.18 | I24: =IF($H$31=0,"",(IF(H24=0,I23,ROUND(100-(SUM($H$16:H24)/$H$31)*100,setup!M42)))) ->  | J24: N@des(mm) | M24: #16 1.18 | O24: =IF($N$31=0,"",(IF(N24=0,O23,ROUND(100-(SUM($N$16:N24)/$N$31)*100,setup!M42)))) ->  | P24: N@des(mm) | Y24: Min - Leveling
A25: #30 0.6 | C25: =IF($B$48=0," ",(IF(B25=0,C24,ROUND(100-(SUM($B$16:B25)/$B$31)*100,setup!M42)))) ->  | D25: N@max(mm) | G25: #30 0.6 | I25: =IF($H$31=0,"",(IF(H25=0,I24,ROUND(100-(SUM($H$16:H25)/$H$31)*100,setup!M42)))) ->  | J25: N@max(mm) | M25: #30 0.6 | O25: =IF($N$31=0,"",(IF(N25=0,O24,ROUND(100-(SUM($N$16:N25)/$N$31)*100,setup!M42)))) ->  | P25: N@max(mm) | Y25: Min - Widening
A26: #50 0.3 | C26: =IF($B$48=0," ",(IF(B26=0,C25,ROUND(100-(SUM($B$16:B26)/$B$31)*100,setup!M42)))) ->  | G26: #50 0.3 | I26: =IF($H$31=0,"",(IF(H26=0,I25,ROUND(100-(SUM($H$16:H26)/$H$31)*100,setup!M42)))) ->  | M26: #50 0.3 | O26: =IF($N$31=0,"",(IF(N26=0,O25,ROUND(100-(SUM($N$16:N26)/$N$31)*100,setup!M42)))) ->  | Y26: Min - Ramp < 300ft
A27: #100 0.15 | C27: =IF($B$48=0," ",(IF(B27=0,C26,ROUND(100-(SUM($B$16:B27)/$B$31)*100,setup!M42)))) ->  | E27: %AC Meter | G27: #100 0.15 | I27: =IF($H$31=0,"",(IF(H27=0,I26,ROUND(100-(SUM($H$16:H27)/$H$31)*100,setup!M42)))) ->  | K27: %AC Meter | M27: #100 0.15 | O27: =IF($N$31=0,"",(IF(N27=0,O26,ROUND(100-(SUM($N$16:N27)/$N$31)*100,setup!M42)))) ->  | Q27: %AC Meter | Y27: Min - Crossover
A28: #200 0.075 | C28: =IF($B$48=0," ",(IF(B28=0,C27,ROUND(100-(SUM($B$16:B28)/$B$31)*100,setup!M43)))) ->  | E28: Comp Temp | G28: #200 0.075 | I28: =IF($H$31=0,"",(IF(H28=0,I27,ROUND(100-(SUM($H$16:H28)/$H$31)*100,setup!M43)))) ->  | K28: Comp Temp | M28: #200 0.075 | O28: =IF($N$31=0,"",(IF(N28=0,O27,ROUND(100-(SUM($N$16:N28)/$N$31)*100,setup!M43)))) ->  | Q28: Comp Temp | Y28: Min - Turnout
A29: Pass | E29: Sample Taken-Tons | G29: Pass | K29: Sample Taken-Tons | M29: Pass | Q29: Sample Taken-Tons | Y29: Min - Miscellaneous
A30: Dec Loss | B30: =IF(F34>0, F34-F35,"") ->  | E30: Mix Temp | G30: Dec Loss | H30: =IF(L34>0, L34-L35,"") ->  | K30: Mix Temp | M30: Dec Loss | N30: =IF(R34>0, R34-R35,"") ->  | Q30: Mix Temp
A31: Cum. Total | B31: =SUM(B16:B30) -> 0 | D31: Antistrip | G31: Cum. Total | H31: =SUM(H16:H30) -> 0 | J31: Antistrip | M31: Cum. Total | N31: =SUM(N16:N30) -> 0 | P31: Antistrip
A32: %AC | B32: =IF(D37<>"", ROUND(D37-M5,setup!$M$45), "") ->  | G32: %AC | H32: =IF(J37<>"", ROUND(J37-M5,setup!$M$45), "") ->  | M32: %AC | N32: =IF(P37<>"", ROUND(P37-M5,setup!$M$45), "") -> 
A33: Crushed | B33: =IF(SUM(B16:B22)>0, ROUND(F37/SUM(B16:B22)*100,0),"") ->  | G33: Crushed | H33: =IF(SUM(H16:H22)>0, ROUND(L37/SUM(H16:H22)*100,0),"") ->  | M33: Crushed | N33: =IF(SUM(N16:N22)>0, ROUND(R37/SUM(N16:N22)*100,0),"") -> 
C34: =IF($U$35="No Oven Temp Corr.","Tr. Bskt", "Wt of Mix") -> Tr. Bskt | E34: Int.DryWt | I34: =IF($U$35="No Oven Temp Corr.","Tr. Bskt", "Wt of Mix") -> Tr. Bskt | K34: Int.DryWt | O34: =IF($U$35="No Oven Temp Corr.","Tr. Bskt", "Wt of Mix") -> Tr. Bskt | Q34: Int.DryWt
A35: Initial Wt | C35: =IF($U$35="No Oven Temp Corr.","Bskt+Mix w/AC", "Wt. Loss") -> Bskt+Mix w/AC | E35: AfterWash | G35: Initial Wt | I35: =IF($U$35="No Oven Temp Corr.","B+Mix w/AC", "Wt. Loss") -> B+Mix w/AC | K35: AfterWash | M35: Initial Wt | O35: =IF($U$35="No Oven Temp Corr.","B+Mix w/AC", "Wt. Loss") -> B+Mix w/AC | Q35: AfterWash | U35: No Oven Temp Corr.
A36: Final Wt | C36: =IF($U$35="No Oven Temp Corr.","Bskt minus AC", "Temp. Corr.") -> Bskt minus AC | E36: % Diff | F36: =IF(F34>0, ROUND((F34-B31)/F34*100,1),"") ->  | G36: Final Wt | I36: =IF($U$35="No Oven Temp Corr.","B minus AC", "Temp. Corr.") -> B minus AC | K36: % Diff | L36: =IF(L34>0, ROUND((L34-H31)/L34*100,1),"") ->  | M36: Final Wt | O36: =IF($U$35="No Oven Temp Corr.","B minus AC", "Temp. Corr.") -> B minus AC | Q36: % Diff | R36: =IF(R34>0, ROUND((R34-N31)/R34*100,1),"") -> 
A37: % Moisture | B37: =IF(B36>0,(B35-B36)/B36,0) -> 0 | C37: =IF($U$35="No Oven Temp Corr.","% LOSS", "% LOSS-Tmp.Cor.") -> % LOSS | D37: =IF($U$35="No Oven Temp Corr.", IF(D35>0,((D35-D36)/(D35-D34))*100, ""), IF(D34>0, D35/D34*100-D36,"")) ->  | E37: Wt. Crush | G37: % Moisture | H37: =IF(H36>0,(H35-H36)/H36,0) -> 0 | I37: =IF($U$35="No Oven Temp Corr.","% LOSS", "% LOSS-Tmp. Cor.") -> % LOSS | J37: =IF($U$35="No Oven Temp Corr.", IF(J35>0,((J35-J36)/(J35-J34))*100, ""), IF(J34>0, J35/J34*100-J36,"")) ->  | K37: Wt. Crush | M37: % Moisture | N37: =IF(N36>0,(N35-N36)/N36,0) -> 0 | O37: =IF($U$35="No Oven Temp Corr.","% LOSS", "% LOSS-Tmp. Cor.") -> % LOSS | P37: =IF($U$35="No Oven Temp Corr.", IF(P35>0,((P35-P36)/(P35-P34))*100, ""), IF(P34>0, P35/P34*100-P36,"")) ->  | Q37: Wt. Crush
C38: %Loss - Moisture | D38: =IF(D37<>"",D37-B37,"") ->  | I38: %Loss - Moisture | J38: =IF(J37<>"",J37-H37,"") ->  | O38: %Loss - Moisture | P38: =IF(P37<>"",P37-N37,"") -> 
B39: SUBLOT #D | J39: SUBLOT #E
B40: Gradation | C40: Wt. Retained | D40: % Passing | E40: Volumetrics | J40: Gradation | K40: Wt. Retained | L40: % Passing | M40: Volumetrics
B41: 2" 50 | D41: =IF($C$56=0,"",ROUND(100-(C41/$C$56)*100,setup!M42)) ->  | E41: Rice 1 | F41: =IF(G11>0, ROUND(G10/(G10+G11-G12),setup!M39),"") ->  | J41: 2" 50 | L41: =IF($K$56=0,"",ROUND(100-(K41/$K$56)*100,setup!M42)) ->  | M41: Rice 1 | N41: =IF(H11>0,ROUND(H10/(H10+H11-H12),setup!M39),"") -> 
B42: 1.5" 37.5 | D42: =IF($C$56=0,"",(IF(C42=0,D41,ROUND(100-(SUM($C$41:C42)/$C$56)*100,setup!M42)))) ->  | E42: Rice 2 | F42: =IF(O11>0,ROUND(O10/(O10+O11-O12),setup!M39),"") ->  | J42: 1.5" 37.5 | L42: =IF($K$56=0,"",(IF(K42=0,L41,ROUND(100-(SUM($K$41:K42)/$K$56)*100,setup!M42)))) ->  | M42: Rice 2 | N42: =IF(P11>0,ROUND(P10/(P10+P11-P12),setup!M39),"") -> 
B43: 1" 25 | D43: =IF($C$56=0,"",(IF(C43=0,D42,ROUND(100-(SUM($C$41:C43)/$C$56)*100,setup!M42)))) ->  | J43: 1" 25 | L43: =IF($K$56=0,"",(IF(K43=0,L42,ROUND(100-(SUM($K$41:K43)/$K$56)*100,setup!M42)))) -> 
B44: 3/4" 19 | D44: =IF($C$56=0,"",(IF(C44=0,D43,ROUND(100-(SUM($C$41:C44)/$C$56)*100,setup!M42)))) ->  | F44: Brick 1 | G44: Brick 2 | J44: 3/4" 19 | L44: =IF($K$56=0,"",(IF(K44=0,L43,ROUND(100-(SUM($K$41:K44)/$K$56)*100,setup!M42)))) ->  | N44: Brick 1 | O44: Brick 2
B45: 1/2" 12.5 | D45: =IF($C$56=0,"",(IF(C45=0,D44,ROUND(100-(SUM($C$41:C45)/$C$56)*100,setup!M42)))) ->  | E45: Air | J45: 1/2" 12.5 | L45: =IF($K$56=0,"",(IF(K45=0,L44,ROUND(100-(SUM($K$41:K45)/$K$56)*100,setup!M42)))) ->  | M45: Air
B46: 3/8" 9.5 | D46: =IF($C$56=0,"",(IF(C46=0,D45,ROUND(100-(SUM($C$41:C46)/$C$56)*100,setup!M42)))) ->  | E46: Water | J46: 3/8" 9.5 | L46: =IF($K$56=0,"",(IF(K46=0,L45,ROUND(100-(SUM($K$41:K46)/$K$56)*100,setup!M42)))) ->  | M46: Water
B47: #4 4.75 | D47: =IF($C$56=0,"",(IF(C47=0,D46,ROUND(100-(SUM($C$41:C47)/$C$56)*100,setup!M42)))) ->  | E47: SSD | J47: #4 4.75 | L47: =IF($K$56=0,"",(IF(K47=0,L46,ROUND(100-(SUM($K$41:K47)/$K$56)*100,setup!M42)))) ->  | M47: SSD
B48: #8 2.36 | D48: =IF($C$56=0,"",(IF(C48=0,D47,ROUND(100-(SUM($C$41:C48)/$C$56)*100,setup!M42)))) ->  | E48: N@int(mm) | J48: #8 2.36 | L48: =IF($K$56=0,"",(IF(K48=0,L47,ROUND(100-(SUM($K$41:K48)/$K$56)*100,setup!M42)))) ->  | M48: N@int(mm)
B49: #16 1.18 | D49: =IF($C$56=0,"",(IF(C49=0,D48,ROUND(100-(SUM($C$41:C49)/$C$56)*100,setup!M42)))) ->  | E49: N@des(mm) | J49: #16 1.18 | L49: =IF($K$56=0,"",(IF(K49=0,L48,ROUND(100-(SUM($K$41:K49)/$K$56)*100,setup!M42)))) ->  | M49: N@des(mm)
B50: #30 0.6 | D50: =IF($C$56=0,"",(IF(C50=0,D49,ROUND(100-(SUM($C$41:C50)/$C$56)*100,setup!M42)))) ->  | E50: N@max(mm) | J50: #30 0.6 | L50: =IF($K$56=0,"",(IF(K50=0,L49,ROUND(100-(SUM($K$41:K50)/$K$56)*100,setup!M42)))) ->  | M50: N@max(mm)
B51: #50 0.3 | D51: =IF($C$56=0,"",(IF(C51=0,D50,ROUND(100-(SUM($C$41:C51)/$C$56)*100,setup!M42)))) ->  | J51: #50 0.3 | L51: =IF($K$56=0,"",(IF(K51=0,L50,ROUND(100-(SUM($K$41:K51)/$K$56)*100,setup!M42)))) -> 
B52: #100 0.15 | D52: =IF($C$56=0,"",(IF(C52=0,D51,ROUND(100-(SUM($C$41:C52)/$C$56)*100,setup!M42)))) ->  | F52: %AC Meter | J52: #100 0.15 | L52: =IF($K$56=0,"",(IF(K52=0,L51,ROUND(100-(SUM($K$41:K52)/$K$56)*100,setup!M42)))) ->  | N52: %AC Meter
B53: #200 0.075 | D53: =IF($C$56=0,"",(IF(C53=0,D52,ROUND(100-(SUM($C$41:C53)/$C$56)*100,setup!M43)))) ->  | F53: Comp Temp | J53: #200 0.075 | L53: =IF($K$56=0,"",(IF(K53=0,L52,ROUND(100-(SUM($K$41:K53)/$K$56)*100,setup!M43)))) ->  | N53: Comp Temp
B54: Pass | F54: Sample Taken-Tons | J54: Pass | N54: Sample Taken-Tons
B55: Dec Loss | C55: =IF(G59>0, G59-G60,"") ->  | F55: Mix Temp | J55: Dec Loss | K55: =IF(O59>0, O59-O60,"") ->  | N55: Mix Temp
B56: Cum. Total | C56: =SUM(C41:C55) -> 0 | E56: Antistrip | J56: Cum. Total | K56: =SUM(K41:K55) -> 0 | M56: Antistrip | U56: Wearing | V56: CL
B57: %AC | C57: =IF(E62<>"", ROUND(E62-M5,setup!$M$45), "") ->  | J57: %AC | K57: =IF(M62<>"", ROUND(M62-M5,setup!$M$45), "") ->  | U57: Binder | V57: RT CL
B58: Crushed | C58: =IF(SUM(C41:C47)>0, ROUND(G62/SUM(C41:C47)*100,0),"") ->  | J58: Crushed | K58: =IF(SUM(K41:K47)>0, ROUND(O62/SUM(K41:K47)*100,0),"") ->  | U58: Base | V58: LT CL
D59: =IF($U$35="No Oven Temp Corr.","Tr. Bskt", "Wt of Mix") -> Tr. Bskt | F59: Int.DryWt | L59: =IF($U$35="No Oven Temp Corr.","Tr. Bskt", "Wt of Mix") -> Tr. Bskt | N59: Int.DryWt | U59: Shldr >7ft | V59: RT SH
A60: Initial Wt | D60: =IF($U$35="No Oven Temp Corr.","Bskt+Mix w/AC", "Wt. Loss") -> Bskt+Mix w/AC | F60: AfterWash | I60: Initial Wt | L60: =IF($U$35="No Oven Temp Corr.","Bskt+Mix w/AC", "Wt. Loss") -> Bskt+Mix w/AC | N60: AfterWash | U60: Shldr <7ft | V60: LT SH
A61: Final Wt | D61: =IF($U$35="No Oven Temp Corr.","Bskt minus AC", "Temp. Corr.") -> Bskt minus AC | F61: % Diff | G61: =IF(G59>0, ROUND((G59-C56)/G59*100,1),"") ->  | I61: Final Wt | L61: =IF($U$35="No Oven Temp Corr.","Bskt minus AC", "Temp. Corr.") -> Bskt minus AC | N61: % Diff | O61: =IF(O59>0, ROUND((O59-K56)/O59*100,1),"") ->  | U61: Widening | V61: GD RL
A62: % Moisture | B62: =IF(B61>0,(B60-B61)/B61,0) -> 0 | D62: =IF($U$35="No Oven Temp Corr.","% LOSS", "% LOSS-Tmp. Cor.") -> % LOSS | E62: =IF($U$35="No Oven Temp Corr.", IF(E60>0,((E60-E61)/(E60-E59))*100, ""), IF(E59>0, E60/E59*100-E61,"")) ->  | F62: Wt. Crush | I62: % Moisture | J62: =IF(J61>0,(J60-J61)/J61,0) -> 0 | L62: =IF($U$35="No Oven Temp Corr.","% LOSS", "% LOSS-Tmp. Cor.") -> % LOSS | M62: =IF($U$35="No Oven Temp Corr.", IF(M60>0,((M60-M61)/(M60-M59))*100, ""), IF(M59>0, M60/M59*100-M61,"")) ->  | N62: Wt. Crush | U62: Patching
D63: %Loss - Moisture | E63: =IF(E62<>"",E62-B62,"") ->  | L63: %Loss - Moisture | M63: =IF(M62<>"",M62-J62,"") ->  | U63: Turnouts
I64: Roadway Density Cores | U64: Leveling
I65: A | J65: B | K65: C | L65: D | M65: E | U65: Crossover
H66: Use | U66: Curb
H67: Station | U67: Detour Rd
H68: Location | U68: Ramp >300ft
H69: Thickness | U69: Ramp <300ft
H70: Air | U70: Ints. Acc/Dec
H71: Water | U71: Mailbox Stop
H72: SSD | U72: Parking Lot
H73: Gmb | I73: =IF(I71>0,ROUND(I70/(I72-I71),setup!$M$40),"") ->  | J73: =IF(J71>0,ROUND(J70/(J72-J71),setup!$M$40),"") ->  | K73: =IF(K71>0,ROUND(K70/(K72-K71),setup!$M$40),"") ->  | L73: =IF(L71>0,ROUND(L70/(L72-L71),setup!$M$40),"") ->  | M73: =IF(M71>0,ROUND(M70/(M72-M71),setup!$M$40),"") ->  | U73: Bike Path
H74: Tonnage | U74: Airport Center
U75: Airport Other
A76: Remarks: | U76: Guardrail
U77: Driveways
A78: =setup!S2 -> LaPave 502 v18.05.02 | Q78: =TODAY() -> 2023-03-31 | U78: Island
U79: Incidental
U80: Joint Repair
U81: Other

Sheet Validation
F1: SUPERPAVE VALIDATION FORM | Q1: n=3 | R1: n=4 | S1: n=5 | T1: PWL | AH1: Est PWL | AI1: n=3 | AJ1: n=4 | AK1: n= 5
Q2: 0 | R2: 0 | S2: 0 | T2: 50 | AH2: 10 | AI2: 50 | AJ2: 50 | AK2: 50
A3: Project | B3: ='Validation Input'!B2 -> 0 | D3: Mix Type | E3: ='JMF Input'!E5 -> Base Course | G3: JMF No. | H3: ='Validation Input'!E3 -> 0 | K3: Date | L3: ='Validation Input'!O2 -> 00:00:00 | Q3: 0.03 | R3: 0.03 | S3: 0.03 | T3: =T2+1 -> 51 | AH3: 11 | AI3: 51 | AJ3: 50 | AK3: 50
E4: Lot | F4: ='Validation Input'!G3 -> 0 | G4: Lot Size | H4: ='Validation Input'!B4 -> 0 | Q4: 0.07 | R4: 0.06 | S4: 0.06 | T4: =T3+1 -> 52 | AH4: 12 | AI4: 52 | AJ4: 50 | AK4: 50
A5: SMM P/S | B5: ='JMF Input'!D7 -> 0 | K5: SMM ID | L5: ='JMF Input'!J7 -> 0 | Q5: 0.11 | R5: 0.09 | S5: 0.08 | T5: 53 | AH5: 13 | AI5: 53 | AJ5: 50 | AK5: 50
C6: #1 | D6: #2 | E6: #3 | F6: #4 | G6: #5 | H6: Mean | I6: StDev | J6: QL | K6: QU | L6: PWLL | M6: PWLU | N6: PWL | O6: Validate? | Q6: 0.14 | R6: 0.12 | S6: 0.11 | T6: 54 | AH6: 14 | AI6: 54 | AJ6: 50 | AK6: 50
A7: Gmm | C7: =IF('Validation Input'!E16<>"",ROUND((AVERAGE('Validation Input'!E16:'Validation Input'!E17)),setup!M39),"") ->  | D7: =IF('Validation Input'!K16<>"",ROUND(AVERAGE('Validation Input'!K16:'Validation Input'!K17),setup!M39),"") ->  | E7: =IF('Validation Input'!Q16<>"",ROUND(AVERAGE('Validation Input'!Q16:'Validation Input'!Q17),setup!M39),"") ->  | F7: =IF('Validation Input'!F41<>"",ROUND(AVERAGE('Validation Input'!F41:'Validation Input'!F42),setup!M39),"") ->  | G7: =IF('Validation Input'!N41<>"",ROUND(AVERAGE('Validation Input'!N41:'Validation Input'!N42),setup!M39),"") ->  | H7: =IF(SUM(C7:G7)>0, ROUND(AVERAGE(C7:G7),setup!M39+1),"") ->  | I7: =IF(SUM(C7:G7)>0,ROUND(STDEV(C7:G7),setup!M39+3),"") ->  | J7: =IF(AND(I7>0,I7<>""), ROUND(setup!D8/Validation!I7,2),"--") -> -- | K7: =IF(AND(I7<>"",I7>0), ROUND(setup!D8/Validation!I7,2),"--") -> -- | L7: =IF(J7="--", "--", IF(J7<0, 100, 0)+IF(J7<0, -1, 1)* IF(COUNT(C7:G7)=5, VLOOKUP(ABS(J7),$S$2:$T$51,2,TRUE)+IF(LOOKUP(ABS(J7),$S$2:$S$51)<ABS(J7),1,0), IF(COUNT(C7:G7)=4, VLOOKUP(ABS(J7),$R$2:$T$51,3,TRUE)+IF(LOOKUP(ABS(J7),$R$2:$R$51)<ABS(J7),1,0), IF(COUNT(C7:G7)=3, VLOOKUP(ABS(J7),$Q$2:$T$51,4,TRUE)+IF(LOOKUP(ABS(J7),$Q$2:$Q$51)<ABS(J7),1,0),"--")))) -> -- | M7: =IF(K7="--", "--", IF(K7<0, 100, 0)+IF(K7<0, -1, 1)* IF(COUNT(C7:G7)=5, VLOOKUP(ABS(K7),$S$2:$T$51,2,TRUE)+IF(LOOKUP(ABS(K7),$S$2:$S$51)<ABS(K7),1,0), IF(COUNT(C7:G7)=4, VLOOKUP(ABS(K7),$R$2:$T$51,3,TRUE)+IF(LOOKUP(ABS(K7),$R$2:$R$51)<ABS(K7),1,0), IF(COUNT(C7:G7)=3, VLOOKUP(ABS(K7),$Q$2:$T$51,4,TRUE)+IF(LOOKUP(ABS(K7),$Q$2:$Q$51)<ABS(K7),1,0),"--")))) -> -- | N7: =IF(AND(L7="--", M7="--"), "--", IF(L7="--", 100, L7)+IF(M7="--", 100, M7)-100) -> -- | O7: =IF(N7<71, "<71", "OK") -> OK | Q7: 0.18 | R7: 0.15 | S7: 0.14 | T7: 55 | AH7: 15 | AI7: 56 | AJ7: 50 | AK7: 50
A8: Gmb, ND | C8: =IF('Validation Input'!E22>0, ROUND(('Validation Input'!E20/('Validation Input'!E22-'Validation Input'!E21)),setup!M40),"") ->  | D8: =IF('Validation Input'!K22>0, ROUND(('Validation Input'!K20/('Validation Input'!K22-'Validation Input'!K21)),setup!M40), "") ->  | E8: =IF('Validation Input'!Q22>0, ROUND(('Validation Input'!Q20/('Validation Input'!Q22-'Validation Input'!Q21)),setup!M40),"") ->  | F8: =IF('Validation Input'!F47>0, ROUND(('Validation Input'!F45/('Validation Input'!F47-'Validation Input'!F46)),setup!M40),"") ->  | G8: =IF('Validation Input'!N47>0, ROUND(('Validation Input'!N45/('Validation Input'!N47-'Validation Input'!N46)),setup!M40), "") ->  | H8: =IF(SUM(C8:G8)>0, ROUND(AVERAGE(C8:G8),setup!$M$40+1),"") ->  | I8: =IF(SUM(C8:G8)>0,ROUND(STDEV(C8:G8),setup!$M$40+3),"") ->  | J8: -- | K8: -- | L8: =IF(J8="--", "--", IF(J8<0, 100, 0)+IF(J8<0, -1, 1)* IF(COUNT(C8:G8)=5, VLOOKUP(ABS(J8),$S$2:$T$51,2,TRUE)+IF(LOOKUP(ABS(J8),$S$2:$S$51)<ABS(J8),1,0), IF(COUNT(C8:G8)=4, VLOOKUP(ABS(J8),$R$2:$T$51,3,TRUE)+IF(LOOKUP(ABS(J8),$R$2:$R$51)<ABS(J8),1,0), IF(COUNT(C8:G8)=3, VLOOKUP(ABS(J8),$Q$2:$T$51,4,TRUE)+IF(LOOKUP(ABS(J8),$Q$2:$Q$51)<ABS(J8),1,0),"--")))) -> -- | M8: =IF(K8="--", "--", IF(K8<0, 100, 0)+IF(K8<0, -1, 1)* IF(COUNT(C8:G8)=5, VLOOKUP(ABS(K8),$S$2:$T$51,2,TRUE)+IF(LOOKUP(ABS(K8),$S$2:$S$51)<ABS(K8),1,0), IF(COUNT(C8:G8)=4, VLOOKUP(ABS(K8),$R$2:$T$51,3,TRUE)+IF(LOOKUP(ABS(K8),$R$2:$R$51)<ABS(K8),1,0), IF(COUNT(C8:G8)=3, VLOOKUP(ABS(K8),$Q$2:$T$51,4,TRUE)+IF(LOOKUP(ABS(K8),$Q$2:$Q$51)<ABS(K8),1,0),"--")))) -> -- | N8: =IF(AND(L8="--", M8="--"), "--", IF(L8="--", 100, L8)+IF(M8="--", 100, M8)-100) -> -- | Q8: 0.22 | R8: 0.18 | S8: 0.17 | T8: 56 | AH8: 16 | AI8: 57 | AJ8: 50 | AK8: 50
A9: %Gmm, NI | C9: =IF(C8<>"",ROUND((ROUND(ROUND('Validation Input'!E20/(((3.1416*150*150*'Validation Input'!E23)/4)*0.001),setup!M40)*(Validation!C8/ROUND('Validation Input'!E20/((((3.1416*150*150*'Validation Input'!E24)/4)*0.001)),setup!M40)),setup!M40)/C7)*100,setup!M41),"") ->  | D9: =IF(D8<>"",ROUND((ROUND(ROUND('Validation Input'!K20/(((3.1416*150*150*'Validation Input'!K23)/4)*0.001),setup!M40)*(Validation!D8/ROUND('Validation Input'!K20/((((3.1416*150*150*'Validation Input'!K24)/4)*0.001)),setup!M40)),setup!M40)/D7)*100,setup!M41),"") ->  | E9: =IF(E8<>"",ROUND((ROUND(ROUND('Validation Input'!Q20/(((3.1416*150*150*'Validation Input'!Q23)/4)*0.001),setup!M40)*(Validation!E8/ROUND('Validation Input'!Q20/((((3.1416*150*150*'Validation Input'!Q24)/4)*0.001)),setup!M40)),setup!M40)/E7)*100,setup!M41),"") ->  | F9: =IF(F8<>"",ROUND((ROUND(ROUND('Validation Input'!F45/(((3.1416*150*150*'Validation Input'!F48)/4)*0.001),setup!M40)*(Validation!F8/ROUND('Validation Input'!F45/((((3.1416*150*150*'Validation Input'!F49)/4)*0.001)),setup!M40)),setup!M40)/F7)*100,setup!M41),"") ->  | G9: =IF(G8<>"",ROUND((ROUND(ROUND('Validation Input'!N45/(((3.1416*150*150*'Validation Input'!N48)/4)*0.001),setup!M40)*(Validation!G8/ROUND('Validation Input'!N45/((((3.1416*150*150*'Validation Input'!N49)/4)*0.001)),setup!M40)),setup!M40)/G7)*100,setup!M41),"") ->  | H9: =IF(SUM(C9:G9)>0, ROUND(AVERAGE(C9:G9),setup!$M$41+1),"") ->  | I9: =IF(SUM(C9:G9)>0,ROUND(STDEV(C9:G9),setup!$M$41+3),"") ->  | J9: -- | K9: =IF(AND(I9<>"", Validation!I9>0), ROUND((setup!C9-Validation!H9)/Validation!I9,2), "--") -> -- | L9: -- | M9: -- | N9: =IF(AND(L9="--", M9="--"), "--", IF(L9="--", 100, L9)+IF(M9="--", 100, M9)-100) -> -- | O9: =IF(H9<>"", IF(H9>setup!C9, "Over Spec Limit", IF(N9<71, "PWL <71", "OK")), "") ->  | Q9: 0.25 | R9: 0.21 | S9: 0.2 | T9: 57 | AH9: 17 | AI9: 58 | AJ9: 50 | AK9: 50
A10: %Gmm, ND | C10: =IF(C11<>"", 100-C11, "") ->  | D10: =IF(D11<>"", 100-D11, "") ->  | G10: =IF(G11<>"", 100-G11, "") ->  | H10: =IF(SUM(C10:G10)>0, ROUND(AVERAGE(C10:G10),setup!M41+1),"") ->  | I10: =IF(SUM(C10:G10)>0,ROUND(STDEV(C10:G10),setup!$M$41+3),"") ->  | J10: =IF(AND(I10<>"", I10>0), ROUND((H10-setup!B10)/Validation!I10,2),"--") -> -- | K10: =IF(AND(I10<>"", I10>0), ROUND((setup!C10-H10)/Validation!I10,2),"--") -> -- | L10: =IF(J10="--", "--", IF(J10<0, 100, 0)+IF(J10<0, -1, 1)* IF(COUNT(C10:G10)=5, VLOOKUP(ABS(J10),$S$2:$T$51,2,TRUE)+IF(LOOKUP(ABS(J10),$S$2:$S$51)<ABS(J10),1,0), IF(COUNT(C10:G10)=4, VLOOKUP(ABS(J10),$R$2:$T$51,3,TRUE)+IF(LOOKUP(ABS(J10),$R$2:$R$51)<ABS(J10),1,0), IF(COUNT(C10:G10)=3, VLOOKUP(ABS(J10),$Q$2:$T$51,4,TRUE)+IF(LOOKUP(ABS(J10),$Q$2:$Q$51)<ABS(J10),1,0),"--")))) -> -- | M10: =IF(K10="--", "--", IF(K10<0, 100, 0)+IF(K10<0, -1, 1)* IF(COUNT(C10:G10)=5, VLOOKUP(ABS(K10),$S$2:$T$51,2,TRUE)+IF(LOOKUP(ABS(K10),$S$2:$S$51)<ABS(K10),1,0), IF(COUNT(C10:G10)=4, VLOOKUP(ABS(K10),$R$2:$T$51,3,TRUE)+IF(LOOKUP(ABS(K10),$R$2:$R$51)<ABS(K10),1,0), IF(COUNT(C10:G10)=3, VLOOKUP(ABS(K10),$Q$2:$T$51,4,TRUE)+IF(LOOKUP(ABS(K10),$Q$2:$Q$51)<ABS(K10),1,0),"--")))) -> -- | N10: =IF(AND(L10="--", M10="--"), "--", IF(L10="--", 100, L10)+IF(M10="--", 100, M10)-100) -> -- | O10: =IF(H10<>"", IF(H10>setup!C10, "Over Spec Limit", IF(H10<setup!B10, "Under Spec Limit", IF(N10<71, "PWL <71", "OK"))), "") ->  | Q10: 0.29 | R10: 0.24 | S10: 0.23 | T10: 58 | AH10: 18 | AI10: 59 | AJ10: 52 | AK10: 50
A11: %Voids | C11: =IF(C8<>"", ROUND(100*(((C7-C8)/C7)),setup!$M$49), "") ->  | D11: =IF(D8<>"", ROUND(100*(((D7-D8)/D7)),setup!$M$49), "") ->  | E11: =IF(E8<>"", ROUND(100*(((E7-E8)/E7)),setup!$M$49), "") ->  | F11: =IF(F8<>"", ROUND(100*(((F7-F8)/F7)),setup!$M$49), "") ->  | G11: =IF(G8<>"", ROUND(100*(((G7-G8)/G7)),setup!$M$49), "") ->  | H11: =IF(SUM(C11:G11)>0, ROUND(AVERAGE(C11:G11),setup!M49+1),"") ->  | I11: =IF(SUM(C11:G11)>0,ROUND(STDEV(C11:G11),setup!M49+3),"") ->  | J11: =IF(AND(I11<>"", I11>0), ROUND((H11-setup!B15)/Validation!I11,2),"--") -> -- | K11: =IF(AND(I11<>"", I11>0), ROUND((setup!C15-H11)/Validation!I11,2),"--") -> -- | L11: -- | M11: -- | N11: -- | O11: =IF(H11<>"", IF(H11>setup!C15, "Over Spec Limit", IF(H11<setup!B15, "Under Spec Limit", IF(N11<71, "PWL <71", "OK"))), "") ->  | Q11: 0.32 | R11: 0.27 | S11: 0.25 | T11: 59 | AH11: 19 | AI11: 60 | AJ11: 53 | AK11: 50
A12: VMA | C12: =IF(C8<>"", ROUND(100-((C8*'Validation Input'!$J$5)/C18),setup!$M$48), "") ->  | D12: =IF(D8<>"", ROUND(100-((D8*'Validation Input'!$J$5)/D18),setup!$M$48), "") ->  | E12: =IF(E8<>"", ROUND(100-((E8*'Validation Input'!$J$5)/E18),setup!$M$48), "") ->  | F12: =IF(F8<>"", ROUND(100-((F8*'Validation Input'!$J$5)/F18),setup!$M$48), "") ->  | G12: =IF(G8<>"", ROUND(100-((G8*'Validation Input'!$J$5)/G18),setup!$M$48), "") ->  | H12: =IF(SUM(C12:G12)>0, ROUND(AVERAGE(C12:G12),setup!M48+1),"") ->  | I12: =IF(SUM(C12:G12)>0,ROUND(STDEV(C12:G12),setup!M48+3),"") ->  | J12: =IF(AND(I12<>"",I12>0), ROUND((H12-setup!B13)/Validation!I12,2),"--") -> -- | K12: -- | L12: -- | M12: -- | N12: -- | O12: =IF(H12<>"",IF(H12<setup!B13, "Under Spec Limit", IF(N12<71, "PWL <71", "OK")), "") ->  | Q12: 0.36 | R12: 0.3 | S12: 0.28 | T12: 60 | AH12: 20 | AI12: 61 | AJ12: 53 | AK12: 50
A13: VFA | C13: =IF(C12<>"", ROUND(100*(C12-C11)/C12,setup!$M$50), "") ->  | D13: =IF(D12<>"", ROUND(100*(D12-D11)/D12,setup!$M$50), "") ->  | E13: =IF(E12<>"", ROUND(100*(E12-E11)/E12,setup!$M$50), "") ->  | F13: =IF(F12<>"", ROUND(100*(F12-F11)/F12,setup!$M$50), "") ->  | G13: =IF(G12<>"", ROUND(100*(G12-G11)/G12,setup!$M$50), "") ->  | H13: =IF(SUM(C13:G13)>0, ROUND(AVERAGE(C13:G13),setup!M50+1),"") ->  | I13: =IF(SUM(C13:G13)>0,ROUND(STDEV(C13:G13),setup!M50+3),"") ->  | J13: =IF(AND(I13<>"",I13>0), ROUND((H13-setup!B14)/Validation!I13,2),"--") -> -- | K13: =IF(AND(I13<>"", I13>0), ROUND((setup!C14-H13)/Validation!I13,2),"--") -> -- | L13: -- | M13: -- | N13: -- | O13: =IF(H13<>"", IF(H13>setup!C14, "Over Spec Limit", IF(H13<setup!B14, "Under Spec Limit", IF(N13<71, "PWL <71", IF(P13>0, "Indiv. out of spec.", "OK")))), "") ->  | P13: =COUNTIF(C13:G13,">"&setup!C14)+COUNTIF(C13:G13,"<"&setup!B14) -> 0 | Q13: 0.39 | R13: 0.33 | S13: 0.31 | T13: 61 | V13: Luanna recommended all gradations to one decimal to avoid standard deviation = 0. | AH13: 21 | AI13: 62 | AJ13: 54 | AK13: 50
A14: Gmb, NM | C14: =IF('Validation Input'!F22>0,ROUND('Validation Input'!F20/('Validation Input'!F22-'Validation Input'!F21),setup!M40),"") ->  | D14: =IF('Validation Input'!L22>0,ROUND('Validation Input'!L20/('Validation Input'!L22-'Validation Input'!L21),setup!M40),"") ->  | E14: =IF('Validation Input'!R22>0,ROUND('Validation Input'!R20/('Validation Input'!R22-'Validation Input'!R21),setup!M40),"") ->  | F14: =IF('Validation Input'!G47>0,ROUND('Validation Input'!G45/('Validation Input'!G47-'Validation Input'!G46),setup!M40),"") ->  | G14: =IF('Validation Input'!O47>0, ROUND('Validation Input'!O45/('Validation Input'!O47-'Validation Input'!O46),setup!M40),"") ->  | H14: =IF(SUM(C14:G14)>0, ROUND(AVERAGE(C14:G14),setup!$M$40+1),"") ->  | I14: =IF(SUM(C14:G14)>0,ROUND(STDEV(C14:G14),setup!$M$40+3),"") ->  | J14: -- | K14: -- | L14: -- | M14: -- | N14: -- | Q14: 0.43 | R14: 0.36 | S14: 0.34 | T14: 62 | AH14: 22 | AI14: 63 | AJ14: 56 | AK14: 50
A15: %Gmm, NM | C15: =IF(C14<>"", ROUND(100*(C14/C7),setup!$M$41), "") ->  | D15: =IF(D14<>"", ROUND(100*(D14/D7),setup!$M$41), "") ->  | E15: =IF(E14<>"", ROUND(100*(E14/E7),setup!$M$41), "") ->  | F15: =IF(F14<>"", ROUND(100*(F14/F7),setup!$M$41), "") ->  | G15: =IF(G14<>"", ROUND(100*(G14/G7),setup!$M$41), "") ->  | H15: =IF(SUM(C15:G15)>0, ROUND(AVERAGE(C15:G15),setup!$M$41+1),"") ->  | I15: =IF(SUM(C15:G15)>0,ROUND(STDEV(C15:G15),setup!$M$41+3),"") ->  | J15: -- | K15: =IF(AND(I15<>"", I15>0), ROUND((setup!C11-H15)/Validation!I15,2),"--") -> -- | L15: -- | M15: -- | N15: -- | O15: =IF(H15<>"", IF(H15>setup!C11, "Over Spec Limit", IF(N15<71, "PWL <71", "OK")), "") ->  | Q15: 0.46 | R15: 0.39 | S15: 0.37 | T15: 63 | AH15: 23 | AI15: 64 | AJ15: 58 | AK15: 50
A16: slope | C16: =IF(C10<>"", ROUND((C10-C9)/(LOG('JMF Input'!$N$24)-LOG('JMF Input'!$N$23)),2), "") ->  | D16: =IF(D10<>"", ROUND((D10-D9)/(LOG('JMF Input'!$N$24)-LOG('JMF Input'!$N$23)),2), "") ->  | E16: =IF(E10<>"", ROUND((E10-E9)/(LOG('JMF Input'!$N$24)-LOG('JMF Input'!$N$23)),2), "") ->  | F16: =IF(F10<>"", ROUND((F10-F9)/(LOG('JMF Input'!$N$24)-LOG('JMF Input'!$N$23)),2), "") ->  | G16: =IF(G10<>"", ROUND((G10-G9)/(LOG('JMF Input'!$N$24)-LOG('JMF Input'!$N$23)),2), "") ->  | H16: =IF(SUM(C16:G16)>0, ROUND(AVERAGE(C16:G16),setup!$M$40+1),"") ->  | I16: =IF(SUM(C16:G16)>0,ROUND(STDEV(C16:G16),setup!$M$40+3),"") ->  | J16: -- | K16: -- | L16: -- | M16: -- | N16: -- | Q16: 0.49 | R16: 0.42 | S16: 0.4 | T16: 64 | V16: Minor Pay | AH16: 24 | AI16: 66 | AJ16: 59 | AK16: 50
A17: correction factor | C17: =IF('Validation Input'!E24>0,ROUND(C8/ROUND('Validation Input'!E20/(((3.1416*150*150*'Validation Input'!E24)/4)*0.001),setup!M66),4),"") ->  | D17: =IF('Validation Input'!K24>0,ROUND(D8/ROUND('Validation Input'!K20/(((3.1416*150*150*'Validation Input'!K24)/4)*0.001),setup!N66),4),"") ->  | E17: =IF('Validation Input'!Q24>0,ROUND(E8/ROUND('Validation Input'!Q20/(((3.1416*150*150*'Validation Input'!Q24)/4)*0.001),setup!O66),4),"") ->  | F17: =IF('Validation Input'!F49>0,ROUND(F8/ROUND('Validation Input'!F45/(((3.1416*150*150*'Validation Input'!F49)/4)*0.001),setup!P66),4),"") ->  | G17: =IF('Validation Input'!N49>0,ROUND(G8/ROUND('Validation Input'!N45/(((3.1416*150*150*'Validation Input'!N49)/4)*0.001),setup!Q66),4),"") ->  | H17: =IF(SUM(C17:G17)>0, ROUND(AVERAGE(C17:G17),setup!$M$41+1),"") ->  | I17: =IF(SUM(C17:G17)>0,ROUND(STDEV(C17:G17),setup!$M$41+3),"") ->  | J17: -- | K17: -- | L17: -- | M17: -- | N17: -- | Q17: 0.53 | R17: 0.45 | S17: 0.43 | T17: =T16+1 -> 65 | V17: Mainline %Gmm | X17: =">="&setup!B34 -> >=92 | Y17: =setup!B34-0.1&" to "&setup!B34-1.9 -> 91.9 to 90.1 | Z17: ="<="&setup!B34-2 -> <=90 | AH17: 25 | AI17: 67 | AJ17: 60 | AK17: 52
A18: Gsb agg | C18: =IF(C7<>"", 'Validation Input'!$G$5,"") ->  | D18: =IF(D7<>"", 'Validation Input'!$G$5,"") ->  | E18: =IF(E7<>"", 'Validation Input'!$G$5,"") ->  | F18: =IF(F7<>"", 'Validation Input'!$G$5,"") ->  | G18: =IF(G7<>"", 'Validation Input'!$G$5,"") ->  | H18: =IF(SUM(C18:G18)>0, ROUND(AVERAGE(C18:G18),setup!$M$40+1),"") ->  | I18: =IF(SUM(C18:G18)>0,ROUND(STDEV(C18:G18),setup!$M$40+3),"") ->  | J18: -- | K18: -- | L18: -- | M18: -- | N18: -- | Q18: 0.56 | R18: 0.48 | S18: 0.46 | T18: 66 | V18: Minor %Gmm | X18: =">="&setup!B35 -> >=90 | Y18: =setup!B35-0.1&" to "&setup!B35-1.9 -> 89.9 to 88.1 | Z18: ="<="&setup!B35-2 -> <=88 | AH18: 26 | AI18: 68 | AJ18: 61 | AK18: 55
A19: 2" 50 | C19: =IF('Validation Input'!C16>0, 'Validation Input'!C16, "") ->  | D19: =IF('Validation Input'!I16>0, 'Validation Input'!I16, "") ->  | E19: =IF('Validation Input'!O16>0, 'Validation Input'!O16, "") ->  | F19: =IF('Validation Input'!D41>0, 'Validation Input'!D41, "") ->  | G19: =IF('Validation Input'!L41>0, 'Validation Input'!L41, "") ->  | H19: =IF(SUM(C19:G19)>0, ROUND(AVERAGE(C19:G19),setup!$M$42+1),"") ->  | I19: =IF(SUM(C19:G19)>0,ROUND(STDEV(C19:G19),setup!$M$42+3),"") ->  | J19: =IF(AND(I19<>"", I19>0), ROUND((setup!D18)/Validation!I19,2),"--") -> -- | K19: =IF(AND(I19<>"", I19>0), ROUND((IF(Validation!H19+setup!D18>100,100,Validation!H19+setup!D18)-H19)/Validation!I19,2),"--") -> -- | L19: -- | M19: -- | N19: -- | Q19: 0.59 | R19: 0.51 | S19: 0.49 | T19: 67 | V19: % Pay | X19: 100 | Y19: 90 | Z19: 80 or remove | AH19: 27 | AI19: 69 | AJ19: 62 | AK19: 57
A20: 1.5" 37.5 | C20: =IF('Validation Input'!C17>0, 'Validation Input'!C17, "") ->  | D20: =IF('Validation Input'!I17>0, 'Validation Input'!I17, "") ->  | E20: =IF('Validation Input'!O17>0, 'Validation Input'!O17, "") ->  | F20: =IF('Validation Input'!D42>0, 'Validation Input'!D42, "") ->  | G20: =IF('Validation Input'!L42>0, 'Validation Input'!L42, "") ->  | H20: =IF(SUM(C20:G20)>0, ROUND(AVERAGE(C20:G20),setup!$M$42+1),"") ->  | I20: =IF(SUM(C20:G20)>0,ROUND(STDEV(C20:G20),setup!$M$42+3),"") ->  | J20: =IF(AND(I20<>"", I20>0), ROUND((setup!D19)/Validation!I20,2),"--") -> -- | K20: =IF(AND(I20<>"", I20>0), ROUND((IF(Validation!H20+setup!D19>100,100,Validation!H20+setup!D19)-H20)/Validation!I20,2),"--") -> -- | L20: -- | M20: -- | N20: -- | Q20: 0.62 | R20: 0.54 | S20: 0.52 | T20: 68 | AH20: 28 | AI20: 70 | AJ20: 64 | AK20: 58
A21: 1" 25 | C21: =IF('Validation Input'!C18>0, 'Validation Input'!C18, "") ->  | D21: =IF('Validation Input'!I18>0, 'Validation Input'!I18, "") ->  | E21: =IF('Validation Input'!O18>0, 'Validation Input'!O18, "") ->  | F21: =IF('Validation Input'!D43>0, 'Validation Input'!D43, "") ->  | G21: =IF('Validation Input'!L43>0, 'Validation Input'!L43, "") ->  | H21: =IF(SUM(C21:G21)>0, ROUND(AVERAGE(C21:G21),setup!$M$42+1),"") ->  | I21: =IF(SUM(C21:G21)>0,ROUND(STDEV(C21:G21),setup!$M$42+3),"") ->  | J21: =IF(AND(I21<>"", I21>0), ROUND((setup!D20)/Validation!I21,2),"--") -> -- | K21: =IF(AND(I21<>"", I21>0), ROUND((IF(Validation!H21+setup!D20>100,100,Validation!H21+setup!D20)-H21)/Validation!I21,2),"--") -> -- | L21: =IF(J21="--", "--", IF(J21<0, 100, 0)+IF(J21<0, -1, 1)* IF(COUNT(C21:G21)=5, VLOOKUP(ABS(J21),$S$2:$T$51,2,TRUE)+IF(LOOKUP(ABS(J21),$S$2:$S$51)<ABS(J21),1,0), IF(COUNT(C21:G21)=4, VLOOKUP(ABS(J21),$R$2:$T$51,3,TRUE)+IF(LOOKUP(ABS(J21),$R$2:$R$51)<ABS(J21),1,0), IF(COUNT(C21:G21)=3, VLOOKUP(ABS(J21),$Q$2:$T$51,4,TRUE)+IF(LOOKUP(ABS(J21),$Q$2:$Q$51)<ABS(J21),1,0),"--")))) -> -- | M21: -- | N21: -- | O21: =IF(H21<>"", IF(OR(setup!C20<>"", setup!B20<>""), IF(AND(H21>setup!C20, setup!C20<>""), "Over Spec Limit", IF(AND(H21<setup!B20, setup!B20<>""), "Under Spec Limit", "OK")),""),"") ->  | Q21: 0.65 | R21: 0.57 | S21: 0.55 | T21: 69 | AH21: 29 | AI21: 71 | AJ21: 65 | AK21: 59
A22: 3/4" 19 | C22: =IF('Validation Input'!C19>0, 'Validation Input'!C19, "") ->  | D22: =IF('Validation Input'!I19>0, 'Validation Input'!I19, "") ->  | E22: =IF('Validation Input'!O19>0, 'Validation Input'!O19, "") ->  | F22: =IF('Validation Input'!D44>0, 'Validation Input'!D44, "") ->  | G22: =IF('Validation Input'!L44>0, 'Validation Input'!L44, "") ->  | H22: =IF(SUM(C22:G22)>0, ROUND(AVERAGE(C22:G22),setup!$M$42+1),"") ->  | I22: =IF(SUM(C22:G22)>0,ROUND(STDEV(C22:G22),setup!$M$42+3),"") ->  | J22: =IF(AND(I22<>"", I22>0), ROUND((setup!D21)/Validation!I22,2),"--") -> -- | K22: =IF(AND(I22<>"", I22>0), ROUND((IF(Validation!H22+setup!D21>100,100,Validation!H22+setup!D21)-H22)/Validation!I22,2),"--") -> -- | L22: -- | M22: -- | N22: =IF(AND(L22="--", M22="--"), "--", IF(L22="--", 100, L22)+IF(M22="--", 100, M22)-100) -> -- | O22: =IF(H22<>"", IF(OR(setup!C21<>"", setup!B21<>""), IF(AND(H22>setup!C21, setup!C21<>""), "Over Spec Limit", IF(AND(H22<setup!B21, setup!B21<>""), "Under Spec Limit", "OK")),""),"") ->  | Q22: 0.68 | R22: 0.6 | S22: 0.58 | T22: 70 | AH22: 30 | AI22: 72 | AJ22: 66 | AK22: 61
A23: 1/2" 12.5 | C23: =IF('Validation Input'!C20>0, 'Validation Input'!C20, "") ->  | D23: =IF('Validation Input'!I20>0, 'Validation Input'!I20, "") ->  | E23: =IF('Validation Input'!O20>0, 'Validation Input'!O20, "") ->  | F23: =IF('Validation Input'!D45>0, 'Validation Input'!D45, "") ->  | G23: =IF('Validation Input'!L45>0, 'Validation Input'!L45, "") ->  | H23: =IF(SUM(C23:G23)>0, ROUND(AVERAGE(C23:G23),setup!$M$42+1),"") ->  | I23: =IF(SUM(C23:G23)>0,ROUND(STDEV(C23:G23),setup!$M$42+3),"") ->  | J23: =IF(AND(I23<>"", I23>0), ROUND((setup!D22)/Validation!I23,2),"--") -> -- | K23: =IF(AND(I23<>"", I23>0), ROUND((IF(Validation!H23+setup!D22>100,100,Validation!H23+setup!D22)-H23)/Validation!I23,2),"--") -> -- | L23: =IF(J23="--", "--", IF(J23<0, 100, 0)+IF(J23<0, -1, 1)* IF(COUNT(C23:G23)=5, VLOOKUP(ABS(J23),$S$2:$T$51,2,TRUE)+IF(LOOKUP(ABS(J23),$S$2:$S$51)<ABS(J23),1,0), IF(COUNT(C23:G23)=4, VLOOKUP(ABS(J23),$R$2:$T$51,3,TRUE)+IF(LOOKUP(ABS(J23),$R$2:$R$51)<ABS(J23),1,0), IF(COUNT(C23:G23)=3, VLOOKUP(ABS(J23),$Q$2:$T$51,4,TRUE)+IF(LOOKUP(ABS(J23),$Q$2:$Q$51)<ABS(J23),1,0),"--")))) -> -- | M23: -- | N23: -- | O23: =IF(H23<>"", IF(OR(setup!C22<>"", setup!B22<>""), IF(AND(H23>setup!C22, setup!C22<>""), "Over Spec Limit", IF(AND(H23<setup!B22, setup!B22<>""), "Under Spec Limit", "OK")),""),"") ->  | Q23: 0.71 | R23: 0.63 | S23: 0.6 | T23: 71 | AH23: 31 | AI23: 73 | AJ23: 67 | AK23: 62
A24: 3/8" 9.5 | C24: =IF('Validation Input'!C21>0, 'Validation Input'!C21, "") ->  | D24: =IF('Validation Input'!I21>0, 'Validation Input'!I21, "") ->  | E24: =IF('Validation Input'!O21>0, 'Validation Input'!O21, "") ->  | F24: =IF('Validation Input'!D46>0, 'Validation Input'!D46, "") ->  | G24: =IF('Validation Input'!L46>0, 'Validation Input'!L46, "") ->  | H24: =IF(SUM(C24:G24)>0, ROUND(AVERAGE(C24:G24),setup!$M$42+1),"") ->  | I24: =IF(SUM(C24:G24)>0,ROUND(STDEV(C24:G24),setup!$M$42+3),"") ->  | J24: =IF(AND(I24<>"", I24>0), ROUND((setup!D23)/Validation!I24,2),"--") -> -- | K24: =IF(AND(I24<>"", I24>0), ROUND((IF(Validation!H24+setup!D23>100,100,Validation!H24+setup!D23)-H24)/Validation!I24,2),"--") -> -- | L24: -- | M24: -- | N24: -- | O24: =IF(H24<>"", IF(OR(setup!C23<>"", setup!B23<>""), IF(AND(H24>setup!C23, setup!C23<>""), "Over Spec Limit", IF(AND(H24<setup!B23, setup!B23<>""), "Under Spec Limit", "OK")),""),"") ->  | Q24: 0.74 | R24: 0.66 | S24: 0.64 | T24: 72 | AH24: 32 | AI24: 74 | AJ24: 69 | AK24: 63
A25: #4 4.75 | C25: =IF('Validation Input'!C22>0, 'Validation Input'!C22, "") ->  | D25: =IF('Validation Input'!I22>0, 'Validation Input'!I22, "") ->  | E25: =IF('Validation Input'!O22>0, 'Validation Input'!O22, "") ->  | F25: =IF('Validation Input'!D47>0, 'Validation Input'!D47, "") ->  | G25: =IF('Validation Input'!L47>0, 'Validation Input'!L47, "") ->  | H25: =IF(SUM(C25:G25)>0, ROUND(AVERAGE(C25:G25),setup!$M$42+1),"") ->  | I25: =IF(SUM(C25:G25)>0,ROUND(STDEV(C25:G25),setup!$M$42+3),"") ->  | J25: =IF(AND(I25<>"", I25>0), ROUND((setup!D24)/Validation!I25,2),"--") -> -- | K25: =IF(AND(I25<>"", I25>0), ROUND((IF(Validation!H25+setup!D24>100,100,Validation!H25+setup!D24)-H25)/Validation!I25,2),"--") -> -- | L25: -- | M25: -- | N25: -- | O25: =IF(H25<>"", IF(OR(setup!C24<>"", setup!B24<>""), IF(AND(H25>setup!C24, setup!C24<>""), "Over Spec Limit", IF(AND(H25<setup!B24, setup!B24<>""), "Under Spec Limit", "OK")),""),"") ->  | Q25: 0.77 | R25: 0.69 | S25: 0.67 | T25: 73 | AH25: 33 | AI25: 75 | AJ25: 70 | AK25: 65
A26: #8 2.36 | C26: =IF('Validation Input'!C23>0, 'Validation Input'!C23, "") ->  | D26: =IF('Validation Input'!I23>0, 'Validation Input'!I23, "") ->  | E26: =IF('Validation Input'!O23>0, 'Validation Input'!O23, "") ->  | F26: =IF('Validation Input'!D48>0, 'Validation Input'!D48, "") ->  | G26: =IF('Validation Input'!L48>0, 'Validation Input'!L48, "") ->  | H26: =IF(SUM(C26:G26)>0, ROUND(AVERAGE(C26:G26),setup!$M$42+1),"") ->  | I26: =IF(SUM(C26:G26)>0,ROUND(STDEV(C26:G26),setup!$M$42+3),"") ->  | J26: =IF(AND(I26<>"",I26>0), ROUND((setup!D25)/Validation!I26,2),"--") -> -- | K26: =IF(AND(I26<>"", I26>0), ROUND((IF(Validation!H26+setup!D25>100,100,Validation!H26+setup!D25)-H26)/Validation!I26,2),"--") -> -- | L26: -- | M26: -- | N26: -- | O26: =IF(H26<>"", IF(OR(setup!C25<>"", setup!B25<>""), IF(AND(H26>setup!C25, setup!C25<>""), "Over Spec Limit", IF(AND(H26<setup!B25, setup!B25<>""), "Under Spec Limit", IF(N26<71, "PWL <71", "OK"))),IF(N26<71, "PWL <71", "OK")),"") ->  | Q26: 0.79 | R26: 0.72 | S26: 0.7 | T26: 74 | AH26: 34 | AI26: 76 | AJ26: 71 | AK26: 66
A27: #16 1.18 | C27: =IF('Validation Input'!C24>0, 'Validation Input'!C24, "") ->  | D27: =IF('Validation Input'!I24>0, 'Validation Input'!I24, "") ->  | E27: =IF('Validation Input'!O24>0, 'Validation Input'!O24, "") ->  | F27: =IF('Validation Input'!D49>0, 'Validation Input'!D49, "") ->  | G27: =IF('Validation Input'!L49>0, 'Validation Input'!L49, "") ->  | H27: =IF(SUM(C27:G27)>0, ROUND(AVERAGE(C27:G27),setup!$M$42+1),"") ->  | I27: =IF(SUM(C27:G27)>0,ROUND(STDEV(C27:G27),setup!$M$42+3),"") ->  | J27: =IF(AND(I27<>"", I27>0), ROUND((setup!D26)/Validation!I27,2),"--") -> -- | K27: =IF(AND(I27<>"", I27>0), ROUND((IF(Validation!H27+setup!D26>100,100,Validation!H27+setup!D26)-H27)/Validation!I27,2),"--") -> -- | L27: -- | M27: -- | N27: =IF(AND(L27="--", M27="--"), "--", IF(L27="--", 100, L27)+IF(M27="--", 100, M27)-100) -> -- | O27: =IF(H27<>"", IF(OR(setup!C26<>"", setup!B26<>""), IF(AND(H27>setup!C26, setup!C26<>""), "Over Spec Limit", IF(AND(H27<setup!B26, setup!B26<>""), "Under Spec Limit", "OK")),""),"") ->  | Q27: 0.82 | R27: 0.75 | S27: 0.73 | T27: 75 | AH27: 35 | AI27: 77 | AJ27: 72 | AK27: 67
A28: #30 0.60 | C28: =IF('Validation Input'!C25>0, 'Validation Input'!C25, "") ->  | D28: =IF('Validation Input'!I25>0, 'Validation Input'!I25, "") ->  | E28: =IF('Validation Input'!O25>0, 'Validation Input'!O25, "") ->  | F28: =IF('Validation Input'!D50>0, 'Validation Input'!D50, "") ->  | G28: =IF('Validation Input'!L50>0, 'Validation Input'!L50, "") ->  | H28: =IF(SUM(C28:G28)>0, ROUND(AVERAGE(C28:G28),setup!$M$42+1),"") ->  | I28: =IF(SUM(C28:G28)>0,ROUND(STDEV(C28:G28),setup!$M$42+3),"") ->  | J28: =IF(AND(I28<>"", I28>0), ROUND((setup!D27)/Validation!I28,2),"--") -> -- | K28: =IF(AND(I28<>"", I28>0), ROUND((IF(Validation!H28+setup!D27>100,100,Validation!H28+setup!D27)-H28)/Validation!I28,2),"--") -> -- | L28: -- | M28: -- | N28: -- | O28: =IF(H28<>"", IF(OR(setup!C27<>"", setup!B27<>""), IF(AND(H28>setup!C27, setup!C27<>""), "Over Spec Limit", IF(AND(H28<setup!B27, setup!B27<>""), "Under Spec Limit", "OK")),""),"") ->  | Q28: 0.84 | R28: 0.78 | S28: 0.76 | T28: 76 | AH28: 36 | AI28: 78 | AJ28: 73 | AK28: 68
A29: #50 0.30 | C29: =IF('Validation Input'!C26>0, 'Validation Input'!C26, "") ->  | D29: =IF('Validation Input'!I26>0, 'Validation Input'!I26, "") ->  | E29: =IF('Validation Input'!O26>0, 'Validation Input'!O26, "") ->  | F29: =IF('Validation Input'!D51>0, 'Validation Input'!D51, "") ->  | G29: =IF('Validation Input'!L51>0, 'Validation Input'!L51, "") ->  | H29: =IF(SUM(C29:G29)>0, ROUND(AVERAGE(C29:G29),setup!$M$42+1),"") ->  | I29: =IF(SUM(C29:G29)>0,ROUND(STDEV(C29:G29),setup!$M$42+3),"") ->  | J29: =IF(AND(I29<>"", I29>0), ROUND((setup!D28)/Validation!I29,2),"--") -> -- | K29: =IF(AND(I29<>"", I29>0), ROUND((IF(Validation!H29+setup!D28>100,100,Validation!H29+setup!D28)-H29)/Validation!I29,2),"--") -> -- | L29: -- | M29: -- | N29: -- | O29: =IF(H29<>"", IF(OR(setup!C28<>"", setup!B28<>""), IF(AND(H29>setup!C28, setup!C28<>""), "Over Spec Limit", IF(AND(H29<setup!B28, setup!B28<>""), "Under Spec Limit", "OK")),""),"") ->  | Q29: 0.87 | R29: 0.81 | S29: 0.79 | T29: 77 | AH29: 37 | AI29: 79 | AJ29: 74 | AK29: 70
A30: #100 0.15 | C30: =IF('Validation Input'!C27>0, 'Validation Input'!C27, "") ->  | D30: =IF('Validation Input'!I27>0, 'Validation Input'!I27, "") ->  | E30: =IF('Validation Input'!O27>0, 'Validation Input'!O27, "") ->  | F30: =IF('Validation Input'!D52>0, 'Validation Input'!D52, "") ->  | G30: =IF('Validation Input'!L52>0, 'Validation Input'!L52, "") ->  | H30: =IF(SUM(C30:G30)>0, ROUND(AVERAGE(C30:G30),setup!$M$42+1),"") ->  | I30: =IF(SUM(C30:G30)>0,ROUND(STDEV(C30:G30),setup!$M$42+3),"") ->  | J30: =IF(AND(I30<>"", I30>0), ROUND((setup!D29)/Validation!I30,2),"--") -> -- | K30: =IF(AND(I30<>"", I30>0), ROUND((IF(Validation!H30+setup!D29>100,100,Validation!H30+setup!D29)-H30)/Validation!I30,2),"--") -> -- | L30: -- | M30: -- | N30: -- | O30: =IF(H30<>"", IF(OR(setup!C29<>"", setup!B29<>""), IF(AND(H30>setup!C29, setup!C29<>""), "Over Spec Limit", IF(AND(H30<setup!B29, setup!B29<>""), "Under Spec Limit", "OK")),""),"") ->  | Q30: 0.89 | R30: 0.84 | S30: 0.82 | T30: 78 | AH30: 38 | AI30: 80 | AJ30: 75 | AK30: 71
A31: #200 0.075 | C31: =IF('Validation Input'!C28>0, 'Validation Input'!C28, "") ->  | D31: =IF('Validation Input'!I28>0, 'Validation Input'!I28, "") ->  | E31: =IF('Validation Input'!O28>0, 'Validation Input'!O28, "") ->  | F31: =IF('Validation Input'!D53>0, 'Validation Input'!D53, "") ->  | G31: =IF('Validation Input'!L53>0, 'Validation Input'!L53, "") ->  | H31: =IF(SUM(C31:G31)>0, ROUND(AVERAGE(C31:G31),setup!$M$43+1),"") ->  | I31: =IF(SUM(C31:G31)>0,ROUND(STDEV(C31:G31),setup!$M$43+3),"") ->  | J31: =IF(AND(I31<>"", I31>0), ROUND((setup!D30)/Validation!I31,2),"--") -> -- | K31: =IF(AND(I31<>"", I31>0), ROUND((IF(Validation!H31+setup!D30>100,100,Validation!H31+setup!D30)-H31)/Validation!I31,2),"--") -> -- | L31: -- | M31: -- | N31: -- | O31: =IF(H31<>"", IF(OR(setup!C30<>"", setup!B30<>""), IF(AND(H31>setup!C30, setup!C30<>""), "Over Spec Limit", IF(AND(H31<setup!B30, setup!B30<>""), "Under Spec Limit", IF(N31<71, "PWL <71", "OK"))),IF(N31<71, "PWL <71", "OK")),"") ->  | Q31: 0.92 | R31: 0.87 | S31: 0.85 | T31: 79 | AH31: 39 | AI31: 81 | AJ31: 76 | AK31: 72
A32: %AC | C32: =IF('Validation Input'!B32<>"",ROUND('Validation Input'!B32,setup!M45),"") ->  | D32: =IF('Validation Input'!H32<>"",ROUND('Validation Input'!H32,setup!M45),"") ->  | E32: =IF('Validation Input'!N32<>"",ROUND('Validation Input'!N32,setup!M45),"") ->  | F32: =IF('Validation Input'!C57<>"",ROUND('Validation Input'!C57,setup!M45),"") ->  | G32: =IF('Validation Input'!K57<>"",ROUND('Validation Input'!K57,setup!M45),"") ->  | H32: =IF(SUM(C32:G32)>0, ROUND(AVERAGE(C32:G32),setup!M45+1),"") ->  | I32: =IF(SUM(C32:G32)>0,ROUND(STDEV(C32:G32),setup!M45+3),"") ->  | J32: =IF(AND(I32<>"", I32>0), ROUND(setup!D31/Validation!I32,2),"--") -> -- | K32: =IF(AND(I32<>"", I32>0), ROUND(setup!D31/Validation!I32,2),"--") -> -- | L32: -- | M32: -- | N32: -- | Q32: 0.94 | R32: 0.9 | S32: 0.88 | T32: 80 | AH32: 40 | AI32: 82 | AJ32: 77 | AK32: 74
A33: dust/Peff | C33: =IF(AND('Validation Input'!C28<>"", C36<>""),ROUND('Validation Input'!C28/C36,setup!M46),"") ->  | D33: =IF(AND('Validation Input'!I28<>"", D36<>""),ROUND('Validation Input'!I28/D36,setup!M46),"") ->  | E33: =IF(AND('Validation Input'!O28<>"", E36<>""),ROUND('Validation Input'!O28/E36,setup!M46),"") ->  | F33: =IF(AND('Validation Input'!D53<>"", F36<>""),ROUND('Validation Input'!D53/F36,setup!M46),"") ->  | G33: =IF(AND('Validation Input'!L53<>"", G36<>""), ROUND('Validation Input'!L53/G36,setup!M46), "") ->  | H33: =IF(SUM(C33:G33)>0, ROUND(AVERAGE(C33:G33),setup!M46+1),"") ->  | I33: =IF(SUM(C33:G33)>0,ROUND(STDEV(C33:G33),setup!M46+3),"") ->  | J33: =IF(AND(I33<>"", I33>0), ROUND((H33-setup!B32)/Validation!I33,2),"--") -> -- | K33: =IF(AND(I33<>"", I33>0), ROUND((setup!C32-H33)/Validation!I33,2),"--") -> -- | L33: -- | M33: -- | N33: -- | O33: =IF(H33<>"", IF(H33>setup!C32, "Over Spec Limit", IF(H33<setup!B32, "Under Spec Limit", "OK")), "") ->  | Q33: 0.96 | R33: 0.93 | S33: 0.92 | T33: 81 | AH33: 41 | AI33: 83 | AJ33: 79 | AK33: 75
A34: Gse | C34: =IF(C7<>"",ROUND(('Validation Input'!$J$5)/((100/C7)-('Validation Input'!$D$5/1.03)),setup!M40),"") ->  | D34: =IF(D7<>"",ROUND(('Validation Input'!$J$5)/((100/D7)-('Validation Input'!$D$5/1.03)),setup!M40),"") ->  | E34: =IF(E7<>"",ROUND(('Validation Input'!$J$5)/((100/E7)-('Validation Input'!$D$5/1.03)),setup!M40),"") ->  | F34: =IF(F7<>"",ROUND(('Validation Input'!$J$5)/((100/F7)-('Validation Input'!$D$5/1.03)),setup!M40),"") ->  | G34: =IF(G7<>"",ROUND(('Validation Input'!$J$5)/((100/G7)-('Validation Input'!$D$5/1.03)),setup!M40),"") ->  | H34: =IF(SUM(C34:G34)>0, ROUND(AVERAGE(C34:G34),setup!M40+1),"") ->  | I34: =IF(SUM(C34:G34)>0,ROUND(STDEV(C34:G34),setup!M40+3),"") ->  | J34: -- | K34: -- | L34: -- | M34: -- | N34: -- | Q34: 0.98 | R34: 0.96 | S34: 0.95 | T34: 82 | AH34: 42 | AI34: 84 | AJ34: 80 | AK34: 76
A35: Pba | C35: =IF(C18<>"",ROUND((103*(C34-C18))/(C18*C34),setup!$M$47),"") ->  | D35: =IF(D18<>"",ROUND((103*(D34-D18))/(D18*D34),setup!$M$47),"") ->  | E35: =IF(E18<>"",ROUND((103*(E34-E18))/(E18*E34),setup!$M$47),"") ->  | F35: =IF(F18<>"",ROUND((103*(F34-F18))/(F18*F34),setup!$M$47),"") ->  | G35: =IF(G18<>"",ROUND((103*(G34-G18))/(G18*G34),setup!$M$47),"") ->  | H35: =IF(SUM(C35:G35)>0, ROUND(AVERAGE(C35:G35),setup!M47+1),"") ->  | I35: =IF(SUM(C35:G35)>0,ROUND(STDEV(C35:G35),setup!M47+3),"") ->  | J35: -- | K35: -- | L35: -- | M35: -- | N35: -- | Q35: 1 | R35: 0.99 | S35: 0.98 | T35: 83 | AH35: 43 | AI35: 85 | AJ35: 81 | AK35: 77
A36: Pbe | C36: =IF(C35<>"",ROUND('Validation Input'!$D$5-((C35*'Validation Input'!$J$5)/100),setup!M45),"") ->  | D36: =IF(D35<>"",ROUND('Validation Input'!$D$5-((D35*'Validation Input'!$J$5)/100),setup!M45),"") ->  | E36: =IF(E35<>"",ROUND('Validation Input'!$D$5-((E35*'Validation Input'!$J$5)/100),setup!M45),"") ->  | F36: =IF(F35<>"",ROUND('Validation Input'!$D$5-((F35*'Validation Input'!$J$5)/100),setup!M45),"") ->  | G36: =IF(G35<>"",ROUND('Validation Input'!$D$5-((G35*'Validation Input'!$J$5)/100),setup!M45),"") ->  | H36: =IF(SUM(C36:G36)>0, ROUND(AVERAGE(C36:G36),setup!M45+1),"") ->  | I36: =IF(SUM(C36:G36)>0,ROUND(STDEV(C36:G36),setup!M45+3),"") ->  | J36: -- | K36: -- | L36: -- | M36: -- | N36: -- | Q36: 1.02 | R36: 1.02 | S36: 1.02 | T36: 84 | AH36: 44 | AI36: 85 | AJ36: 82 | AK36: 78
A37: %Antistrip | C37: =IF('Validation Input'!E31>0,'Validation Input'!E31,"") ->  | D37: =IF('Validation Input'!K31>0,'Validation Input'!K31,"") ->  | E37: =IF('Validation Input'!Q31>0,'Validation Input'!Q31,"") ->  | F37: =IF('Validation Input'!F56>0,'Validation Input'!F56,"") ->  | G37: =IF('Validation Input'!N56>0,'Validation Input'!N56,"") ->  | H37: =IF(SUM(C37:G37)>0, ROUND(AVERAGE(C37:G37),2),"") ->  | I37: =IF(SUM(C37:G37)>0,ROUND(STDEV(C37:G37),4),"") ->  | J37: -- | K37: -- | L37: -- | M37: -- | N37: -- | Q37: 1.03 | R37: 1.05 | S37: 1.05 | T37: 85 | AH37: 45 | AI37: 86 | AJ37: 83 | AK37: 79
A38: %Crushed | C38: =IF('Validation Input'!B33<>"", 'Validation Input'!B33, "") ->  | D38: =IF('Validation Input'!H33<>"", 'Validation Input'!H33, "") ->  | E38: =IF('Validation Input'!N33<>"", 'Validation Input'!N33, "") ->  | F38: =IF('Validation Input'!C58<>"", 'Validation Input'!C58, "") ->  | G38: =IF('Validation Input'!K58<>"",'Validation Input'!K58,"") ->  | H38: =IF(SUM(C38:G38)>0, ROUND(AVERAGE(C38:G38),1),"") ->  | I38: =IF(SUM(C38:G38)>0,ROUND(STDEV(C38:G38),3),"") ->  | J38: -- | K38: -- | L38: -- | M38: -- | N38: -- | Q38: 1.05 | R38: 1.08 | S38: 1.08 | T38: 86 | AH38: 46 | AI38: 87 | AJ38: 84 | AK38: 80
A39: Comp Temp | C39: =IF('Validation Input'!F28>0, 'Validation Input'!F28, "") ->  | D39: =IF('Validation Input'!L28>0, 'Validation Input'!L28, "") ->  | E39: =IF('Validation Input'!R28>0, 'Validation Input'!R28, "") ->  | F39: =IF('Validation Input'!G53>0, 'Validation Input'!G53, "") ->  | G39: =IF('Validation Input'!O53>0, 'Validation Input'!O53, "") ->  | H39: =IF(SUM(C39:G39)>0, ROUND(AVERAGE(C39:G39),1),"") ->  | I39: =IF(SUM(C39:G39)>0,ROUND(STDEV(C39:G39),3),"") ->  | J39: =IF(AND(I39<>"", I39>0), ROUND(setup!D17/Validation!I39,2),"--") -> -- | K39: =IF(AND(I39<>"", I39>0), ROUND(setup!D17/Validation!I39,2),"--") -> -- | L39: =IF(J39="--", "--", IF(J39<0, 100, 0)+IF(J39<0, -1, 1)* IF(COUNT(C39:G39)=5, VLOOKUP(ABS(J39),$S$2:$T$51,2,TRUE)+IF(LOOKUP(ABS(J39),$S$2:$S$51)<ABS(J39),1,0), IF(COUNT(C39:G39)=4, VLOOKUP(ABS(J39),$R$2:$T$51,3,TRUE)+IF(LOOKUP(ABS(J39),$R$2:$R$51)<ABS(J39),1,0), IF(COUNT(C39:G39)=3, VLOOKUP(ABS(J39),$Q$2:$T$51,4,TRUE)+IF(LOOKUP(ABS(J39),$Q$2:$Q$51)<ABS(J39),1,0),"--")))) -> -- | M39: =IF(K39="--", "--", IF(K39<0, 100, 0)+IF(K39<0, -1, 1)* IF(COUNT(C39:G39)=5, VLOOKUP(ABS(K39),$S$2:$T$51,2,TRUE)+IF(LOOKUP(ABS(K39),$S$2:$S$51)<ABS(K39),1,0), IF(COUNT(C39:G39)=4, VLOOKUP(ABS(K39),$R$2:$T$51,3,TRUE)+IF(LOOKUP(ABS(K39),$R$2:$R$51)<ABS(K39),1,0), IF(COUNT(C39:G39)=3, VLOOKUP(ABS(K39),$Q$2:$T$51,4,TRUE)+IF(LOOKUP(ABS(K39),$Q$2:$Q$51)<ABS(K39),1,0),"--")))) -> -- | N39: =IF(AND(L39="--", M39="--"), "--", IF(L39="--", 100, L39)+IF(M39="--", 100, M39)-100) -> -- | Q39: 1.06 | R39: 1.11 | S39: 1.12 | T39: 87 | AH39: 47 | AI39: 88 | AJ39: 85 | AK39: 81
A40: Mix Temp | C40: ='Validation Input'!F30 -> 0 | D40: ='Validation Input'!L30 -> 0 | E40: ='Validation Input'!R30 -> 0 | F40: ='Validation Input'!G55 -> 0 | G40: ='Validation Input'!O55 -> 0 | H40: =IF(SUM(C40:G40)>0, ROUND(AVERAGE(C40:G40),1),"") ->  | I40: =IF(SUM(C40:G40)>0,ROUND(STDEV(C40:G40),3),"") ->  | J40: -- | K40: -- | L40: -- | M40: -- | N40: -- | Q40: 1.07 | R40: 1.14 | S40: 1.16 | T40: 88 | AH40: 48 | AI40: 89 | AJ40: 86 | AK40: 82
A41: Meter AC | C41: ='Validation Input'!F27 -> 0 | D41: ='Validation Input'!L27 -> 0 | E41: ='Validation Input'!R27 -> 0 | F41: ='Validation Input'!G52 -> 0 | G41: ='Validation Input'!O52 -> 0 | H41: =IF(SUM(C41:G41)>0, ROUND(AVERAGE(C41:G41),1),"") ->  | I41: =IF(SUM(C41:G41)>0,ROUND(STDEV(C41:G41),3),"") ->  | J41: -- | K41: -- | L41: -- | M41: -- | N41: -- | Q41: 1.08 | R41: 1.17 | S41: 1.2 | T41: 89 | AH41: 49 | AI41: 90 | AJ41: 87 | AK41: 83
Q42: 1.09 | R42: 1.2 | S42: 1.23 | T42: 90 | AH42: 50 | AI42: 90 | AJ42: 88 | AK42: 84
C43: Roadway Density Cores | J43: Tonnage | K43: % Pay | Q43: 1.1 | R43: 1.23 | S43: 1.27 | T43: 91 | AH43: 51 | AI43: 91 | AJ43: 88 | AK43: 85
C44: Core A | D44: Core B | E44: Core C | F44: Core D | G44: Core E | I44: Mainline | J44: =IF(B53>=3, IF(C46="Main",'Validation Input'!I74,0)+IF(D46="Main",'Validation Input'!J74,0)+IF(E46="Main",'Validation Input'!K74,0)+IF(F46="Main",'Validation Input'!L74,0)+IF(G46="Main",'Validation Input'!M74,0), 0) -> 0 | K44: =IF(G53="--","--",IF(B53=5,VLOOKUP(G53,AH2:AK92,4,FALSE),IF(B53=4,VLOOKUP(G53,AH2:AK92,3,FALSE),IF(B53=3,VLOOKUP(G53,AH2:AK92,2,FALSE),"--")))) -> -- | L44: =IF(K44=50, "or Remove", "") ->  | Q44: 1.11 | R44: 1.26 | S44: 1.31 | T44: 92 | AH44: 52 | AI44: 92 | AJ44: 89 | AK44: 87
C45: =IF('Validation Input'!I73<>"",ROUND(('Validation Input'!I73/$H$7)*100,setup!$M$67),"--") -> -- | D45: =IF('Validation Input'!J73<>"",ROUND(('Validation Input'!J73/$H$7)*100,setup!$M$67),"--") -> -- | E45: =IF('Validation Input'!K73<>"",ROUND(('Validation Input'!K73/$H$7)*100,setup!$M$67),"--") -> -- | F45: =IF('Validation Input'!L73<>"",ROUND(('Validation Input'!L73/$H$7)*100,setup!$M$67),"--") -> -- | G45: =IF('Validation Input'!M73<>"",ROUND(('Validation Input'!M73/$H$7)*100,setup!$M$67),"--") -> -- | I45: Minor A | J45: =IF(OR(C46="Minor", B53<3), 'Validation Input'!I74, 0) -> 0 | K45: =IF(C46<>"--",IF(C46="Minor",IF(C45>=setup!$B$35,100,IF(C45>setup!$B$35-2,90,80)),IF($B$53<3,IF(C45>=setup!$B$34,100,IF(C45>setup!$B$34-2,90,80)),0)), 0) -> 0 | L45: =IF(K45=80, "or Remove", "") ->  | Q45: 1.12 | R45: 1.29 | S45: 1.36 | T45: 93 | AH45: 53 | AI45: 93 | AJ45: 90 | AK45: 88
C46: =IF('Validation Input'!I66<>0, IF(OR('Validation Input'!I66="Wearing", 'Validation Input'!I66="Binder", 'Validation Input'!I66="Base", 'Validation Input'!I66="Ramp >300ft", 'Validation Input'!I66="Ints. Acc/Dec", 'Validation Input'!I66="Airport Center"),"Main", "Minor"), "--") -> -- | D46: =IF('Validation Input'!J66<>0, IF(OR('Validation Input'!J66="Wearing", 'Validation Input'!J66="Binder", 'Validation Input'!J66="Base", 'Validation Input'!J66="Ramp >300ft", 'Validation Input'!J66="Ints. Acc/Dec", 'Validation Input'!J66="Airport Center"),"Main", "Minor"), "--") -> -- | E46: =IF('Validation Input'!K66<>0, IF(OR('Validation Input'!K66="Wearing", 'Validation Input'!K66="Binder", 'Validation Input'!K66="Base", 'Validation Input'!K66="Ramp >300ft", 'Validation Input'!K66="Ints. Acc/Dec", 'Validation Input'!K66="Airport Center"),"Main", "Minor"), "--") -> -- | F46: =IF('Validation Input'!L66<>0, IF(OR('Validation Input'!L66="Wearing", 'Validation Input'!L66="Binder", 'Validation Input'!L66="Base", 'Validation Input'!L66="Ramp >300ft", 'Validation Input'!L66="Ints. Acc/Dec", 'Validation Input'!L66="Airport Center"),"Main", "Minor"), "--") -> -- | G46: =IF('Validation Input'!M66<>0, IF(OR('Validation Input'!M66="Wearing", 'Validation Input'!M66="Binder", 'Validation Input'!M66="Base", 'Validation Input'!M66="Ramp >300ft", 'Validation Input'!M66="Ints. Acc/Dec", 'Validation Input'!M66="Airport Center"),"Main", "Minor"), "--") -> -- | I46: Minor B | J46: =IF(OR(D46="Minor", B53<3), 'Validation Input'!J74, 0) -> 0 | K46: =IF(D46<>"--",IF(D46="Minor",IF(D45>=setup!$B$35,100,IF(D45>setup!$B$35-2,90,80)),IF($B$53<3,IF(D45>=setup!$B$34,100,IF(D45>setup!$B$34-2,90,80)),0)), 0) -> 0 | Q46: 1.13 | R46: 1.32 | S46: 1.4 | T46: 94 | AH46: 54 | AI46: 94 | AJ46: 91 | AK46: 89
I47: Minor C | J47: =IF(OR(E46="Minor", B53<3), 'Validation Input'!K74, 0) -> 0 | K47: =IF(E46<>"--",IF(E46="Minor",IF(E45>=setup!$B$35,100,IF(E45>setup!$B$35-2,90,80)),IF($B$53<3,IF(E45>=setup!$B$34,100,IF(E45>setup!$B$34-2,90,80)),0)), 0) -> 0 | Q47: 1.14 | R47: 1.35 | S47: 1.45 | T47: =T46+1 -> 95 | AH47: 55 | AI47: 95 | AJ47: 92 | AK47: 90
A48: *uses PWL for Mainline if 3 or more sublots are Mainline use | I48: Minor D | J48: =IF(OR(F46="Minor", B53<3), 'Validation Input'!L74, 0) -> 0 | K48: =IF(F46<>"--",IF(F46="Minor",IF(F45>=setup!$B$35,100,IF(F45>setup!$B$35-2,90,80)),IF($B$53<3,IF(F45>=setup!$B$34,100,IF(F45>setup!$B$34-2,90,80)),0)), 0) -> 0 | Q48: 1.15 | R48: 1.38 | S48: 1.49 | T48: 96 | AH48: 56 | AI48: 95 | AJ48: 92 | AK48: 90
A49: **Mainline = WC, Binder, Base, Ramp >300ft, Ints. Acc/Dec, Airport Center | I49: Minor E | J49: =IF(OR(G46="Minor", B53<3), 'Validation Input'!M74, 0) -> 0 | K49: =IF(G46<>"--", IF(G46="Minor",IF(G45>=setup!$B$35,100,IF(G45>setup!$B$35-2,90,80)),IF($B$53<3,IF(G45>=setup!$B$34,100,IF(G45>setup!$B$34-2,90,80)),0)), 0) -> 0 | Q49: 1.15 | R49: 1.41 | S49: 1.55 | T49: 97 | AH49: 57 | AI49: 96 | AJ49: 93 | AK49: 91
I50: *** %Pay weighted by tonnage associated with cores | Q50: 1.15 | R50: 1.44 | S50: 1.61 | T50: 98 | AH50: 58 | AI50: 97 | AJ50: 94 | AK50: 92
Q51: 1.16 | R51: 1.47 | S51: 1.68 | T51: 99 | AH51: 59 | AI51: 97 | AJ51: 95 | AK51: 93
B52: Ct. | C52: Mean | D52: StDev | E52: QL | F52: QU | G52: PWL | AH52: 60 | AI52: 98 | AJ52: 95 | AK52: 94
A53: Mainline Dens. | B53: =COUNTIF(C46:G46,"Main") -> 0 | C53: =IF(COUNTIF(C46:G46,"Main")>=3, ROUND(AVERAGEIF(C46:G46, "Main",C45:G45),setup!M41+1),"") ->  | D53: =IF(C53<>"", IF(COUNTIF(C46:G46,"Main")>1,ROUND(STDEV(IF(C46:G46="Main",C45:G45,"")),setup!$M$41+3),0),"") ->  | E53: =IF(D53<>"", IF(D53>0, ROUND((Validation!C53-setup!B34)/Validation!D53,2),"--"),"") ->  | F53: =IF(C53<>"", "--", "") ->  | G53: =IF(E53<>"", IF(E53="--", "--", IF(E53<0, 100, 0)+IF(E53<0, -1, 1)* IF(COUNTIF(C46:G46,"Main")=5, VLOOKUP(ABS(E53),$S$2:$T$51,2,TRUE)+IF(LOOKUP(ABS(E53),$S$2:$S$51)<ABS(E53),1,0), IF(COUNTIF(C46:G46,"Main")=4, VLOOKUP(ABS(E53),$R$2:$T$51,3,TRUE)+IF(LOOKUP(ABS(E53),$R$2:$R$51)<ABS(E53),1,0), IF(COUNTIF(C46:G46,"Main")=3, VLOOKUP(ABS(E53),$Q$2:$T$51,4,TRUE)+IF(LOOKUP(ABS(E53),$Q$2:$Q$51)<ABS(E53),1,0),"--")))),"") ->  | AH53: 61 | AI53: 98 | AJ53: 96 | AK53: 94
AH54: 62 | AI54: 99 | AJ54: 97 | AK54: 95
C55: Total Tons | F55: =SUM(J44:J49) -> 0 | I55: Final % Pay | L55: =IF(F55>0, ROUND(SUMPRODUCT((J44:J49)*(K44:K49)/F55),1),"--") -> -- | AH55: 63 | AI55: 99 | AJ55: 98 | AK55: 95
C56: Gmm | F56: =ROUND(H7,setup!M65) ->  | AH56: 64 | AI56: 99 | AJ56: 98 | AK56: 96
C57: Adjustment Factor | F57: =IF(F56<2.34,ROUND(2.4/F56,2),IF(F56<2.361,1.02,IF(F56<2.4,1.01,IF(F56<2.541,1,IF(F56<2.571,0.99,IF(F56<2.591,0.98,ROUND(2.54/F56,2))))))) ->  | I57: Adjusted Tonnage | L57: =F58 ->  | AH57: 65 | AI57: 100 | AJ57: 99 | AK57: 96
C58: Adjusted Total Tons | F58: =F55*F57 ->  | AH58: 66 | AI58: 100 | AJ58: 99 | AK58: 97
AH59: 67 | AI59: 100 | AJ59: 100 | AK59: 97
AH60: 68 | AI60: 100 | AJ60: 100 | AK60: 98
AH61: 69 | AI61: 100 | AJ61: 100 | AK61: 98
A62: DOTD Cert. AC Plant Tech. | E62: QA Cert. Asphaltic Concrete Plant Tech. | J62: APPROVED BY: District Lab Engr. | AH62: 70 | AI62: 100 | AJ62: 100 | AK62: 99
AH63: 71 | AI63: 100 | AJ63: 100 | AK63: 100
A64: Remarks: | B64: ='Validation Input'!B76:Q76 -> 0 | AH64: 72 | AI64: 100 | AJ64: 100 | AK64: 100
AH65: 73 | AI65: 100 | AJ65: 100 | AK65: 100
A66: =setup!S2 -> LaPave 502 v18.05.02 | N66: =TODAY() -> 2023-03-31 | AH66: 74 | AI66: 100 | AJ66: 100 | AK66: 100
AH67: 75 | AI67: 100 | AJ67: 100 | AK67: 100
AH68: 76 | AI68: 100 | AJ68: 100 | AK68: 100
AH69: 77 | AI69: 100 | AJ69: 100 | AK69: 100
AH70: 78 | AI70: 100 | AJ70: 100 | AK70: 100
AH71: 79 | AI71: 100 | AJ71: 100 | AK71: 100
AH72: 80 | AI72: 100 | AJ72: 100 | AK72: 100
AH73: 81 | AI73: 100 | AJ73: 100 | AK73: 100
AH74: 82 | AI74: 100 | AJ74: 100 | AK74: 100
AH75: 83 | AI75: 100 | AJ75: 100 | AK75: 100
AH76: 84 | AI76: 100 | AJ76: 100 | AK76: 100
AH77: 85 | AI77: 100 | AJ77: 100 | AK77: 100
AH78: 86 | AI78: 100 | AJ78: 100 | AK78: 100
AH79: 87 | AI79: 100 | AJ79: 100 | AK79: 100
AH80: 88 | AI80: 100 | AJ80: 100 | AK80: 100
AH81: 89 | AI81: 100 | AJ81: 100 | AK81: 100
AH82: 90 | AI82: 100 | AJ82: 100 | AK82: 100
AH83: 91 | AI83: 100 | AJ83: 100 | AK83: 100
AH84: 92 | AI84: 100 | AJ84: 100 | AK84: 100
AH85: 93 | AI85: 100 | AJ85: 100 | AK85: 100
AH86: 94 | AI86: 100 | AJ86: 100 | AK86: 100
AH87: 95 | AI87: 100 | AJ87: 100 | AK87: 100
AH88: 96 | AI88: 100 | AJ88: 100 | AK88: 100
AH89: 97 | AI89: 100 | AJ89: 100 | AK89: 100
AH90: 98 | AI90: 100 | AJ90: 100 | AK90: 100
AH91: 99 | AI91: 100 | AJ91: 100 | AK91: 100
AH92: 100 | AI92: 100 | AJ92: 100 | AK92: 100

Sheet Plant Report-Val
A1: Superpave Asphalt Concrete Plant Report
A3: Proj. No. | B3: ='Validation Input'!B2 -> 0 | F3: SMM No. | G3: ='JMF Input'!J7 -> 0 | L3: Design Level | N3: ='JMF Input'!F4 -> 1 | R3: Mix Type | S3: ='JMF Input'!E5 -> Base Course
A4: Proj. No. | B4: ='Validation Input'!B3 -> 0 | F4: JMF No. | G4: ='JMF Input'!F3 -> 0 | L4: Lot No. | N4: ='Validation Input'!G3 -> 0 | R4: Mix Use | S4: ='JMF Input'!E6 -> Min - Patching
A5: Lot Size | B5: ='Validation Input'!B4 -> 0 | E5: Start Date | G5: ='Validation Input'!E4 -> 00:00:00 | L5: End Date | N5: ='Validation Input'!H4 -> 00:00:00 | R5: Purpose Code | S5: ='Validation Input'!M2 -> 0
A6: No. Sublots | B6: ='Validation Input'!B5 -> 0 | L6: Gsb | N6: ='Validation Input'!G5 -> 0 | R6: Ps | S6: ='Validation Input'!J5 -> 100
D7: Plant | F7: ='JMF Input'!D7 -> 0 | Q7: %AC | S7: ='Validation Input'!D5 -> 0
A9: Theoretical Maximum Specific Gravity, Gmm "Rice" (AASHTO T209 or DOTD TR327)
C10: Gmm1 | G10: Gmm2 | K10: Gmm3 | O10: Gmm4 | S10: Gmm5
C11: A | E11: B | G11: A | I11: B | K11: A | M11: B | O11: A | Q11: B | S11: A | U11: B
A12: Wt of Mix | C12: =IF('Validation Input'!D10>0, 'Validation Input'!D10, "") ->  | E12: =IF('Validation Input'!L10>0, 'Validation Input'!L10, "") ->  | G12: =IF('Validation Input'!E10>0, 'Validation Input'!E10, "") ->  | I12: =IF('Validation Input'!M10>0, 'Validation Input'!M10, "") ->  | K12: =IF('Validation Input'!F10>0, 'Validation Input'!F10, "") ->  | M12: =IF('Validation Input'!N10>0, 'Validation Input'!N10, "") ->  | O12: =IF('Validation Input'!G10>0, 'Validation Input'!G10, "") ->  | Q12: =IF('Validation Input'!O10>0, 'Validation Input'!O10, "") ->  | S12: =IF('Validation Input'!H10>0, 'Validation Input'!H10, "") ->  | U12: =IF('Validation Input'!P10>0, 'Validation Input'!P10, "") -> 
A13: Wt of Pyc & H2O | C13: =IF('Validation Input'!D11>0, 'Validation Input'!D11, "") ->  | E13: =IF('Validation Input'!L11>0, 'Validation Input'!L11, "") ->  | G13: =IF('Validation Input'!E11>0, 'Validation Input'!E11, "") ->  | I13: =IF('Validation Input'!M11>0, 'Validation Input'!M11, "") ->  | K13: =IF('Validation Input'!F11>0, 'Validation Input'!F11, "") ->  | M13: =IF('Validation Input'!N11>0, 'Validation Input'!N11, "") ->  | O13: =IF('Validation Input'!G11>0, 'Validation Input'!G11, "") ->  | Q13: =IF('Validation Input'!O11>0, 'Validation Input'!O11, "") ->  | S13: =IF('Validation Input'!H11>0, 'Validation Input'!H11, "") ->  | U13: =IF('Validation Input'!P11>0, 'Validation Input'!P11, "") -> 
A14: Wt of Pyc, H2O & Mix | C14: =IF('Validation Input'!D12>0, 'Validation Input'!D12, "") ->  | E14: =IF('Validation Input'!L12>0, 'Validation Input'!L12, "") ->  | G14: =IF('Validation Input'!E12>0, 'Validation Input'!E12, "") ->  | I14: =IF('Validation Input'!M12>0, 'Validation Input'!M12, "") ->  | K14: =IF('Validation Input'!F12>0, 'Validation Input'!F12, "") ->  | M14: =IF('Validation Input'!N12>0, 'Validation Input'!N12, "") ->  | O14: =IF('Validation Input'!G12>0, 'Validation Input'!G12, "") ->  | Q14: =IF('Validation Input'!O12>0, 'Validation Input'!O12, "") ->  | S14: =IF('Validation Input'!H12>0, 'Validation Input'!H12, "") ->  | U14: =IF('Validation Input'!P12>0, 'Validation Input'!P12, "") -> 
A15: Gmm, Rice Gravity | C15: ='Validation Input'!E16 ->  | E15: ='Validation Input'!E17 ->  | G15: ='Validation Input'!K16 ->  | I15: ='Validation Input'!K17 ->  | K15: ='Validation Input'!Q16 ->  | M15: ='Validation Input'!Q17 ->  | O15: ='Validation Input'!F41 ->  | Q15: ='Validation Input'!F42 ->  | S15: ='Validation Input'!N41 ->  | U15: ='Validation Input'!N42 -> 
A16: Average Gmm | C16: Gmm1= | E16: =Validation!C7 ->  | G16: Gmm2= | I16: =Validation!D7 ->  | K16: Gmm3= | M16: =Validation!E7 ->  | O16: Gmm4= | Q16: =Validation!F7 ->  | S16: Gmm5= | U16: =Validation!G7 -> 
A17: Plant Test Properties (AASHTO T166, T209, T245/DOTD TR 304, 305, &327)
A18: Sublot No. | C18: 1 | G18: 2 | K18: 3 | O18: 4 | S18: 5
A19: Gmm | C19: =E16 ->  | G19: =I16 ->  | K19: =M16 ->  | O19: =Q16 ->  | S19: =U16 -> 
A20: Wt (Mass) in Air | C20: =IF('Validation Input'!E20>0, 'Validation Input'!E20, "") ->  | G20: =IF('Validation Input'!K20>0, 'Validation Input'!K20, "") ->  | K20: =IF('Validation Input'!Q20>0, 'Validation Input'!Q20, "") ->  | O20: =IF('Validation Input'!F45>0, 'Validation Input'!F45, "") ->  | S20: =IF('Validation Input'!N45>0, 'Validation Input'!N45, "") -> 
A21: Wt (Mass) in Water | C21: =IF('Validation Input'!E21>0, 'Validation Input'!E21, "") ->  | G21: =IF('Validation Input'!K21>0, 'Validation Input'!K21, "") ->  | K21: =IF('Validation Input'!Q21>0, 'Validation Input'!Q21, "") ->  | O21: =IF('Validation Input'!F46>0, 'Validation Input'!F46, "") ->  | S21: =IF('Validation Input'!N46>0, 'Validation Input'!N46, "") -> 
A22: SSD Wt (Mass) | C22: =IF('Validation Input'!E22>0, 'Validation Input'!E22, "") ->  | G22: =IF('Validation Input'!K22>0, 'Validation Input'!K22, "") ->  | K22: =IF('Validation Input'!Q22>0, 'Validation Input'!Q22, "") ->  | O22: =IF('Validation Input'!F47>0, 'Validation Input'!F47, "") ->  | S22: =IF('Validation Input'!N47>0, 'Validation Input'!N47, "") -> 
A23: Gmb, ND | C23: =Validation!C8 ->  | G23: =Validation!D8 ->  | K23: =Validation!E8 ->  | O23: =Validation!F8 ->  | S23: =Validation!G8 -> 
A24: Density | C24: =IF(C23<>"", ROUND(C23*62.4,1), "") ->  | G24: =IF(G23<>"", ROUND(G23*62.4,1), "") ->  | K24: =IF(K23<>"", ROUND(K23*62.4,1), "") ->  | O24: =IF(O23<>"", ROUND(O23*62.4,1), "") ->  | S24: =IF(S23<>"", ROUND(S23*62.4,1), "") -> 
A25: % Gmm, ND | C25: =Validation!C10 ->  | G25: =Validation!D10 ->  | K25: =Validation!E10 ->  | O25: =Validation!F10 ->  | S25: =Validation!G10 -> 
A26: Ht. @ NI (mm) | C26: =IF('Validation Input'!E23>0, 'Validation Input'!E23, "") ->  | G26: =IF('Validation Input'!K23>0, 'Validation Input'!K23, "") ->  | K26: =IF('Validation Input'!Q23>0, 'Validation Input'!Q23, "") ->  | O26: =IF('Validation Input'!F48>0, 'Validation Input'!F48, "") ->  | S26: =IF('Validation Input'!N48>0, 'Validation Input'!N48, "") -> 
A27: Ht. @ ND (mm) | C27: =IF('Validation Input'!E24>0, 'Validation Input'!E24, "") ->  | G27: =IF('Validation Input'!K24>0, 'Validation Input'!K24, "") ->  | K27: =IF('Validation Input'!Q24>0, 'Validation Input'!Q24, "") ->  | O27: =IF('Validation Input'!F49>0, 'Validation Input'!F49, "") ->  | S27: =IF('Validation Input'!N49>0, 'Validation Input'!N49, "") -> 
A28: % Gmm, NI | C28: =Validation!C9 ->  | G28: =Validation!D9 ->  | K28: =Validation!E9 ->  | O28: =Validation!F9 ->  | S28: =Validation!G9 -> 
A29: % Voids, Va | C29: =Validation!C11 ->  | G29: =Validation!D11 ->  | K29: =Validation!E11 ->  | O29: =Validation!F11 ->  | S29: =Validation!G11 -> 
A30: % VMA | C30: =Validation!C12 ->  | G30: =Validation!D12 ->  | K30: =Validation!E12 ->  | O30: =Validation!F12 ->  | S30: =Validation!G12 -> 
A31: % VFA | C31: =Validation!C13 ->  | G31: =Validation!D13 ->  | K31: =Validation!E13 ->  | O31: =Validation!F13 ->  | S31: =Validation!G13 -> 
C32: Asph | D32: Aggr | E32: RAP | F32: AntiStrip | G32: Asph | H32: Aggr | I32: RAP | J32: AntiStrip | K32: Asph | L32: Aggr | M32: RAP | N32: AntiStrip | O32: Asph | P32: Aggr | Q32: RAP | R32: AntiStrip | S32: Asph | T32: Aggr | U32: RAP | V32: AntiStrip
A33: % Asphalt Content | B33: 1st Meter Reading, AM
B34: 1st Meter Reading, PM
B35: 2nd Meter Reading, AM
B36: 2nd Meter Reading, PM
A37: % AC Meter | C37: =IF('Validation Input'!F27>0, 'Validation Input'!F27, "") ->  | G37: =IF('Validation Input'!L27>0, 'Validation Input'!L27, "") ->  | K37: =IF('Validation Input'!R27>0, 'Validation Input'!R27, "") ->  | O37: =IF('Validation Input'!G52>0, 'Validation Input'!G52, "") ->  | S37: =IF('Validation Input'!O52>0,'Validation Input'!O52, "") -> 
A38: Comp. Temp. | C38: =IF('Validation Input'!F28>0, 'Validation Input'!F28, "") ->  | G38: =IF('Validation Input'!L28>0, 'Validation Input'!L28, "") ->  | K38: =IF('Validation Input'!R28>0, 'Validation Input'!R28, "") ->  | O38: =IF('Validation Input'!G53>0, 'Validation Input'!G53, "") ->  | S38: =IF('Validation Input'!O53>0,'Validation Input'!O53, "") -> 
A39: Dust/Peff | C39: =Validation!C33 ->  | G39: =Validation!D33 ->  | K39: =Validation!E33 ->  | O39: =Validation!F33 ->  | S39: =Validation!G33 -> 
A40: Gse | C40: =Validation!C34 ->  | G40: =Validation!D34 ->  | K40: =Validation!E34 ->  | O40: =Validation!F34 ->  | S40: =Validation!G34 -> 
A41: Pba | C41: =Validation!C35 ->  | G41: =Validation!D35 ->  | K41: =Validation!E35 ->  | O41: =Validation!F35 ->  | S41: =Validation!G35 -> 
A42: Pbe | C42: =Validation!C36 ->  | G42: =Validation!D36 ->  | K42: =Validation!E36 ->  | O42: =Validation!F36 ->  | S42: =Validation!G36 -> 
A43: Total Sublot Tons | C43: =IF('Validation Input'!I74>0, 'Validation Input'!I74, "") ->  | G43: =IF('Validation Input'!J74>0, 'Validation Input'!J74, "") ->  | K43: =IF('Validation Input'!K74>0, 'Validation Input'!K74, "") ->  | O43: =IF('Validation Input'!L74>0, 'Validation Input'!L74, "") ->  | S43: =IF('Validation Input'!M74>0, 'Validation Input'!M74, "") -> 
A44: Sample Taken, Tons Accum. | C44: =IF('Validation Input'!F29>0, 'Validation Input'!F29, "") ->  | G44: =IF('Validation Input'!L29>0, 'Validation Input'!L29, "") ->  | K44: =IF('Validation Input'!R29>0, 'Validation Input'!R29, "") ->  | O44: =IF('Validation Input'!G54>0, 'Validation Input'!G54, "") ->  | S44: =IF('Validation Input'!O54>0, 'Validation Input'!O54, "") -> 
A45: Mix Temperature | C45: =IF('Validation Input'!F30>0, 'Validation Input'!F30, "") ->  | G45: =IF('Validation Input'!L30>0, 'Validation Input'!L30, "") ->  | K45: =IF('Validation Input'!R30>0, 'Validation Input'!R30, "") ->  | O45: =IF('Validation Input'!G55>0, 'Validation Input'!G55, "") ->  | S45: =IF('Validation Input'!O55>0, 'Validation Input'!O55, "") -> 
C46: Test 1 | D46: Test 2
A47: % Anti Strip | C47: ='Validation Input'!E31 -> 0 | D47: ='Validation Input'!K31 -> 0
A48: % Lime
A49: Remarks:
A53: DOTD Cert. Asphaltic Concrete Plant Tech. | F53: QC Cert. Asphaltic Concrete Plant Tech. | P53: APPROVED BY: District Laboratory Engineer
A55: =setup!S2 -> LaPave 502 v18.05.02 | T55: =TODAY() -> 2023-03-31

Sheet Plant Acceptance
A1: Data for Plant Acceptance | Z1: n=3 | AA1: n=4 | AB1: n=5 - 6 | AC1: n=7 - 9 | AD1: n=10 - 12 | AE1: n=13 - 15 | AF1: PWL
Z2: 0 | AA2: 0 | AB2: 0 | AC2: 0 | AD2: 0 | AE2: 0 | AF2: 50
A3: DATE | D3: Plant | E3: ='JMF Input'!D7 -> 0 | L3: Mix Type | M3: ='JMF Input'!E5 -> Base Course | O3: Gyr. Rev | Z3: 0.03 | AA3: 0.03 | AB3: 0.03 | AC3: 0.03 | AD3: 0.03 | AE3: 0.03 | AF3: =AF2+1 -> 51
E4: JMF No. | F4: ='JMF Input'!F3 -> 0 | L4: Design level | M4: ='JMF Input'!F4 -> 1 | O4: Nini | P4: ='JMF Input'!N23 -> 7 | Z4: 0.07 | AA4: 0.06 | AB4: 0.06 | AC4: 0.05 | AD4: 0.05 | AE4: 0.05 | AF4: =AF3+1 -> 52
A5: Start Date | E5: LOT | I5: %AC | J5: ='JMF Input'!J37 -> 0 | L5: Gsb | M5: ='JMF Input'!J39 -> 0 | O5: Ndes | P5: ='JMF Input'!N24 -> 55 | R5: With Oven Temp Corr. | Z5: 0.11 | AA5: 0.09 | AB5: 0.08 | AC5: 0.08 | AD5: 0.08 | AE5: 0.08 | AF5: 53
A6: End Date | E6: Total Tons | F6: =F14+M14+T14+F40+M40+T40 -> 0 | I6: Ps | J6: =100-'JMF Input'!J37 -> 100 | L6: AC Corr Factor | M6: ='JMF Input'!K6 -> 4.137605834 | O6: Nmax | P6: ='JMF Input'!N25 -> 90 | Z6: 0.14 | AA6: 0.12 | AB6: 0.11 | AC6: 0.11 | AD6: 0.1 | AE6: 0.1 | AF6: 54
Z7: 0.18 | AA7: 0.15 | AB7: 0.14 | AC7: 0.13 | AD7: 0.13 | AE7: 0.13 | AF7: 55
A8: Theoretical Maximum Specific Gravity, Gmm "Rice" 1 | K8: Theoretical Maximum Specific Gravity, Gmm "Rice" 2 | Z8: 0.22 | AA8: 0.18 | AB8: 0.17 | AC8: 0.16 | AD8: 0.16 | AE8: 0.15 | AF8: 56
D9: =IF(B14<>"",B14,"") -> 1 | E9: =IF(I14<>"",I14,"") -> 2 | F9: =IF(P14<>"",P14,"") -> 3 | G9: =IF(B40<>"",B40,"") -> 4 | H9: =IF(I40<>"",I40,"") -> 5 | I9: =IF(P40<>"",P40,"") ->  | N9: =IF(B14<>"",B14,"") -> 1 | O9: =IF(I14<>"",I14,"") -> 2 | P9: =IF(P14<>"",P14,"") -> 3 | Q9: =IF(B40<>"",B40,"") -> 4 | R9: =IF(I40<>"",I40,"") -> 5 | S9: =IF(P40<>"",P40,"") ->  | Z9: 0.25 | AA9: 0.21 | AB9: 0.2 | AC9: 0.19 | AD9: 0.18 | AE9: 0.18 | AF9: 57
A10: Wt of Mix | K10: Wt of Mix | Z10: 0.29 | AA10: 0.24 | AB10: 0.23 | AC10: 0.21 | AD10: 0.21 | AE10: 0.21 | AF10: 58
A11: Wt of Pyc & Water | K11: Wt of Pyc & Water | Z11: 0.32 | AA11: 0.27 | AB11: 0.25 | AC11: 0.24 | AD11: 0.24 | AE11: 0.23 | AF11: 59
A12: Wt of Pyc, Water & Mix | K12: Wt of Pyc, Water & Mix | Z12: 0.36 | AA12: 0.3 | AB12: 0.28 | AC12: 0.27 | AD12: 0.26 | AE12: 0.26 | AF12: 60
Z13: 0.39 | AA13: 0.33 | AB13: 0.31 | AC13: 0.3 | AD13: 0.3 | AE13: 0.29 | AF13: 61
A14: Sublot # | B14: 1 | E14: Tons | H14: Sublot # | I14: 2 | L14: Tons | O14: Sublot # | P14: 3 | S14: Tons | Z14: 0.43 | AA14: 0.36 | AB14: 0.34 | AC14: 0.33 | AD14: 0.32 | AE14: 0.31 | AF14: 62 | AH14: Luanna recommended all gradations to one decimal to avoid standard deviation = 0.
B15: Gradation | D15: % Pass | F15: Volumetrics | I15: Gradation | K15: % Pass | M15: Volumetrics | P15: Gradation | R15: % Pass | T15: Volumetrics | Z15: 0.46 | AA15: 0.39 | AB15: 0.37 | AC15: 0.35 | AD15: 0.35 | AE15: 0.34 | AF15: 63
A16: 2" 50 | D16: =IF($C$31=0," ",ROUND(100-(C16/$C$31)*100,setup!M68)) ->  | F16: Rice 1 | G16: =IF(D11>0, ROUND(D10/(D10+D11-D12),setup!M65), "") ->  | H16: 2" 50 | K16: =IF($J$31=0," ",ROUND(100-(J16/$J$31)*100,setup!$M$68)) ->  | M16: Rice 1 | N16: =IF(E11>0, ROUND(E10/(E10+E11-E12),setup!M65), "") ->  | O16: 2" 50 | R16: =IF($Q$31=0," ",ROUND(100-(Q16/$Q$31)*100,setup!M68)) ->  | T16: Rice 1 | U16: =IF(F11>0, ROUND(F10/(F10+F11-F12),setup!M65), "") ->  | Z16: 0.49 | AA16: 0.42 | AB16: 0.4 | AC16: 0.38 | AD16: 0.37 | AE16: 0.37 | AF16: 64
A17: 1.5" 37.5 | D17: =IF($C$31=0," ",(IF(C17=0,D16,ROUND(100-(SUM($C$16:C17)/$C$31)*100,setup!M68)))) ->  | F17: Rice 2 | G17: =IF(N11>0, ROUND(N10/(N10+N11-N12),setup!M65), "") ->  | H17: 1.5" 37.5 | K17: =IF($J$31=0," ",(IF(J17=0,K16,ROUND(100-(SUM($J$16:J17)/$J$31)*100,setup!$M$68)))) ->  | M17: Rice 2 | N17: =IF(O11>0, ROUND(O10/(O10+O11-O12),setup!M65), "") ->  | O17: 1.5" 37.5 | R17: =IF($Q$31=0," ",(IF(Q17=0,R16,ROUND(100-(SUM($Q$16:Q17)/$Q$31)*100,setup!$M$68)))) ->  | T17: Rice 2 | U17: =IF(P11>0, ROUND(P10/(P10+P11-P12),setup!M65), "") ->  | Z17: 0.53 | AA17: 0.45 | AB17: 0.43 | AC17: 0.41 | AD17: 0.4 | AE17: 0.4 | AF17: =AF16+1 -> 65
A18: 1" 25 | D18: =IF($C$31=0," ",(IF(C18=0,D17,ROUND(100-(SUM($C$16:C18)/$C$31)*100,setup!M68)))) ->  | H18: 1" 25 | K18: =IF($J$31=0," ",(IF(J18=0,K17,ROUND(100-(SUM($J$16:J18)/$J$31)*100,setup!$M$68)))) ->  | O18: 1" 25 | R18: =IF($Q$31=0," ",(IF(Q18=0,R17,ROUND(100-(SUM($Q$16:Q18)/$Q$31)*100,setup!$M$68)))) ->  | Z18: 0.56 | AA18: 0.48 | AB18: 0.46 | AC18: 0.44 | AD18: 0.43 | AE18: 0.42 | AF18: 66
A19: 3/4" 19 | D19: =IF($C$31=0," ",(IF(C19=0,D18,ROUND(100-(SUM($C$16:C19)/$C$31)*100,setup!M68)))) ->  | E19: Air | H19: 3/4" 19 | K19: =IF($J$31=0," ",(IF(J19=0,K18,ROUND(100-(SUM($J$16:J19)/$J$31)*100,setup!$M$68)))) ->  | L19: Air | O19: 3/4" 19 | R19: =IF($Q$31=0," ",(IF(Q19=0,R18,ROUND(100-(SUM($Q$16:Q19)/$Q$31)*100,setup!$M$68)))) ->  | S19: Air | Z19: 0.59 | AA19: 0.51 | AB19: 0.49 | AC19: 0.47 | AD19: 0.46 | AE19: 0.45 | AF19: 67
A20: 1/2" 12.5 | D20: =IF($C$31=0," ",(IF(C20=0,D19,ROUND(100-(SUM($C$16:C20)/$C$31)*100,setup!M68)))) ->  | E20: Water | H20: 1/2" 12.5 | K20: =IF($J$31=0," ",(IF(J20=0,K19,ROUND(100-(SUM($J$16:J20)/$J$31)*100,setup!$M$68)))) ->  | L20: Water | O20: 1/2" 12.5 | R20: =IF($Q$31=0," ",(IF(Q20=0,R19,ROUND(100-(SUM($Q$16:Q20)/$Q$31)*100,setup!$M$68)))) ->  | S20: Water | Z20: 0.62 | AA20: 0.54 | AB20: 0.52 | AC20: 0.5 | AD20: 0.48 | AE20: 0.48 | AF20: 68
A21: 3/8" 9.5 | D21: =IF($C$31=0," ",(IF(C21=0,D20,ROUND(100-(SUM($C$16:C21)/$C$31)*100,setup!M68)))) ->  | E21: SSD | H21: 3/8" 9.5 | K21: =IF($J$31=0," ",(IF(J21=0,K20,ROUND(100-(SUM($J$16:J21)/$J$31)*100,setup!$M$68)))) ->  | L21: SSD | O21: 3/8" 9.5 | R21: =IF($Q$31=0," ",(IF(Q21=0,R20,ROUND(100-(SUM($Q$16:Q21)/$Q$31)*100,setup!$M$68)))) ->  | S21: SSD | Z21: 0.65 | AA21: 0.57 | AB21: 0.55 | AC21: 0.53 | AD21: 0.51 | AE21: 0.51 | AF21: 69
A22: #4 4.75 | D22: =IF($C$31=0," ",(IF(C22=0,D21,ROUND(100-(SUM($C$16:C22)/$C$31)*100,setup!M68)))) ->  | E22: Ht@Ni | H22: #4 4.75 | K22: =IF($J$31=0," ",(IF(J22=0,K21,ROUND(100-(SUM($J$16:J22)/$J$31)*100,setup!$M$68)))) ->  | L22: Ht@Ni | O22: #4 4.75 | R22: =IF($Q$31=0," ",(IF(Q22=0,R21,ROUND(100-(SUM($Q$16:Q22)/$Q$31)*100,setup!$M$68)))) ->  | S22: Ht@Ni | Z22: 0.68 | AA22: 0.6 | AB22: 0.58 | AC22: 0.55 | AD22: 0.54 | AE22: 0.54 | AF22: 70
A23: #8 2.36 | D23: =IF($C$31=0," ",(IF(C23=0,D22,ROUND(100-(SUM($C$16:C23)/$C$31)*100,setup!M68)))) ->  | E23: Ht@Nd | H23: #8 2.36 | K23: =IF($J$31=0," ",(IF(J23=0,K22,ROUND(100-(SUM($J$16:J23)/$J$31)*100,setup!$M$68)))) ->  | L23: Ht@Nd | O23: #8 2.36 | R23: =IF($Q$31=0," ",(IF(Q23=0,R22,ROUND(100-(SUM($Q$16:Q23)/$Q$31)*100,setup!$M$68)))) ->  | S23: Ht@Nd | Z23: 0.71 | AA23: 0.63 | AB23: 0.6 | AC23: 0.58 | AD23: 0.57 | AE23: 0.56 | AF23: 71
A24: #16 1.18 | D24: =IF($C$31=0," ",(IF(C24=0,D23,ROUND(100-(SUM($C$16:C24)/$C$31)*100,setup!M68)))) ->  | E24: Ht@Nmax | H24: #16 1.18 | K24: =IF($J$31=0," ",(IF(J24=0,K23,ROUND(100-(SUM($J$16:J24)/$J$31)*100,setup!$M$68)))) ->  | L24: Ht@Nmax | O24: #16 1.18 | R24: =IF($Q$31=0," ",(IF(Q24=0,R23,ROUND(100-(SUM($Q$16:Q24)/$Q$31)*100,setup!$M$68)))) ->  | S24: Ht@Nmax | Z24: 0.74 | AA24: 0.66 | AB24: 0.64 | AC24: 0.61 | AD24: 0.6 | AE24: 0.59 | AF24: 72
A25: #30 0.6 | D25: =IF($C$31=0," ",(IF(C25=0,D24,ROUND(100-(SUM($C$16:C25)/$C$31)*100,setup!M68)))) ->  | H25: #30 0.6 | K25: =IF($J$31=0," ",(IF(J25=0,K24,ROUND(100-(SUM($J$16:J25)/$J$31)*100,setup!$M$68)))) ->  | O25: #30 0.6 | R25: =IF($Q$31=0," ",(IF(Q25=0,R24,ROUND(100-(SUM($Q$16:Q25)/$Q$31)*100,setup!$M$68)))) ->  | Z25: 0.77 | AA25: 0.69 | AB25: 0.67 | AC25: 0.64 | AD25: 0.63 | AE25: 0.62 | AF25: 73
A26: #50 0.3 | D26: =IF($C$31=0," ",(IF(C26=0,D25,ROUND(100-(SUM($C$16:C26)/$C$31)*100,setup!M68)))) ->  | F26: Meter AC | H26: #50 0.3 | K26: =IF($J$31=0," ",(IF(J26=0,K25,ROUND(100-(SUM($J$16:J26)/$J$31)*100,setup!$M$68)))) ->  | M26: Meter AC | O26: #50 0.3 | R26: =IF($Q$31=0," ",(IF(Q26=0,R25,ROUND(100-(SUM($Q$16:Q26)/$Q$31)*100,setup!$M$68)))) ->  | T26: Meter AC | Z26: 0.79 | AA26: 0.72 | AB26: 0.7 | AC26: 0.67 | AD26: 0.66 | AE26: 0.66 | AF26: 74
A27: #100 0.15 | D27: =IF($C$31=0," ",(IF(C27=0,D26,ROUND(100-(SUM($C$16:C27)/$C$31)*100,setup!M68)))) ->  | F27: Comp Temp | H27: #100 0.15 | K27: =IF($J$31=0," ",(IF(J27=0,K26,ROUND(100-(SUM($J$16:J27)/$J$31)*100,setup!$M$68)))) ->  | M27: Comp Temp | O27: #100 0.15 | R27: =IF($Q$31=0," ",(IF(Q27=0,R26,ROUND(100-(SUM($Q$16:Q27)/$Q$31)*100,setup!$M$68)))) ->  | T27: Comp Temp | Z27: 0.82 | AA27: 0.75 | AB27: 0.73 | AC27: 0.71 | AD27: 0.69 | AE27: 0.69 | AF27: 75
A28: #200 0.075 | D28: =IF($C$31=0," ",(IF(C28=0,D27,ROUND(100-(SUM($C$16:C28)/$C$31)*100,setup!M69)))) ->  | F28: Mix Temp | H28: #200 0.075 | K28: =IF($J$31=0," ",(IF(J28=0,K27,ROUND(100-(SUM($J$16:J28)/$J$31)*100,setup!$M$69)))) ->  | M28: Mix Temp | O28: #200 0.075 | R28: =IF($Q$31=0," ",(IF(Q28=0,R27,ROUND(100-(SUM($Q$16:Q28)/$Q$31)*100,setup!$M$69)))) ->  | T28: Mix Temp | Z28: 0.84 | AA28: 0.78 | AB28: 0.76 | AC28: 0.74 | AD28: 0.72 | AE28: 0.72 | AF28: 76
A29: Pass | F29: AntiStrip | H29: Pass | M29: AntiStrip | O29: Pass | T29: AntiStrip | Z29: 0.87 | AA29: 0.81 | AB29: 0.79 | AC29: 0.77 | AD29: 0.76 | AE29: 0.75 | AF29: 77
A30: Dec Loss | C30: =IF(G34>0, G34-G35, "") ->  | H30: Dec Loss | J30: =IF(N34>0, N34-N35, "") ->  | O30: Dec Loss | Q30: =IF(U34>0, U34-U35, "") ->  | Z30: 0.89 | AA30: 0.84 | AB30: 0.82 | AC30: 0.8 | AD30: 0.79 | AE30: 0.78 | AF30: 78
A31: Cum. Total | C31: =SUM(C16:C30) -> 0 | F31: Sample Taken-Tons | H31: Cum. Total | J31: =SUM(J16:J30) -> 0 | M31: Sample Taken-Tons | O31: Cum. Total | Q31: =SUM(Q16:Q30) -> 0 | T31: Sample Taken-Tons | Z31: 0.92 | AA31: 0.87 | AB31: 0.85 | AC31: 0.83 | AD31: 0.82 | AE31: 0.82 | AF31: 79
A32: %AC | C32: =IF(E37<>"", ROUND(E37-M6,setup!M71), "") ->  | H32: %AC | J32: =IF(L37<>"", ROUND(L37-U6,setup!M71), "") ->  | O32: %AC | Q32: =IF(S37<>"", ROUND(S37-AB6,setup!M71), "") ->  | Z32: 0.94 | AA32: 0.9 | AB32: 0.88 | AC32: 0.87 | AD32: 0.85 | AE32: 0.85 | AF32: 80
A33: %Crushed | C33: =IF(SUM(C16:C22)>0, ROUND(G37/SUM(C16:C22)*100,0), "") ->  | H33: %Crushed | J33: =IF(SUM(J16:J22)>0, ROUND(N37/SUM(J16:J22)*100,0), "") ->  | O33: %Crushed | Q33: =IF(SUM(Q16:Q22)>0, ROUND(U37/SUM(Q16:Q22)*100,0), "") ->  | Z33: 0.96 | AA33: 0.93 | AB33: 0.92 | AC33: 0.9 | AD33: 0.89 | AE33: 0.89 | AF33: 81
A34: MC Pan Wt | D34: =IF($R$5="No Oven Temp Corr.","Tr. Bskt", "Wt of Mix") -> Wt of Mix | F34: Int.DryWt | H34: MC Pan Wt | K34: =IF($R$5="No Oven Temp Corr.","Tr. Bskt", "Wt of Mix") -> Wt of Mix | M34: Int.DryWt | O34: MC Pan Wt | R34: =IF($R$5="No Oven Temp Corr.","Tr. Bskt", "Wt of Mix") -> Wt of Mix | T34: Int.DryWt | Z34: 0.98 | AA34: 0.96 | AB34: 0.95 | AC34: 0.94 | AD34: 0.93 | AE34: 0.92 | AF34: 82
A35: MC Initial Wt | D35: =IF($R$5="No Oven Temp Corr.","Bskt+Mix w/AC", "Wt. Loss") -> Wt. Loss | F35: AfterWash | H35: MC Initial Wt | K35: =IF($R$5="No Oven Temp Corr.","Bskt+Mix w/AC", "Wt. Loss") -> Wt. Loss | M35: AfterWash | O35: MC Initial Wt | R35: =IF($R$5="No Oven Temp Corr.","Bskt+Mix w/AC", "Wt. Loss") -> Wt. Loss | T35: AfterWash | Z35: 1 | AA35: 0.99 | AB35: 0.98 | AC35: 0.97 | AD35: 0.96 | AE35: 0.96 | AF35: 83
A36: MC Final Wt | D36: =IF($R$5="No Oven Temp Corr.","Bskt minus AC", "Temp. Corr.") -> Temp. Corr. | F36: % Diff | G36: =IF(G34>0, ROUND((G34-C31)/G34*100,1),"") ->  | H36: MC Final Wt | K36: =IF($R$5="No Oven Temp Corr.","Bskt minus AC", "Temp. Corr.") -> Temp. Corr. | M36: % Diff | N36: =IF(N34>0, ROUND((N34-J31)/N34*100,1),"") ->  | O36: MC Final Wt | R36: =IF($R$5="No Oven Temp Corr.","Bskt minus AC", "Temp. Corr.") -> Temp. Corr. | T36: % Diff | U36: =IF(U34>0, ROUND((U34-Q31)/U34*100,1),"") ->  | Z36: 1.02 | AA36: 1.02 | AB36: 1.02 | AC36: 1.01 | AD36: 1 | AE36: 1 | AF36: 84
A37: %MC | B37: =IF(B36>0,((B35-B34)-(B36-B34))/(B36-B34)*100,0) -> 0 | D37: =IF($R$5="No Oven Temp Corr.","% LOSS", "% LOSS-Tmp. Cor.") -> % LOSS-Tmp. Cor. | E37: =IF($R$5="No Oven Temp Corr.", IF(E35>0,((E35-E36)/(E35-E34))*100, ""), IF(E34>0, E35/E34*100-E36,"")) ->  | F37: Wt. Crush | H37: %MC | I37: =IF(I36>0,((I35-I34)-(I36-I34))/(I36-I34)*100,0) -> 0 | K37: =IF($R$5="No Oven Temp Corr.","% LOSS", "% LOSS-Tmp. Cor.") -> % LOSS-Tmp. Cor. | L37: =IF($R$5="No Oven Temp Corr.", IF(L35>0,((L35-L36)/(L35-L34))*100, ""), IF(L34>0, L35/L34*100-L36,"")) ->  | M37: Wt. Crush | O37: %MC | P37: =IF(P36>0,((P35-P34)-(P36-P34))/(P36-P34)*100,0) -> 0 | R37: =IF($R$5="No Oven Temp Corr.","% LOSS", "% LOSS-Tmp. Cor.") -> % LOSS-Tmp. Cor. | S37: =IF($R$5="No Oven Temp Corr.", IF(S35>0,((S35-S36)/(S35-S34))*100, ""), IF(S34>0, S35/S34*100-S36,"")) ->  | T37: Wt. Crush | Z37: 1.03 | AA37: 1.05 | AB37: 1.05 | AC37: 1.05 | AD37: 1.04 | AE37: 1.04 | AF37: 85
D38: %Loss - Moisture | E38: =IF(E37<>"",E37-B37,"") ->  | K38: %Loss - Moisture | L38: =IF(L37<>"",L37-I37,"") ->  | R38: %Loss - Moisture | S38: =IF(S37<>"",S37-P37,"") ->  | Z38: 1.05 | AA38: 1.08 | AB38: 1.08 | AC38: 1.08 | AD38: 1.08 | AE38: 1.08 | AF38: 86
Z39: 1.06 | AA39: 1.11 | AB39: 1.12 | AC39: 1.12 | AD39: 1.13 | AE39: 1.13 | AF39: 87
A40: Sublot # | B40: 4 | E40: Tons | H40: Sublot # | I40: 5 | L40: Tons | O40: =IF(T40>0,"Sublot # ","") ->  | P40: =IF(T40>0,6,"") ->  | S40: Tons | Z40: 1.07 | AA40: 1.14 | AB40: 1.16 | AC40: 1.17 | AD40: 1.17 | AE40: 1.17 | AF40: 88
B41: Gradation | D41: % Pass | F41: Volumetrics | I41: Gradation | K41: % Pass | M41: Volumetrics | P41: =IF(T40>0,"Gradation","") ->  | R41: =IF(T40>0,"% Pass","") ->  | T41: =IF(T40>0,"Volumetrics","") ->  | Z41: 1.08 | AA41: 1.17 | AB41: 1.2 | AC41: 1.21 | AD41: 1.21 | AE41: 1.22 | AF41: 89
A42: 2" 50 | D42: =IF($C$57=0," ",ROUND(100-(C42/$C$57)*100,setup!M68)) ->  | F42: Rice 1 | G42: =IF(G11>0, ROUND(G10/(G10+G11-G12),setup!M65), "") ->  | H42: 2" 50 | K42: =IF($J$57=0," ",ROUND(100-(J42/$J$57)*100,setup!M68)) ->  | M42: Rice 1 | N42: =IF(H11>0, ROUND(H10/(H10+H11-H12),setup!M65), "") ->  | O42: =IF(T40>0,"2"" 50","") ->  | R42: =IF($Q$57=0," ",ROUND(100-(Q42/$Q$57)*100,setup!M68)) ->  | T42: =IF(T40>0,"Rice 1","") ->  | U42: =IF(I11>0, ROUND(I10/(I10+I11-I12),setup!M65), "") ->  | Z42: 1.09 | AA42: 1.2 | AB42: 1.23 | AC42: 1.25 | AD42: 1.26 | AE42: 1.27 | AF42: 90
A43: 1.5" 37.5 | D43: =IF($C$57=0," ",(IF(C43=0,D42,ROUND(100-(SUM($C$42:C43)/$C$57)*100,setup!$M$68)))) ->  | F43: Rice 2 | G43: =IF(Q11>0, ROUND(Q10/(Q10+Q11-Q12),setup!M65), "") ->  | H43: 1.5" 37.5 | K43: =IF($J$57=0," ",(IF(J43=0,K42,ROUND(100-(SUM($J$42:J43)/$J$57)*100,setup!$M$68)))) ->  | M43: Rice 2 | N43: =IF(R11>0, ROUND(R10/(R10+R11-R12),setup!M65), "") ->  | O43: =IF(T40>0,"1.5"" 37.5","") ->  | R43: =IF($Q$57=0," ",(IF(Q43=0,R42,ROUND(100-(SUM($Q$42:Q43)/$Q$57)*100,setup!$M$68)))) ->  | T43: =IF(T40>0,"Rice 2","") ->  | U43: =IF(S11>0, ROUND(S10/(S10+S11-S12),setup!M65), "") ->  | Z43: 1.1 | AA43: 1.23 | AB43: 1.27 | AC43: 1.3 | AD43: 1.32 | AE43: 1.32 | AF43: 91
A44: 1" 25 | D44: =IF($C$57=0," ",(IF(C44=0,D43,ROUND(100-(SUM($C$42:C44)/$C$57)*100,setup!$M$68)))) ->  | H44: 1" 25 | K44: =IF($J$57=0," ",(IF(J44=0,K43,ROUND(100-(SUM($J$42:J44)/$J$57)*100,setup!$M$68)))) ->  | O44: =IF(T40>0,"1"" 25","") ->  | R44: =IF($Q$57=0," ",(IF(Q44=0,R43,ROUND(100-(SUM($Q$42:Q44)/$Q$57)*100,setup!$M$68)))) ->  | Z44: 1.11 | AA44: 1.26 | AB44: 1.31 | AC44: 1.35 | AD44: 1.37 | AE44: 1.38 | AF44: 92
A45: 3/4" 19 | D45: =IF($C$57=0," ",(IF(C45=0,D44,ROUND(100-(SUM($C$42:C45)/$C$57)*100,setup!$M$68)))) ->  | E45: Air | H45: 3/4" 19 | K45: =IF($J$57=0," ",(IF(J45=0,K44,ROUND(100-(SUM($J$42:J45)/$J$57)*100,setup!$M$68)))) ->  | L45: Air | O45: =IF(T40>0,"3/4"" 19","") ->  | R45: =IF($Q$57=0," ",(IF(Q45=0,R44,ROUND(100-(SUM($Q$42:Q45)/$Q$57)*100,setup!$M$68)))) ->  | S45: =IF(T40>0,"Air ","") ->  | Z45: 1.12 | AA45: 1.29 | AB45: 1.36 | AC45: 1.4 | AD45: 1.43 | AE45: 1.44 | AF45: 93
A46: 1/2" 12.5 | D46: =IF($C$57=0," ",(IF(C46=0,D45,ROUND(100-(SUM($C$42:C46)/$C$57)*100,setup!$M$68)))) ->  | E46: Water | H46: 1/2" 12.5 | K46: =IF($J$57=0," ",(IF(J46=0,K45,ROUND(100-(SUM($J$42:J46)/$J$57)*100,setup!$M$68)))) ->  | L46: Water | O46: =IF(T40>0,"1/2"" 12.5","") ->  | R46: =IF($Q$57=0," ",(IF(Q46=0,R45,ROUND(100-(SUM($Q$42:Q46)/$Q$57)*100,setup!$M$68)))) ->  | S46: =IF(T40>0,"Water","") ->  | Z46: 1.13 | AA46: 1.32 | AB46: 1.4 | AC46: 1.46 | AD46: 1.49 | AE46: 1.51 | AF46: 94
A47: 3/8" 9.5 | D47: =IF($C$57=0," ",(IF(C47=0,D46,ROUND(100-(SUM($C$42:C47)/$C$57)*100,setup!$M$68)))) ->  | E47: SSD | H47: 3/8" 9.5 | K47: =IF($J$57=0," ",(IF(J47=0,K46,ROUND(100-(SUM($J$42:J47)/$J$57)*100,setup!$M$68)))) ->  | L47: SSD | O47: =IF(T40>0,"3/8"" 9.5","") ->  | R47: =IF($Q$57=0," ",(IF(Q47=0,R46,ROUND(100-(SUM($Q$42:Q47)/$Q$57)*100,setup!$M$68)))) ->  | S47: =IF(T40>0,"SSD","") ->  | Z47: 1.14 | AA47: 1.35 | AB47: 1.45 | AC47: 1.52 | AD47: 1.56 | AE47: 1.59 | AF47: =AF46+1 -> 95
A48: #4 4.75 | D48: =IF($C$57=0," ",(IF(C48=0,D47,ROUND(100-(SUM($C$42:C48)/$C$57)*100,setup!$M$68)))) ->  | E48: Ht@Ni | H48: #4 4.75 | K48: =IF($J$57=0," ",(IF(J48=0,K47,ROUND(100-(SUM($J$42:J48)/$J$57)*100,setup!$M$68)))) ->  | L48: Ht@Ni | O48: =IF(T40>0,"#4 4.75","") ->  | R48: =IF($Q$57=0," ",(IF(Q48=0,R47,ROUND(100-(SUM($Q$42:Q48)/$Q$57)*100,setup!$M$68)))) ->  | S48: =IF(T40>0,"Ht@Ni","") ->  | Z48: 1.15 | AA48: 1.38 | AB48: 1.49 | AC48: 1.59 | AD48: 1.64 | AE48: 1.69 | AF48: 96
A49: #8 2.36 | D49: =IF($C$57=0," ",(IF(C49=0,D48,ROUND(100-(SUM($C$42:C49)/$C$57)*100,setup!$M$68)))) ->  | E49: Ht@Nd | H49: #8 2.36 | K49: =IF($J$57=0," ",(IF(J49=0,K48,ROUND(100-(SUM($J$42:J49)/$J$57)*100,setup!$M$68)))) ->  | L49: Ht@Nd | O49: =IF(T40>0,"#8 2.36","") ->  | R49: =IF($Q$57=0," ",(IF(Q49=0,R48,ROUND(100-(SUM($Q$42:Q49)/$Q$57)*100,setup!$M$68)))) ->  | S49: =IF(T40>0,"Ht@Nd","") ->  | Z49: 1.15 | AA49: 1.41 | AB49: 1.55 | AC49: 1.67 | AD49: 1.74 | AE49: 1.8 | AF49: 97
A50: #16 1.18 | D50: =IF($C$57=0," ",(IF(C50=0,D49,ROUND(100-(SUM($C$42:C50)/$C$57)*100,setup!$M$68)))) ->  | E50: Ht@Nmax | H50: #16 1.18 | K50: =IF($J$57=0," ",(IF(J50=0,K49,ROUND(100-(SUM($J$42:J50)/$J$57)*100,setup!$M$68)))) ->  | L50: Ht@Nmax | O50: =IF(T40>0,"#16 1.18","") ->  | R50: =IF($Q$57=0," ",(IF(Q50=0,R49,ROUND(100-(SUM($Q$42:Q50)/$Q$57)*100,setup!$M$68)))) ->  | S50: =IF(T40>0,"Ht@Nmax","") ->  | Z50: 1.15 | AA50: 1.44 | AB50: 1.61 | AC50: 1.77 | AD50: 1.86 | AE50: 1.93 | AF50: 98
A51: #30 0.6 | D51: =IF($C$57=0," ",(IF(C51=0,D50,ROUND(100-(SUM($C$42:C51)/$C$57)*100,setup!$M$68)))) ->  | H51: #30 0.6 | K51: =IF($J$57=0," ",(IF(J51=0,K50,ROUND(100-(SUM($J$42:J51)/$J$57)*100,setup!$M$68)))) ->  | O51: =IF(T40>0,"#30 0.6","") ->  | R51: =IF($Q$57=0," ",(IF(Q51=0,R50,ROUND(100-(SUM($Q$42:Q51)/$Q$57)*100,setup!$M$68)))) ->  | Z51: 1.16 | AA51: 1.47 | AB51: 1.68 | AC51: 1.89 | AD51: 2.04 | AE51: 2.14 | AF51: 99
A52: #50 0.3 | D52: =IF($C$57=0," ",(IF(C52=0,D51,ROUND(100-(SUM($C$42:C52)/$C$57)*100,setup!$M$68)))) ->  | F52: Meter AC | H52: #50 0.3 | K52: =IF($J$57=0," ",(IF(J52=0,K51,ROUND(100-(SUM($J$42:J52)/$J$57)*100,setup!$M$68)))) ->  | M52: Meter AC | O52: =IF(T40>0,"#50 0.3","") ->  | R52: =IF($Q$57=0," ",(IF(Q52=0,R51,ROUND(100-(SUM($Q$42:Q52)/$Q$57)*100,setup!$M$68)))) ->  | T52: =IF(T40>0,"Meter AC","") -> 
A53: #100 0.15 | D53: =IF($C$57=0," ",(IF(C53=0,D52,ROUND(100-(SUM($C$42:C53)/$C$57)*100,setup!$M$68)))) ->  | F53: Comp Temp | H53: #100 0.15 | K53: =IF($J$57=0," ",(IF(J53=0,K52,ROUND(100-(SUM($J$42:J53)/$J$57)*100,setup!$M$68)))) ->  | M53: Comp Temp | O53: =IF(T40>0,"#100 0.15","") ->  | R53: =IF($Q$57=0," ",(IF(Q53=0,R52,ROUND(100-(SUM($Q$42:Q53)/$Q$57)*100,setup!$M$68)))) ->  | T53: =IF(T40>0,"Comp Temp","") -> 
A54: #200 0.075 | D54: =IF($C$57=0," ",(IF(C54=0,D53,ROUND(100-(SUM($C$42:C54)/$C$57)*100,setup!$M$69)))) ->  | F54: Mix Temp | H54: #200 0.075 | K54: =IF($J$57=0," ",(IF(J54=0,K53,ROUND(100-(SUM($J$42:J54)/$J$57)*100,setup!$M$69)))) ->  | M54: Mix Temp | O54: =IF(T40>0,"#200 0.075","") ->  | R54: =IF($Q$57=0," ",(IF(Q54=0,R53,ROUND(100-(SUM($Q$42:Q54)/$Q$57)*100,setup!$M$69)))) ->  | T54: =IF(T40>0,"Mix Temp","") -> 
A55: Pass | F55: AntiStrip | H55: Pass | M55: AntiStrip | O55: =IF(T40>0,"Pass","") ->  | T55: =IF(T40>0,"AntiStrip","") -> 
A56: Dec Loss | C56: =IF(G60>0, G60-G61, "") ->  | H56: Dec Loss | J56: =IF(N60>0, N60-N61, "") ->  | O56: =IF(T40>0,"Dec Loss","") ->  | Q56: =IF(U60>0, U60-U61, "") -> 
A57: Cum. Total | C57: =SUM(C42:C56) -> 0 | F57: Sample Taken-Tons | H57: Cum. Total | J57: =SUM(J42:J56) -> 0 | M57: Sample Taken-Tons | O57: =IF(T40>0,"Cum. Total","") ->  | T57: =IF(T40>0,"Sample Taken-Tons","") -> 
A58: %AC | C58: =IF(E63<>"", ROUND(E63-N32,setup!M71), "") ->  | H58: %AC | J58: =IF(L63<>"", ROUND(L63-U32,setup!M71), "") ->  | O58: =IF(T40>0,"%AC","") ->  | Q58: =IF(S63<>"", ROUND(S63-AB32,setup!M71), "") -> 
A59: %Crushed | C59: =IF(SUM(C42:C48)>0, ROUND(G63/SUM(C42:C48)*100,0), "") ->  | H59: %Crushed | J59: =IF(SUM(J42:J48)>0, ROUND(N63/SUM(J42:J48)*100,0), "") ->  | O59: =IF(T40>0,"%Crushed","") ->  | Q59: =IF(SUM(Q42:Q48)>0, ROUND(U63/SUM(Q42:Q48)*100,0), "") -> 
A60: MC Pan Wt | D60: =IF($R$5="No Oven Temp Corr.","Tr. Bskt", "Wt of Mix") -> Wt of Mix | F60: Int.DryWt | H60: MC Pan Wt | K60: =IF($R$5="No Oven Temp Corr.","Tr. Bskt", "Wt of Mix") -> Wt of Mix | M60: Int.DryWt | O60: =IF(T40>0,"MC Pan Wt","") ->  | R60: =IF(T40>0,IF($R$5="No Oven Temp Corr.","Tr. Bskt", "Wt of Mix"),"") ->  | T60: =IF(T40>0,"Int.DryWt","") -> 
A61: MC Initial Wt | D61: =IF($R$5="No Oven Temp Corr.","Bskt+Mix w/AC", "Wt. Loss") -> Wt. Loss | F61: AfterWash | H61: MC Initial Wt | K61: =IF($R$5="No Oven Temp Corr.","Bskt+Mix w/AC", "Wt. Loss") -> Wt. Loss | M61: AfterWash | O61: =IF(T40>0,"MC Initial Wt","") ->  | R61: =IF(T40>0,IF($R$5="No Oven Temp Corr.","Bskt+Mix w/AC", "Wt. Loss"),"") ->  | T61: =IF(T40>0,"AfterWash","") -> 
A62: MC Final Wt | D62: =IF($R$5="No Oven Temp Corr.","Bskt minus AC", "Temp. Corr.") -> Temp. Corr. | F62: % Diff | G62: =IF(G60>0, ROUND((G60-C57)/G60*100,1),"") ->  | H62: MC Final Wt | K62: =IF($R$5="No Oven Temp Corr.","Bskt minus AC", "Temp. Corr.") -> Temp. Corr. | M62: % Diff | N62: =IF(N60>0, ROUND((N60-J57)/N60*100,1),"") ->  | O62: =IF(T40>0,"MC Final Wt","") ->  | R62: =IF(T40>0,IF($R$5="No Oven Temp Corr.","Bskt minus AC", "Temp. Corr."),"") ->  | T62: =IF(T40>0,"% Diff","") ->  | U62: =IF(U60>0, ROUND((U60-Q57)/U60*100,1),"") -> 
A63: %MC | B63: =IF(B62>0,((B61-B60)-(B62-B60))/(B62-B60)*100,0) -> 0 | D63: =IF($R$5="No Oven Temp Corr.","% LOSS", "% LOSS-Tmp. Cor.") -> % LOSS-Tmp. Cor. | E63: =IF($R$5="No Oven Temp Corr.", IF(E61>0,((E61-E62)/(E61-E60))*100, ""), IF(E60>0, E61/E60*100-E62,"")) ->  | F63: Wt. Crush | H63: %MC | I63: =IF(I62>0,((I61-I60)-(I62-I60))/(I62-I60)*100,0) -> 0 | K63: =IF($R$5="No Oven Temp Corr.","% LOSS", "% LOSS-Tmp. Cor.") -> % LOSS-Tmp. Cor. | L63: =IF($R$5="No Oven Temp Corr.", IF(L61>0,((L61-L62)/(L61-L60))*100, ""), IF(L60>0, L61/L60*100-L62,"")) ->  | M63: Wt. Crush | O63: =IF(T40>0,"%MC","") ->  | P63: =IF(P62>0,((P61-P60)-(P62-P60))/(P62-P60)*100,0) -> 0 | R63: =IF(T40>0,IF($R$5="No Oven Temp Corr.","% LOSS", "% LOSS-Tmp. Cor."),"") ->  | S63: =IF($R$5="No Oven Temp Corr.", IF(S61>0,((S61-S62)/(S61-S60))*100, ""), IF(S60>0, S61/S60*100-S62,"")) ->  | T63: =IF(T40>0,"Wt. Crush","") -> 
D64: %Loss - Moisture | E64: =IF(E63<>"",E63-B63,"") ->  | K64: %Loss - Moisture | L64: =IF(L63<>"",L63-I63,"") ->  | R64: =IF(T40>0,"%Loss - Moisture","") ->  | S64: =IF(S63<>"",S63-P63,"") -> 
A66: =setup!S2 -> LaPave 502 v18.05.02 | T66: =TODAY() -> 2023-03-31
A68: LWT (one per JMF, project, or every 20,000 tons) | G68: Sublot | K68: Drain Down (AASHTO T 305) | O68: Sublot
C69: 1 | D69: 2 | E69: 3 | F69: 4
A70: A Wt in air (dry) | G70: Left | K70: Wt. of Mix Before
A71: B Wt in water | G71: Bricks: | K71: Wt. of Mix After
A72: C Wt in air (SSD) | G72: Avg AV | H72: =IF(H71="1 & 2", ROUND(AVERAGE(C76,D76),setup!M75), IF(H71="1 & 3", ROUND(AVERAGE(C76,E76),setup!M75),IF(H71="1 & 4", ROUND(AVERAGE(C76,F76),setup!M75),IF(H71="2 & 3", ROUND(AVERAGE(D76,E76),setup!M75),IF(H71="2 & 4", ROUND(AVERAGE(D76,F76),setup!M75),IF(H71="3 & 4", ROUND(AVERAGE(E76,F76),setup!M75),"")))))) ->  | K72: Wt. of Plate
A73: v Volume (C-B) | C73: =IF(C70>0,C72-C71,"") ->  | D73: =IF(D70>0,D72-D71,"") ->  | E73: =IF(E70>0,E72-E71,"") ->  | F73: =IF(F70>0,F72-F71,"") ->  | K73: Wt. of Plate+Mix After
A74: D Bk SpGr (A/v) | C74: =IF(C70>0,ROUND(C70/C73,setup!$M$66),"") ->  | D74: =IF(D70>0,ROUND(D70/D73,setup!$M$66),"") ->  | E74: =IF(E70>0,ROUND(E70/E73,setup!$M$66),"") ->  | F74: =IF(F70>0,ROUND(F70/F73,setup!$M$66),"") ->  | G74: Right | K74: Wt. of Drained Mix | N74: =IF(N73>0, N73-N72, IF(N71>0, N70-N71, "")) ->  | O74: =IF(O73>0, O73-O72, IF(O71>0, O70-O71, "")) ->  | P74: Avg % Draindown
A75: F %MxThGr 100D/E | C75: =IF(C70>0,ROUND((C74/AVERAGE($G$16:$G$17))*100,setup!$M$67),"") ->  | D75: =IF(D70>0,ROUND((D74/AVERAGE($G$16:$G$17))*100,setup!$M$67),"") ->  | E75: =IF(E70>0,ROUND((E74/AVERAGE($G$16:$G$17))*100,setup!$M$67),"") ->  | F75: =IF(F70>0,ROUND((F74/AVERAGE($G$16:$G$17))*100,setup!$M$67),"") ->  | G75: Bricks: | H75: =IF(H71="1 & 2", "3 & 4", IF(H71="1 & 3", "2 & 4",IF(H71="1 & 4", "2 & 3",IF(H71="2 & 3", "1 & 4",IF(H71="2 & 4", "1 & 3",IF(H71="3 & 4", "1 & 2","")))))) ->  | K75: % Draindown | N75: =IF(N74<>"", ROUND(N74/N70*100,1), "") ->  | O75: =IF(O74<>"", ROUND(O74/O70*100,1), "") ->  | P75: =IF(N75<>"", AVERAGE(N75:O75), "") -> 
A76: H % Voids (100-F) | C76: =IF(C70>0,ROUND(100-C75,setup!$M$75),"") ->  | D76: =IF(D70>0,ROUND(100-D75,setup!$M$75),"") ->  | E76: =IF(E70>0,ROUND(100-E75,setup!$M$75),"") ->  | F76: =IF(F70>0,ROUND(100-F75,setup!$M$75),"") ->  | G76: Avg AV | H76: =IF(H75="1 & 2", ROUND(AVERAGE(C76,D76),setup!M75), IF(H75="1 & 3", ROUND(AVERAGE(C76,E76),setup!M75),IF(H75="1 & 4", ROUND(AVERAGE(C76,F76),setup!M75),IF(H75="2 & 3", ROUND(AVERAGE(D76,E76),setup!M75),IF(H75="2 & 4", ROUND(AVERAGE(D76,F76),setup!M75),IF(H75="3 & 4", ROUND(AVERAGE(E76,F76),setup!M75),"")))))) -> 
A78: Temp(°C): | E78: Pass | F78: Left | G78: Right
A79: Avg Rut (mm): | C79: =IF(C80=7500, ROUND(AVERAGE(F80,G80),setup!M77), IF(C80 = 10000, ROUND(AVERAGE(F81,G81),setup!M77),IF(C80 = 20000, ROUND(AVERAGE(F83,G83),setup!M77),""))) ->  | E79: 5000
A80: At Pass: | E80: 7500
A81: (Pass/Fail): | E81: 10000
E82: 15000
A83: Date Tested: | E83: 20000
A85: Remarks | B85: Plant Acceptance Comment
A87: =setup!S2 -> LaPave 502 v18.05.02 | P87: =TODAY() -> 2023-03-31
A90: Averages for Lot
C91: Sublots | J91: JMF | K91: MEAN | L91: StDev | M91: QL | N91: QU | O91: PWL
A92: Sublot No. | C92: =IF(B14<>"",B14,"") -> 1 | D92: =IF(I14<>"",I14,"") -> 2 | E92: =IF(P14<>"",P14,"") -> 3 | F92: =IF(B40<>"",B40,"") -> 4 | G92: =IF(I40<>"",I40,"") -> 5 | H92: =IF(P40<>"",P40,"") -> 
A93: Sublot Ton | C93: =IF(F14>0,F14,"") ->  | D93: =IF(M14>0,M14,"") ->  | E93: =IF(T14>0,T14,"") ->  | F93: =IF(F40>0,F40,"") ->  | G93: =IF(M40>0,M40,"") ->  | H93: =IF(T40>0,T40,"") -> 
A94: Gmm | C94: =IF(G16<>"", ROUND(AVERAGE(G16:G17),setup!M65), "") ->  | D94: =IF(N16<>"", ROUND(AVERAGE(N16:N17),setup!M65), "") ->  | E94: =IF(U16<>"", ROUND(AVERAGE(U16:U17),setup!M65), "") ->  | F94: =IF(G42<>"", ROUND(AVERAGE(G42:G43),setup!M65), "") ->  | G94: =IF(N42<>"", ROUND(AVERAGE(N42:N43),setup!M65), "") ->  | H94: =IF(U42<>"", ROUND(AVERAGE(U42:U43),setup!M65), "") ->  | J94: =Validation!H7 ->  | K94: =IF(SUM(C94:H94)>0, ROUND(AVERAGE(C94:H94),setup!M65+1),"") ->  | L94: =IF(COUNT(C94:H94)>1, ROUND(STDEV(C94:H94),setup!M65+3),"") ->  | M94: =IF(COUNT(C94:H94)>=3, IF(L94>0, ROUND(setup!D8/L94,2),"--"), "--") -> -- | N94: =IF(COUNT(C94:H94)>=3,IF(L94>0, ROUND(setup!D8/L94,2),"--"),"--") -> -- | O94: =IF(AND(M94="--", N94="--"), "--", IF(M94="--", 100, IF(M94<0, 100, 0)+IF(M94<0, -1, 1)* IF(COUNT(C94:H94)>=5, VLOOKUP(ABS(M94),$AB$2:$AF$53,5,TRUE)+IF(LOOKUP(ABS(M94),$AB$2:$AB$53)<ABS(M94),1,0), IF(COUNT(C94:H94)=4, VLOOKUP(ABS(M94),$AA$2:$AF$53,6,TRUE)+IF(LOOKUP(ABS(M94),$AA$2:$AA$53)<ABS(M94),1,0), IF(COUNT(C94:H94)=3, VLOOKUP(ABS(M94),$Z$2:$AF$53,7,TRUE)+IF(LOOKUP(ABS(M94),$Z$2:$Z$53)<ABS(M94),1,0),"--"))))+IF(N94="--",100, IF(N94<0, 100, 0)+IF(N94<0, -1, 1)* IF(COUNT(C94:H94)>=5, VLOOKUP(ABS(N94),$AB$2:$AF$53,5,TRUE)+IF(LOOKUP(ABS(N94),$AB$2:$AB$53)<ABS(N94),1,0), IF(COUNT(C94:H94)=4, VLOOKUP(ABS(N94),$AA$2:$AF$53,6,TRUE)+IF(LOOKUP(ABS(N94),$AA$2:$AA$53)<ABS(N94),1,0), IF(COUNT(C94:H94)=3, VLOOKUP(ABS(N94),$Z$2:$AF$53,7,TRUE)+IF(LOOKUP(ABS(N94),$Z$2:$Z$53)<ABS(N94),1,0),"--"))))-100) -> -- | P94: =IF(K94<>"", IF(K94>MIN(JMF!Q35,100), "Over JMF Limit", IF(K94<MAX(JMF!N35,0), "Under JFM Limit", IF(O94<>"--", IF(O94<71, "<71 PWL", "OK"), "OK"))),"") -> 
A95: Gmb,ND | C95: =IF(F21>0,ROUND(F19/(F21-F20),setup!M66),"") ->  | D95: =IF(M21>0,ROUND(M19/(M21-M20),setup!M66),"") ->  | E95: =IF(T21>0,ROUND(T19/(T21-T20),setup!M66),"") ->  | F95: =IF(F47>0,ROUND(F45/(F47-F46),setup!M66),"") ->  | G95: =IF(M47>0,ROUND(M45/(M47-M46),setup!M66),"") ->  | H95: =IF(T47>0,ROUND(T45/(T47-T46),setup!M66),"") ->  | J95: =Validation!H8 ->  | K95: =IF(SUM(C95:H95)>0, ROUND(AVERAGE(C95:H95),setup!M66+1),"") ->  | L95: =IF(COUNT(C95:H95)>1, ROUND(STDEV(C95:H95),setup!M66+3),"") ->  | M95: =IF(COUNT(C95:H95)>=3, IF(L95>0, ROUND(setup!D12/L95,2),"--"), "--") -> -- | N95: =IF(COUNT(C95:H95)>=3,IF(L95>0, ROUND(setup!D12/L95,2),"--"),"--") -> -- | O95: =IF(AND(M95="--", N95="--"), "--", IF(M95="--", 100, IF(M95<0, 100, 0)+IF(M95<0, -1, 1)* IF(COUNT(C95:H95)>=5, VLOOKUP(ABS(M95),$AB$2:$AF$53,5,TRUE)+IF(LOOKUP(ABS(M95),$AB$2:$AB$53)<ABS(M95),1,0), IF(COUNT(C95:H95)=4, VLOOKUP(ABS(M95),$AA$2:$AF$53,6,TRUE)+IF(LOOKUP(ABS(M95),$AA$2:$AA$53)<ABS(M95),1,0), IF(COUNT(C95:H95)=3, VLOOKUP(ABS(M95),$Z$2:$AF$53,7,TRUE)+IF(LOOKUP(ABS(M95),$Z$2:$Z$53)<ABS(M95),1,0),"--"))))+IF(N95="--",100, IF(N95<0, 100, 0)+IF(N95<0, -1, 1)* IF(COUNT(C95:H95)>=5, VLOOKUP(ABS(N95),$AB$2:$AF$53,5,TRUE)+IF(LOOKUP(ABS(N95),$AB$2:$AB$53)<ABS(N95),1,0), IF(COUNT(C95:H95)=4, VLOOKUP(ABS(N95),$AA$2:$AF$53,6,TRUE)+IF(LOOKUP(ABS(N95),$AA$2:$AA$53)<ABS(N95),1,0), IF(COUNT(C95:H95)=3, VLOOKUP(ABS(N95),$Z$2:$AF$53,7,TRUE)+IF(LOOKUP(ABS(N95),$Z$2:$Z$53)<ABS(N95),1,0),"--"))))-100) -> --
A96: %Gmm,NI | C96: =IF(C95<>"", IF(F22>0, ROUND(100*(ROUND(ROUND(F19/(((3.1416*150*150*F22)/4)*0.001),setup!$M$66)*(C95/ROUND(F19/(((3.1416*150*150*F23)/4)*0.001),setup!$M$66)),setup!$M$66)/C94),setup!$M$67), ""), "") ->  | D96: =IF(D95<>"", IF(M22>0, ROUND(100*(ROUND(ROUND(M19/(((3.1416*150*150*M22)/4)*0.001),setup!$M$66)*(D95/ROUND(M19/(((3.1416*150*150*M23)/4)*0.001),setup!$M$66)),setup!$M$66)/D94),setup!$M$67), ""), "") ->  | E96: =IF(E95<>"", IF(T22>0, ROUND(100*(ROUND(ROUND(T19/(((3.1416*150*150*T22)/4)*0.001),setup!$M$66)*(E95/ROUND(T19/(((3.1416*150*150*T23)/4)*0.001),setup!$M$66)),setup!$M$66)/E94),setup!$M$67), ""), "") ->  | F96: =IF(F95<>"", IF(F48>0, ROUND(100*(ROUND(ROUND(F45/(((3.1416*150*150*F48)/4)*0.001),setup!$M$66)*(F95/ROUND(F45/(((3.1416*150*150*F49)/4)*0.001),setup!$M$66)),setup!$M$66)/F94),setup!$M$67), ""), "") ->  | G96: =IF(G95<>"", IF(M48>0, ROUND(100*(ROUND(ROUND(M45/(((3.1416*150*150*M48)/4)*0.001),setup!$M$66)*(G95/ROUND(M45/(((3.1416*150*150*M49)/4)*0.001),setup!$M$66)),setup!$M$66)/G94),setup!$M$67), ""), "") ->  | H96: =IF(H95<>"", IF(T48>0, ROUND(100*(ROUND(ROUND(T45/(((3.1416*150*150*T48)/4)*0.001),setup!$M$66)*(H95/ROUND(T45/(((3.1416*150*150*T49)/4)*0.001),setup!$M$66)),setup!$M$66)/H94),setup!$M$67), ""), "") ->  | J96: =Validation!H9 ->  | K96: =IF(SUM(C96:H96)>0, ROUND(AVERAGE(C96:H96),setup!M67+1),"") ->  | L96: =IF(COUNT(C96:H96)>1, ROUND(STDEV(C96:H96),setup!M67+3),"") ->  | M96: -- | N96: =IF(COUNT(C96:H96)>=3,IF(L96>0, ROUND((setup!C9-K96)/L96,2),"--"),"--") -> -- | O96: =IF(AND(M96="--", N96="--"), "--", IF(M96="--", 100, IF(M96<0, 100, 0)+IF(M96<0, -1, 1)* IF(COUNT(C96:H96)>=5, VLOOKUP(ABS(M96),$AB$2:$AF$53,5,TRUE)+IF(LOOKUP(ABS(M96),$AB$2:$AB$53)<ABS(M96),1,0), IF(COUNT(C96:H96)=4, VLOOKUP(ABS(M96),$AA$2:$AF$53,6,TRUE)+IF(LOOKUP(ABS(M96),$AA$2:$AA$53)<ABS(M96),1,0), IF(COUNT(C96:H96)=3, VLOOKUP(ABS(M96),$Z$2:$AF$53,7,TRUE)+IF(LOOKUP(ABS(M96),$Z$2:$Z$53)<ABS(M96),1,0),"--"))))+IF(N96="--",100, IF(N96<0, 100, 0)+IF(N96<0, -1, 1)* IF(COUNT(C96:H96)>=5, VLOOKUP(ABS(N96),$AB$2:$AF$53,5,TRUE)+IF(LOOKUP(ABS(N96),$AB$2:$AB$53)<ABS(N96),1,0), IF(COUNT(C96:H96)=4, VLOOKUP(ABS(N96),$AA$2:$AF$53,6,TRUE)+IF(LOOKUP(ABS(N96),$AA$2:$AA$53)<ABS(N96),1,0), IF(COUNT(C96:H96)=3, VLOOKUP(ABS(N96),$Z$2:$AF$53,7,TRUE)+IF(LOOKUP(ABS(N96),$Z$2:$Z$53)<ABS(N96),1,0),"--"))))-100) -> -- | P96: =IF(K96<>"", IF(K96>setup!C9, "Over JMF Limit", "OK"), "") -> 
A97: %Gmm,ND | C97: =IF(C100<>"", 100-C100, "") ->  | D97: =IF(D100<>"", 100-D100, "") ->  | J97: =Validation!H10 ->  | K97: =IF(SUM(C97:H97)>0, ROUND(AVERAGE(C97:H97),setup!M67+1),"") ->  | L97: =IF(COUNT(C97:H97)>1, ROUND(STDEV(C97:H97),setup!M67+3),"") ->  | M97: =IF(COUNT(C97:H97)>=3, IF(L97>0, ROUND((K97-setup!B10)/L97,2),"--"), "--") -> -- | N97: =IF(COUNT(C97:H97)>=3,IF(L97>0, ROUND((setup!C10-K97)/L97,2),"--"),"--") -> -- | O97: =IF(AND(M97="--", N97="--"), "--", IF(M97="--", 100, IF(M97<0, 100, 0)+IF(M97<0, -1, 1)* IF(COUNT(C97:H97)>=5, VLOOKUP(ABS(M97),$AB$2:$AF$53,5,TRUE)+IF(LOOKUP(ABS(M97),$AB$2:$AB$53)<ABS(M97),1,0), IF(COUNT(C97:H97)=4, VLOOKUP(ABS(M97),$AA$2:$AF$53,6,TRUE)+IF(LOOKUP(ABS(M97),$AA$2:$AA$53)<ABS(M97),1,0), IF(COUNT(C97:H97)=3, VLOOKUP(ABS(M97),$Z$2:$AF$53,7,TRUE)+IF(LOOKUP(ABS(M97),$Z$2:$Z$53)<ABS(M97),1,0),"--"))))+IF(N97="--",100, IF(N97<0, 100, 0)+IF(N97<0, -1, 1)* IF(COUNT(C97:H97)>=5, VLOOKUP(ABS(N97),$AB$2:$AF$53,5,TRUE)+IF(LOOKUP(ABS(N97),$AB$2:$AB$53)<ABS(N97),1,0), IF(COUNT(C97:H97)=4, VLOOKUP(ABS(N97),$AA$2:$AF$53,6,TRUE)+IF(LOOKUP(ABS(N97),$AA$2:$AA$53)<ABS(N97),1,0), IF(COUNT(C97:H97)=3, VLOOKUP(ABS(N97),$Z$2:$AF$53,7,TRUE)+IF(LOOKUP(ABS(N97),$Z$2:$Z$53)<ABS(N97),1,0),"--"))))-100) -> --
A98: VFA | C98: =IF(C99<>"", ROUND(100*(C99-C100)/C99,setup!$M$76), "") ->  | D98: =IF(D99<>"", ROUND(100*(D99-D100)/D99,setup!$M$76), "") ->  | E98: =IF(E99<>"", ROUND(100*(E99-E100)/E99,setup!$M$76), "") ->  | F98: =IF(F99<>"", ROUND(100*(F99-F100)/F99,setup!$M$76), "") ->  | G98: =IF(G99<>"", ROUND(100*(G99-G100)/G99,setup!$M$76), "") ->  | H98: =IF(H99<>"", ROUND(100*(H99-H100)/H99,setup!$M$76), "") ->  | J98: =Validation!H13 ->  | K98: =IF(SUM(C98:H98)>0, ROUND(AVERAGE(C98:H98),setup!M76+1),"") ->  | L98: =IF(COUNT(C98:H98)>1, ROUND(STDEV(C98:H98),setup!M76+3),"") ->  | M98: =IF(COUNT(C98:H98)>=3, IF(L98>0, ROUND((K98-setup!B14)/L98,2),"--"), "--") -> -- | N98: =IF(COUNT(C98:H98)>=3,IF(L98>0, ROUND((setup!C14-K98)/L98,2),"--"),"--") -> -- | O98: -- | P98: =IF(K98<>"", IF(K98>setup!C14, "Over JMF Limit", IF(K98<setup!B14, "Under JMF Limit", "OK")), "") -> 
A99: VMA | C99: =IF(C95<>"", ROUND(100-((C95*$J$6)/$M$5),setup!$M$74), "") ->  | D99: =IF(D95<>"", ROUND(100-((D95*$J$6)/$M$5),setup!$M$74), "") ->  | E99: =IF(E95<>"", ROUND(100-((E95*$J$6)/$M$5),setup!$M$74), "") ->  | F99: =IF(F95<>"", ROUND(100-((F95*$J$6)/$M$5),setup!$M$74), "") ->  | G99: =IF(G95<>"", ROUND(100-((G95*$J$6)/$M$5),setup!$M$74), "") ->  | H99: =IF(H95<>"", ROUND(100-((H95*$J$6)/$M$5),setup!$M$74), "") ->  | J99: =Validation!H12 ->  | K99: =IF(SUM(C99:H99)>0, ROUND(AVERAGE(C99:H99),setup!M74+1),"") ->  | L99: =IF(COUNT(C99:H99)>1, ROUND(STDEV(C99:H99),setup!M74+3),"") ->  | M99: =IF(COUNT(C99:H99)>=3,IF(L99>0, ROUND((K99-setup!B13)/L99,2),"--"),"--") -> -- | N99: -- | O99: -- | P99: =IF(K99<>"", IF(K99<setup!B13, "Under JMF Limit", "OK"), "") -> 
A100: %Voids | C100: =IF(C95<>"", ROUND(100*((C94-C95)/C94),setup!$M$75), "") ->  | D100: =IF(D95<>"", ROUND(100*((D94-D95)/D94),setup!$M$75), "") ->  | E100: =IF(E95<>"", ROUND(100*((E94-E95)/E94),setup!$M$75), "") ->  | F100: =IF(F95<>"", ROUND(100*((F94-F95)/F94),setup!$M$75), "") ->  | G100: =IF(G95<>"", ROUND(100*((G94-G95)/G94),setup!$M$75), "") ->  | H100: =IF(H95<>"", ROUND(100*((H94-H95)/H94),setup!$M$75), "") ->  | J100: =Validation!H11 ->  | K100: =IF(SUM(C100:H100)>0, ROUND(AVERAGE(C100:H100),setup!M75+1),"") ->  | L100: =IF(COUNT(C100:H100)>1, ROUND(STDEV(C100:H100),setup!M75+3),"") ->  | M100: =IF(COUNT(C100:H100)>=3,IF(L100>0, ROUND((K100-setup!B15)/L100,2),"--"),"--") -> -- | N100: =IF(COUNT(C100:H100)>=3,IF(L100>0, ROUND((setup!C15-K100)/L100,2),"--"),"--") -> -- | O100: -- | P100: =IF(K100<>"", IF(K100>setup!C15, "Over JMF Limit", IF(K100<setup!B15, "Under JMF Limit", IF(O100<>"--", IF(O100<71, "<71 PWL", "OK"), "OK"))), "") -> 
A101: Extracted AC | C101: =IF(C32>0, C32, "") ->  | D101: =IF(J32>0, J32, "") ->  | E101: =IF(Q32>0, Q32, "") ->  | F101: =IF(C58>0, C58, "") ->  | G101: =IF(J58>0, J58, "") ->  | H101: =IF(Q58>0, Q58, "") ->  | J101: =JMF!H56 ->  | K101: =IF(SUM(C101:H101)>0, ROUND(AVERAGE(C101:H101),setup!M71+1),"") ->  | L101: =IF(COUNT(C101:H101)>1, ROUND(STDEV(C101:H101),setup!M71+3),"") ->  | M101: =IF(COUNT(C101:H101)>=3,IF(L101>0, ROUND(setup!D31/L101,2),"--"),"--") -> -- | N101: =IF(COUNT(C101:H101)>=3,IF(L101>0, ROUND(setup!D31/L101,2),"--"),"--") -> -- | O101: =IF(AND(M101="--", N101="--"), "--", IF(M101="--", 100, IF(M101<0, 100, 0)+IF(M101<0, -1, 1)* IF(COUNT(C101:H101)>=5, VLOOKUP(ABS(M101),$AB$2:$AF$53,5,TRUE)+IF(LOOKUP(ABS(M101),$AB$2:$AB$53)<ABS(M101),1,0), IF(COUNT(C101:H101)=4, VLOOKUP(ABS(M101),$AA$2:$AF$53,6,TRUE)+IF(LOOKUP(ABS(M101),$AA$2:$AA$53)<ABS(M101),1,0), IF(COUNT(C101:H101)=3, VLOOKUP(ABS(M101),$Z$2:$AF$53,7,TRUE)+IF(LOOKUP(ABS(M101),$Z$2:$Z$53)<ABS(M101),1,0),"--"))))+IF(N101="--",100, IF(N101<0, 100, 0)+IF(N101<0, -1, 1)* IF(COUNT(C101:H101)>=5, VLOOKUP(ABS(N101),$AB$2:$AF$53,5,TRUE)+IF(LOOKUP(ABS(N101),$AB$2:$AB$53)<ABS(N101),1,0), IF(COUNT(C101:H101)=4, VLOOKUP(ABS(N101),$AA$2:$AF$53,6,TRUE)+IF(LOOKUP(ABS(N101),$AA$2:$AA$53)<ABS(N101),1,0), IF(COUNT(C101:H101)=3, VLOOKUP(ABS(N101),$Z$2:$AF$53,7,TRUE)+IF(LOOKUP(ABS(N101),$Z$2:$Z$53)<ABS(N101),1,0),"--"))))-100) -> -- | P101: =IF(K101<>"", IF(K101>MIN(JMF!Q56,100), "Over JMF Limit", IF(K101<MAX(JMF!N56,0), "Under JMF Limit","OK")), "") -> 
A102: Comp Temp | C102: =IF(G27>0, G27, "") ->  | D102: =IF(N27>0, N27, "") ->  | E102: =IF(U27>0, U27, "") ->  | F102: =IF(G53>0, G53, "") ->  | G102: =IF(N53>0, N53, "") ->  | H102: =IF(U53>0, U53, "") ->  | J102: =Validation!H39 ->  | K102: =IF(SUM(C102:H102)>0, ROUND(AVERAGE(C102:H102),1),"") ->  | L102: =IF(COUNT(C102:H102)>1, ROUND(STDEV(C102:H102),1),"") ->  | M102: -- | N102: -- | O102: --
A104: Gradation | J104: JMF | K104: MEAN | L104: StDev | M104: QL | N104: QU | O104: PWL
A105: 2" 50 | C105: =IF(D16<>"", D16, "") ->  | D105: =IF(K16<>"", K16, "") ->  | E105: =IF(R16<>"", R16, "") ->  | F105: =IF(D42<>"", D42, "") ->  | G105: =IF(K42<>"", K42, "") ->  | H105: =IF(R42<>"", R42, "") ->  | J105: =Validation!H19 ->  | K105: =IF(SUM(C105:H105)>0, ROUND(AVERAGE(C105:H105),setup!$M$68+1),"") ->  | L105: =IF(COUNT(C105:H105)>1, ROUND(STDEV(C105:H105),setup!$M$68+3),"") ->  | M105: =IF(COUNT(C105:H105)>=3,IF(L105>0, ROUND(setup!D18/L105,2),"--"),"--") -> -- | N105: =IF(COUNT(C105:H105)>=3,IF(L105>0, ROUND((IF(K105+setup!D18>100,100,K105+setup!D18)-K105)/L105,2),"--"),"--") -> -- | O105: =IF(AND(M105="--", N105="--"), "--", IF(M105="--", 100, IF(M105<0, 100, 0)+IF(M105<0, -1, 1)* IF(COUNT(C105:H105)>=5, VLOOKUP(ABS(M105),$AB$2:$AF$53,5,TRUE)+IF(LOOKUP(ABS(M105),$AB$2:$AB$53)<ABS(M105),1,0), IF(COUNT(C105:H105)=4, VLOOKUP(ABS(M105),$AA$2:$AF$53,6,TRUE)+IF(LOOKUP(ABS(M105),$AA$2:$AA$53)<ABS(M105),1,0), IF(COUNT(C105:H105)=3, VLOOKUP(ABS(M105),$Z$2:$AF$53,7,TRUE)+IF(LOOKUP(ABS(M105),$Z$2:$Z$53)<ABS(M105),1,0),"--"))))+IF(N105="--",100, IF(N105<0, 100, 0)+IF(N105<0, -1, 1)* IF(COUNT(C105:H105)>=5, VLOOKUP(ABS(N105),$AB$2:$AF$53,5,TRUE)+IF(LOOKUP(ABS(N105),$AB$2:$AB$53)<ABS(N105),1,0), IF(COUNT(C105:H105)=4, VLOOKUP(ABS(N105),$AA$2:$AF$53,6,TRUE)+IF(LOOKUP(ABS(N105),$AA$2:$AA$53)<ABS(N105),1,0), IF(COUNT(C105:H105)=3, VLOOKUP(ABS(N105),$Z$2:$AF$53,7,TRUE)+IF(LOOKUP(ABS(N105),$Z$2:$Z$53)<ABS(N105),1,0),"--"))))-100) -> --
A106: 1.5" 37.5 | J106: =Validation!H20 ->  | K106: =IF(SUM(C106:H106)>0, ROUND(AVERAGE(C106:H106),setup!$M$68+1),"") ->  | L106: =IF(COUNT(C106:H106)>1, ROUND(STDEV(C106:H106),setup!$M$68+3),"") ->  | M106: =IF(COUNT(C106:H106)>=3,IF(L106>0, ROUND(setup!D19/L106,2),"--"),"--") -> -- | N106: =IF(COUNT(C106:H106)>=3,IF(L106>0, ROUND((IF(K106+setup!D19>100,100,K106+setup!D19)-K106)/L106,2),"--"),"--") -> -- | O106: =IF(AND(M106="--", N106="--"), "--", IF(M106="--", 100, IF(M106<0, 100, 0)+IF(M106<0, -1, 1)* IF(COUNT(C106:H106)>=5, VLOOKUP(ABS(M106),$AB$2:$AF$53,5,TRUE)+IF(LOOKUP(ABS(M106),$AB$2:$AB$53)<ABS(M106),1,0), IF(COUNT(C106:H106)=4, VLOOKUP(ABS(M106),$AA$2:$AF$53,6,TRUE)+IF(LOOKUP(ABS(M106),$AA$2:$AA$53)<ABS(M106),1,0), IF(COUNT(C106:H106)=3, VLOOKUP(ABS(M106),$Z$2:$AF$53,7,TRUE)+IF(LOOKUP(ABS(M106),$Z$2:$Z$53)<ABS(M106),1,0),"--"))))+IF(N106="--",100, IF(N106<0, 100, 0)+IF(N106<0, -1, 1)* IF(COUNT(C106:H106)>=5, VLOOKUP(ABS(N106),$AB$2:$AF$53,5,TRUE)+IF(LOOKUP(ABS(N106),$AB$2:$AB$53)<ABS(N106),1,0), IF(COUNT(C106:H106)=4, VLOOKUP(ABS(N106),$AA$2:$AF$53,6,TRUE)+IF(LOOKUP(ABS(N106),$AA$2:$AA$53)<ABS(N106),1,0), IF(COUNT(C106:H106)=3, VLOOKUP(ABS(N106),$Z$2:$AF$53,7,TRUE)+IF(LOOKUP(ABS(N106),$Z$2:$Z$53)<ABS(N106),1,0),"--"))))-100) -> -- | P106: =IF(OR(setup!B19<>"", setup!C19<>""),IF(K106<>"", IF(K106>JMF!Q44, "Over JMF Limit", IF(K106<JMF!N44, "Under JMF Limit","OK")), ""),"") -> 
A107: 1" 25 | J107: =Validation!H21 ->  | K107: =IF(SUM(C107:H107)>0, ROUND(AVERAGE(C107:H107),setup!$M$68+1),"") ->  | L107: =IF(COUNT(C107:H107)>1, ROUND(STDEV(C107:H107),setup!$M$68+3),"") ->  | M107: =IF(COUNT(C107:H107)>=3,IF(L107>0, ROUND(setup!D20/L107,2),"--"),"--") -> -- | N107: =IF(COUNT(C107:H107)>=3,IF(L107>0, ROUND((IF(K107+setup!D20>100,100,K107+setup!D20)-K107)/L107,2),"--"),"--") -> -- | O107: --
A108: 3/4" 19 | J108: =Validation!H22 ->  | K108: =IF(SUM(C108:H108)>0, ROUND(AVERAGE(C108:H108),setup!$M$68+1),"") ->  | L108: =IF(COUNT(C108:H108)>1, ROUND(STDEV(C108:H108),setup!$M$68+3),"") ->  | M108: =IF(COUNT(C108:H108)>=3,IF(L108>0, ROUND(setup!D21/L108,2),"--"),"--") -> -- | N108: =IF(COUNT(C108:H108)>=3,IF(L108>0, ROUND((IF(K108+setup!D21>100,100,K108+setup!D21)-K108)/L108,2),"--"),"--") -> -- | O108: -- | P108: =IF(OR(setup!B21<>"", setup!C21<>""),IF(K108<>"", IF(K108>MIN(JMF!Q46,100), "Over JMF Limit", IF(K108<MAX(JMF!N46,0), "Under JMF Limit","OK")), ""),"") -> 
A109: 1/2" 12.5 | J109: =Validation!H23 ->  | K109: =IF(SUM(C109:H109)>0, ROUND(AVERAGE(C109:H109),setup!$M$68+1),"") ->  | L109: =IF(COUNT(C109:H109)>1, ROUND(STDEV(C109:H109),setup!$M$68+3),"") ->  | M109: =IF(COUNT(C109:H109)>=3,IF(L109>0, ROUND(setup!D22/L109,2),"--"),"--") -> -- | N109: =IF(COUNT(C109:H109)>=3,IF(L109>0, ROUND((IF(K109+setup!D22>100,100,K109+setup!D22)-K109)/L109,2),"--"),"--") -> -- | O109: -- | P109: =IF(OR(setup!B22<>"", setup!C22<>""),IF(K109<>"", IF(K109>JMF!Q47, "Over JMF Limit", IF(K109<JMF!N47, "Under JMF Limit","OK")), ""),"") -> 
A110: 3/8" 9.5 | J110: =Validation!H24 ->  | K110: =IF(SUM(C110:H110)>0, ROUND(AVERAGE(C110:H110),setup!$M$68+1),"") ->  | L110: =IF(COUNT(C110:H110)>1, ROUND(STDEV(C110:H110),setup!$M$68+3),"") ->  | M110: =IF(COUNT(C110:H110)>=3,IF(L110>0, ROUND(setup!D23/L110,2),"--"),"--") -> -- | N110: =IF(COUNT(C110:H110)>=3,IF(L110>0, ROUND((IF(K110+setup!D23>100,100,K110+setup!D23)-K110)/L110,2),"--"),"--") -> -- | O110: -- | P110: =IF(OR(setup!B23<>"", setup!C23<>""),IF(K110<>"", IF(K110>JMF!Q48, "Over JMF Limit", IF(K110<JMF!N48, "Under JMF Limit","OK")), ""),"") -> 
A111: #4 4.75 | J111: =Validation!H25 ->  | K111: =IF(SUM(C111:H111)>0, ROUND(AVERAGE(C111:H111),setup!$M$68+1),"") ->  | L111: =IF(COUNT(C111:H111)>1, ROUND(STDEV(C111:H111),setup!$M$68+3),"") ->  | M111: =IF(COUNT(C111:H111)>=3,IF(L111>0, ROUND(setup!D24/L111,2),"--"),"--") -> -- | N111: =IF(COUNT(C111:H111)>=3,IF(L111>0, ROUND((IF(K111+setup!D24>100,100,K111+setup!D24)-K111)/L111,2),"--"),"--") -> -- | O111: -- | P111: =IF(OR(setup!B24<>"", setup!C24<>""),IF(K111<>"", IF(K111>JMF!Q49, "Over JMF Limit", IF(K111<JMF!N49, "Under JMF Limit","OK")), ""),"") -> 
A112: #8 2.36 | J112: =Validation!H26 ->  | K112: =IF(SUM(C112:H112)>0, ROUND(AVERAGE(C112:H112),setup!$M$68+1),"") ->  | L112: =IF(COUNT(C112:H112)>1, ROUND(STDEV(C112:H112),setup!$M$68+3),"") ->  | M112: =IF(COUNT(C112:H112)>=3,IF(L112>0, ROUND(setup!D25/L112,2),"--"),"--") -> -- | N112: =IF(COUNT(C112:H112)>=3,IF(L112>0, ROUND((IF(K112+setup!D25>100,100,K112+setup!D25)-K112)/L112,2),"--"),"--") -> -- | O112: -- | P112: =IF(OR(setup!B25<>"", setup!C25<>""),IF(K112<>"", IF(K112>MIN(JMF!Q50,100), "Over JMF Limit", IF(K112<MAX(JMF!N50,0), "Under JMF Limit",IF(O112<>"--", IF(O112<71, "PWL <71", "OK"),"OK"))), ""),"") -> 
A113: #16 1.18 | J113: =Validation!H27 ->  | K113: =IF(SUM(C113:H113)>0, ROUND(AVERAGE(C113:H113),setup!$M$68+1),"") ->  | L113: =IF(COUNT(C113:H113)>1, ROUND(STDEV(C113:H113),setup!$M$68+3),"") ->  | M113: =IF(COUNT(C113:H113)>=3,IF(L113>0, ROUND(setup!D26/L113,2),"--"),"--") -> -- | N113: =IF(COUNT(C113:H113)>=3,IF(L113>0, ROUND((IF(K113+setup!D26>100,100,K113+setup!D26)-K113)/L113,2),"--"),"--") -> -- | O113: -- | P113: =IF(OR(setup!B26<>"", setup!C26<>""),IF(K113<>"", IF(K113>JMF!Q51, "Over JMF Limit", IF(K113<JMF!N51, "Under JMF Limit","OK")), ""),"") -> 
A114: #30 0.6 | J114: =Validation!H28 ->  | K114: =IF(SUM(C114:H114)>0, ROUND(AVERAGE(C114:H114),setup!$M$68+1),"") ->  | L114: =IF(COUNT(C114:H114)>1, ROUND(STDEV(C114:H114),setup!$M$68+3),"") ->  | M114: =IF(COUNT(C114:H114)>=3,IF(L114>0, ROUND(setup!D27/L114,2),"--"),"--") -> -- | N114: =IF(COUNT(C114:H114)>=3,IF(L114>0, ROUND((IF(K114+setup!D27>100,100,K114+setup!D27)-K114)/L114,2),"--"),"--") -> -- | O114: -- | P114: =IF(OR(setup!B27<>"", setup!C27<>""),IF(K114<>"", IF(K114>JMF!Q52, "Over JMF Limit", IF(K114<JMF!N52, "Under JMF Limit","OK")), ""),"") -> 
A115: #50 0.3 | J115: =Validation!H29 ->  | K115: =IF(SUM(C115:H115)>0, ROUND(AVERAGE(C115:H115),setup!$M$68+1),"") ->  | L115: =IF(COUNT(C115:H115)>1, ROUND(STDEV(C115:H115),setup!$M$68+3),"") ->  | M115: =IF(COUNT(C115:H115)>=3,IF(L115>0, ROUND(setup!D28/L115,2),"--"),"--") -> -- | N115: =IF(COUNT(C115:H115)>=3,IF(L115>0, ROUND((IF(K115+setup!D28>100,100,K115+setup!D28)-K115)/L115,2),"--"),"--") -> -- | O115: -- | P115: =IF(OR(setup!B28<>"", setup!C28<>""),IF(K115<>"", IF(K115>JMF!Q53, "Over JMF Limit", IF(K115<JMF!N53, "Under JMF Limit","OK")), ""),"") -> 
A116: #100 0.15 | J116: =Validation!H30 ->  | K116: =IF(SUM(C116:H116)>0, ROUND(AVERAGE(C116:H116),setup!$M$68+1),"") ->  | L116: =IF(COUNT(C116:H116)>1, ROUND(STDEV(C116:H116),setup!$M$68+3),"") ->  | M116: =IF(COUNT(C116:H116)>=3,IF(L116>0, ROUND(setup!D29/L116,2),"--"),"--") -> -- | N116: =IF(COUNT(C116:H116)>=3,IF(L116>0, ROUND((IF(K116+setup!D29>100,100,K116+setup!D29)-K116)/L116,2),"--"),"--") -> -- | O116: -- | P116: =IF(OR(setup!B29<>"", setup!C29<>""),IF(K116<>"", IF(K116>JMF!Q54, "Over JMF Limit", IF(K116<JMF!N54, "Under JMF Limit","OK")), ""),"") -> 
A117: #200 0.075 | J117: =Validation!H31 ->  | K117: =IF(SUM(C117:H117)>0, ROUND(AVERAGE(C117:H117),setup!M69+1),"") ->  | L117: =IF(COUNT(C117:H117)>1, ROUND(STDEV(C117:H117),setup!M69+3),"") ->  | M117: =IF(COUNT(C117:H117)>=3,IF(L117>0, ROUND(setup!D30/L117,2),"--"),"--") -> -- | N117: =IF(COUNT(C117:H117)>=3,IF(L117>0, ROUND((IF(K117+setup!D30>100,100,K117+setup!D30)-K117)/L117,2),"--"),"--") -> -- | O117: -- | P117: =IF(OR(setup!B30<>"",setup!C30<>""),IF(K117<>"", IF(K117>MIN(JMF!Q55,100), "Over JMF Limit", IF(K117<MAX(JMF!N55,0), "Under JMF Limit",IF(O117<>"--", IF(O117<71, "PWL <71", "OK"),"OK"))), ""),"") -> 
A119: Other Factors (Informational Tools Only) | J119: JMF | K119: MEAN | L119: StDev | M119: QL | N119: QU | O119: PWL
A120: GmbEst,ND | C120: =IF(C95<>"", IF(F23>0,ROUND(F19/(((3.1416*150*150*F23)/4)*0.001),setup!M66),""),"") ->  | D120: =IF(D95<>"", IF(M23>0,ROUND(M19/(((3.1416*150*150*M23)/4)*0.001),setup!M66),""),"") ->  | E120: =IF(E95<>"", IF(T23>0,ROUND(T19/(((3.1416*150*150*T23)/4)*0.001),setup!M66),""),"") ->  | F120: =IF(F95<>"", IF(F49>0,ROUND(F45/(((3.1416*150*150*F49)/4)*0.001),setup!M66),""),"") ->  | G120: =IF(G95<>"", IF(M49>0,ROUND(M45/(((3.1416*150*150*M49)/4)*0.001),setup!M66),""),"") ->  | H120: =IF(H95<>"", IF(T49>0,ROUND(T45/(((3.1416*150*150*T49)/4)*0.001),setup!M66),""),"") ->  | J120: -- | K120: =IF(SUM(C120:H120)>0, ROUND(AVERAGE(C120:H120),setup!M66+1),"") ->  | L120: =IF(COUNT(C120:H120)>1, ROUND(STDEV(C120:H120),setup!M66+3),"") ->  | M120: -- | N120: -- | O120: --
A121: Gmb,Nmax | C121: =IF(G21>0,ROUND(G19/(G21-G20),setup!M66),"") ->  | D121: =IF(N21>0,ROUND(N19/(N21-N20),setup!N66),"") ->  | E121: =IF(U21>0,ROUND(U19/(U21-U20),setup!O66),"") ->  | F121: =IF(G47>0,ROUND(G45/(G47-G46),setup!P66),"") ->  | G121: =IF(N47>0,ROUND(N45/(N47-N46),setup!Q66),"") ->  | H121: =IF(U47>0,ROUND(U45/(U47-U46),setup!R66),"") ->  | J121: =Validation!H14 ->  | K121: =IF(SUM(C121:H121)>0, ROUND(AVERAGE(C121:H121),setup!M66+1),"") ->  | L121: =IF(COUNT(C121:H121)>1, ROUND(STDEV(C121:H121),setup!M66+3),"") ->  | M121: -- | N121: -- | O121: --
A122: %Gmm,Nmax | C122: =IF(C121<>"", IF(G24>0, ROUND(100*(ROUND(ROUND(F19/(((3.1416*150*150*G24)/4)*0.001),setup!$M$66)*(C121/ROUND(F19/(((3.1416*150*150*F23)/4)*0.001),setup!$M$66)),setup!$M$66)/C94),setup!$M$67), ""), "") ->  | D122: =IF(D121<>"", IF(H24>0, ROUND(100*(ROUND(ROUND(G19/(((3.1416*150*150*H24)/4)*0.001),setup!$M$66)*(D121/ROUND(G19/(((3.1416*150*150*G23)/4)*0.001),setup!$M$66)),setup!$M$66)/D94),setup!$M$67), ""), "") ->  | E122: =IF(E121<>"", IF(I24>0, ROUND(100*(ROUND(ROUND(H19/(((3.1416*150*150*I24)/4)*0.001),setup!$M$66)*(E121/ROUND(H19/(((3.1416*150*150*H23)/4)*0.001),setup!$M$66)),setup!$M$66)/E94),setup!$M$67), ""), "") ->  | F122: =IF(F121<>"", IF(J24>0, ROUND(100*(ROUND(ROUND(I19/(((3.1416*150*150*J24)/4)*0.001),setup!$M$66)*(F121/ROUND(I19/(((3.1416*150*150*I23)/4)*0.001),setup!$M$66)),setup!$M$66)/F94),setup!$M$67), ""), "") ->  | G122: =IF(G121<>"", IF(K24>0, ROUND(100*(ROUND(ROUND(J19/(((3.1416*150*150*K24)/4)*0.001),setup!$M$66)*(G121/ROUND(J19/(((3.1416*150*150*J23)/4)*0.001),setup!$M$66)),setup!$M$66)/G94),setup!$M$67), ""), "") ->  | H122: =IF(H121<>"", IF(L24>0, ROUND(100*(ROUND(ROUND(K19/(((3.1416*150*150*L24)/4)*0.001),setup!$M$66)*(H121/ROUND(K19/(((3.1416*150*150*K23)/4)*0.001),setup!$M$66)),setup!$M$66)/H94),setup!$M$67), ""), "") ->  | J122: =Validation!H15 ->  | K122: =IF(SUM(C122:H122)>0, ROUND(AVERAGE(C122:H122),setup!M67+1),"") ->  | L122: =IF(COUNT(C122:H122)>1, ROUND(STDEV(C122:H122),setup!M67+3),"") ->  | M122: -- | N122: -- | O122: --
